Workbook

Sheet 8Tm AM Rd 2
A1: copywrited program: May not be used or reproduced without the consent of Chip Moseley | AQ1: Version : 5 | AT1: Seeding | AX1: Final Ranking | AZ1: Pool Ranking Multiplier = | BA1: 16
B2: Tournament Name | U2: Date | AT2: # | AU2: Team Name | AV2: Team Code | AW2: Initial Ranking | AX2: Pool Play | AY2: Finals | AZ2: Playoff Ranking Multiplier = | BA2: 16
B3: Site: | L3: Age | U3: Division | AB3: Club | AD3: Power | AT3: 1 | AU3: BVA 11 | AV3: fj1biltm1cr | AW3: =VLOOKUP(AV3,'8Tm AM Rd1'!AV$3:AX$10,3,FALSE) -> 1217.469502 | AX3: =VLOOKUP(AU3,AT$79:AU$174,2,FALSE) -> 1209.764819 | AY3: =IF(ISNA(VLOOKUP(AU3,AT$182:AU$234,2,FALSE)),AX3,VLOOKUP(AU3,AT$182:AU$234,2,FALSE)) -> 1209.764819
H4: Gym Supervisor | U4: Supr Cell #: | AT4: 2 | AU4: SC Midlands KP White | AV4: fj2scmid2pm | AW4: =VLOOKUP(AV4,'8Tm AM Rd1'!AV$3:AX$10,3,FALSE) -> 1185.469502 | AX4: 1210.036409 | AY4: 1210.036409
AT5: 3 | AU5: Magnum 11 Black | AV5: fj1magnm1pm | AW5: =VLOOKUP(AV5,'8Tm AM Rd1'!AV$3:AX$10,3,FALSE) -> 1242.020305 | AX5: 1214.99402 | AY5: 1214.99402
A6: POOL: | B6: A | C6: COURT: | I6: 1 | K6: ="Pool "&B6&" - Round 1 - Court "&I6 -> Pool A - Round 1 - Court 1 | AT6: 4 | AU6: SC Midlands KP Boys | AV6: fj2scmid3pm | AW6: =VLOOKUP(AV6,'8Tm AM Rd1'!AV$3:AX$10,3,FALSE) -> 1247.986344 | AX6: 1268.824636 | AY6: 1268.824636
A7: Team # | B7: Team Name | L7: =IF($AK10=0,"Games Won","Matches Won") -> Matches Won | R7: =IF($AK10=0,"Games Lost","Matches Lost") -> Matches Lost | W7: Total Pool Net Points | Z7: % Total Net Points | AC7: Game Win % | AF7: Pool Finish | AG7: # | AH7: Playoff Finish | AK7: 1 | AL7: Games per Match (1-5) | AT7: 5 | AU7: SC Midlands KP Black | AV7: fj1scmid1pm | AW7: =VLOOKUP(AV7,'8Tm AM Rd1'!AV$3:AX$10,3,FALSE) -> 1186.82973 | AX7: 1165.866189 | AY7: 1165.866189
A8: =IF($AK9>0,"1","") -> 1 | B8: Team Name | E8: =AU3 -> BVA 11 | L8: =IF($AK10=0,AF64,AF46) -> 1 | R8: =IF($AK10=0,AG64,AG46) -> 2 | W8: =AQ24 -> -15 | Z8: =IF(AF58>0,(AQ24/AF58),0) -> -0.1648351648 | AC8: =IF(AF72=0,0,(AF64/AF72)) -> 0.3333333333 | AF8: 3 | AG8: 1 | AK8: 6 | AL8: Matches (1-10) | AT8: 6 | AU8: C1VB Juniors Royal | AV8: fj2crone7pm | AW8: =VLOOKUP(AV8,'8Tm AM Rd1'!AV$3:AX$10,3,FALSE) -> 1189.830287 | AX8: 1198.733225 | AY8: 1198.733225
B9: Team Code | E9: =AV3 -> fj1biltm1cr | AK9: 4 | AL9: Teams in Pool (1-5) | AT9: 7 | AU9: SC Midlands KP Garnet | AV9: fj1scmid2pm | AW9: =VLOOKUP(AV9,'8Tm AM Rd1'!AV$3:AX$10,3,FALSE) -> 1182.530498 | AX9: 1176.086938 | AY9: 1176.086938
A10: =IF($AK9>1,"2","") -> 2 | B10: Team Name | E10: =AU6 -> SC Midlands KP Boys | L10: =IF($AK10=0,AF65,AF47) -> 3 | R10: =IF($AK10=0,AG65,AG47) -> 0 | W10: =AQ25 -> 46 | Z10: =IF(AF59>0,(AQ25/AF59),0) -> 0.5111111111 | AC10: =IF(AF73=0,0,(AF65/AF73)) -> 1 | AF10: 1 | AG10: 1 | AK10: 1 | AL10: 0-Count Games 1-Count Matches | AT10: 8 | AU10: Intense Kids power Gvl | AV10: fj2inten2pm | AW10: =VLOOKUP(AV10,'8Tm AM Rd1'!AV$3:AX$10,3,FALSE) -> 1214.530498 | AX10: 1222.36043 | AY10: 1222.36043
B11: Team Code | E11: =AV6 -> fj2scmid3pm | AK11: 1 | AL11: Game Win % 0 = No 1 = Yes
A12: =IF($AK9>2,"3","") -> 3 | B12: Team Name | E12: =AU7 -> SC Midlands KP Black | L12: =IF($AK10=0,AF66,AF48) -> 0 | R12: =IF($AK10=0,AG66,AG48) -> 3 | W12: =AQ26 -> -41 | Z12: =IF(AF60>0,(AQ26/AF60),0) -> -0.476744186 | AC12: =IF(AF74=0,0,(AF66/AF74)) -> 0 | AF12: 4 | AG12: 1 | AK12: 3 | AL12: # of Matches/Games per Team
B13: Team Code | E13: =AV7 -> fj1scmid1pm | AT13: Warning -- Do not use CUT/PASTE to move teams in table. Only use COPY/PASTE or seeded cells will be corrupted.
A14: =IF($AK9>3,"4","") -> 4 | B14: Team Name | E14: =AU10 -> Intense Kids power Gvl | L14: =IF($AK10=0,AF67,AF49) -> 2 | R14: =IF($AK10=0,AG67,AG49) -> 1 | W14: =AQ27 -> 10 | Z14: =IF(AF61>0,(AQ27/AF61),0) -> 0.1176470588 | AC14: =IF(AF75=0,0,(AF67/AF75)) -> 0.6666666667 | AF14: 2 | AG14: 1
B15: Team Code | E15: =AV10 -> fj2inten2pm
A16: =IF($AK9>4,"5","") ->  | B16: Team Name | E16: =AU11 -> 0 | L16: =IF($AK10=0,AF68,AF50) -> 0 | R16: =IF($AK10=0,AG68,AG50) -> 0 | W16: =AQ28 -> 0 | Z16: =IF(AF62>0,(AQ28/AF62),0) -> 0 | AC16: =IF(AF76=0,0,(AF68/AF76)) -> 0
B17: Team Code | E17: =AV11 -> 0
B18: POOL PLAY FORMAT: Best of 3 (25-25-15) 2 pt cap
A19: Sch Start | B19: 08:30:00 | E19: 09:30:00 | H19: 10:30:00 | K19: 12:00:00 | N19: 01:00:00 | Q19: 02:00:00 | T19: 01:00:00 | W19: 01:45:00 | Z19: 02:30:00 | AC19: 03:15:00 | AF19: Note: The Pool Finish Summary at the bottom of the sheet will fill in AUTOMATICALLY once the POOL FINISH column (at left) is filled in.
A20: Actual Start
A21: End Time
B22: Match 1 | E22: =IF(AK8>1,"Match 2","") -> Match 2 | H22: =IF(AK8>2,"Match 3","") -> Match 3 | K22: =IF(AK8>3,"Match 4","") -> Match 4 | N22: =IF(AK8>4,"Match 5","") -> Match 5 | Q22: =IF(AK8>5,"Match 6","") -> Match 6 | T22: =IF(AK8>6,"Match 7","") ->  | W22: =IF(AK8>7,"Match 8","") ->  | Z22: =IF(AK8>8,"Match 9","") ->  | AC22: =IF(AK8>9,"Match 10","") -> 
B23: 1 refs | E23: 2 refs | H23: 3 refs | K23: 4 refs | N23: 2 refs | Q23: 3 refs | T23: 4 refs | W23: 2 refs | Z23: 5 refs | AC23: 3 refs | AF23: Net Points | AG23: 1 | AH23: 2 | AI23: 3 | AJ23: 4 | AK23: 5 | AL23: 6 | AM23: 7 | AN23: 8 | AO23: 9 | AP23: 10 | AQ23: Total
B24: 2 | C24: v | D24: 3 | E24: 1 | F24: =IF(AK8>1,"v","") -> v | G24: 4 | H24: 2 | I24: =IF(AK8>2,"v","") -> v | J24: 4 | K24: 1 | L24: =IF(AK8>3,"v","") -> v | M24: 3 | N24: 3 | O24: =IF(AK8>4,"v","") -> v | P24: 4 | Q24: 1 | R24: =IF(AK8>5,"v","") -> v | S24: 2 | T24: 2 | U24: =IF(AK8>6,"v","") ->  | V24: 3 | W24: 1 | X24: =IF(AK8>7,"v","") ->  | Y24: 5 | Z24: 3 | AA24: =IF(AK8>8,"v","") ->  | AB24: 4 | AC24: 1 | AD24: =IF(AK8>9,"v","") ->  | AE24: 2 | AF24: =IF(AK9>0,"Team 1","") -> Team 1 | AG24: =IF(AK9<1,"",IF(AK8<1,"",IF(B24=1,B30-D30,IF(D24=1,D30-B30,"")))) ->  | AH24: =IF(AK9<1,"",IF(AK8<2,"",IF(E24=1,E30-G30,IF(G24=1,G30-E30,"")))) -> -1 | AI24: =IF(AK9<1,"",IF(AK8<3,"",IF(H24=1,H30-J30,IF(J24=1,J30-H30,"")))) ->  | AJ24: =IF(AK9<1,"",IF(AK8<4,"",IF(K24=1,K30-M30,IF(M24=1,M30-K30,"")))) -> 9 | AK24: =IF(AK9<1,"",IF(AK8<5,"",IF(N24=1,N30-P30,IF(P24=1,P30-N30,"")))) ->  | AL24: =IF(AK9<1,"",IF(AK8<6,"",IF(Q24=1,Q30-S30,IF(S24=1,S30-Q30,"")))) -> -23 | AM24: =IF(AK9<1,"",IF(AK8<7,"",IF(T24=1,T30-V30,IF(V24=1,V30-T30,"")))) ->  | AN24: =IF(AK9<1,"",IF(AK8<8,"",IF(W24=1,W30-Y30,IF(Y24=1,Y30-W30,"")))) ->  | AO24: =IF(AK9<1,"",IF(AK8<9,"",IF(Z24=1,Z30-AB30,IF(AB24=1,AB30-Z30,"")))) ->  | AP24: =IF(AK9<1,"",IF(AK8<10,"",IF(AC24=1,AC30-AE30,IF(AE24=1,AE30-AC30,"")))) ->  | AQ24: =SUM(AG24:AP24) -> -15
A25: Game 1 | B25: 25 | C25: / | D25: 12 | E25: 24 | F25: =IF(AK8>1,"/","") -> / | G25: 25 | H25: 28 | I25: =IF(AK8>2,"/","") -> / | J25: 18 | K25: 29 | L25: =IF(AK8>3,"/","") -> / | M25: 20 | N25: 13 | O25: =IF(AK8>4,"/","") -> / | P25: 32 | Q25: 14 | R25: =IF(AK8>5,"/","") -> / | S25: 37 | U25: =IF(AK8>6,"/","") ->  | X25: =IF(AK8>7,"/","") ->  | AA25: =IF(AK8>8,"/","") ->  | AD25: =IF(AK8>9,"/","") ->  | AF25: =IF(AK9>1,"Team 2","") -> Team 2 | AG25: =IF(AK9<2,"",IF(AK8<1,"",IF(B24=2,B30-D30,IF(D24=2,D30-B30,"")))) -> 13 | AH25: =IF(AK9<2,"",IF(AK8<2,"",IF(E24=2,E30-G30,IF(G24=2,G30-E30,"")))) ->  | AI25: =IF(AK9<2,"",IF(AK8<3,"",IF(H24=2,H30-J30,IF(J24=2,J30-H30,"")))) -> 10 | AJ25: =IF(AK9<2,"",IF(AK8<4,"",IF(K24=2,K30-M30,IF(M24=2,M30-K30,"")))) ->  | AK25: =IF(AK9<2,"",IF(AK8<5,"",IF(N24=2,N30-P30,IF(P24=2,P30-N30,"")))) ->  | AL25: =IF(AK9<2,"",IF(AK8<6,"",IF(Q24=2,Q30-S30,IF(S24=2,S30-Q30,"")))) -> 23 | AM25: =IF(AK9<2,"",IF(AK8<7,"",IF(T24=2,T30-V30,IF(V24=2,V30-T30,"")))) ->  | AN25: =IF(AK9<2,"",IF(AK8<8,"",IF(W24=2,W30-Y30,IF(Y24=2,Y30-W30,"")))) ->  | AO25: =IF(AK9<2,"",IF(AK8<9,"",IF(Z24=2,Z30-AB30,IF(AB24=2,AB30-Z30,"")))) ->  | AP25: =IF(AK9<2,"",IF(AK8<10,"",IF(AC24=2,AC30-AE30,IF(AE24=2,AE30-AC30,"")))) ->  | AQ25: =SUM(AG25:AP25) -> 46
A26: =IF(AK7>1,"Game 2","") ->  | C26: / | F26: =IF(AK8>1,IF(AK7>1,"/",""),"") ->  | I26: =IF(AK8>2,IF(AK7>1,"/",""),"") ->  | L26: =IF(AK8>3,IF(AK7>1,"/",""),"") ->  | O26: =IF(AK8>4,IF(AK7>1,"/",""),"") ->  | R26: =IF(AK8>5,IF(AK7>1,"/",""),"") ->  | U26: =IF(AK8>6,IF(AK7>1,"/",""),"") ->  | X26: =IF(AK8>7,IF(AK7>1,"/",""),"") ->  | AA26: =IF(AK8>8,IF(AK7>1,"/",""),"") ->  | AD26: =IF(AK8>9,IF(AK7>1,"/",""),"") ->  | AF26: =IF(AK9>2,"Team 3","") -> Team 3 | AG26: =IF(AK9<3,"",IF(AK8<1,"",IF(B24=3,B30-D30,IF(D24=3,D30-B30,"")))) -> -13 | AH26: =IF(AK9<3,"",IF(AK8<2,"",IF(E24=3,E30-G30,IF(G24=3,G30-E30,"")))) ->  | AI26: =IF(AK9<3,"",IF(AK8<3,"",IF(H24=3,H30-J30,IF(J24=3,J30-H30,"")))) ->  | AJ26: =IF(AK9<3,"",IF(AK8<4,"",IF(K24=3,K30-M30,IF(M24=3,M30-K30,"")))) -> -9 | AK26: =IF(AK9<3,"",IF(AK8<5,"",IF(N24=3,N30-P30,IF(P24=3,P30-N30,"")))) -> -19 | AL26: =IF(AK9<3,"",IF(AK8<6,"",IF(Q24=3,Q30-S30,IF(S24=3,S30-Q30,"")))) ->  | AM26: =IF(AK9<3,"",IF(AK8<7,"",IF(T24=3,T30-V30,IF(V24=3,V30-T30,"")))) ->  | AN26: =IF(AK9<3,"",IF(AK8<8,"",IF(W24=3,W30-Y30,IF(Y24=3,Y30-W30,"")))) ->  | AO26: =IF(AK9<3,"",IF(AK8<9,"",IF(Z24=3,Z30-AB30,IF(AB24=3,AB30-Z30,"")))) ->  | AP26: =IF(AK9<3,"",IF(AK8<9,"",IF(AC24=3,AC30-AE30,IF(AE24=3,AE30-AC30,"")))) ->  | AQ26: =SUM(AG26:AP26) -> -41
A27: =IF(AK7>2,"Game 3","") ->  | C27: / | F27: =IF(AK8>1,IF(AK7>2,"/",""),"") ->  | I27: =IF(AK8>2,IF(AK7>2,"/",""),"") ->  | L27: =IF(AK8>3,IF(AK7>2,"/",""),"") ->  | O27: =IF(AK8>4,IF(AK7>2,"/",""),"") ->  | R27: =IF(AK8>5,IF(AK7>2,"/",""),"") ->  | U27: =IF(AK8>6,IF(AK7>2,"/",""),"") ->  | X27: =IF(AK8>7,IF(AK7>2,"/",""),"") ->  | AA27: =IF(AK8>8,IF(AK7>2,"/",""),"") ->  | AD27: =IF(AK8>9,IF(AK7>2,"/",""),"") ->  | AF27: =IF(AK9>3,"Team 4","") -> Team 4 | AG27: =IF(AK9<4,"",IF(AK8<1,"",IF(B24=4,B30-D30,IF(D24=4,D30-B30,"")))) ->  | AH27: =IF(AK9<4,"",IF(AK8<2,"",IF(E24=4,E30-G30,IF(G24=4,G30-E30,"")))) -> 1 | AI27: =IF(AK9<4,"",IF(AK8<3,"",IF(H24=4,H30-J30,IF(J24=4,J30-H30,"")))) -> -10 | AJ27: =IF(AK9<4,"",IF(AK8<4,"",IF(K24=4,K30-M30,IF(M24=4,M30-K30,"")))) ->  | AK27: =IF(AK9<4,"",IF(AK8<5,"",IF(N24=4,N30-P30,IF(P24=4,P30-N30,"")))) -> 19 | AL27: =IF(AK9<4,"",IF(AK8<6,"",IF(Q24=4,Q30-S30,IF(S24=4,S30-Q30,"")))) ->  | AM27: =IF(AK9<4,"",IF(AK8<7,"",IF(T24=4,T30-V30,IF(V24=4,V30-T30,"")))) ->  | AN27: =IF(AK9<4,"",IF(AK8<8,"",IF(W24=4,W30-Y30,IF(Y24=4,Y30-W30,"")))) ->  | AO27: =IF(AK9<4,"",IF(AK8<9,"",IF(Z24=4,Z30-AB30,IF(AB24=4,AB30-Z30,"")))) ->  | AP27: =IF(AK9<4,"",IF(AK8<10,"",IF(AC24=4,AC30-AE30,IF(AE24=4,AE30-AC30,"")))) ->  | AQ27: =SUM(AG27:AP27) -> 10
A28: =IF(AK7>3,"Game 4","") ->  | C28: / | F28: =IF(AK8>1,IF(AK7>3,"/",""),"") ->  | I28: =IF(AK8>2,IF(AK7>3,"/",""),"") ->  | L28: =IF(AK8>3,IF(AK7>3,"/",""),"") ->  | O28: =IF(AK8>4,IF(AK7>3,"/",""),"") ->  | R28: =IF(AK8>5,IF(AK7>3,"/",""),"") ->  | U28: =IF(AK8>6,IF(AK7>3,"/",""),"") ->  | X28: =IF(AK8>7,IF(AK7>3,"/",""),"") ->  | AA28: =IF(AK8>8,IF(AK7>3,"/",""),"") ->  | AD28: =IF(AK8>9,IF(AK7>3,"/",""),"") ->  | AF28: =IF(AK9>4,"Team 5","") ->  | AG28: =IF(AK9<5,"",IF(AK8<1,"",IF(B24=5,B30-D30,IF(D24=5,D30-B30,"")))) ->  | AH28: =IF(AK9<5,"",IF(AK8<2,"",IF(E24=5,E30-G30,IF(G24=5,G30-E30,"")))) ->  | AI28: =IF(AK9<5,"",IF(AK8<3,"",IF(H24=5,H30-J30,IF(J24=5,J30-H30,"")))) ->  | AJ28: =IF(AK9<5,"",IF(AK8<4,"",IF(K24=5,K30-M30,IF(M24=5,M30-K30,"")))) ->  | AK28: =IF(AK9<5,"",IF(AK8<5,"",IF(N24=5,N30-P30,IF(P24=5,P30-N30,"")))) ->  | AL28: =IF(AK9<5,"",IF(AK8<6,"",IF(Q24=5,Q30-S30,IF(S24=5,S30-Q30,"")))) ->  | AM28: =IF(AK9<5,"",IF(AK8<7,"",IF(T24=5,T30-V30,IF(V24=5,V30-T30,"")))) ->  | AN28: =IF(AK9<5,"",IF(AK8<8,"",IF(W24=5,W30-Y30,IF(Y24=5,Y30-W30,"")))) ->  | AO28: =IF(AK9<5,"",IF(AK8<9,"",IF(Z24=5,Z30-AB30,IF(AB24=5,AB30-Z30,"")))) ->  | AP28: =IF(AK9<5,"",IF(AK8<10,"",IF(AC24=5,AC30-AE30,IF(AE24=5,AE30-AC30,"")))) ->  | AQ28: =SUM(AG28:AP28) -> 0
A29: =IF(AK7>4,"Game 5","") ->  | C29: / | F29: =IF(AK8>1,IF(AK7>4,"/",""),"") ->  | I29: =IF(AK8>2,IF(AK7>4,"/",""),"") ->  | L29: =IF(AK8>3,IF(AK7>4,"/",""),"") ->  | O29: =IF(AK8>4,IF(AK7>4,"/",""),"") ->  | R29: =IF(AK8>5,IF(AK7>4,"/",""),"") ->  | U29: =IF(AK8>6,IF(AK7>4,"/",""),"") ->  | X29: =IF(AK8>7,IF(AK7>4,"/",""),"") ->  | AA29: =IF(AK8>8,IF(AK7>4,"/",""),"") ->  | AD29: =IF(AK8>9,IF(AK7>4,"/",""),"") -> 
B30: =IF($AK7=5,SUM(B25:B29),IF($AK7=4,SUM(B25:B28),IF($AK7=3,SUM(B25:B27),IF($AK7=2,SUM(B25:B26),B25)))) -> 25 | D30: =IF($AK7=5,SUM(D25:D29),IF($AK7=4,SUM(D25:D28),IF($AK7=3,SUM(D25:D27),IF($AK7=2,SUM(D25:D26),D25)))) -> 12 | E30: =IF($AK7=5,SUM(E25:E29),IF($AK7=4,SUM(E25:E28),IF($AK7=3,SUM(E25:E27),IF($AK7=2,SUM(E25:E26),E25)))) -> 24 | G30: =IF($AK7=5,SUM(G25:G29),IF($AK7=4,SUM(G25:G28),IF($AK7=3,SUM(G25:G27),IF($AK7=2,SUM(G25:G26),G25)))) -> 25 | H30: =IF($AK7=5,SUM(H25:H29),IF($AK7=4,SUM(H25:H28),IF($AK7=3,SUM(H25:H27),IF($AK7=2,SUM(H25:H26),H25)))) -> 28 | J30: =IF($AK7=5,SUM(J25:J29),IF($AK7=4,SUM(J25:J28),IF($AK7=3,SUM(J25:J27),IF($AK7=2,SUM(J25:J26),J25)))) -> 18 | K30: =IF($AK7=5,SUM(K25:K29),IF($AK7=4,SUM(K25:K28),IF($AK7=3,SUM(K25:K27),IF($AK7=2,SUM(K25:K26),K25)))) -> 29 | M30: =IF($AK7=5,SUM(M25:M29),IF($AK7=4,SUM(M25:M28),IF($AK7=3,SUM(M25:M27),IF($AK7=2,SUM(M25:M26),M25)))) -> 20 | N30: =IF($AK7=5,SUM(N25:N29),IF($AK7=4,SUM(N25:N28),IF($AK7=3,SUM(N25:N27),IF($AK7=2,SUM(N25:N26),N25)))) -> 13 | P30: =IF($AK7=5,SUM(P25:P29),IF($AK7=4,SUM(P25:P28),IF($AK7=3,SUM(P25:P27),IF($AK7=2,SUM(P25:P26),P25)))) -> 32 | Q30: =IF($AK7=5,SUM(Q25:Q29),IF($AK7=4,SUM(Q25:Q28),IF($AK7=3,SUM(Q25:Q27),IF($AK7=2,SUM(Q25:Q26),Q25)))) -> 14 | S30: =IF($AK7=5,SUM(S25:S29),IF($AK7=4,SUM(S25:S28),IF($AK7=3,SUM(S25:S27),IF($AK7=2,SUM(S25:S26),S25)))) -> 37 | T30: =IF($AK7=5,SUM(T25:T29),IF($AK7=4,SUM(T25:T28),IF($AK7=3,SUM(T25:T27),IF($AK7=2,SUM(T25:T26),T25)))) -> 0 | V30: =IF($AK7=5,SUM(V25:V29),IF($AK7=4,SUM(V25:V28),IF($AK7=3,SUM(V25:V27),IF($AK7=2,SUM(V25:V26),V25)))) -> 0 | W30: =IF($AK7=5,SUM(W25:W29),IF($AK7=4,SUM(W25:W28),IF($AK7=3,SUM(W25:W27),IF($AK7=2,SUM(W25:W26),W25)))) -> 0 | Y30: =IF($AK7=5,SUM(Y25:Y29),IF($AK7=4,SUM(Y25:Y28),IF($AK7=3,SUM(Y25:Y27),IF($AK7=2,SUM(Y25:Y26),Y25)))) -> 0 | Z30: =IF($AK7=5,SUM(Z25:Z29),IF($AK7=4,SUM(Z25:Z28),IF($AK7=3,SUM(Z25:Z27),IF($AK7=2,SUM(Z25:Z26),Z25)))) -> 0 | AB30: =IF($AK7=5,SUM(AB25:AB29),IF($AK7=4,SUM(AB25:AB28),IF($AK7=3,SUM(AB25:AB27),IF($AK7=2,SUM(AB25:AB26),AB25)))) -> 0 | AC30: =IF($AK7=5,SUM(AC25:AC29),IF($AK7=4,SUM(AC25:AC28),IF($AK7=3,SUM(AC25:AC27),IF($AK7=2,SUM(AC25:AC26),AC25)))) -> 0 | AE30: =IF($AK7=5,SUM(AE25:AE29),IF($AK7=4,SUM(AE25:AE28),IF($AK7=3,SUM(AE25:AE27),IF($AK7=2,SUM(AE25:AE26),AE25)))) -> 0
A31: Gm1 Win | B31: =IF(AND(B25>D25,$AK8>0,ISNUMBER(B25),ISNUMBER(D25)),1,0) -> 1 | D31: =IF(AND(D25>B25,$AK8>0,ISNUMBER(B25),ISNUMBER(D25)),1,0) -> 0 | E31: =IF(AND(E25>G25,$AK8>1,ISNUMBER(E25),ISNUMBER(G25)),1,0) -> 0 | G31: =IF(AND(G25>E25,$AK8>1,ISNUMBER(E25),ISNUMBER(G25)),1,0) -> 1 | H31: =IF(AND(H25>J25,$AK8>2,ISNUMBER(H25),ISNUMBER(J25)),1,0) -> 1 | J31: =IF(AND(J25>H25,$AK8>2,ISNUMBER(H25),ISNUMBER(J25)),1,0) -> 0 | K31: =IF(AND(K25>M25,$AK8>3,ISNUMBER(K25),ISNUMBER(M25)),1,0) -> 1 | M31: =IF(AND(M25>K25,$AK8>3,ISNUMBER(K25),ISNUMBER(M25)),1,0) -> 0 | N31: =IF(AND(N25>P25,$AK8>4,ISNUMBER(N25),ISNUMBER(P25)),1,0) -> 0 | P31: =IF(AND(P25>N25,$AK8>4,ISNUMBER(N25),ISNUMBER(P25)),1,0) -> 1 | Q31: =IF(AND(Q25>S25,$AK8>5,ISNUMBER(Q25),ISNUMBER(S25)),1,0) -> 0 | S31: =IF(AND(S25>Q25,$AK8>5,ISNUMBER(Q25),ISNUMBER(S25)),1,0) -> 1 | T31: =IF(AND(T25>V25,$AK8>6,ISNUMBER(T25),ISNUMBER(V25)),1,0) -> 0 | V31: =IF(AND(V25>T25,$AK8>6,ISNUMBER(T25),ISNUMBER(V25)),1,0) -> 0 | W31: =IF(AND(W25>Y25,$AK8>7,ISNUMBER(W25),ISNUMBER(Y25)),1,0) -> 0 | Y31: =IF(AND(Y25>W25,$AK8>7,ISNUMBER(W25),ISNUMBER(Y25)),1,0) -> 0 | Z31: =IF(AND(Z25>AB25,$AK8>8,ISNUMBER(Z25),ISNUMBER(AB25)),1,0) -> 0 | AB31: =IF(AND(AB25>Z25,$AK8>8,ISNUMBER(Z25),ISNUMBER(AB25)),1,0) -> 0 | AC31: =IF(AND(AC25>AE25,$AK8>9,ISNUMBER(AC25),ISNUMBER(AE25)),1,0) -> 0 | AE31: =IF(AND(AE25>AC25,$AK8>9,ISNUMBER(AC25),ISNUMBER(AE25)),1,0) -> 0
A32: Gm2 Win | B32: =IF(AND(B26>D26,$AK8>0,$AK7>1,ISNUMBER(B26),ISNUMBER(D26)),1,0) -> 0 | D32: =IF(AND(D26>B26,$AK8>0,$AK7>1,ISNUMBER(B26),ISNUMBER(D26)),1,0) -> 0 | E32: =IF(AND(E26>G26,$AK8>1,$AK7>1,ISNUMBER(E26),ISNUMBER(G26)),1,0) -> 0 | G32: =IF(AND(G26>E26,$AK8>1,$AK7>1,ISNUMBER(E26),ISNUMBER(G26)),1,0) -> 0 | H32: =IF(AND(H26>J26,$AK8>2,$AK7>1,ISNUMBER(H26),ISNUMBER(J26)),1,0) -> 0 | J32: =IF(AND(J26>H26,$AK8>2,$AK7>1,ISNUMBER(H26),ISNUMBER(J26)),1,0) -> 0 | K32: =IF(AND(K26>M26,$AK8>3,$AK7>1,ISNUMBER(K26),ISNUMBER(M26)),1,0) -> 0 | M32: =IF(AND(M26>K26,$AK8>3,$AK7>1,ISNUMBER(K26),ISNUMBER(M26)),1,0) -> 0 | N32: =IF(AND(N26>P26,$AK8>4,$AK7>1,ISNUMBER(N26),ISNUMBER(P26)),1,0) -> 0 | P32: =IF(AND(P26>N26,$AK8>4,$AK7>1,ISNUMBER(N26),ISNUMBER(P26)),1,0) -> 0 | Q32: =IF(AND(Q26>S26,$AK8>5,$AK7>1,ISNUMBER(Q26),ISNUMBER(S26)),1,0) -> 0 | S32: =IF(AND(S26>Q26,$AK8>5,$AK7>1,ISNUMBER(Q26),ISNUMBER(S26)),1,0) -> 0 | T32: =IF(AND(T26>V26,$AK8>6,$AK7>1,ISNUMBER(T26),ISNUMBER(V26)),1,0) -> 0 | V32: =IF(AND(V26>T26,$AK8>6,$AK7>1,ISNUMBER(T26),ISNUMBER(V26)),1,0) -> 0 | W32: =IF(AND(W26>Y26,$AK8>7,$AK7>1,ISNUMBER(W26),ISNUMBER(Y26)),1,0) -> 0 | Y32: =IF(AND(Y26>W26,$AK8>7,$AK7>1,ISNUMBER(W26),ISNUMBER(Y26)),1,0) -> 0 | Z32: =IF(AND(Z26>AB26,$AK8>8,$AK7>1,ISNUMBER(Z26),ISNUMBER(AB26)),1,0) -> 0 | AB32: =IF(AND(AB26>Z26,$AK8>8,$AK7>1,ISNUMBER(Z26),ISNUMBER(AB26)),1,0) -> 0 | AC32: =IF(AND(AC26>AE26,$AK8>9,$AK7>1,ISNUMBER(AC26),ISNUMBER(AE26)),1,0) -> 0 | AE32: =IF(AND(AE26>AC26,$AK8>9,$AK7>1,ISNUMBER(AC26),ISNUMBER(AE26)),1,0) -> 0
A33: Gm3 Win | B33: =IF(AND(B27>D27,$AK8>0,$AK7>2,ISNUMBER(B27),ISNUMBER(D27)),1,0) -> 0 | D33: =IF(AND(D27>B27,$AK8>0,$AK7>2,ISNUMBER(B27),ISNUMBER(D27)),1,0) -> 0 | E33: =IF(AND(E27>G27,$AK8>1,$AK7>2,ISNUMBER(E27),ISNUMBER(G27)),1,0) -> 0 | G33: =IF(AND(G27>E27,$AK8>1,$AK7>2,ISNUMBER(E27),ISNUMBER(G27)),1,0) -> 0 | H33: =IF(AND(H27>J27,$AK8>2,$AK7>2,ISNUMBER(H27),ISNUMBER(J27)),1,0) -> 0 | J33: =IF(AND(J27>H27,$AK8>2,$AK7>2,ISNUMBER(H27),ISNUMBER(J27)),1,0) -> 0 | K33: =IF(AND(K27>M27,$AK8>3,$AK7>2,ISNUMBER(K27),ISNUMBER(M27)),1,0) -> 0 | M33: =IF(AND(M27>K27,$AK8>3,$AK7>2,ISNUMBER(K27),ISNUMBER(M27)),1,0) -> 0 | N33: =IF(AND(N27>P27,$AK8>4,$AK7>2,ISNUMBER(N27),ISNUMBER(P27)),1,0) -> 0 | P33: =IF(AND(P27>N27,$AK8>4,$AK7>2,ISNUMBER(N27),ISNUMBER(P27)),1,0) -> 0 | Q33: =IF(AND(Q27>S27,$AK8>5,$AK7>2,ISNUMBER(Q27),ISNUMBER(S27)),1,0) -> 0 | S33: =IF(AND(S27>Q27,$AK8>5,$AK7>2,ISNUMBER(Q27),ISNUMBER(S27)),1,0) -> 0 | T33: =IF(AND(T27>V27,$AK8>6,$AK7>2,ISNUMBER(T27),ISNUMBER(V27)),1,0) -> 0 | V33: =IF(AND(V27>T27,$AK8>6,$AK7>2,ISNUMBER(T27),ISNUMBER(V27)),1,0) -> 0 | W33: =IF(AND(W27>Y27,$AK8>7,$AK7>2,ISNUMBER(W27),ISNUMBER(Y27)),1,0) -> 0 | Y33: =IF(AND(Y27>W27,$AK8>7,$AK7>2,ISNUMBER(W27),ISNUMBER(Y27)),1,0) -> 0 | Z33: =IF(AND(Z27>AB27,$AK8>8,$AK7>2,ISNUMBER(Z27),ISNUMBER(AB27)),1,0) -> 0 | AB33: =IF(AND(AB27>Z27,$AK8>8,$AK7>2,ISNUMBER(Z27),ISNUMBER(AB27)),1,0) -> 0 | AC33: =IF(AND(AC27>AE27,$AK8>9,$AK7>2,ISNUMBER(AC27),ISNUMBER(AE27)),1,0) -> 0 | AE33: =IF(AND(AE27>AC27,$AK8>9,$AK7>2,ISNUMBER(AC27),ISNUMBER(AE27)),1,0) -> 0
A34: Gm4 Win | B34: =IF(AND(B28>D28,$AK8>0,$AK7>3,ISNUMBER(B28),ISNUMBER(D28)),1,0) -> 0 | D34: =IF(AND(D28>B28,$AK8>0,$AK7>3,ISNUMBER(B28),ISNUMBER(D28)),1,0) -> 0 | E34: =IF(AND(E28>G28,$AK8>1,$AK7>3,ISNUMBER(E28),ISNUMBER(G28)),1,0) -> 0 | G34: =IF(AND(G28>E28,$AK8>1,$AK7>3,ISNUMBER(E28),ISNUMBER(G28)),1,0) -> 0 | H34: =IF(AND(H28>J28,$AK8>2,$AK7>3,ISNUMBER(H28),ISNUMBER(J28)),1,0) -> 0 | J34: =IF(AND(J28>H28,$AK8>2,$AK7>3,ISNUMBER(H28),ISNUMBER(J28)),1,0) -> 0 | K34: =IF(AND(K28>M28,$AK8>3,$AK7>3,ISNUMBER(K28),ISNUMBER(M28)),1,0) -> 0 | M34: =IF(AND(M28>K28,$AK8>3,$AK7>3,ISNUMBER(K28),ISNUMBER(M28)),1,0) -> 0 | N34: =IF(AND(N28>P28,$AK8>4,$AK7>3,ISNUMBER(N28),ISNUMBER(P28)),1,0) -> 0 | P34: =IF(AND(P28>N28,$AK8>4,$AK7>3,ISNUMBER(N28),ISNUMBER(P28)),1,0) -> 0 | Q34: =IF(AND(Q28>S28,$AK8>5,$AK7>3,ISNUMBER(Q28),ISNUMBER(S28)),1,0) -> 0 | S34: =IF(AND(S28>Q28,$AK8>5,$AK7>3,ISNUMBER(Q28),ISNUMBER(S28)),1,0) -> 0 | T34: =IF(AND(T28>V28,$AK8>6,$AK7>3,ISNUMBER(T28),ISNUMBER(V28)),1,0) -> 0 | V34: =IF(AND(V28>T28,$AK8>6,$AK7>3,ISNUMBER(T28),ISNUMBER(V28)),1,0) -> 0 | W34: =IF(AND(W28>Y28,$AK8>7,$AK7>3,ISNUMBER(W28),ISNUMBER(Y28)),1,0) -> 0 | Y34: =IF(AND(Y28>W28,$AK8>7,$AK7>3,ISNUMBER(W28),ISNUMBER(Y28)),1,0) -> 0 | Z34: =IF(AND(Z28>AB28,$AK8>8,$AK7>3,ISNUMBER(Z28),ISNUMBER(AB28)),1,0) -> 0 | AB34: =IF(AND(AB28>Z28,$AK8>8,$AK7>3,ISNUMBER(Z28),ISNUMBER(AB28)),1,0) -> 0 | AC34: =IF(AND(AC28>AE28,$AK8>9,$AK7>3,ISNUMBER(AC28),ISNUMBER(AE28)),1,0) -> 0 | AE34: =IF(AND(AE28>AC28,$AK8>9,$AK7>3,ISNUMBER(AC28),ISNUMBER(AE28)),1,0) -> 0
A35: Gm5 Win | B35: =IF(AND(B29>D29,$AK8>0,$AK7>4,ISNUMBER(B29),ISNUMBER(D29)),1,0) -> 0 | D35: =IF(AND(D29>B29,$AK8>0,$AK7>4,ISNUMBER(B29),ISNUMBER(D29)),1,0) -> 0 | E35: =IF(AND(E29>G29,$AK8>1,$AK7>4,ISNUMBER(E29),ISNUMBER(G29)),1,0) -> 0 | G35: =IF(AND(G29>E29,$AK8>1,$AK7>4,ISNUMBER(E29),ISNUMBER(G29)),1,0) -> 0 | H35: =IF(AND(H29>J29,$AK8>2,$AK7>4,ISNUMBER(H29),ISNUMBER(J29)),1,0) -> 0 | J35: =IF(AND(J29>H29,$AK8>2,$AK7>4,ISNUMBER(H29),ISNUMBER(J29)),1,0) -> 0 | K35: =IF(AND(K29>M29,$AK8>3,$AK7>4,ISNUMBER(K29),ISNUMBER(M29)),1,0) -> 0 | M35: =IF(AND(M29>K29,$AK8>3,$AK7>4,ISNUMBER(K29),ISNUMBER(M29)),1,0) -> 0 | N35: =IF(AND(N29>P29,$AK8>4,$AK7>4,ISNUMBER(N29),ISNUMBER(P29)),1,0) -> 0 | P35: =IF(AND(P29>N29,$AK8>4,$AK7>4,ISNUMBER(N29),ISNUMBER(P29)),1,0) -> 0 | Q35: =IF(AND(Q29>S29,$AK8>5,$AK7>4,ISNUMBER(Q29),ISNUMBER(S29)),1,0) -> 0 | S35: =IF(AND(S29>Q29,$AK8>5,$AK7>4,ISNUMBER(Q29),ISNUMBER(S29)),1,0) -> 0 | T35: =IF(AND(T29>V29,$AK8>6,$AK7>4,ISNUMBER(T29),ISNUMBER(V29)),1,0) -> 0 | V35: =IF(AND(V29>T29,$AK8>6,$AK7>4,ISNUMBER(T29),ISNUMBER(V29)),1,0) -> 0 | W35: =IF(AND(W29>Y29,$AK8>7,$AK7>4,ISNUMBER(W29),ISNUMBER(Y29)),1,0) -> 0 | Y35: =IF(AND(Y29>W29,$AK8>7,$AK7>4,ISNUMBER(W29),ISNUMBER(Y29)),1,0) -> 0 | Z35: =IF(AND(Z29>AB29,$AK8>8,$AK7>4,ISNUMBER(Z29),ISNUMBER(AB29)),1,0) -> 0 | AB35: =IF(AND(AB29>Z29,$AK8>8,$AK7>4,ISNUMBER(Z29),ISNUMBER(AB29)),1,0) -> 0 | AC35: =IF(AND(AC29>AE29,$AK8>9,$AK7>4,ISNUMBER(AC29),ISNUMBER(AE29)),1,0) -> 0 | AE35: =IF(AND(AE29>AC29,$AK8>9,$AK7>4,ISNUMBER(AC29),ISNUMBER(AE29)),1,0) -> 0
A36: Sum Game Win/Loss | B36: =SUM(B31:B35) -> 1 | D36: =SUM(D31:D35) -> 0 | E36: =SUM(E31:E35) -> 0 | G36: =SUM(G31:G35) -> 1 | H36: =SUM(H31:H35) -> 1 | J36: =SUM(J31:J35) -> 0 | K36: =SUM(K31:K35) -> 1 | M36: =SUM(M31:M35) -> 0 | N36: =SUM(N31:N35) -> 0 | P36: =SUM(P31:P35) -> 1 | Q36: =SUM(Q31:Q35) -> 0 | S36: =SUM(S31:S35) -> 1 | T36: =SUM(T31:T35) -> 0 | V36: =SUM(V31:V35) -> 0 | W36: =SUM(W31:W35) -> 0 | Y36: =SUM(Y31:Y35) -> 0 | Z36: =SUM(Z31:Z35) -> 0 | AB36: =SUM(AB31:AB35) -> 0 | AC36: =SUM(AC31:AC35) -> 0 | AE36: =SUM(AE31:AE35) -> 0
A37: Match Won/Lost | B37: =IF(B36>D36,IF(C71=AK7,1,IF(C71=AK7-1,1,0)),0) -> 1 | C37: =B37+D37 -> 1 | D37: =IF(D36>B36,IF(C71=AK7,1,IF(C71=AK7-1,1,0)),0) -> 0 | E37: =IF(E36>G36,IF(F71=AK7,1,IF(F71=AK7-1,1,0)),0) -> 0 | F37: =E37+G37 -> 1 | G37: =IF(G36>E36,IF(F71=AK7,1,IF(F71=AK7-1,1,0)),0) -> 1 | H37: =IF(H36>J36,IF(I71=AK7,1,IF(I71=AK7-1,1,0)),0) -> 1 | I37: =H37+J37 -> 1 | J37: =IF(J36>H36,IF(I71=AK7,1,IF(I71=AK7-1,1,0)),0) -> 0 | K37: =IF(K36>M36,IF(L71=AK7,1,IF(L71=AK7-1,1,0)),0) -> 1 | L37: =K37+M37 -> 1 | M37: =IF(M36>K36,IF(L71=AK7,1,IF(L71=AK7-1,1,0)),0) -> 0 | N37: =IF(N36>P36,IF(O71=AK7,1,IF(O71=AK7-1,1,0)),0) -> 0 | O37: =N37+P37 -> 1 | P37: =IF(P36>N36,IF(O71=AK7,1,IF(O71=AK7-1,1,0)),0) -> 1 | Q37: =IF(Q36>S36,IF(R71=AK7,1,IF(R71=AK7-1,1,0)),0) -> 0 | R37: =Q37+S37 -> 1 | S37: =IF(S36>Q36,IF(R71=AK7,1,IF(R71=AK7-1,1,0)),0) -> 1 | T37: =IF(T36>V36,IF(U71=AK7,1,IF(U71=AK7-1,1,0)),0) -> 0 | U37: =T37+V37 -> 0 | V37: =IF(V36>T36,IF(U71=AK7,1,IF(U71=AK7-1,1,0)),0) -> 0 | W37: =IF(W36>Y36,IF(X71=AK7,1,IF(X71=AK7-1,1,0)),0) -> 0 | X37: =W37+Y37 -> 0 | Y37: =IF(Y36>W36,IF(X71=AK7,1,IF(X71=AK7-1,1,0)),0) -> 0 | Z37: =IF(Z36>AB36,IF(AA71=AK7,1,IF(AA71=AK7-1,1,0)),0) -> 0 | AA37: =Z37+AB37 -> 0 | AB37: =IF(AB36>Z36,IF(AA71=AK7,1,IF(AA71=AK7-1,1,0)),0) -> 0 | AC37: =IF(AC36>AE36,IF(AD71=AK7,1,IF(AD71=AK7-1,1,0)),0) -> 0 | AD37: =AC37+AE37 -> 0 | AE37: =IF(AE36>AC36,IF(AD71=AK7,1,IF(AD71=AK7-1,1,0)),0) -> 0
A39: Gm1 Pts | B39: =IF(B31=1,B25,0) -> 25 | D39: =IF(D31=1,D25,0) -> 0 | E39: 0 | G39: =IF(G31=1,G25,0) -> 25 | H39: 28 | J39: =IF(J31=1,J25,0) -> 0 | K39: 29 | M39: =IF(M31=1,M25,0) -> 0 | N39: 0 | P39: =IF(P31=1,P25,0) -> 32 | Q39: 0 | S39: =IF(S31=1,S25,0) -> 37 | T39: 0 | V39: =IF(V31=1,V25,0) -> 0 | W39: 0 | Y39: =IF(Y31=1,Y25,0) -> 0 | Z39: 0 | AB39: =IF(AB31=1,AB25,0) -> 0 | AC39: 0 | AE39: =IF(AE31=1,AE25,0) -> 0
A40: Gm2 Pts | B40: =IF(B32=1,B26,0) -> 0 | D40: 0 | E40: 0 | G40: 0 | H40: 0 | J40: 0 | K40: 0 | M40: 0 | N40: 0 | P40: 0 | Q40: 0 | S40: 0 | T40: 0 | V40: 0 | W40: 0 | Y40: 0 | Z40: 0 | AB40: 0 | AC40: 0 | AE40: =IF(AE32=1,AE26,0) -> 0
A41: Gm3 Pts | B41: =IF(B33=1,B27,0) -> 0 | D41: 0 | E41: 0 | G41: 0 | H41: 0 | J41: 0 | K41: 0 | M41: 0 | N41: 0 | P41: 0 | Q41: 0 | S41: 0 | T41: 0 | V41: 0 | W41: 0 | Y41: 0 | Z41: 0 | AB41: 0 | AC41: 0 | AE41: =IF(AE33=1,AE27,0) -> 0
A42: Gm4 Pts | B42: =IF(B34=1,B28,0) -> 0 | D42: 0 | E42: 0 | G42: 0 | H42: 0 | J42: 0 | K42: 0 | M42: 0 | N42: 0 | P42: 0 | Q42: 0 | S42: 0 | T42: 0 | V42: 0 | W42: 0 | Y42: 0 | Z42: 0 | AB42: 0 | AC42: 0 | AE42: =IF(AE34=1,AE28,0) -> 0
A43: Gm5 Pts | B43: =IF(B35=1,B29,0) -> 0 | D43: 0 | E43: 0 | G43: 0 | H43: 0 | J43: 0 | K43: 0 | M43: 0 | N43: 0 | P43: 0 | Q43: 0 | S43: 0 | T43: 0 | V43: 0 | W43: 0 | Y43: 0 | Z43: 0 | AB43: 0 | AC43: 0 | AE43: =IF(AE35=1,AE29,0) -> 0
A44: Sum Match Points | B44: =SUM(B39:D43) -> 25 | E44: =SUM(E39:G43) -> 25 | H44: =SUM(H39:J43) -> 28 | K44: =SUM(K39:M43) -> 29 | N44: =SUM(N39:P43) -> 32 | Q44: =SUM(Q39:S43) -> 37 | T44: =SUM(T39:V43) -> 0 | W44: =SUM(W39:Y43) -> 0 | Z44: =SUM(Z39:AB43) -> 0 | AC44: =SUM(AC39:AE43) -> 0
A45: Matches | AF45: Match Wins by Team | AG45: Match Losses by Team
A46: Tm1 Wins | B46: =IF(B24=1,IF(B37=1,1,0),0) -> 0 | D46: =IF(D24=1,IF(D37=1,1,0),0) -> 0 | E46: =IF(E24=1,IF(E37=1,1,0),0) -> 0 | G46: =IF(G24=1,IF(G37=1,1,0),0) -> 0 | H46: =IF(H24=1,IF(H37=1,1,0),0) -> 0 | J46: =IF(J24=1,IF(J37=1,1,0),0) -> 0 | K46: =IF(K24=1,IF(K37=1,1,0),0) -> 1 | M46: =IF(M24=1,IF(M37=1,1,0),0) -> 0 | N46: =IF(N24=1,IF(N37=1,1,0),0) -> 0 | P46: =IF(P24=1,IF(P37=1,1,0),0) -> 0 | Q46: =IF(Q24=1,IF(Q37=1,1,0),0) -> 0 | S46: =IF(S24=1,IF(S37=1,1,0),0) -> 0 | T46: =IF(T24=1,IF(T37=1,1,0),0) -> 0 | V46: =IF(V24=1,IF(V37=1,1,0),0) -> 0 | W46: =IF(W24=1,IF(W37=1,1,0),0) -> 0 | Y46: =IF(Y24=1,IF(Y37=1,1,0),0) -> 0 | Z46: =IF(Z24=1,IF(Z37=1,1,0),0) -> 0 | AB46: =IF(AB24=1,IF(AB37=1,1,0),0) -> 0 | AC46: =IF(AC24=1,IF(AC37=1,1,0),0) -> 0 | AE46: =IF(AE24=1,IF(AE37=1,1,0),0) -> 0 | AF46: =SUM(B46:AE46) -> 1 | AG46: =AF52-AF46 -> 2
A47: Tm2 Wins | B47: =IF(B24=2,IF(B37=1,1,0),0) -> 1 | D47: =IF(D24=2,IF(D37=1,1,0),0) -> 0 | E47: =IF(E24=2,IF(E37=1,1,0),0) -> 0 | G47: =IF(G24=2,IF(G37=1,1,0),0) -> 0 | H47: =IF(H24=2,IF(H37=1,1,0),0) -> 1 | J47: =IF(J24=2,IF(J37=1,1,0),0) -> 0 | K47: =IF(K24=2,IF(K37=1,1,0),0) -> 0 | M47: =IF(M24=2,IF(M37=1,1,0),0) -> 0 | N47: =IF(N24=2,IF(N37=1,1,0),0) -> 0 | P47: =IF(P24=2,IF(P37=1,1,0),0) -> 0 | Q47: =IF(Q24=2,IF(Q37=1,1,0),0) -> 0 | S47: =IF(S24=2,IF(S37=1,1,0),0) -> 1 | T47: =IF(T24=2,IF(T37=1,1,0),0) -> 0 | V47: =IF(V24=2,IF(V37=1,1,0),0) -> 0 | W47: =IF(W24=2,IF(W37=1,1,0),0) -> 0 | Y47: =IF(Y24=2,IF(Y37=1,1,0),0) -> 0 | Z47: =IF(Z24=2,IF(Z37=1,1,0),0) -> 0 | AB47: =IF(AB24=2,IF(AB37=1,1,0),0) -> 0 | AC47: =IF(AC24=2,IF(AC37=1,1,0),0) -> 0 | AE47: =IF(AE24=2,IF(AE37=1,1,0),0) -> 0 | AF47: =SUM(B47:AE47) -> 3 | AG47: =AF53-AF47 -> 0
A48: Tm3 Wins | B48: =IF(B24=3,IF(B37=1,1,0),0) -> 0 | D48: =IF(D24=3,IF(D37=1,1,0),0) -> 0 | E48: =IF(E24=3,IF(E37=1,1,0),0) -> 0 | G48: =IF(G24=3,IF(G37=1,1,0),0) -> 0 | H48: =IF(H24=3,IF(H37=1,1,0),0) -> 0 | J48: =IF(J24=3,IF(J37=1,1,0),0) -> 0 | K48: =IF(K24=3,IF(K37=1,1,0),0) -> 0 | M48: =IF(M24=3,IF(M37=1,1,0),0) -> 0 | N48: =IF(N24=3,IF(N37=1,1,0),0) -> 0 | P48: =IF(P24=3,IF(P37=1,1,0),0) -> 0 | Q48: =IF(Q24=3,IF(Q37=1,1,0),0) -> 0 | S48: =IF(S24=3,IF(S37=1,1,0),0) -> 0 | T48: =IF(T24=3,IF(T37=1,1,0),0) -> 0 | V48: =IF(V24=3,IF(V37=1,1,0),0) -> 0 | W48: =IF(W24=3,IF(W37=1,1,0),0) -> 0 | Y48: =IF(Y24=3,IF(Y37=1,1,0),0) -> 0 | Z48: =IF(Z24=3,IF(Z37=1,1,0),0) -> 0 | AB48: =IF(AB24=3,IF(AB37=1,1,0),0) -> 0 | AC48: =IF(AC24=3,IF(AC37=1,1,0),0) -> 0 | AE48: =IF(AE24=3,IF(AE37=1,1,0),0) -> 0 | AF48: =SUM(B48:AE48) -> 0 | AG48: =AF54-AF48 -> 3
A49: Tm4 Wins | B49: =IF(B24=4,IF(B37=1,1,0),0) -> 0 | D49: =IF(D24=4,IF(D37=1,1,0),0) -> 0 | E49: =IF(E24=4,IF(E37=1,1,0),0) -> 0 | G49: =IF(G24=4,IF(G37=1,1,0),0) -> 1 | H49: =IF(H24=4,IF(H37=1,1,0),0) -> 0 | J49: =IF(J24=4,IF(J37=1,1,0),0) -> 0 | K49: =IF(K24=4,IF(K37=1,1,0),0) -> 0 | M49: =IF(M24=4,IF(M37=1,1,0),0) -> 0 | N49: =IF(N24=4,IF(N37=1,1,0),0) -> 0 | P49: =IF(P24=4,IF(P37=1,1,0),0) -> 1 | Q49: =IF(Q24=4,IF(Q37=1,1,0),0) -> 0 | S49: =IF(S24=4,IF(S37=1,1,0),0) -> 0 | T49: =IF(T24=4,IF(T37=1,1,0),0) -> 0 | V49: =IF(V24=4,IF(V37=1,1,0),0) -> 0 | W49: =IF(W24=4,IF(W37=1,1,0),0) -> 0 | Y49: =IF(Y24=4,IF(Y37=1,1,0),0) -> 0 | Z49: =IF(Z24=4,IF(Z37=1,1,0),0) -> 0 | AB49: =IF(AB24=4,IF(AB37=1,1,0),0) -> 0 | AC49: =IF(AC24=4,IF(AC37=1,1,0),0) -> 0 | AE49: =IF(AE24=4,IF(AE37=1,1,0),0) -> 0 | AF49: =SUM(B49:AE49) -> 2 | AG49: =AF55-AF49 -> 1
A50: Tm5 Wins | B50: =IF(B24=5,IF(B37=1,1,0),0) -> 0 | D50: =IF(D24=5,IF(D37=1,1,0),0) -> 0 | E50: =IF(E24=5,IF(E37=1,1,0),0) -> 0 | G50: =IF(G24=5,IF(G37=1,1,0),0) -> 0 | H50: =IF(H24=5,IF(H37=1,1,0),0) -> 0 | J50: =IF(J24=5,IF(J37=1,1,0),0) -> 0 | K50: =IF(K24=5,IF(K37=1,1,0),0) -> 0 | M50: =IF(M24=5,IF(M37=1,1,0),0) -> 0 | N50: =IF(N24=5,IF(N37=1,1,0),0) -> 0 | P50: =IF(P24=5,IF(P37=1,1,0),0) -> 0 | Q50: =IF(Q24=5,IF(Q37=1,1,0),0) -> 0 | S50: =IF(S24=5,IF(S37=1,1,0),0) -> 0 | T50: =IF(T24=5,IF(T37=1,1,0),0) -> 0 | V50: =IF(V24=5,IF(V37=1,1,0),0) -> 0 | W50: =IF(W24=5,IF(W37=1,1,0),0) -> 0 | Y50: =IF(Y24=5,IF(Y37=1,1,0),0) -> 0 | Z50: =IF(Z24=5,IF(Z37=1,1,0),0) -> 0 | AB50: =IF(AB24=5,IF(AB37=1,1,0),0) -> 0 | AC50: =IF(AC24=5,IF(AC37=1,1,0),0) -> 0 | AE50: =IF(AE24=5,IF(AE37=1,1,0),0) -> 0 | AF50: =SUM(B50:AE50) -> 0 | AG50: =AF56-AF50 -> 0
AF51: Matches played by team
A52: Tm1 Play | B52: =IF(B24=1,IF(C37=1,1,0),0) -> 0 | D52: =IF(D24=1,IF(C37=1,1,0),0) -> 0 | E52: =IF(E24=1,IF(F37=1,1,0),0) -> 1 | G52: =IF(G24=1,IF(F37=1,1,0),0) -> 0 | H52: =IF(H24=1,IF(I37=1,1,0),0) -> 0 | J52: =IF(J24=1,IF(I37=1,1,0),0) -> 0 | K52: =IF(K24=1,IF(L37=1,1,0),0) -> 1 | M52: =IF(M24=1,IF(L37=1,1,0),0) -> 0 | N52: =IF(N24=1,IF(O37=1,1,0),0) -> 0 | P52: =IF(P24=1,IF(O37=1,1,0),0) -> 0 | Q52: =IF(Q24=1,IF(R37=1,1,0),0) -> 1 | S52: =IF(S24=1,IF(R37=1,1,0),0) -> 0 | T52: =IF(T24=1,IF(U37=1,1,0),0) -> 0 | V52: =IF(V24=1,IF(U37=1,1,0),0) -> 0 | W52: =IF(W24=1,IF(X37=1,1,0),0) -> 0 | Y52: =IF(Y24=1,IF(X37=1,1,0),0) -> 0 | Z52: =IF(Z24=1,IF(AA37=1,1,0),0) -> 0 | AB52: =IF(AB24=1,IF(AA37=1,1,0),0) -> 0 | AC52: =IF(AC24=1,IF(AD37=1,1,0),0) -> 0 | AE52: =IF(AE24=1,IF(AD37=1,1,0),0) -> 0 | AF52: =SUM(B52:AE52) -> 3
A53: Tm2 Play | B53: =IF(B24=2,IF(C37=1,1,0),0) -> 1 | D53: =IF(D24=2,IF(C37=1,1,0),0) -> 0 | E53: =IF(E24=2,IF(F37=1,1,0),0) -> 0 | G53: =IF(G24=2,IF(F37=1,1,0),0) -> 0 | H53: =IF(H24=2,IF(I37=1,1,0),0) -> 1 | J53: =IF(J24=2,IF(I37=1,1,0),0) -> 0 | K53: =IF(K24=2,IF(L37=1,1,0),0) -> 0 | M53: =IF(M24=2,IF(L37=1,1,0),0) -> 0 | N53: =IF(N24=2,IF(O37=1,1,0),0) -> 0 | P53: =IF(P24=2,IF(O37=1,1,0),0) -> 0 | Q53: =IF(Q24=2,IF(R37=1,1,0),0) -> 0 | S53: =IF(S24=2,IF(R37=1,1,0),0) -> 1 | T53: =IF(T24=2,IF(U37=1,1,0),0) -> 0 | V53: =IF(V24=2,IF(U37=1,1,0),0) -> 0 | W53: =IF(W24=2,IF(X37=1,1,0),0) -> 0 | Y53: =IF(Y24=2,IF(X37=1,1,0),0) -> 0 | Z53: =IF(Z24=2,IF(AA37=1,1,0),0) -> 0 | AB53: =IF(AB24=2,IF(AA37=1,1,0),0) -> 0 | AC53: =IF(AC24=2,IF(AD37=1,1,0),0) -> 0 | AE53: =IF(AE24=2,IF(AD37=1,1,0),0) -> 0 | AF53: =SUM(B53:AE53) -> 3
A54: Tm3 Play | B54: =IF(B24=3,IF(C37=1,1,0),0) -> 0 | D54: =IF(D24=3,IF(C37=1,1,0),0) -> 1 | E54: =IF(E24=3,IF(F37=1,1,0),0) -> 0 | G54: =IF(G24=3,IF(F37=1,1,0),0) -> 0 | H54: =IF(H24=3,IF(I37=1,1,0),0) -> 0 | J54: =IF(J24=3,IF(I37=1,1,0),0) -> 0 | K54: =IF(K24=3,IF(L37=1,1,0),0) -> 0 | M54: =IF(M24=3,IF(L37=1,1,0),0) -> 1 | N54: =IF(N24=3,IF(O37=1,1,0),0) -> 1 | P54: =IF(P24=3,IF(O37=1,1,0),0) -> 0 | Q54: =IF(Q24=3,IF(R37=1,1,0),0) -> 0 | S54: =IF(S24=3,IF(R37=1,1,0),0) -> 0 | T54: =IF(T24=3,IF(U37=1,1,0),0) -> 0 | V54: =IF(V24=3,IF(U37=1,1,0),0) -> 0 | W54: =IF(W24=3,IF(X37=1,1,0),0) -> 0 | Y54: =IF(Y24=3,IF(X37=1,1,0),0) -> 0 | Z54: =IF(Z24=3,IF(AA37=1,1,0),0) -> 0 | AB54: =IF(AB24=3,IF(AA37=1,1,0),0) -> 0 | AC54: =IF(AC24=3,IF(AD37=1,1,0),0) -> 0 | AE54: =IF(AE24=3,IF(AD37=1,1,0),0) -> 0 | AF54: =SUM(B54:AE54) -> 3
A55: Tm4 Play | B55: =IF(B24=4,IF(C37=1,1,0),0) -> 0 | D55: =IF(D24=4,IF(C37=1,1,0),0) -> 0 | E55: =IF(E24=4,IF(F37=1,1,0),0) -> 0 | G55: =IF(G24=4,IF(F37=1,1,0),0) -> 1 | H55: =IF(H24=4,IF(I37=1,1,0),0) -> 0 | J55: =IF(J24=4,IF(I37=1,1,0),0) -> 1 | K55: =IF(K24=4,IF(L37=1,1,0),0) -> 0 | M55: =IF(M24=4,IF(L37=1,1,0),0) -> 0 | N55: =IF(N24=4,IF(O37=1,1,0),0) -> 0 | P55: =IF(P24=4,IF(O37=1,1,0),0) -> 1 | Q55: =IF(Q24=4,IF(R37=1,1,0),0) -> 0 | S55: =IF(S24=4,IF(R37=1,1,0),0) -> 0 | T55: =IF(T24=4,IF(U37=1,1,0),0) -> 0 | V55: =IF(V24=4,IF(U37=1,1,0),0) -> 0 | W55: =IF(W24=4,IF(X37=1,1,0),0) -> 0 | Y55: =IF(Y24=4,IF(X37=1,1,0),0) -> 0 | Z55: =IF(Z24=4,IF(AA37=1,1,0),0) -> 0 | AB55: =IF(AB24=4,IF(AA37=1,1,0),0) -> 0 | AC55: =IF(AC24=4,IF(AD37=1,1,0),0) -> 0 | AE55: =IF(AE24=4,IF(AD37=1,1,0),0) -> 0 | AF55: =SUM(B55:AE55) -> 3
A56: Tm5 Play | B56: =IF(B24=5,IF(C37=1,1,0),0) -> 0 | D56: =IF(D24=5,IF(C37=1,1,0),0) -> 0 | E56: =IF(E24=5,IF(F37=1,1,0),0) -> 0 | G56: =IF(G24=5,IF(F37=1,1,0),0) -> 0 | H56: =IF(H24=5,IF(I37=1,1,0),0) -> 0 | J56: =IF(J24=5,IF(I37=1,1,0),0) -> 0 | K56: =IF(K24=5,IF(L37=1,1,0),0) -> 0 | M56: =IF(M24=5,IF(L37=1,1,0),0) -> 0 | N56: =IF(N24=5,IF(O37=1,1,0),0) -> 0 | P56: =IF(P24=5,IF(O37=1,1,0),0) -> 0 | Q56: =IF(Q24=5,IF(R37=1,1,0),0) -> 0 | S56: =IF(S24=5,IF(R37=1,1,0),0) -> 0 | T56: =IF(T24=5,IF(U37=1,1,0),0) -> 0 | V56: =IF(V24=5,IF(U37=1,1,0),0) -> 0 | W56: =IF(W24=5,IF(X37=1,1,0),0) -> 0 | Y56: =IF(Y24=5,IF(X37=1,1,0),0) -> 0 | Z56: =IF(Z24=5,IF(AA37=1,1,0),0) -> 0 | AB56: =IF(AB24=5,IF(AA37=1,1,0),0) -> 0 | AC56: =IF(AC24=5,IF(AD37=1,1,0),0) -> 0 | AE56: =IF(AE24=5,IF(AD37=1,1,0),0) -> 0 | AF56: =SUM(B56:AE56) -> 0
AF57: Total Points played by team
A58: Tm1 Play | B58: =IF(B24=1,B44,0) -> 0 | D58: =IF(D24=1,B44,0) -> 0 | E58: =IF(E24=1,E44,0) -> 25 | G58: =IF(G24=1,E44,0) -> 0 | H58: =IF(H24=1,H44,0) -> 0 | J58: =IF(J24=1,H44,0) -> 0 | K58: =IF(K24=1,K44,0) -> 29 | M58: =IF(M24=1,K44,0) -> 0 | N58: =IF(N24=1,N44,0) -> 0 | P58: =IF(P24=1,N44,0) -> 0 | Q58: =IF(Q24=1,Q44,0) -> 37 | S58: =IF(S24=1,Q44,0) -> 0 | T58: =IF(T24=1,T44,0) -> 0 | V58: =IF(V24=1,T44,0) -> 0 | W58: =IF(W24=1,W44,0) -> 0 | Y58: =IF(Y24=1,W44,0) -> 0 | Z58: =IF(Z24=1,Z44,0) -> 0 | AB58: =IF(AB24=1,Z44,0) -> 0 | AC58: =IF(AC24=1,AC44,0) -> 0 | AE58: =IF(AE24=1,AC44,0) -> 0 | AF58: =SUM(B58:AE58) -> 91
A59: Tm2 Play | B59: =IF(B24=2,B44,0) -> 25 | D59: =IF(D24=2,B44,0) -> 0 | E59: =IF(E24=2,E44,0) -> 0 | G59: =IF(G24=2,E44,0) -> 0 | H59: =IF(H24=2,H44,0) -> 28 | J59: =IF(J24=2,H44,0) -> 0 | K59: =IF(K24=2,K44,0) -> 0 | M59: =IF(M24=2,K44,0) -> 0 | N59: =IF(N24=2,N44,0) -> 0 | P59: =IF(P24=2,N44,0) -> 0 | Q59: =IF(Q24=2,Q44,0) -> 0 | S59: =IF(S24=2,Q44,0) -> 37 | T59: =IF(T24=2,T44,0) -> 0 | V59: =IF(V24=2,T44,0) -> 0 | W59: =IF(W24=2,W44,0) -> 0 | Y59: =IF(Y24=2,W44,0) -> 0 | Z59: =IF(Z24=2,Z44,0) -> 0 | AB59: =IF(AB24=2,Z44,0) -> 0 | AC59: =IF(AC24=2,AC44,0) -> 0 | AE59: =IF(AE24=2,AC44,0) -> 0 | AF59: =SUM(B59:AE59) -> 90
A60: Tm3 Play | B60: =IF(B24=3,B44,0) -> 0 | D60: =IF(D24=3,B44,0) -> 25 | E60: =IF(E24=3,E44,0) -> 0 | G60: =IF(G24=3,E44,0) -> 0 | H60: =IF(H24=3,H44,0) -> 0 | J60: =IF(J24=3,H44,0) -> 0 | K60: =IF(K24=3,K44,0) -> 0 | M60: =IF(M24=3,K44,0) -> 29 | N60: =IF(N24=3,N44,0) -> 32 | P60: =IF(P24=3,N44,0) -> 0 | Q60: =IF(Q24=3,Q44,0) -> 0 | S60: =IF(S24=3,Q44,0) -> 0 | T60: =IF(T24=3,T44,0) -> 0 | V60: =IF(V24=3,T44,0) -> 0 | W60: =IF(W24=3,W44,0) -> 0 | Y60: =IF(Y24=3,W44,0) -> 0 | Z60: =IF(Z24=3,Z44,0) -> 0 | AB60: =IF(AB24=3,Z44,0) -> 0 | AC60: =IF(AC24=3,AC44,0) -> 0 | AE60: =IF(AE24=3,AC44,0) -> 0 | AF60: =SUM(B60:AE60) -> 86
A61: Tm4 Play | B61: =IF(B24=4,B44,0) -> 0 | D61: =IF(D24=4,B44,0) -> 0 | E61: =IF(E24=4,E44,0) -> 0 | G61: =IF(G24=4,E44,0) -> 25 | H61: =IF(H24=4,H44,0) -> 0 | J61: =IF(J24=4,H44,0) -> 28 | K61: =IF(K24=4,K44,0) -> 0 | M61: =IF(M24=4,K44,0) -> 0 | N61: =IF(N24=4,N44,0) -> 0 | P61: =IF(P24=4,N44,0) -> 32 | Q61: =IF(Q24=4,Q44,0) -> 0 | S61: =IF(S24=4,Q44,0) -> 0 | T61: =IF(T24=4,T44,0) -> 0 | V61: =IF(V24=4,T44,0) -> 0 | W61: =IF(W24=4,W44,0) -> 0 | Y61: =IF(Y24=4,W44,0) -> 0 | Z61: =IF(Z24=4,Z44,0) -> 0 | AB61: =IF(AB24=4,Z44,0) -> 0 | AC61: =IF(AC24=4,AC44,0) -> 0 | AE61: =IF(AE24=4,AC44,0) -> 0 | AF61: =SUM(B61:AE61) -> 85
A62: Tm5 Play | B62: =IF(B24=5,B44,0) -> 0 | D62: =IF(D24=5,B44,0) -> 0 | E62: =IF(E24=5,E44,0) -> 0 | G62: =IF(G24=5,E44,0) -> 0 | H62: =IF(H24=5,H44,0) -> 0 | J62: =IF(J24=5,H44,0) -> 0 | K62: =IF(K24=5,K44,0) -> 0 | M62: =IF(M24=5,K44,0) -> 0 | N62: =IF(N24=5,N44,0) -> 0 | P62: =IF(P24=5,N44,0) -> 0 | Q62: =IF(Q24=5,Q44,0) -> 0 | S62: =IF(S24=5,Q44,0) -> 0 | T62: =IF(T24=5,T44,0) -> 0 | V62: =IF(V24=5,T44,0) -> 0 | W62: =IF(W24=5,W44,0) -> 0 | Y62: =IF(Y24=5,W44,0) -> 0 | Z62: =IF(Z24=5,Z44,0) -> 0 | AB62: =IF(AB24=5,Z44,0) -> 0 | AC62: =IF(AC24=5,AC44,0) -> 0 | AE62: =IF(AE24=5,AC44,0) -> 0 | AF62: =SUM(B62:AE62) -> 0
A63: Games | AF63: Game Wins by Team | AG63: Game Losses by Team
A64: Tm1 Wins | B64: =IF(B24=1,SUMIF(B31:B35,">0"),0) -> 0 | D64: =IF(D24=1,SUMIF(D31:D35,">0"),0) -> 0 | E64: =IF(E24=1,SUMIF(E31:E35,">0"),0) -> 0 | G64: =IF(G24=1,SUMIF(G31:G35,">0"),0) -> 0 | H64: =IF(H24=1,SUMIF(H31:H35,">0"),0) -> 0 | J64: =IF(J24=1,SUMIF(J31:J35,">0"),0) -> 0 | K64: =IF(K24=1,SUMIF(K31:K35,">0"),0) -> 1 | M64: =IF(M24=1,SUMIF(M31:M35,">0"),0) -> 0 | N64: =IF(N24=1,SUMIF(N31:N35,">0"),0) -> 0 | P64: =IF(P24=1,SUMIF(P31:P35,">0"),0) -> 0 | Q64: =IF(Q24=1,SUMIF(Q31:Q35,">0"),0) -> 0 | S64: =IF(S24=1,SUMIF(S31:S35,">0"),0) -> 0 | T64: =IF(T24=1,SUMIF(T31:T35,">0"),0) -> 0 | V64: =IF(V24=1,SUMIF(V31:V35,">0"),0) -> 0 | W64: =IF(W24=1,SUMIF(W31:W35,">0"),0) -> 0 | Y64: =IF(Y24=1,SUMIF(Y31:Y35,">0"),0) -> 0 | Z64: =IF(Z24=1,SUMIF(Z31:Z35,">0"),0) -> 0 | AB64: =IF(AB24=1,SUMIF(AB31:AB35,">0"),0) -> 0 | AC64: =IF(AC24=1,SUMIF(AC31:AC35,">0"),0) -> 0 | AE64: =IF(AE24=1,SUMIF(AE31:AE35,">0"),0) -> 0 | AF64: =SUM(B64:AE64) -> 1 | AG64: =AF72-AF64 -> 2
A65: Tm2 Wins | B65: =IF(B24=2,SUMIF(B31:B35,">0"),0) -> 1 | D65: =IF(D24=2,SUMIF(D31:D35,">0"),0) -> 0 | E65: =IF(E24=2,SUMIF(E31:E35,">0"),0) -> 0 | G65: =IF(G24=2,SUMIF(G31:G35,">0"),0) -> 0 | H65: =IF(H24=2,SUMIF(H31:H35,">0"),0) -> 1 | J65: =IF(J24=2,SUMIF(J31:J35,">0"),0) -> 0 | K65: =IF(K24=2,SUMIF(K31:K35,">0"),0) -> 0 | M65: =IF(M24=2,SUMIF(M31:M35,">0"),0) -> 0 | N65: =IF(N24=2,SUMIF(N31:N35,">0"),0) -> 0 | P65: =IF(P24=2,SUMIF(P31:P35,">0"),0) -> 0 | Q65: =IF(Q24=2,SUMIF(Q31:Q35,">0"),0) -> 0 | S65: =IF(S24=2,SUMIF(S31:S35,">0"),0) -> 1 | T65: =IF(T24=2,SUMIF(T31:T35,">0"),0) -> 0 | V65: =IF(V24=2,SUMIF(V31:V35,">0"),0) -> 0 | W65: =IF(W24=2,SUMIF(W31:W35,">0"),0) -> 0 | Y65: =IF(Y24=2,SUMIF(Y31:Y35,">0"),0) -> 0 | Z65: =IF(Z24=2,SUMIF(Z31:Z35,">0"),0) -> 0 | AB65: =IF(AB24=2,SUMIF(AB31:AB35,">0"),0) -> 0 | AC65: =IF(AC24=2,SUMIF(AC31:AC35,">0"),0) -> 0 | AE65: =IF(AE24=2,SUMIF(AE31:AE35,">0"),0) -> 0 | AF65: =SUM(B65:AE65) -> 3 | AG65: =AF73-AF65 -> 0
A66: Tm3 Wins | B66: =IF(B24=3,SUMIF(B31:B35,">0"),0) -> 0 | D66: =IF(D24=3,SUMIF(D31:D35,">0"),0) -> 0 | E66: =IF(E24=3,SUMIF(E31:E35,">0"),0) -> 0 | G66: =IF(G24=3,SUMIF(G31:G35,">0"),0) -> 0 | H66: =IF(H24=3,SUMIF(H31:H35,">0"),0) -> 0 | J66: =IF(J24=3,SUMIF(J31:J35,">0"),0) -> 0 | K66: =IF(K24=3,SUMIF(K31:K35,">0"),0) -> 0 | M66: =IF(M24=3,SUMIF(M31:M35,">0"),0) -> 0 | N66: =IF(N24=3,SUMIF(N31:N35,">0"),0) -> 0 | P66: =IF(P24=3,SUMIF(P31:P35,">0"),0) -> 0 | Q66: =IF(Q24=3,SUMIF(Q31:Q35,">0"),0) -> 0 | S66: =IF(S24=3,SUMIF(S31:S35,">0"),0) -> 0 | T66: =IF(T24=3,SUMIF(T31:T35,">0"),0) -> 0 | V66: =IF(V24=3,SUMIF(V31:V35,">0"),0) -> 0 | W66: =IF(W24=3,SUMIF(W31:W35,">0"),0) -> 0 | Y66: =IF(Y24=3,SUMIF(Y31:Y35,">0"),0) -> 0 | Z66: =IF(Z24=3,SUMIF(Z31:Z35,">0"),0) -> 0 | AB66: =IF(AB24=3,SUMIF(AB31:AB35,">0"),0) -> 0 | AC66: =IF(AC24=3,SUMIF(AC31:AC35,">0"),0) -> 0 | AE66: =IF(AE24=3,SUMIF(AE31:AE35,">0"),0) -> 0 | AF66: =SUM(B66:AE66) -> 0 | AG66: =AF74-AF66 -> 3
A67: Tm4 Wins | B67: =IF(B24=4,SUMIF(B31:B35,">0"),0) -> 0 | D67: =IF(D24=4,SUMIF(D31:D35,">0"),0) -> 0 | E67: =IF(E24=4,SUMIF(E31:E35,">0"),0) -> 0 | G67: =IF(G24=4,SUMIF(G31:G35,">0"),0) -> 1 | H67: =IF(H24=4,SUMIF(H31:H35,">0"),0) -> 0 | J67: =IF(J24=4,SUMIF(J31:J35,">0"),0) -> 0 | K67: =IF(K24=4,SUMIF(K31:K35,">0"),0) -> 0 | M67: =IF(M24=4,SUMIF(M31:M35,">0"),0) -> 0 | N67: =IF(N24=4,SUMIF(N31:N35,">0"),0) -> 0 | P67: =IF(P24=4,SUMIF(P31:P35,">0"),0) -> 1 | Q67: =IF(Q24=4,SUMIF(Q31:Q35,">0"),0) -> 0 | S67: =IF(S24=4,SUMIF(S31:S35,">0"),0) -> 0 | T67: =IF(T24=4,SUMIF(T31:T35,">0"),0) -> 0 | V67: =IF(V24=4,SUMIF(V31:V35,">0"),0) -> 0 | W67: =IF(W24=4,SUMIF(W31:W35,">0"),0) -> 0 | Y67: =IF(Y24=4,SUMIF(Y31:Y35,">0"),0) -> 0 | Z67: =IF(Z24=4,SUMIF(Z31:Z35,">0"),0) -> 0 | AB67: =IF(AB24=4,SUMIF(AB31:AB35,">0"),0) -> 0 | AC67: =IF(AC24=4,SUMIF(AC31:AC35,">0"),0) -> 0 | AE67: =IF(AE24=4,SUMIF(AE31:AE35,">0"),0) -> 0 | AF67: =SUM(B67:AE67) -> 2 | AG67: =AF75-AF67 -> 1
A68: Tm5 Wins | B68: =IF(B24=5,SUMIF(B31:B35,">0"),0) -> 0 | D68: =IF(D24=5,SUMIF(D31:D35,">0"),0) -> 0 | E68: =IF(E24=5,SUMIF(E31:E35,">0"),0) -> 0 | G68: =IF(G24=5,SUMIF(G31:G35,">0"),0) -> 0 | H68: =IF(H24=5,SUMIF(H31:H35,">0"),0) -> 0 | J68: =IF(J24=5,SUMIF(J31:J35,">0"),0) -> 0 | K68: =IF(K24=5,SUMIF(K31:K35,">0"),0) -> 0 | M68: =IF(M24=5,SUMIF(M31:M35,">0"),0) -> 0 | N68: =IF(N24=5,SUMIF(N31:N35,">0"),0) -> 0 | P68: =IF(P24=5,SUMIF(P31:P35,">0"),0) -> 0 | Q68: =IF(Q24=5,SUMIF(Q31:Q35,">0"),0) -> 0 | S68: =IF(S24=5,SUMIF(S31:S35,">0"),0) -> 0 | T68: =IF(T24=5,SUMIF(T31:T35,">0"),0) -> 0 | V68: =IF(V24=5,SUMIF(V31:V35,">0"),0) -> 0 | W68: =IF(W24=5,SUMIF(W31:W35,">0"),0) -> 0 | Y68: =IF(Y24=5,SUMIF(Y31:Y35,">0"),0) -> 0 | Z68: =IF(Z24=5,SUMIF(Z31:Z35,">0"),0) -> 0 | AB68: =IF(AB24=5,SUMIF(AB31:AB35,">0"),0) -> 0 | AC68: =IF(AC24=5,SUMIF(AC31:AC35,">0"),0) -> 0 | AE68: =IF(AE24=5,SUMIF(AE31:AE35,">0"),0) -> 0 | AF68: =SUM(B68:AE68) -> 0 | AG68: =AF76-AF68 -> 0
A71: Games Played this Match | C71: =SUMIF(B64:D68,">0") -> 1 | F71: =SUMIF(E64:G68,">0") -> 1 | I71: =SUMIF(H64:J68,">0") -> 1 | L71: =SUMIF(K64:M68,">0") -> 1 | O71: =SUMIF(N64:P68,">0") -> 1 | R71: =SUMIF(Q64:S68,">0") -> 1 | U71: =SUMIF(T64:V68,">0") -> 0 | X71: =SUMIF(W64:Y68,">0") -> 0 | AA71: =SUMIF(Z64:AB68,">0") -> 0 | AD71: =SUMIF(AC64:AE68,">0") -> 0 | AF71: Games played by team
A72: Tm1 Play | B72: =IF(B24=1,C71,0) -> 0 | D72: =IF(D24=1,C71,0) -> 0 | E72: =IF(E24=1,F71,0) -> 1 | G72: =IF(G24=1,F71,0) -> 0 | H72: =IF(H24=1,I71,0) -> 0 | J72: =IF(J24=1,I71,0) -> 0 | K72: =IF(K24=1,L71,0) -> 1 | M72: =IF(M24=1,L71,0) -> 0 | N72: =IF(N24=1,O71,0) -> 0 | P72: =IF(P24=1,O71,0) -> 0 | Q72: =IF(Q24=1,R71,0) -> 1 | S72: =IF(S24=1,R71,0) -> 0 | T72: =IF(T24=1,U71,0) -> 0 | V72: =IF(V24=1,U71,0) -> 0 | W72: =IF(W24=1,X71,0) -> 0 | Y72: =IF(Y24=1,X71,0) -> 0 | Z72: =IF(Z24=1,AA71,0) -> 0 | AB72: =IF(AB24=1,AA71,0) -> 0 | AC72: =IF(AC24=1,AD71,0) -> 0 | AE72: =IF(AE24=1,AD71,0) -> 0 | AF72: =SUM(B72:AE72) -> 3
A73: Tm2 Play | B73: =IF(B24=2,C71,0) -> 1 | D73: =IF(D24=2,C71,0) -> 0 | E73: =IF(E24=2,F71,0) -> 0 | G73: =IF(G24=2,F71,0) -> 0 | H73: =IF(H24=2,I71,0) -> 1 | J73: =IF(J24=2,I71,0) -> 0 | K73: =IF(K24=2,L71,0) -> 0 | M73: =IF(M24=2,L71,0) -> 0 | N73: =IF(N24=2,O71,0) -> 0 | P73: =IF(P24=2,O71,0) -> 0 | Q73: =IF(Q24=2,R71,0) -> 0 | S73: =IF(S24=2,R71,0) -> 1 | T73: =IF(T24=2,U71,0) -> 0 | V73: =IF(V24=2,U71,0) -> 0 | W73: =IF(W24=2,X71,0) -> 0 | Y73: =IF(Y24=2,X71,0) -> 0 | Z73: =IF(Z24=2,AA71,0) -> 0 | AB73: =IF(AB24=2,AA71,0) -> 0 | AC73: =IF(AC24=2,AD71,0) -> 0 | AE73: =IF(AE24=2,AD71,0) -> 0 | AF73: =SUM(B73:AE73) -> 3
A74: Tm3 Play | B74: =IF(B24=3,C71,0) -> 0 | D74: =IF(D24=3,C71,0) -> 1 | E74: =IF(E24=3,F71,0) -> 0 | G74: =IF(G24=3,F71,0) -> 0 | H74: =IF(H24=3,I71,0) -> 0 | J74: =IF(J24=3,I71,0) -> 0 | K74: =IF(K24=3,L71,0) -> 0 | M74: =IF(M24=3,L71,0) -> 1 | N74: =IF(N24=3,O71,0) -> 1 | P74: =IF(P24=3,O71,0) -> 0 | Q74: =IF(Q24=3,R71,0) -> 0 | S74: =IF(S24=3,R71,0) -> 0 | T74: =IF(T24=3,U71,0) -> 0 | V74: =IF(V24=3,U71,0) -> 0 | W74: =IF(W24=3,X71,0) -> 0 | Y74: =IF(Y24=3,X71,0) -> 0 | Z74: =IF(Z24=3,AA71,0) -> 0 | AB74: =IF(AB24=3,AA71,0) -> 0 | AC74: =IF(AC24=3,AD71,0) -> 0 | AE74: =IF(AE24=3,AD71,0) -> 0 | AF74: =SUM(B74:AE74) -> 3
A75: Tm4 Play | B75: =IF(B24=4,C71,0) -> 0 | D75: =IF(D24=4,C71,0) -> 0 | E75: =IF(E24=4,F71,0) -> 0 | G75: =IF(G24=4,F71,0) -> 1 | H75: =IF(H24=4,I71,0) -> 0 | J75: =IF(J24=4,I71,0) -> 1 | K75: =IF(K24=4,L71,0) -> 0 | M75: =IF(M24=4,L71,0) -> 0 | N75: =IF(N24=4,O71,0) -> 0 | P75: =IF(P24=4,O71,0) -> 1 | Q75: =IF(Q24=4,R71,0) -> 0 | S75: =IF(S24=4,R71,0) -> 0 | T75: =IF(T24=4,U71,0) -> 0 | V75: =IF(V24=4,U71,0) -> 0 | W75: =IF(W24=4,X71,0) -> 0 | Y75: =IF(Y24=4,X71,0) -> 0 | Z75: =IF(Z24=4,AA71,0) -> 0 | AB75: =IF(AB24=4,AA71,0) -> 0 | AC75: =IF(AC24=4,AD71,0) -> 0 | AE75: =IF(AE24=4,AD71,0) -> 0 | AF75: =SUM(B75:AE75) -> 3
A76: Tm5 Play | B76: =IF(B24=5,C71,0) -> 0 | D76: =IF(D24=5,C71,0) -> 0 | E76: =IF(E24=5,F71,0) -> 0 | G76: =IF(G24=5,F71,0) -> 0 | H76: =IF(H24=5,I71,0) -> 0 | J76: =IF(J24=5,I71,0) -> 0 | K76: =IF(K24=5,L71,0) -> 0 | M76: =IF(M24=5,L71,0) -> 0 | N76: =IF(N24=5,O71,0) -> 0 | P76: =IF(P24=5,O71,0) -> 0 | Q76: =IF(Q24=5,R71,0) -> 0 | S76: =IF(S24=5,R71,0) -> 0 | T76: =IF(T24=5,U71,0) -> 0 | V76: =IF(V24=5,U71,0) -> 0 | W76: =IF(W24=5,X71,0) -> 0 | Y76: =IF(Y24=5,X71,0) -> 0 | Z76: =IF(Z24=5,AA71,0) -> 0 | AB76: =IF(AB24=5,AA71,0) -> 0 | AC76: =IF(AC24=5,AD71,0) -> 0 | AE76: =IF(AE24=5,AD71,0) -> 0 | AF76: =SUM(B76:AE76) -> 0
C78: Init | D78: 1 | G78: 2 | J78: 3 | M78: 4 | P78: 5 | S78: 6 | V78: 7 | Y78: 8 | AB78: 9 | AE78: 10 | AT78: End of Pool
A79: 1 | B79: =E8 -> BVA 11 | C79: =VLOOKUP(B79,AU$3:AY$12,3,FALSE) -> 1217.469502 | D79: =IF(B72,B87,IF(D72,D87,C79)) -> 1217.469502 | G79: =IF(E72,E87,IF(G72,G87,D79)) -> 1209.40183 | J79: =IF(H72,H87,IF(J72,J87,G79)) -> 1209.40183 | M79: =IF(K72,K87,IF(M72,M87,J79)) -> 1216.73155 | P79: =IF(N72,N87,IF(P72,P87,M79)) -> 1216.73155 | S79: =IF(Q72,Q87,IF(S72,S87,P79)) -> 1209.764819 | V79: =IF(T72,T87,IF(V72,V87,S79)) -> 1209.764819 | Y79: =IF(W72,W87,IF(Y72,Y87,V79)) -> 1209.764819 | AB79: =IF(Z72,Z87,IF(AB72,AB87,Y79)) -> 1209.764819 | AE79: =IF(AC72,AC87,IF(AE72,AE87,AB79)) -> 1209.764819 | AT79: =B79 -> BVA 11 | AU79: =AE79 -> 1209.764819
A80: 2 | B80: =E10 -> SC Midlands KP Boys | C80: =VLOOKUP(B80,AU$3:AY$12,3,FALSE) -> 1247.986344 | D80: =IF(B73,B87,IF(D73,D87,C80)) -> 1254.592527 | G80: =IF(E73,E87,IF(G73,G87,D80)) -> 1254.592527 | J80: =IF(H73,H87,IF(J73,J87,G80)) -> 1261.857905 | M80: =IF(K73,K87,IF(M73,M87,J80)) -> 1261.857905 | P80: =IF(N73,N87,IF(P73,P87,M80)) -> 1261.857905 | S80: =IF(Q73,Q87,IF(S73,S87,P80)) -> 1268.824636 | V80: =IF(T73,T87,IF(V73,V87,S80)) -> 1268.824636 | Y80: =IF(W73,W87,IF(Y73,Y87,V80)) -> 1268.824636 | AB80: =IF(Z73,Z87,IF(AB73,AB87,Y80)) -> 1268.824636 | AE80: =IF(AC73,AC87,IF(AE73,AE87,AB80)) -> 1268.824636 | AT80: =B80 -> SC Midlands KP Boys | AU80: =AE80 -> 1268.824636
A81: 3 | B81: =E12 -> SC Midlands KP Black | C81: =VLOOKUP(B81,AU$3:AY$12,3,FALSE) -> 1186.82973 | D81: =IF(B74,B87,IF(D74,D87,C81)) -> 1180.223547 | G81: =IF(E74,E87,IF(G74,G87,D81)) -> 1180.223547 | J81: =IF(H74,H87,IF(J74,J87,G81)) -> 1180.223547 | M81: =IF(K74,K87,IF(M74,M87,J81)) -> 1172.893827 | P81: =IF(N74,N87,IF(P74,P87,M81)) -> 1165.866189 | S81: =IF(Q74,Q87,IF(S74,S87,P81)) -> 1165.866189 | V81: =IF(T74,T87,IF(V74,V87,S81)) -> 1165.866189 | Y81: =IF(W74,W87,IF(Y74,Y87,V81)) -> 1165.866189 | AB81: =IF(Z74,Z87,IF(AB74,AB87,Y81)) -> 1165.866189 | AE81: =IF(AC74,AC87,IF(AE74,AE87,AB81)) -> 1165.866189 | AT81: =B81 -> SC Midlands KP Black | AU81: =AE81 -> 1165.866189
A82: 4 | B82: =E14 -> Intense Kids power Gvl | C82: =VLOOKUP(B82,AU$3:AY$12,3,FALSE) -> 1214.530498 | D82: =IF(B75,B87,IF(D75,D87,C82)) -> 1214.530498 | G82: =IF(E75,E87,IF(G75,G87,D82)) -> 1222.59817 | J82: =IF(H75,H87,IF(J75,J87,G82)) -> 1215.332792 | M82: =IF(K75,K87,IF(M75,M87,J82)) -> 1215.332792 | P82: =IF(N75,N87,IF(P75,P87,M82)) -> 1222.36043 | S82: =IF(Q75,Q87,IF(S75,S87,P82)) -> 1222.36043 | V82: =IF(T75,T87,IF(V75,V87,S82)) -> 1222.36043 | Y82: =IF(W75,W87,IF(Y75,Y87,V82)) -> 1222.36043 | AB82: =IF(Z75,Z87,IF(AB75,AB87,Y82)) -> 1222.36043 | AE82: =IF(AC75,AC87,IF(AE75,AE87,AB82)) -> 1222.36043 | AT82: =B82 -> Intense Kids power Gvl | AU82: =AE82 -> 1222.36043
A83: 5 | B83: =E16 -> 0 | C83: =VLOOKUP(B83,AU$3:AY$12,3,FALSE) ->  | D83: =IF(B76,B87,IF(D76,D87,C83)) ->  | G83: =IF(E76,E87,IF(G76,G87,D83)) ->  | J83: =IF(H76,H87,IF(J76,J87,G83)) ->  | M83: =IF(K76,K87,IF(M76,M87,J83)) ->  | P83: =IF(N76,N87,IF(P76,P87,M83)) ->  | S83: =IF(Q76,Q87,IF(S76,S87,P83)) ->  | V83: =IF(T76,T87,IF(V76,V87,S83)) ->  | Y83: =IF(W76,W87,IF(Y76,Y87,V83)) ->  | AB83: =IF(Z76,Z87,IF(AB76,AB87,Y83)) ->  | AE83: =IF(AC76,AC87,IF(AE76,AE87,AB83)) ->  | AT83: =B83 -> 0 | AU83: =AE83 -> 
A85: Init Rating | B85: =VLOOKUP(B24,$A79:$AE83,3,FALSE) -> 1247.986344 | C85: 1 | D85: =VLOOKUP(D24,$A79:$AE83,3,FALSE) -> 1186.82973 | E85: =VLOOKUP(E24,$A79:$AE83,4,FALSE) -> 1217.469502 | F85: 2 | G85: =VLOOKUP(G24,$A79:$AE83,4,FALSE) -> 1214.530498 | H85: =VLOOKUP(H24,$A79:$AE83,7,FALSE) -> 1254.592527 | I85: 3 | J85: =VLOOKUP(J24,$A79:$AE83,7,FALSE) -> 1222.59817 | K85: =VLOOKUP(K24,$A79:$AE83,10,FALSE) -> 1209.40183 | L85: 4 | M85: =VLOOKUP(M24,$A79:$AE83,10,FALSE) -> 1180.223547 | N85: =VLOOKUP(N24,$A79:$AE83,13,FALSE) -> 1172.893827 | O85: 5 | P85: =VLOOKUP(P24,$A79:$AE83,13,FALSE) -> 1215.332792 | Q85: =VLOOKUP(Q24,$A79:$AE83,16,FALSE) -> 1216.73155 | R85: 6 | S85: =VLOOKUP(S24,$A79:$AE83,16,FALSE) -> 1261.857905 | T85: =VLOOKUP(T24,$A79:$AE83,19,FALSE) -> 1268.824636 | U85: 7 | V85: =VLOOKUP(V24,$A79:$AE83,19,FALSE) -> 1165.866189 | W85: =VLOOKUP(W24,$A79:$AE83,22,FALSE) -> 1209.764819 | X85: 8 | Y85: =VLOOKUP(Y24,$A79:$AE83,22,FALSE) ->  | Z85: =VLOOKUP(Z24,$A79:$AE83,25,FALSE) -> 1165.866189 | AA85: 9 | AB85: =VLOOKUP(AB24,$A79:$AE83,25,FALSE) -> 1222.36043 | AC85: =VLOOKUP(AC24,$A79:$AE83,28,FALSE) -> 1209.764819 | AD85: 10 | AE85: =VLOOKUP(AE24,$A79:$AE83,28,FALSE) -> 1268.824636
A86: Exp wins | B86: =1/(1+(10^-((B85-D85)/400)))*(B36+D36) -> 0.5871135854 | D86: =1/(1+(10^-((D85-B85)/400)))*(B36+D36) -> 0.4128864146 | E86: =1/(1+(10^-((E85-G85)/400)))*(E36+G36) -> 0.5042294645 | G86: =1/(1+(10^-((G85-E85)/400)))*(E36+G36) -> 0.4957705355 | H86: =1/(1+(10^-((H85-J85)/400)))*(H36+J36) -> 0.5459138705 | J86: =1/(1+(10^-((J85-H85)/400)))*(H36+J36) -> 0.4540861295 | K86: =1/(1+(10^-((K85-M85)/400)))*(K36+M36) -> 0.5418924823 | M86: =1/(1+(10^-((M85-K85)/400)))*(K36+M36) -> 0.4581075177 | N86: =1/(1+(10^-((N85-P85)/400)))*(N36+P36) -> 0.4392273707 | P86: =1/(1+(10^-((P85-N85)/400)))*(N36+P36) -> 0.5607726293 | Q86: =1/(1+(10^-((Q85-S85)/400)))*(Q36+S36) -> 0.4354206958 | S86: =1/(1+(10^-((S85-Q85)/400)))*(Q36+S36) -> 0.5645793042 | T86: =1/(1+(10^-((T85-V85)/400)))*(T36+V36) -> 0 | V86: =1/(1+(10^-((V85-T85)/400)))*(T36+V36) -> 0 | W86: =1/(1+(10^-((W85-Y85)/400)))*(W36+Y36) ->  | Y86: =1/(1+(10^-((Y85-W85)/400)))*(W36+Y36) ->  | Z86: =1/(1+(10^-((Z85-AB85)/400)))*(Z36+AB36) -> 0 | AB86: =1/(1+(10^-((AB85-Z85)/400)))*(Z36+AB36) -> 0 | AC86: =1/(1+(10^-((AC85-AE85)/400)))*(AC36+AE36) -> 0 | AE86: =1/(1+(10^-((AE85-AC85)/400)))*(AC36+AE36) -> 0
A87: New Rating | B87: =B85+(B36-B86)*$BA$1 -> 1254.592527 | D87: =D85+(D36-D86)*$BA$1 -> 1180.223547 | E87: =E85+(E36-E86)*$BA$1 -> 1209.40183 | G87: =G85+(G36-G86)*$BA$1 -> 1222.59817 | H87: =H85+(H36-H86)*$BA$1 -> 1261.857905 | J87: =J85+(J36-J86)*$BA$1 -> 1215.332792 | K87: =K85+(K36-K86)*$BA$1 -> 1216.73155 | M87: =M85+(M36-M86)*$BA$1 -> 1172.893827 | N87: =N85+(N36-N86)*$BA$1 -> 1165.866189 | P87: =P85+(P36-P86)*$BA$1 -> 1222.36043 | Q87: =Q85+(Q36-Q86)*$BA$1 -> 1209.764819 | S87: =S85+(S36-S86)*$BA$1 -> 1268.824636 | T87: =T85+(T36-T86)*$BA$1 -> 1268.824636 | V87: =V85+(V36-V86)*$BA$1 -> 1165.866189 | W87: =W85+(W36-W86)*$BA$1 ->  | Y87: =Y85+(Y36-Y86)*$BA$1 ->  | Z87: =Z85+(Z36-Z86)*$BA$1 -> 1165.866189 | AB87: =AB85+(AB36-AB86)*$BA$1 -> 1222.36043 | AC87: =AC85+(AC36-AC86)*$BA$1 -> 1209.764819 | AE87: =AE85+(AE36-AE86)*$BA$1 -> 1268.824636
A89: =IF($AK10=1,"Pool Tiereaker : 1) Matches Won vs Lost (if 3 way tie then #4) 2) Head to Head 3) Game Win % 4) Total Pool Net Points 5) Flip a Coin","Pool Tiebreaker : 1) Games Won vs Lost (if 3 way tie then #5) 2) Head to Head 3) Head to Head Net Points 4) Game Win % 5) Total Pool Net Points 6) Flip a Coin") -> Pool Tiereaker : 1) Matches Won vs Lost (if 3 way tie then #4) 2) Head to Head 3) Game Win % 4) Total Pool Net Points 5) Flip a Coin
A91: POOL: | B91: B | C91: COURT: | I91: 2 | K91: ="Pool "&B91&" - Round 1 - Court "&I91 -> Pool B - Round 1 - Court 2
A92: Team # | B92: Team Name | L92: =IF($AK95=0,"Games Won","Matches Won") -> Matches Won | R92: =IF($AK95=0,"Games Lost","Matches Lost") -> Matches Lost | W92: Total Pool Net Points | Z92: % Total Net Points | AC92: Game Win % | AF92: Pool Finish | AG92: # | AH92: Playoff Finish | AK92: 1 | AL92: Games per Match (1-5)
A93: =IF($AK94>0,"1","") -> 1 | B93: Team Name | E93: =AU4 -> SC Midlands KP White | L93: =IF($AK95=0,AF149,AF131) -> 3 | R93: =IF($AK95=0,AG149,AG131) -> 0 | W93: =AQ109 -> 23 | Z93: =IF(AF143>0,(AQ109/AF143),0) -> 0.2421052632 | AC93: =IF(AF157=0,0,(AF149/AF157)) -> 1 | AF93: 1 | AG93: 1 | AK93: 6 | AL93: Matches (1-10)
B94: Team Code | E94: =AV4 -> fj2scmid2pm | AK94: 4 | AL94: Teams in Pool (1-5)
A95: =IF($AK94>1,"2","") -> 2 | B95: Team Name | E95: =AU5 -> Magnum 11 Black | L95: =IF($AK95=0,AF150,AF132) -> 0 | R95: =IF($AK95=0,AG150,AG132) -> 3 | W95: =AQ110 -> -19 | Z95: =IF(AF144>0,(AQ110/AF144),0) -> -0.2159090909 | AC95: =IF(AF158=0,0,(AF150/AF158)) -> 0 | AF95: 4 | AG95: 1 | AK95: 1 | AL95: 0-Count Games 1-Count Matches
B96: Team Code | E96: =AV5 -> fj1magnm1pm | AK96: 1 | AL96: Game Win % 0 = No 1 = Yes
A97: =IF($AK94>2,"3","") -> 3 | B97: Team Name | E97: =AU8 -> C1VB Juniors Royal | L97: =IF($AK95=0,AF151,AF133) -> 2 | R97: =IF($AK95=0,AG151,AG133) -> 1 | W97: =AQ111 -> 3 | Z97: =IF(AF145>0,(AQ111/AF145),0) -> 0.03409090909 | AC97: =IF(AF159=0,0,(AF151/AF159)) -> 0.6666666667 | AF97: 2 | AG97: 1 | AK97: 3 | AL97: # of Matches/Games per Team
B98: Team Code | E98: =AV8 -> fj2crone7pm
A99: =IF($AK94>3,"4","") -> 4 | B99: Team Name | E99: =AU9 -> SC Midlands KP Garnet | L99: =IF($AK95=0,AF152,AF134) -> 1 | R99: =IF($AK95=0,AG152,AG134) -> 2 | W99: =AQ112 -> -7 | Z99: =IF(AF146>0,(AQ112/AF146),0) -> -0.07368421053 | AC99: =IF(AF160=0,0,(AF152/AF160)) -> 0.3333333333 | AF99: 3 | AG99: 1
B100: Team Code | E100: =AV9 -> fj1scmid2pm
A101: =IF($AK94>4,"5","") ->  | B101: Team Name | E101: =AU12 -> 0 | L101: =IF($AK95=0,AF153,AF135) -> 0 | R101: =IF($AK95=0,AG153,AG135) -> 0 | W101: =AQ113 -> 0 | Z101: =IF(AF147>0,(AQ113/AF147),0) -> 0 | AC101: =IF(AF161=0,0,(AF153/AF161)) -> 0
B102: Team Code | E102: =AV12 -> 0
B103: POOL PLAY FORMAT: Best of 3 (25-25-15) 2 pt cap
A104: Sch Start | B104: 08:30:00 | E104: 09:30:00 | H104: 10:30:00 | K104: 12:00:00 | N104: 01:00:00 | Q104: 02:00:00 | T104: 01:00:00 | W104: 01:45:00 | Z104: 02:30:00 | AC104: 03:15:00 | AF104: Note: The Pool Finish Summary at the bottom of the sheet will fill in AUTOMATICALLY once the POOL FINISH column (at left) is filled in.
A105: Actual Start
A106: End Time
B107: Match 1 | E107: =IF(AK93>1,"Match 2","") -> Match 2 | H107: =IF(AK93>2,"Match 3","") -> Match 3 | K107: =IF(AK93>3,"Match 4","") -> Match 4 | N107: =IF(AK93>4,"Match 5","") -> Match 5 | Q107: =IF(AK93>5,"Match 6","") -> Match 6 | T107: =IF(AK93>6,"Match 7","") ->  | W107: =IF(AK93>7,"Match 8","") ->  | Z107: =IF(AK93>8,"Match 9","") ->  | AC107: =IF(AK93>9,"Match 10","") -> 
B108: 1 refs | E108: 2 refs | H108: 3 refs | K108: 4 refs | N108: 2 refs | Q108: 3 refs | T108: 4 refs | W108: 2 refs | Z108: 5 refs | AC108: 3 refs | AF108: Net Points | AG108: 1 | AH108: 2 | AI108: 3 | AJ108: 4 | AK108: 5 | AL108: 6 | AM108: 7 | AN108: 8 | AO108: 9 | AP108: 10 | AQ108: Total
B109: 2 | C109: v | D109: 3 | E109: 1 | F109: =IF(AK93>1,"v","") -> v | G109: 4 | H109: 2 | I109: =IF(AK93>2,"v","") -> v | J109: 4 | K109: 1 | L109: =IF(AK93>3,"v","") -> v | M109: 3 | N109: 3 | O109: =IF(AK93>4,"v","") -> v | P109: 4 | Q109: 1 | R109: =IF(AK93>5,"v","") -> v | S109: 2 | T109: 2 | U109: =IF(AK93>6,"v","") ->  | V109: 3 | W109: 1 | X109: =IF(AK93>7,"v","") ->  | Y109: 5 | Z109: 3 | AA109: =IF(AK93>8,"v","") ->  | AB109: 4 | AC109: 1 | AD109: =IF(AK93>9,"v","") ->  | AE109: 2 | AF109: =IF(AK94>0,"Team 1","") -> Team 1 | AG109: =IF(AK94<1,"",IF(AK93<1,"",IF(B109=1,B115-D115,IF(D109=1,D115-B115,"")))) ->  | AH109: =IF(AK94<1,"",IF(AK93<2,"",IF(E109=1,E115-G115,IF(G109=1,G115-E115,"")))) -> 14 | AI109: =IF(AK94<1,"",IF(AK93<3,"",IF(H109=1,H115-J115,IF(J109=1,J115-H115,"")))) ->  | AJ109: =IF(AK94<1,"",IF(AK93<4,"",IF(K109=1,K115-M115,IF(M109=1,M115-K115,"")))) -> 1 | AK109: =IF(AK94<1,"",IF(AK93<5,"",IF(N109=1,N115-P115,IF(P109=1,P115-N115,"")))) ->  | AL109: =IF(AK94<1,"",IF(AK93<6,"",IF(Q109=1,Q115-S115,IF(S109=1,S115-Q115,"")))) -> 8 | AM109: =IF(AK94<1,"",IF(AK93<7,"",IF(T109=1,T115-V115,IF(V109=1,V115-T115,"")))) ->  | AN109: =IF(AK94<1,"",IF(AK93<8,"",IF(W109=1,W115-Y115,IF(Y109=1,Y115-W115,"")))) ->  | AO109: =IF(AK94<1,"",IF(AK93<9,"",IF(Z109=1,Z115-AB115,IF(AB109=1,AB115-Z115,"")))) ->  | AP109: =IF(AK94<1,"",IF(AK93<10,"",IF(AC109=1,AC115-AE115,IF(AE109=1,AE115-AC115,"")))) ->  | AQ109: =SUM(AG109:AP109) -> 23
A110: Game 1 | B110: 27 | C110: / | D110: 28 | E110: 35 | F110: =IF(AK93>1,"/","") -> / | G110: 21 | H110: 20 | I110: =IF(AK93>2,"/","") -> / | J110: 30 | K110: 30 | L110: =IF(AK93>3,"/","") -> / | M110: 29 | N110: 30 | O110: =IF(AK93>4,"/","") -> / | P110: 27 | Q110: 30 | R110: =IF(AK93>5,"/","") -> / | S110: 22 | U110: =IF(AK93>6,"/","") ->  | X110: =IF(AK93>7,"/","") ->  | AA110: =IF(AK93>8,"/","") ->  | AD110: =IF(AK93>9,"/","") ->  | AF110: =IF(AK94>1,"Team 2","") -> Team 2 | AG110: =IF(AK94<2,"",IF(AK93<1,"",IF(B109=2,B115-D115,IF(D109=2,D115-B115,"")))) -> -1 | AH110: =IF(AK94<2,"",IF(AK93<2,"",IF(E109=2,E115-G115,IF(G109=2,G115-E115,"")))) ->  | AI110: =IF(AK94<2,"",IF(AK93<3,"",IF(H109=2,H115-J115,IF(J109=2,J115-H115,"")))) -> -10 | AJ110: =IF(AK94<2,"",IF(AK93<4,"",IF(K109=2,K115-M115,IF(M109=2,M115-K115,"")))) ->  | AK110: =IF(AK94<2,"",IF(AK93<5,"",IF(N109=2,N115-P115,IF(P109=2,P115-N115,"")))) ->  | AL110: =IF(AK94<2,"",IF(AK93<6,"",IF(Q109=2,Q115-S115,IF(S109=2,S115-Q115,"")))) -> -8 | AM110: =IF(AK94<2,"",IF(AK93<7,"",IF(T109=2,T115-V115,IF(V109=2,V115-T115,"")))) ->  | AN110: =IF(AK94<2,"",IF(AK93<8,"",IF(W109=2,W115-Y115,IF(Y109=2,Y115-W115,"")))) ->  | AO110: =IF(AK94<2,"",IF(AK93<9,"",IF(Z109=2,Z115-AB115,IF(AB109=2,AB115-Z115,"")))) ->  | AP110: =IF(AK94<2,"",IF(AK93<10,"",IF(AC109=2,AC115-AE115,IF(AE109=2,AE115-AC115,"")))) ->  | AQ110: =SUM(AG110:AP110) -> -19
A111: =IF(AK92>1,"Game 2","") ->  | C111: / | F111: =IF(AK93>1,IF(AK92>1,"/",""),"") ->  | I111: =IF(AK93>2,IF(AK92>1,"/",""),"") ->  | L111: =IF(AK93>3,IF(AK92>1,"/",""),"") ->  | O111: =IF(AK93>4,IF(AK92>1,"/",""),"") ->  | R111: =IF(AK93>5,IF(AK92>1,"/",""),"") ->  | U111: =IF(AK93>6,IF(AK92>1,"/",""),"") ->  | X111: =IF(AK93>7,IF(AK92>1,"/",""),"") ->  | AA111: =IF(AK93>8,IF(AK92>1,"/",""),"") ->  | AD111: =IF(AK93>9,IF(AK92>1,"/",""),"") ->  | AF111: =IF(AK94>2,"Team 3","") -> Team 3 | AG111: =IF(AK94<3,"",IF(AK93<1,"",IF(B109=3,B115-D115,IF(D109=3,D115-B115,"")))) -> 1 | AH111: =IF(AK94<3,"",IF(AK93<2,"",IF(E109=3,E115-G115,IF(G109=3,G115-E115,"")))) ->  | AI111: =IF(AK94<3,"",IF(AK93<3,"",IF(H109=3,H115-J115,IF(J109=3,J115-H115,"")))) ->  | AJ111: =IF(AK94<3,"",IF(AK93<4,"",IF(K109=3,K115-M115,IF(M109=3,M115-K115,"")))) -> -1 | AK111: =IF(AK94<3,"",IF(AK93<5,"",IF(N109=3,N115-P115,IF(P109=3,P115-N115,"")))) -> 3 | AL111: =IF(AK94<3,"",IF(AK93<6,"",IF(Q109=3,Q115-S115,IF(S109=3,S115-Q115,"")))) ->  | AM111: =IF(AK94<3,"",IF(AK93<7,"",IF(T109=3,T115-V115,IF(V109=3,V115-T115,"")))) ->  | AN111: =IF(AK94<3,"",IF(AK93<8,"",IF(W109=3,W115-Y115,IF(Y109=3,Y115-W115,"")))) ->  | AO111: =IF(AK94<3,"",IF(AK93<9,"",IF(Z109=3,Z115-AB115,IF(AB109=3,AB115-Z115,"")))) ->  | AP111: =IF(AK94<3,"",IF(AK93<9,"",IF(AC109=3,AC115-AE115,IF(AE109=3,AE115-AC115,"")))) ->  | AQ111: =SUM(AG111:AP111) -> 3
A112: =IF(AK92>2,"Game 3","") ->  | C112: / | F112: =IF(AK93>1,IF(AK92>2,"/",""),"") ->  | I112: =IF(AK93>2,IF(AK92>2,"/",""),"") ->  | L112: =IF(AK93>3,IF(AK92>2,"/",""),"") ->  | O112: =IF(AK93>4,IF(AK92>2,"/",""),"") ->  | R112: =IF(AK93>5,IF(AK92>2,"/",""),"") ->  | U112: =IF(AK93>6,IF(AK92>2,"/",""),"") ->  | X112: =IF(AK93>7,IF(AK92>2,"/",""),"") ->  | AA112: =IF(AK93>8,IF(AK92>2,"/",""),"") ->  | AD112: =IF(AK93>9,IF(AK92>2,"/",""),"") ->  | AF112: =IF(AK94>3,"Team 4","") -> Team 4 | AG112: =IF(AK94<4,"",IF(AK93<1,"",IF(B109=4,B115-D115,IF(D109=4,D115-B115,"")))) ->  | AH112: =IF(AK94<4,"",IF(AK93<2,"",IF(E109=4,E115-G115,IF(G109=4,G115-E115,"")))) -> -14 | AI112: =IF(AK94<4,"",IF(AK93<3,"",IF(H109=4,H115-J115,IF(J109=4,J115-H115,"")))) -> 10 | AJ112: =IF(AK94<4,"",IF(AK93<4,"",IF(K109=4,K115-M115,IF(M109=4,M115-K115,"")))) ->  | AK112: =IF(AK94<4,"",IF(AK93<5,"",IF(N109=4,N115-P115,IF(P109=4,P115-N115,"")))) -> -3 | AL112: =IF(AK94<4,"",IF(AK93<6,"",IF(Q109=4,Q115-S115,IF(S109=4,S115-Q115,"")))) ->  | AM112: =IF(AK94<4,"",IF(AK93<7,"",IF(T109=4,T115-V115,IF(V109=4,V115-T115,"")))) ->  | AN112: =IF(AK94<4,"",IF(AK93<8,"",IF(W109=4,W115-Y115,IF(Y109=4,Y115-W115,"")))) ->  | AO112: =IF(AK94<4,"",IF(AK93<9,"",IF(Z109=4,Z115-AB115,IF(AB109=4,AB115-Z115,"")))) ->  | AP112: =IF(AK94<4,"",IF(AK93<10,"",IF(AC109=4,AC115-AE115,IF(AE109=4,AE115-AC115,"")))) ->  | AQ112: =SUM(AG112:AP112) -> -7
A113: =IF(AK92>3,"Game 4","") ->  | C113: / | F113: =IF(AK93>1,IF(AK92>3,"/",""),"") ->  | I113: =IF(AK93>2,IF(AK92>3,"/",""),"") ->  | L113: =IF(AK93>3,IF(AK92>3,"/",""),"") ->  | O113: =IF(AK93>4,IF(AK92>3,"/",""),"") ->  | R113: =IF(AK93>5,IF(AK92>3,"/",""),"") ->  | U113: =IF(AK93>6,IF(AK92>3,"/",""),"") ->  | X113: =IF(AK93>7,IF(AK92>3,"/",""),"") ->  | AA113: =IF(AK93>8,IF(AK92>3,"/",""),"") ->  | AD113: =IF(AK93>9,IF(AK92>3,"/",""),"") ->  | AF113: =IF(AK94>4,"Team 5","") ->  | AG113: =IF(AK94<5,"",IF(AK93<1,"",IF(B109=5,B115-D115,IF(D109=5,D115-B115,"")))) ->  | AH113: =IF(AK94<5,"",IF(AK93<2,"",IF(E109=5,E115-G115,IF(G109=5,G115-E115,"")))) ->  | AI113: =IF(AK94<5,"",IF(AK93<3,"",IF(H109=5,H115-J115,IF(J109=5,J115-H115,"")))) ->  | AJ113: =IF(AK94<5,"",IF(AK93<4,"",IF(K109=5,K115-M115,IF(M109=5,M115-K115,"")))) ->  | AK113: =IF(AK94<5,"",IF(AK93<5,"",IF(N109=5,N115-P115,IF(P109=5,P115-N115,"")))) ->  | AL113: =IF(AK94<5,"",IF(AK93<6,"",IF(Q109=5,Q115-S115,IF(S109=5,S115-Q115,"")))) ->  | AM113: =IF(AK94<5,"",IF(AK93<7,"",IF(T109=5,T115-V115,IF(V109=5,V115-T115,"")))) ->  | AN113: =IF(AK94<5,"",IF(AK93<8,"",IF(W109=5,W115-Y115,IF(Y109=5,Y115-W115,"")))) ->  | AO113: =IF(AK94<5,"",IF(AK93<9,"",IF(Z109=5,Z115-AB115,IF(AB109=5,AB115-Z115,"")))) ->  | AP113: =IF(AK94<5,"",IF(AK93<10,"",IF(AC109=5,AC115-AE115,IF(AE109=5,AE115-AC115,"")))) ->  | AQ113: =SUM(AG113:AP113) -> 0
A114: =IF(AK92>4,"Game 5","") ->  | C114: / | F114: =IF(AK93>1,IF(AK92>4,"/",""),"") ->  | I114: =IF(AK93>2,IF(AK92>4,"/",""),"") ->  | L114: =IF(AK93>3,IF(AK92>4,"/",""),"") ->  | O114: =IF(AK93>4,IF(AK92>4,"/",""),"") ->  | R114: =IF(AK93>5,IF(AK92>4,"/",""),"") ->  | U114: =IF(AK93>6,IF(AK92>4,"/",""),"") ->  | X114: =IF(AK93>7,IF(AK92>4,"/",""),"") ->  | AA114: =IF(AK93>8,IF(AK92>4,"/",""),"") ->  | AD114: =IF(AK93>9,IF(AK92>4,"/",""),"") -> 
B115: =IF($AK92=5,SUM(B110:B114),IF($AK92=4,SUM(B110:B113),IF($AK92=3,SUM(B110:B112),IF($AK92=2,SUM(B110:B111),B110)))) -> 27 | D115: =IF($AK92=5,SUM(D110:D114),IF($AK92=4,SUM(D110:D113),IF($AK92=3,SUM(D110:D112),IF($AK92=2,SUM(D110:D111),D110)))) -> 28 | E115: =IF($AK92=5,SUM(E110:E114),IF($AK92=4,SUM(E110:E113),IF($AK92=3,SUM(E110:E112),IF($AK92=2,SUM(E110:E111),E110)))) -> 35 | G115: =IF($AK92=5,SUM(G110:G114),IF($AK92=4,SUM(G110:G113),IF($AK92=3,SUM(G110:G112),IF($AK92=2,SUM(G110:G111),G110)))) -> 21 | H115: =IF($AK92=5,SUM(H110:H114),IF($AK92=4,SUM(H110:H113),IF($AK92=3,SUM(H110:H112),IF($AK92=2,SUM(H110:H111),H110)))) -> 20 | J115: =IF($AK92=5,SUM(J110:J114),IF($AK92=4,SUM(J110:J113),IF($AK92=3,SUM(J110:J112),IF($AK92=2,SUM(J110:J111),J110)))) -> 30 | K115: =IF($AK92=5,SUM(K110:K114),IF($AK92=4,SUM(K110:K113),IF($AK92=3,SUM(K110:K112),IF($AK92=2,SUM(K110:K111),K110)))) -> 30 | M115: =IF($AK92=5,SUM(M110:M114),IF($AK92=4,SUM(M110:M113),IF($AK92=3,SUM(M110:M112),IF($AK92=2,SUM(M110:M111),M110)))) -> 29 | N115: =IF($AK92=5,SUM(N110:N114),IF($AK92=4,SUM(N110:N113),IF($AK92=3,SUM(N110:N112),IF($AK92=2,SUM(N110:N111),N110)))) -> 30 | P115: =IF($AK92=5,SUM(P110:P114),IF($AK92=4,SUM(P110:P113),IF($AK92=3,SUM(P110:P112),IF($AK92=2,SUM(P110:P111),P110)))) -> 27 | Q115: =IF($AK92=5,SUM(Q110:Q114),IF($AK92=4,SUM(Q110:Q113),IF($AK92=3,SUM(Q110:Q112),IF($AK92=2,SUM(Q110:Q111),Q110)))) -> 30 | S115: =IF($AK92=5,SUM(S110:S114),IF($AK92=4,SUM(S110:S113),IF($AK92=3,SUM(S110:S112),IF($AK92=2,SUM(S110:S111),S110)))) -> 22 | T115: =IF($AK92=5,SUM(T110:T114),IF($AK92=4,SUM(T110:T113),IF($AK92=3,SUM(T110:T112),IF($AK92=2,SUM(T110:T111),T110)))) -> 0 | V115: =IF($AK92=5,SUM(V110:V114),IF($AK92=4,SUM(V110:V113),IF($AK92=3,SUM(V110:V112),IF($AK92=2,SUM(V110:V111),V110)))) -> 0 | W115: =IF($AK92=5,SUM(W110:W114),IF($AK92=4,SUM(W110:W113),IF($AK92=3,SUM(W110:W112),IF($AK92=2,SUM(W110:W111),W110)))) -> 0 | Y115: =IF($AK92=5,SUM(Y110:Y114),IF($AK92=4,SUM(Y110:Y113),IF($AK92=3,SUM(Y110:Y112),IF($AK92=2,SUM(Y110:Y111),Y110)))) -> 0 | Z115: =IF($AK92=5,SUM(Z110:Z114),IF($AK92=4,SUM(Z110:Z113),IF($AK92=3,SUM(Z110:Z112),IF($AK92=2,SUM(Z110:Z111),Z110)))) -> 0 | AB115: =IF($AK92=5,SUM(AB110:AB114),IF($AK92=4,SUM(AB110:AB113),IF($AK92=3,SUM(AB110:AB112),IF($AK92=2,SUM(AB110:AB111),AB110)))) -> 0 | AC115: =IF($AK92=5,SUM(AC110:AC114),IF($AK92=4,SUM(AC110:AC113),IF($AK92=3,SUM(AC110:AC112),IF($AK92=2,SUM(AC110:AC111),AC110)))) -> 0 | AE115: =IF($AK92=5,SUM(AE110:AE114),IF($AK92=4,SUM(AE110:AE113),IF($AK92=3,SUM(AE110:AE112),IF($AK92=2,SUM(AE110:AE111),AE110)))) -> 0
A116: Gm1 Win | B116: =IF(AND(B110>D110,$AK93>0,ISNUMBER(B110),ISNUMBER(D110)),1,0) -> 0 | D116: =IF(AND(D110>B110,$AK93>0,ISNUMBER(B110),ISNUMBER(D110)),1,0) -> 1 | E116: =IF(AND(E110>G110,$AK93>1,ISNUMBER(E110),ISNUMBER(G110)),1,0) -> 1 | G116: =IF(AND(G110>E110,$AK93>1,ISNUMBER(E110),ISNUMBER(G110)),1,0) -> 0 | H116: =IF(AND(H110>J110,$AK93>2,ISNUMBER(H110),ISNUMBER(J110)),1,0) -> 0 | J116: =IF(AND(J110>H110,$AK93>2,ISNUMBER(H110),ISNUMBER(J110)),1,0) -> 1 | K116: =IF(AND(K110>M110,$AK93>3,ISNUMBER(K110),ISNUMBER(M110)),1,0) -> 1 | M116: =IF(AND(M110>K110,$AK93>3,ISNUMBER(K110),ISNUMBER(M110)),1,0) -> 0 | N116: =IF(AND(N110>P110,$AK93>4,ISNUMBER(N110),ISNUMBER(P110)),1,0) -> 1 | P116: =IF(AND(P110>N110,$AK93>4,ISNUMBER(N110),ISNUMBER(P110)),1,0) -> 0 | Q116: =IF(AND(Q110>S110,$AK93>5,ISNUMBER(Q110),ISNUMBER(S110)),1,0) -> 1 | S116: =IF(AND(S110>Q110,$AK93>5,ISNUMBER(Q110),ISNUMBER(S110)),1,0) -> 0 | T116: =IF(AND(T110>V110,$AK93>6,ISNUMBER(T110),ISNUMBER(V110)),1,0) -> 0 | V116: =IF(AND(V110>T110,$AK93>6,ISNUMBER(T110),ISNUMBER(V110)),1,0) -> 0 | W116: =IF(AND(W110>Y110,$AK93>7,ISNUMBER(W110),ISNUMBER(Y110)),1,0) -> 0 | Y116: =IF(AND(Y110>W110,$AK93>7,ISNUMBER(W110),ISNUMBER(Y110)),1,0) -> 0 | Z116: =IF(AND(Z110>AB110,$AK93>8,ISNUMBER(Z110),ISNUMBER(AB110)),1,0) -> 0 | AB116: =IF(AND(AB110>Z110,$AK93>8,ISNUMBER(Z110),ISNUMBER(AB110)),1,0) -> 0 | AC116: =IF(AND(AC110>AE110,$AK93>9,ISNUMBER(AC110),ISNUMBER(AE110)),1,0) -> 0 | AE116: =IF(AND(AE110>AC110,$AK93>9,ISNUMBER(AC110),ISNUMBER(AE110)),1,0) -> 0
A117: Gm2 Win | B117: =IF(AND(B111>D111,$AK93>0,$AK92>1,ISNUMBER(B111),ISNUMBER(D111)),1,0) -> 0 | D117: =IF(AND(D111>B111,$AK93>0,$AK92>1,ISNUMBER(B111),ISNUMBER(D111)),1,0) -> 0 | E117: =IF(AND(E111>G111,$AK93>1,$AK92>1,ISNUMBER(E111),ISNUMBER(G111)),1,0) -> 0 | G117: =IF(AND(G111>E111,$AK93>1,$AK92>1,ISNUMBER(E111),ISNUMBER(G111)),1,0) -> 0 | H117: =IF(AND(H111>J111,$AK93>2,$AK92>1,ISNUMBER(H111),ISNUMBER(J111)),1,0) -> 0 | J117: =IF(AND(J111>H111,$AK93>2,$AK92>1,ISNUMBER(H111),ISNUMBER(J111)),1,0) -> 0 | K117: =IF(AND(K111>M111,$AK93>3,$AK92>1,ISNUMBER(K111),ISNUMBER(M111)),1,0) -> 0 | M117: =IF(AND(M111>K111,$AK93>3,$AK92>1,ISNUMBER(K111),ISNUMBER(M111)),1,0) -> 0 | N117: =IF(AND(N111>P111,$AK93>4,$AK92>1,ISNUMBER(N111),ISNUMBER(P111)),1,0) -> 0 | P117: =IF(AND(P111>N111,$AK93>4,$AK92>1,ISNUMBER(N111),ISNUMBER(P111)),1,0) -> 0 | Q117: =IF(AND(Q111>S111,$AK93>5,$AK92>1,ISNUMBER(Q111),ISNUMBER(S111)),1,0) -> 0 | S117: =IF(AND(S111>Q111,$AK93>5,$AK92>1,ISNUMBER(Q111),ISNUMBER(S111)),1,0) -> 0 | T117: =IF(AND(T111>V111,$AK93>6,$AK92>1,ISNUMBER(T111),ISNUMBER(V111)),1,0) -> 0 | V117: =IF(AND(V111>T111,$AK93>6,$AK92>1,ISNUMBER(T111),ISNUMBER(V111)),1,0) -> 0 | W117: =IF(AND(W111>Y111,$AK93>7,$AK92>1,ISNUMBER(W111),ISNUMBER(Y111)),1,0) -> 0 | Y117: =IF(AND(Y111>W111,$AK93>7,$AK92>1,ISNUMBER(W111),ISNUMBER(Y111)),1,0) -> 0 | Z117: =IF(AND(Z111>AB111,$AK93>8,$AK92>1,ISNUMBER(Z111),ISNUMBER(AB111)),1,0) -> 0 | AB117: =IF(AND(AB111>Z111,$AK93>8,$AK92>1,ISNUMBER(Z111),ISNUMBER(AB111)),1,0) -> 0 | AC117: =IF(AND(AC111>AE111,$AK93>9,$AK92>1,ISNUMBER(AC111),ISNUMBER(AE111)),1,0) -> 0 | AE117: =IF(AND(AE111>AC111,$AK93>9,$AK92>1,ISNUMBER(AC111),ISNUMBER(AE111)),1,0) -> 0
A118: Gm3 Win | B118: =IF(AND(B112>D112,$AK93>0,$AK92>2,ISNUMBER(B112),ISNUMBER(D112)),1,0) -> 0 | D118: =IF(AND(D112>B112,$AK93>0,$AK92>2,ISNUMBER(B112),ISNUMBER(D112)),1,0) -> 0 | E118: =IF(AND(E112>G112,$AK93>1,$AK92>2,ISNUMBER(E112),ISNUMBER(G112)),1,0) -> 0 | G118: =IF(AND(G112>E112,$AK93>1,$AK92>2,ISNUMBER(E112),ISNUMBER(G112)),1,0) -> 0 | H118: =IF(AND(H112>J112,$AK93>2,$AK92>2,ISNUMBER(H112),ISNUMBER(J112)),1,0) -> 0 | J118: =IF(AND(J112>H112,$AK93>2,$AK92>2,ISNUMBER(H112),ISNUMBER(J112)),1,0) -> 0 | K118: =IF(AND(K112>M112,$AK93>3,$AK92>2,ISNUMBER(K112),ISNUMBER(M112)),1,0) -> 0 | M118: =IF(AND(M112>K112,$AK93>3,$AK92>2,ISNUMBER(K112),ISNUMBER(M112)),1,0) -> 0 | N118: =IF(AND(N112>P112,$AK93>4,$AK92>2,ISNUMBER(N112),ISNUMBER(P112)),1,0) -> 0 | P118: =IF(AND(P112>N112,$AK93>4,$AK92>2,ISNUMBER(N112),ISNUMBER(P112)),1,0) -> 0 | Q118: =IF(AND(Q112>S112,$AK93>5,$AK92>2,ISNUMBER(Q112),ISNUMBER(S112)),1,0) -> 0 | S118: =IF(AND(S112>Q112,$AK93>5,$AK92>2,ISNUMBER(Q112),ISNUMBER(S112)),1,0) -> 0 | T118: =IF(AND(T112>V112,$AK93>6,$AK92>2,ISNUMBER(T112),ISNUMBER(V112)),1,0) -> 0 | V118: =IF(AND(V112>T112,$AK93>6,$AK92>2,ISNUMBER(T112),ISNUMBER(V112)),1,0) -> 0 | W118: =IF(AND(W112>Y112,$AK93>7,$AK92>2,ISNUMBER(W112),ISNUMBER(Y112)),1,0) -> 0 | Y118: =IF(AND(Y112>W112,$AK93>7,$AK92>2,ISNUMBER(W112),ISNUMBER(Y112)),1,0) -> 0 | Z118: =IF(AND(Z112>AB112,$AK93>8,$AK92>2,ISNUMBER(Z112),ISNUMBER(AB112)),1,0) -> 0 | AB118: =IF(AND(AB112>Z112,$AK93>8,$AK92>2,ISNUMBER(Z112),ISNUMBER(AB112)),1,0) -> 0 | AC118: =IF(AND(AC112>AE112,$AK93>9,$AK92>2,ISNUMBER(AC112),ISNUMBER(AE112)),1,0) -> 0 | AE118: =IF(AND(AE112>AC112,$AK93>9,$AK92>2,ISNUMBER(AC112),ISNUMBER(AE112)),1,0) -> 0
A119: Gm4 Win | B119: =IF(AND(B113>D113,$AK93>0,$AK92>3,ISNUMBER(B113),ISNUMBER(D113)),1,0) -> 0 | D119: =IF(AND(D113>B113,$AK93>0,$AK92>3,ISNUMBER(B113),ISNUMBER(D113)),1,0) -> 0 | E119: =IF(AND(E113>G113,$AK93>1,$AK92>3,ISNUMBER(E113),ISNUMBER(G113)),1,0) -> 0 | G119: =IF(AND(G113>E113,$AK93>1,$AK92>3,ISNUMBER(E113),ISNUMBER(G113)),1,0) -> 0 | H119: =IF(AND(H113>J113,$AK93>2,$AK92>3,ISNUMBER(H113),ISNUMBER(J113)),1,0) -> 0 | J119: =IF(AND(J113>H113,$AK93>2,$AK92>3,ISNUMBER(H113),ISNUMBER(J113)),1,0) -> 0 | K119: =IF(AND(K113>M113,$AK93>3,$AK92>3,ISNUMBER(K113),ISNUMBER(M113)),1,0) -> 0 | M119: =IF(AND(M113>K113,$AK93>3,$AK92>3,ISNUMBER(K113),ISNUMBER(M113)),1,0) -> 0 | N119: =IF(AND(N113>P113,$AK93>4,$AK92>3,ISNUMBER(N113),ISNUMBER(P113)),1,0) -> 0 | P119: =IF(AND(P113>N113,$AK93>4,$AK92>3,ISNUMBER(N113),ISNUMBER(P113)),1,0) -> 0 | Q119: =IF(AND(Q113>S113,$AK93>5,$AK92>3,ISNUMBER(Q113),ISNUMBER(S113)),1,0) -> 0 | S119: =IF(AND(S113>Q113,$AK93>5,$AK92>3,ISNUMBER(Q113),ISNUMBER(S113)),1,0) -> 0 | T119: =IF(AND(T113>V113,$AK93>6,$AK92>3,ISNUMBER(T113),ISNUMBER(V113)),1,0) -> 0 | V119: =IF(AND(V113>T113,$AK93>6,$AK92>3,ISNUMBER(T113),ISNUMBER(V113)),1,0) -> 0 | W119: =IF(AND(W113>Y113,$AK93>7,$AK92>3,ISNUMBER(W113),ISNUMBER(Y113)),1,0) -> 0 | Y119: =IF(AND(Y113>W113,$AK93>7,$AK92>3,ISNUMBER(W113),ISNUMBER(Y113)),1,0) -> 0 | Z119: =IF(AND(Z113>AB113,$AK93>8,$AK92>3,ISNUMBER(Z113),ISNUMBER(AB113)),1,0) -> 0 | AB119: =IF(AND(AB113>Z113,$AK93>8,$AK92>3,ISNUMBER(Z113),ISNUMBER(AB113)),1,0) -> 0 | AC119: =IF(AND(AC113>AE113,$AK93>9,$AK92>3,ISNUMBER(AC113),ISNUMBER(AE113)),1,0) -> 0 | AE119: =IF(AND(AE113>AC113,$AK93>9,$AK92>3,ISNUMBER(AC113),ISNUMBER(AE113)),1,0) -> 0
A120: Gm5 Win | B120: =IF(AND(B114>D114,$AK93>0,$AK92>4,ISNUMBER(B114),ISNUMBER(D114)),1,0) -> 0 | D120: =IF(AND(D114>B114,$AK93>0,$AK92>4,ISNUMBER(B114),ISNUMBER(D114)),1,0) -> 0 | E120: =IF(AND(E114>G114,$AK93>1,$AK92>4,ISNUMBER(E114),ISNUMBER(G114)),1,0) -> 0 | G120: =IF(AND(G114>E114,$AK93>1,$AK92>4,ISNUMBER(E114),ISNUMBER(G114)),1,0) -> 0 | H120: =IF(AND(H114>J114,$AK93>2,$AK92>4,ISNUMBER(H114),ISNUMBER(J114)),1,0) -> 0 | J120: =IF(AND(J114>H114,$AK93>2,$AK92>4,ISNUMBER(H114),ISNUMBER(J114)),1,0) -> 0 | K120: =IF(AND(K114>M114,$AK93>3,$AK92>4,ISNUMBER(K114),ISNUMBER(M114)),1,0) -> 0 | M120: =IF(AND(M114>K114,$AK93>3,$AK92>4,ISNUMBER(K114),ISNUMBER(M114)),1,0) -> 0 | N120: =IF(AND(N114>P114,$AK93>4,$AK92>4,ISNUMBER(N114),ISNUMBER(P114)),1,0) -> 0 | P120: =IF(AND(P114>N114,$AK93>4,$AK92>4,ISNUMBER(N114),ISNUMBER(P114)),1,0) -> 0 | Q120: =IF(AND(Q114>S114,$AK93>5,$AK92>4,ISNUMBER(Q114),ISNUMBER(S114)),1,0) -> 0 | S120: =IF(AND(S114>Q114,$AK93>5,$AK92>4,ISNUMBER(Q114),ISNUMBER(S114)),1,0) -> 0 | T120: =IF(AND(T114>V114,$AK93>6,$AK92>4,ISNUMBER(T114),ISNUMBER(V114)),1,0) -> 0 | V120: =IF(AND(V114>T114,$AK93>6,$AK92>4,ISNUMBER(T114),ISNUMBER(V114)),1,0) -> 0 | W120: =IF(AND(W114>Y114,$AK93>7,$AK92>4,ISNUMBER(W114),ISNUMBER(Y114)),1,0) -> 0 | Y120: =IF(AND(Y114>W114,$AK93>7,$AK92>4,ISNUMBER(W114),ISNUMBER(Y114)),1,0) -> 0 | Z120: =IF(AND(Z114>AB114,$AK93>8,$AK92>4,ISNUMBER(Z114),ISNUMBER(AB114)),1,0) -> 0 | AB120: =IF(AND(AB114>Z114,$AK93>8,$AK92>4,ISNUMBER(Z114),ISNUMBER(AB114)),1,0) -> 0 | AC120: =IF(AND(AC114>AE114,$AK93>9,$AK92>4,ISNUMBER(AC114),ISNUMBER(AE114)),1,0) -> 0 | AE120: =IF(AND(AE114>AC114,$AK93>9,$AK92>4,ISNUMBER(AC114),ISNUMBER(AE114)),1,0) -> 0
A121: Sum Game Win/Loss | B121: =SUM(B116:B120) -> 0 | D121: =SUM(D116:D120) -> 1 | E121: =SUM(E116:E120) -> 1 | G121: =SUM(G116:G120) -> 0 | H121: =SUM(H116:H120) -> 0 | J121: =SUM(J116:J120) -> 1 | K121: =SUM(K116:K120) -> 1 | M121: =SUM(M116:M120) -> 0 | N121: =SUM(N116:N120) -> 1 | P121: =SUM(P116:P120) -> 0 | Q121: =SUM(Q116:Q120) -> 1 | S121: =SUM(S116:S120) -> 0 | T121: =SUM(T116:T120) -> 0 | V121: =SUM(V116:V120) -> 0 | W121: =SUM(W116:W120) -> 0 | Y121: =SUM(Y116:Y120) -> 0 | Z121: =SUM(Z116:Z120) -> 0 | AB121: =SUM(AB116:AB120) -> 0 | AC121: =SUM(AC116:AC120) -> 0 | AE121: =SUM(AE116:AE120) -> 0
A122: Match Won/Lost | B122: =IF(B121>D121,IF(C156=AK92,1,IF(C156=AK92-1,1,0)),0) -> 0 | C122: =B122+D122 -> 1 | D122: =IF(D121>B121,IF(C156=AK92,1,IF(C156=AK92-1,1,0)),0) -> 1 | E122: =IF(E121>G121,IF(F156=AK92,1,IF(F156=AK92-1,1,0)),0) -> 1 | F122: =E122+G122 -> 1 | G122: =IF(G121>E121,IF(F156=AK92,1,IF(F156=AK92-1,1,0)),0) -> 0 | H122: =IF(H121>J121,IF(I156=AK92,1,IF(I156=AK92-1,1,0)),0) -> 0 | I122: =H122+J122 -> 1 | J122: =IF(J121>H121,IF(I156=AK92,1,IF(I156=AK92-1,1,0)),0) -> 1 | K122: =IF(K121>M121,IF(L156=AK92,1,IF(L156=AK92-1,1,0)),0) -> 1 | L122: =K122+M122 -> 1 | M122: =IF(M121>K121,IF(L156=AK92,1,IF(L156=AK92-1,1,0)),0) -> 0 | N122: =IF(N121>P121,IF(O156=AK92,1,IF(O156=AK92-1,1,0)),0) -> 1 | O122: =N122+P122 -> 1 | P122: =IF(P121>N121,IF(O156=AK92,1,IF(O156=AK92-1,1,0)),0) -> 0 | Q122: =IF(Q121>S121,IF(R156=AK92,1,IF(R156=AK92-1,1,0)),0) -> 1 | R122: =Q122+S122 -> 1 | S122: =IF(S121>Q121,IF(R156=AK92,1,IF(R156=AK92-1,1,0)),0) -> 0 | T122: =IF(T121>V121,IF(U156=AK92,1,IF(U156=AK92-1,1,0)),0) -> 0 | U122: =T122+V122 -> 0 | V122: =IF(V121>T121,IF(U156=AK92,1,IF(U156=AK92-1,1,0)),0) -> 0 | W122: =IF(W121>Y121,IF(X156=AK92,1,IF(X156=AK92-1,1,0)),0) -> 0 | X122: =W122+Y122 -> 0 | Y122: =IF(Y121>W121,IF(X156=AK92,1,IF(X156=AK92-1,1,0)),0) -> 0 | Z122: =IF(Z121>AB121,IF(AA156=AK92,1,IF(AA156=AK92-1,1,0)),0) -> 0 | AA122: =Z122+AB122 -> 0 | AB122: =IF(AB121>Z121,IF(AA156=AK92,1,IF(AA156=AK92-1,1,0)),0) -> 0 | AC122: =IF(AC121>AE121,IF(AD156=AK92,1,IF(AD156=AK92-1,1,0)),0) -> 0 | AD122: =AC122+AE122 -> 0 | AE122: =IF(AE121>AC121,IF(AD156=AK92,1,IF(AD156=AK92-1,1,0)),0) -> 0
A124: Gm1 Pts | B124: =IF(B116=1,B110,0) -> 0 | D124: =IF(D116=1,D110,0) -> 28 | E124: 35 | G124: =IF(G116=1,G110,0) -> 0 | H124: 0 | J124: =IF(J116=1,J110,0) -> 30 | K124: 30 | M124: =IF(M116=1,M110,0) -> 0 | N124: 30 | P124: =IF(P116=1,P110,0) -> 0 | Q124: 30 | S124: =IF(S116=1,S110,0) -> 0 | T124: 0 | V124: =IF(V116=1,V110,0) -> 0 | W124: 0 | Y124: =IF(Y116=1,Y110,0) -> 0 | Z124: 0 | AB124: =IF(AB116=1,AB110,0) -> 0 | AC124: 0 | AE124: =IF(AE116=1,AE110,0) -> 0
A125: Gm2 Pts | B125: =IF(B117=1,B111,0) -> 0 | D125: 0 | E125: 0 | G125: 0 | H125: 0 | J125: 0 | K125: 0 | M125: 0 | N125: 0 | P125: 0 | Q125: 0 | S125: 0 | T125: 0 | V125: 0 | W125: 0 | Y125: 0 | Z125: 0 | AB125: 0 | AC125: 0 | AE125: =IF(AE117=1,AE111,0) -> 0
A126: Gm3 Pts | B126: =IF(B118=1,B112,0) -> 0 | D126: 0 | E126: 0 | G126: 0 | H126: 0 | J126: 0 | K126: 0 | M126: 0 | N126: 0 | P126: 0 | Q126: 0 | S126: 0 | T126: 0 | V126: 0 | W126: 0 | Y126: 0 | Z126: 0 | AB126: 0 | AC126: 0 | AE126: =IF(AE118=1,AE112,0) -> 0
A127: Gm4 Pts | B127: =IF(B119=1,B113,0) -> 0 | D127: 0 | E127: 0 | G127: 0 | H127: 0 | J127: 0 | K127: 0 | M127: 0 | N127: 0 | P127: 0 | Q127: 0 | S127: 0 | T127: 0 | V127: 0 | W127: 0 | Y127: 0 | Z127: 0 | AB127: 0 | AC127: 0 | AE127: =IF(AE119=1,AE113,0) -> 0
A128: Gm5 Pts | B128: =IF(B120=1,B114,0) -> 0 | D128: 0 | E128: 0 | G128: 0 | H128: 0 | J128: 0 | K128: 0 | M128: 0 | N128: 0 | P128: 0 | Q128: 0 | S128: 0 | T128: 0 | V128: 0 | W128: 0 | Y128: 0 | Z128: 0 | AB128: 0 | AC128: 0 | AE128: =IF(AE120=1,AE114,0) -> 0
A129: Sum Match Points | B129: =SUM(B124:D128) -> 28 | E129: =SUM(E124:G128) -> 35 | H129: =SUM(H124:J128) -> 30 | K129: =SUM(K124:M128) -> 30 | N129: =SUM(N124:P128) -> 30 | Q129: =SUM(Q124:S128) -> 30 | T129: =SUM(T124:V128) -> 0 | W129: =SUM(W124:Y128) -> 0 | Z129: =SUM(Z124:AB128) -> 0 | AC129: =SUM(AC124:AE128) -> 0
A130: Matches | AF130: Match Wins by Team | AG130: Match Losses by Team
A131: Tm1 Wins | B131: =IF(B109=1,IF(B122=1,1,0),0) -> 0 | D131: =IF(D109=1,IF(D122=1,1,0),0) -> 0 | E131: =IF(E109=1,IF(E122=1,1,0),0) -> 1 | G131: =IF(G109=1,IF(G122=1,1,0),0) -> 0 | H131: =IF(H109=1,IF(H122=1,1,0),0) -> 0 | J131: =IF(J109=1,IF(J122=1,1,0),0) -> 0 | K131: =IF(K109=1,IF(K122=1,1,0),0) -> 1 | M131: =IF(M109=1,IF(M122=1,1,0),0) -> 0 | N131: =IF(N109=1,IF(N122=1,1,0),0) -> 0 | P131: =IF(P109=1,IF(P122=1,1,0),0) -> 0 | Q131: =IF(Q109=1,IF(Q122=1,1,0),0) -> 1 | S131: =IF(S109=1,IF(S122=1,1,0),0) -> 0 | T131: =IF(T109=1,IF(T122=1,1,0),0) -> 0 | V131: =IF(V109=1,IF(V122=1,1,0),0) -> 0 | W131: =IF(W109=1,IF(W122=1,1,0),0) -> 0 | Y131: =IF(Y109=1,IF(Y122=1,1,0),0) -> 0 | Z131: =IF(Z109=1,IF(Z122=1,1,0),0) -> 0 | AB131: =IF(AB109=1,IF(AB122=1,1,0),0) -> 0 | AC131: =IF(AC109=1,IF(AC122=1,1,0),0) -> 0 | AE131: =IF(AE109=1,IF(AE122=1,1,0),0) -> 0 | AF131: =SUM(B131:AE131) -> 3 | AG131: =AF137-AF131 -> 0
A132: Tm2 Wins | B132: =IF(B109=2,IF(B122=1,1,0),0) -> 0 | D132: =IF(D109=2,IF(D122=1,1,0),0) -> 0 | E132: =IF(E109=2,IF(E122=1,1,0),0) -> 0 | G132: =IF(G109=2,IF(G122=1,1,0),0) -> 0 | H132: =IF(H109=2,IF(H122=1,1,0),0) -> 0 | J132: =IF(J109=2,IF(J122=1,1,0),0) -> 0 | K132: =IF(K109=2,IF(K122=1,1,0),0) -> 0 | M132: =IF(M109=2,IF(M122=1,1,0),0) -> 0 | N132: =IF(N109=2,IF(N122=1,1,0),0) -> 0 | P132: =IF(P109=2,IF(P122=1,1,0),0) -> 0 | Q132: =IF(Q109=2,IF(Q122=1,1,0),0) -> 0 | S132: =IF(S109=2,IF(S122=1,1,0),0) -> 0 | T132: =IF(T109=2,IF(T122=1,1,0),0) -> 0 | V132: =IF(V109=2,IF(V122=1,1,0),0) -> 0 | W132: =IF(W109=2,IF(W122=1,1,0),0) -> 0 | Y132: =IF(Y109=2,IF(Y122=1,1,0),0) -> 0 | Z132: =IF(Z109=2,IF(Z122=1,1,0),0) -> 0 | AB132: =IF(AB109=2,IF(AB122=1,1,0),0) -> 0 | AC132: =IF(AC109=2,IF(AC122=1,1,0),0) -> 0 | AE132: =IF(AE109=2,IF(AE122=1,1,0),0) -> 0 | AF132: =SUM(B132:AE132) -> 0 | AG132: =AF138-AF132 -> 3
A133: Tm3 Wins | B133: =IF(B109=3,IF(B122=1,1,0),0) -> 0 | D133: =IF(D109=3,IF(D122=1,1,0),0) -> 1 | E133: =IF(E109=3,IF(E122=1,1,0),0) -> 0 | G133: =IF(G109=3,IF(G122=1,1,0),0) -> 0 | H133: =IF(H109=3,IF(H122=1,1,0),0) -> 0 | J133: =IF(J109=3,IF(J122=1,1,0),0) -> 0 | K133: =IF(K109=3,IF(K122=1,1,0),0) -> 0 | M133: =IF(M109=3,IF(M122=1,1,0),0) -> 0 | N133: =IF(N109=3,IF(N122=1,1,0),0) -> 1 | P133: =IF(P109=3,IF(P122=1,1,0),0) -> 0 | Q133: =IF(Q109=3,IF(Q122=1,1,0),0) -> 0 | S133: =IF(S109=3,IF(S122=1,1,0),0) -> 0 | T133: =IF(T109=3,IF(T122=1,1,0),0) -> 0 | V133: =IF(V109=3,IF(V122=1,1,0),0) -> 0 | W133: =IF(W109=3,IF(W122=1,1,0),0) -> 0 | Y133: =IF(Y109=3,IF(Y122=1,1,0),0) -> 0 | Z133: =IF(Z109=3,IF(Z122=1,1,0),0) -> 0 | AB133: =IF(AB109=3,IF(AB122=1,1,0),0) -> 0 | AC133: =IF(AC109=3,IF(AC122=1,1,0),0) -> 0 | AE133: =IF(AE109=3,IF(AE122=1,1,0),0) -> 0 | AF133: =SUM(B133:AE133) -> 2 | AG133: =AF139-AF133 -> 1
A134: Tm4 Wins | B134: =IF(B109=4,IF(B122=1,1,0),0) -> 0 | D134: =IF(D109=4,IF(D122=1,1,0),0) -> 0 | E134: =IF(E109=4,IF(E122=1,1,0),0) -> 0 | G134: =IF(G109=4,IF(G122=1,1,0),0) -> 0 | H134: =IF(H109=4,IF(H122=1,1,0),0) -> 0 | J134: =IF(J109=4,IF(J122=1,1,0),0) -> 1 | K134: =IF(K109=4,IF(K122=1,1,0),0) -> 0 | M134: =IF(M109=4,IF(M122=1,1,0),0) -> 0 | N134: =IF(N109=4,IF(N122=1,1,0),0) -> 0 | P134: =IF(P109=4,IF(P122=1,1,0),0) -> 0 | Q134: =IF(Q109=4,IF(Q122=1,1,0),0) -> 0 | S134: =IF(S109=4,IF(S122=1,1,0),0) -> 0 | T134: =IF(T109=4,IF(T122=1,1,0),0) -> 0 | V134: =IF(V109=4,IF(V122=1,1,0),0) -> 0 | W134: =IF(W109=4,IF(W122=1,1,0),0) -> 0 | Y134: =IF(Y109=4,IF(Y122=1,1,0),0) -> 0 | Z134: =IF(Z109=4,IF(Z122=1,1,0),0) -> 0 | AB134: =IF(AB109=4,IF(AB122=1,1,0),0) -> 0 | AC134: =IF(AC109=4,IF(AC122=1,1,0),0) -> 0 | AE134: =IF(AE109=4,IF(AE122=1,1,0),0) -> 0 | AF134: =SUM(B134:AE134) -> 1 | AG134: =AF140-AF134 -> 2
A135: Tm5 Wins | B135: =IF(B109=5,IF(B122=1,1,0),0) -> 0 | D135: =IF(D109=5,IF(D122=1,1,0),0) -> 0 | E135: =IF(E109=5,IF(E122=1,1,0),0) -> 0 | G135: =IF(G109=5,IF(G122=1,1,0),0) -> 0 | H135: =IF(H109=5,IF(H122=1,1,0),0) -> 0 | J135: =IF(J109=5,IF(J122=1,1,0),0) -> 0 | K135: =IF(K109=5,IF(K122=1,1,0),0) -> 0 | M135: =IF(M109=5,IF(M122=1,1,0),0) -> 0 | N135: =IF(N109=5,IF(N122=1,1,0),0) -> 0 | P135: =IF(P109=5,IF(P122=1,1,0),0) -> 0 | Q135: =IF(Q109=5,IF(Q122=1,1,0),0) -> 0 | S135: =IF(S109=5,IF(S122=1,1,0),0) -> 0 | T135: =IF(T109=5,IF(T122=1,1,0),0) -> 0 | V135: =IF(V109=5,IF(V122=1,1,0),0) -> 0 | W135: =IF(W109=5,IF(W122=1,1,0),0) -> 0 | Y135: =IF(Y109=5,IF(Y122=1,1,0),0) -> 0 | Z135: =IF(Z109=5,IF(Z122=1,1,0),0) -> 0 | AB135: =IF(AB109=5,IF(AB122=1,1,0),0) -> 0 | AC135: =IF(AC109=5,IF(AC122=1,1,0),0) -> 0 | AE135: =IF(AE109=5,IF(AE122=1,1,0),0) -> 0 | AF135: =SUM(B135:AE135) -> 0 | AG135: =AF141-AF135 -> 0
AF136: Matches played by team
A137: Tm1 Play | B137: =IF(B109=1,IF(C122=1,1,0),0) -> 0 | D137: =IF(D109=1,IF(C122=1,1,0),0) -> 0 | E137: =IF(E109=1,IF(F122=1,1,0),0) -> 1 | G137: =IF(G109=1,IF(F122=1,1,0),0) -> 0 | H137: =IF(H109=1,IF(I122=1,1,0),0) -> 0 | J137: =IF(J109=1,IF(I122=1,1,0),0) -> 0 | K137: =IF(K109=1,IF(L122=1,1,0),0) -> 1 | M137: =IF(M109=1,IF(L122=1,1,0),0) -> 0 | N137: =IF(N109=1,IF(O122=1,1,0),0) -> 0 | P137: =IF(P109=1,IF(O122=1,1,0),0) -> 0 | Q137: =IF(Q109=1,IF(R122=1,1,0),0) -> 1 | S137: =IF(S109=1,IF(R122=1,1,0),0) -> 0 | T137: =IF(T109=1,IF(U122=1,1,0),0) -> 0 | V137: =IF(V109=1,IF(U122=1,1,0),0) -> 0 | W137: =IF(W109=1,IF(X122=1,1,0),0) -> 0 | Y137: =IF(Y109=1,IF(X122=1,1,0),0) -> 0 | Z137: =IF(Z109=1,IF(AA122=1,1,0),0) -> 0 | AB137: =IF(AB109=1,IF(AA122=1,1,0),0) -> 0 | AC137: =IF(AC109=1,IF(AD122=1,1,0),0) -> 0 | AE137: =IF(AE109=1,IF(AD122=1,1,0),0) -> 0 | AF137: =SUM(B137:AE137) -> 3
A138: Tm2 Play | B138: =IF(B109=2,IF(C122=1,1,0),0) -> 1 | D138: =IF(D109=2,IF(C122=1,1,0),0) -> 0 | E138: =IF(E109=2,IF(F122=1,1,0),0) -> 0 | G138: =IF(G109=2,IF(F122=1,1,0),0) -> 0 | H138: =IF(H109=2,IF(I122=1,1,0),0) -> 1 | J138: =IF(J109=2,IF(I122=1,1,0),0) -> 0 | K138: =IF(K109=2,IF(L122=1,1,0),0) -> 0 | M138: =IF(M109=2,IF(L122=1,1,0),0) -> 0 | N138: =IF(N109=2,IF(O122=1,1,0),0) -> 0 | P138: =IF(P109=2,IF(O122=1,1,0),0) -> 0 | Q138: =IF(Q109=2,IF(R122=1,1,0),0) -> 0 | S138: =IF(S109=2,IF(R122=1,1,0),0) -> 1 | T138: =IF(T109=2,IF(U122=1,1,0),0) -> 0 | V138: =IF(V109=2,IF(U122=1,1,0),0) -> 0 | W138: =IF(W109=2,IF(X122=1,1,0),0) -> 0 | Y138: =IF(Y109=2,IF(X122=1,1,0),0) -> 0 | Z138: =IF(Z109=2,IF(AA122=1,1,0),0) -> 0 | AB138: =IF(AB109=2,IF(AA122=1,1,0),0) -> 0 | AC138: =IF(AC109=2,IF(AD122=1,1,0),0) -> 0 | AE138: =IF(AE109=2,IF(AD122=1,1,0),0) -> 0 | AF138: =SUM(B138:AE138) -> 3
A139: Tm3 Play | B139: =IF(B109=3,IF(C122=1,1,0),0) -> 0 | D139: =IF(D109=3,IF(C122=1,1,0),0) -> 1 | E139: =IF(E109=3,IF(F122=1,1,0),0) -> 0 | G139: =IF(G109=3,IF(F122=1,1,0),0) -> 0 | H139: =IF(H109=3,IF(I122=1,1,0),0) -> 0 | J139: =IF(J109=3,IF(I122=1,1,0),0) -> 0 | K139: =IF(K109=3,IF(L122=1,1,0),0) -> 0 | M139: =IF(M109=3,IF(L122=1,1,0),0) -> 1 | N139: =IF(N109=3,IF(O122=1,1,0),0) -> 1 | P139: =IF(P109=3,IF(O122=1,1,0),0) -> 0 | Q139: =IF(Q109=3,IF(R122=1,1,0),0) -> 0 | S139: =IF(S109=3,IF(R122=1,1,0),0) -> 0 | T139: =IF(T109=3,IF(U122=1,1,0),0) -> 0 | V139: =IF(V109=3,IF(U122=1,1,0),0) -> 0 | W139: =IF(W109=3,IF(X122=1,1,0),0) -> 0 | Y139: =IF(Y109=3,IF(X122=1,1,0),0) -> 0 | Z139: =IF(Z109=3,IF(AA122=1,1,0),0) -> 0 | AB139: =IF(AB109=3,IF(AA122=1,1,0),0) -> 0 | AC139: =IF(AC109=3,IF(AD122=1,1,0),0) -> 0 | AE139: =IF(AE109=3,IF(AD122=1,1,0),0) -> 0 | AF139: =SUM(B139:AE139) -> 3
A140: Tm4 Play | B140: =IF(B109=4,IF(C122=1,1,0),0) -> 0 | D140: =IF(D109=4,IF(C122=1,1,0),0) -> 0 | E140: =IF(E109=4,IF(F122=1,1,0),0) -> 0 | G140: =IF(G109=4,IF(F122=1,1,0),0) -> 1 | H140: =IF(H109=4,IF(I122=1,1,0),0) -> 0 | J140: =IF(J109=4,IF(I122=1,1,0),0) -> 1 | K140: =IF(K109=4,IF(L122=1,1,0),0) -> 0 | M140: =IF(M109=4,IF(L122=1,1,0),0) -> 0 | N140: =IF(N109=4,IF(O122=1,1,0),0) -> 0 | P140: =IF(P109=4,IF(O122=1,1,0),0) -> 1 | Q140: =IF(Q109=4,IF(R122=1,1,0),0) -> 0 | S140: =IF(S109=4,IF(R122=1,1,0),0) -> 0 | T140: =IF(T109=4,IF(U122=1,1,0),0) -> 0 | V140: =IF(V109=4,IF(U122=1,1,0),0) -> 0 | W140: =IF(W109=4,IF(X122=1,1,0),0) -> 0 | Y140: =IF(Y109=4,IF(X122=1,1,0),0) -> 0 | Z140: =IF(Z109=4,IF(AA122=1,1,0),0) -> 0 | AB140: =IF(AB109=4,IF(AA122=1,1,0),0) -> 0 | AC140: =IF(AC109=4,IF(AD122=1,1,0),0) -> 0 | AE140: =IF(AE109=4,IF(AD122=1,1,0),0) -> 0 | AF140: =SUM(B140:AE140) -> 3
A141: Tm5 Play | B141: =IF(B109=5,IF(C122=1,1,0),0) -> 0 | D141: =IF(D109=5,IF(C122=1,1,0),0) -> 0 | E141: =IF(E109=5,IF(F122=1,1,0),0) -> 0 | G141: =IF(G109=5,IF(F122=1,1,0),0) -> 0 | H141: =IF(H109=5,IF(I122=1,1,0),0) -> 0 | J141: =IF(J109=5,IF(I122=1,1,0),0) -> 0 | K141: =IF(K109=5,IF(L122=1,1,0),0) -> 0 | M141: =IF(M109=5,IF(L122=1,1,0),0) -> 0 | N141: =IF(N109=5,IF(O122=1,1,0),0) -> 0 | P141: =IF(P109=5,IF(O122=1,1,0),0) -> 0 | Q141: =IF(Q109=5,IF(R122=1,1,0),0) -> 0 | S141: =IF(S109=5,IF(R122=1,1,0),0) -> 0 | T141: =IF(T109=5,IF(U122=1,1,0),0) -> 0 | V141: =IF(V109=5,IF(U122=1,1,0),0) -> 0 | W141: =IF(W109=5,IF(X122=1,1,0),0) -> 0 | Y141: =IF(Y109=5,IF(X122=1,1,0),0) -> 0 | Z141: =IF(Z109=5,IF(AA122=1,1,0),0) -> 0 | AB141: =IF(AB109=5,IF(AA122=1,1,0),0) -> 0 | AC141: =IF(AC109=5,IF(AD122=1,1,0),0) -> 0 | AE141: =IF(AE109=5,IF(AD122=1,1,0),0) -> 0 | AF141: =SUM(B141:AE141) -> 0
AF142: Total Points played by team
A143: Tm1 Play | B143: =IF(B109=1,B129,0) -> 0 | D143: =IF(D109=1,B129,0) -> 0 | E143: =IF(E109=1,E129,0) -> 35 | G143: =IF(G109=1,E129,0) -> 0 | H143: =IF(H109=1,H129,0) -> 0 | J143: =IF(J109=1,H129,0) -> 0 | K143: =IF(K109=1,K129,0) -> 30 | M143: =IF(M109=1,K129,0) -> 0 | N143: =IF(N109=1,N129,0) -> 0 | P143: =IF(P109=1,N129,0) -> 0 | Q143: =IF(Q109=1,Q129,0) -> 30 | S143: =IF(S109=1,Q129,0) -> 0 | T143: =IF(T109=1,T129,0) -> 0 | V143: =IF(V109=1,T129,0) -> 0 | W143: =IF(W109=1,W129,0) -> 0 | Y143: =IF(Y109=1,W129,0) -> 0 | Z143: =IF(Z109=1,Z129,0) -> 0 | AB143: =IF(AB109=1,Z129,0) -> 0 | AC143: =IF(AC109=1,AC129,0) -> 0 | AE143: =IF(AE109=1,AC129,0) -> 0 | AF143: =SUM(B143:AE143) -> 95
A144: Tm2 Play | B144: =IF(B109=2,B129,0) -> 28 | D144: =IF(D109=2,B129,0) -> 0 | E144: =IF(E109=2,E129,0) -> 0 | G144: =IF(G109=2,E129,0) -> 0 | H144: =IF(H109=2,H129,0) -> 30 | J144: =IF(J109=2,H129,0) -> 0 | K144: =IF(K109=2,K129,0) -> 0 | M144: =IF(M109=2,K129,0) -> 0 | N144: =IF(N109=2,N129,0) -> 0 | P144: =IF(P109=2,N129,0) -> 0 | Q144: =IF(Q109=2,Q129,0) -> 0 | S144: =IF(S109=2,Q129,0) -> 30 | T144: =IF(T109=2,T129,0) -> 0 | V144: =IF(V109=2,T129,0) -> 0 | W144: =IF(W109=2,W129,0) -> 0 | Y144: =IF(Y109=2,W129,0) -> 0 | Z144: =IF(Z109=2,Z129,0) -> 0 | AB144: =IF(AB109=2,Z129,0) -> 0 | AC144: =IF(AC109=2,AC129,0) -> 0 | AE144: =IF(AE109=2,AC129,0) -> 0 | AF144: =SUM(B144:AE144) -> 88
A145: Tm3 Play | B145: =IF(B109=3,B129,0) -> 0 | D145: =IF(D109=3,B129,0) -> 28 | E145: =IF(E109=3,E129,0) -> 0 | G145: =IF(G109=3,E129,0) -> 0 | H145: =IF(H109=3,H129,0) -> 0 | J145: =IF(J109=3,H129,0) -> 0 | K145: =IF(K109=3,K129,0) -> 0 | M145: =IF(M109=3,K129,0) -> 30 | N145: =IF(N109=3,N129,0) -> 30 | P145: =IF(P109=3,N129,0) -> 0 | Q145: =IF(Q109=3,Q129,0) -> 0 | S145: =IF(S109=3,Q129,0) -> 0 | T145: =IF(T109=3,T129,0) -> 0 | V145: =IF(V109=3,T129,0) -> 0 | W145: =IF(W109=3,W129,0) -> 0 | Y145: =IF(Y109=3,W129,0) -> 0 | Z145: =IF(Z109=3,Z129,0) -> 0 | AB145: =IF(AB109=3,Z129,0) -> 0 | AC145: =IF(AC109=3,AC129,0) -> 0 | AE145: =IF(AE109=3,AC129,0) -> 0 | AF145: =SUM(B145:AE145) -> 88
A146: Tm4 Play | B146: =IF(B109=4,B129,0) -> 0 | D146: =IF(D109=4,B129,0) -> 0 | E146: =IF(E109=4,E129,0) -> 0 | G146: =IF(G109=4,E129,0) -> 35 | H146: =IF(H109=4,H129,0) -> 0 | J146: =IF(J109=4,H129,0) -> 30 | K146: =IF(K109=4,K129,0) -> 0 | M146: =IF(M109=4,K129,0) -> 0 | N146: =IF(N109=4,N129,0) -> 0 | P146: =IF(P109=4,N129,0) -> 30 | Q146: =IF(Q109=4,Q129,0) -> 0 | S146: =IF(S109=4,Q129,0) -> 0 | T146: =IF(T109=4,T129,0) -> 0 | V146: =IF(V109=4,T129,0) -> 0 | W146: =IF(W109=4,W129,0) -> 0 | Y146: =IF(Y109=4,W129,0) -> 0 | Z146: =IF(Z109=4,Z129,0) -> 0 | AB146: =IF(AB109=4,Z129,0) -> 0 | AC146: =IF(AC109=4,AC129,0) -> 0 | AE146: =IF(AE109=4,AC129,0) -> 0 | AF146: =SUM(B146:AE146) -> 95
A147: Tm5 Play | B147: =IF(B109=5,B129,0) -> 0 | D147: =IF(D109=5,B129,0) -> 0 | E147: =IF(E109=5,E129,0) -> 0 | G147: =IF(G109=5,E129,0) -> 0 | H147: =IF(H109=5,H129,0) -> 0 | J147: =IF(J109=5,H129,0) -> 0 | K147: =IF(K109=5,K129,0) -> 0 | M147: =IF(M109=5,K129,0) -> 0 | N147: =IF(N109=5,N129,0) -> 0 | P147: =IF(P109=5,N129,0) -> 0 | Q147: =IF(Q109=5,Q129,0) -> 0 | S147: =IF(S109=5,Q129,0) -> 0 | T147: =IF(T109=5,T129,0) -> 0 | V147: =IF(V109=5,T129,0) -> 0 | W147: =IF(W109=5,W129,0) -> 0 | Y147: =IF(Y109=5,W129,0) -> 0 | Z147: =IF(Z109=5,Z129,0) -> 0 | AB147: =IF(AB109=5,Z129,0) -> 0 | AC147: =IF(AC109=5,AC129,0) -> 0 | AE147: =IF(AE109=5,AC129,0) -> 0 | AF147: =SUM(B147:AE147) -> 0
A148: Games | AF148: Game Wins by Team | AG148: Game Losses by Team
A149: Tm1 Wins | B149: =IF(B109=1,SUMIF(B116:B120,">0"),0) -> 0 | D149: =IF(D109=1,SUMIF(D116:D120,">0"),0) -> 0 | E149: =IF(E109=1,SUMIF(E116:E120,">0"),0) -> 1 | G149: =IF(G109=1,SUMIF(G116:G120,">0"),0) -> 0 | H149: =IF(H109=1,SUMIF(H116:H120,">0"),0) -> 0 | J149: =IF(J109=1,SUMIF(J116:J120,">0"),0) -> 0 | K149: =IF(K109=1,SUMIF(K116:K120,">0"),0) -> 1 | M149: =IF(M109=1,SUMIF(M116:M120,">0"),0) -> 0 | N149: =IF(N109=1,SUMIF(N116:N120,">0"),0) -> 0 | P149: =IF(P109=1,SUMIF(P116:P120,">0"),0) -> 0 | Q149: =IF(Q109=1,SUMIF(Q116:Q120,">0"),0) -> 1 | S149: =IF(S109=1,SUMIF(S116:S120,">0"),0) -> 0 | T149: =IF(T109=1,SUMIF(T116:T120,">0"),0) -> 0 | V149: =IF(V109=1,SUMIF(V116:V120,">0"),0) -> 0 | W149: =IF(W109=1,SUMIF(W116:W120,">0"),0) -> 0 | Y149: =IF(Y109=1,SUMIF(Y116:Y120,">0"),0) -> 0 | Z149: =IF(Z109=1,SUMIF(Z116:Z120,">0"),0) -> 0 | AB149: =IF(AB109=1,SUMIF(AB116:AB120,">0"),0) -> 0 | AC149: =IF(AC109=1,SUMIF(AC116:AC120,">0"),0) -> 0 | AE149: =IF(AE109=1,SUMIF(AE116:AE120,">0"),0) -> 0 | AF149: =SUM(B149:AE149) -> 3 | AG149: =AF157-AF149 -> 0
A150: Tm2 Wins | B150: =IF(B109=2,SUMIF(B116:B120,">0"),0) -> 0 | D150: =IF(D109=2,SUMIF(D116:D120,">0"),0) -> 0 | E150: =IF(E109=2,SUMIF(E116:E120,">0"),0) -> 0 | G150: =IF(G109=2,SUMIF(G116:G120,">0"),0) -> 0 | H150: =IF(H109=2,SUMIF(H116:H120,">0"),0) -> 0 | J150: =IF(J109=2,SUMIF(J116:J120,">0"),0) -> 0 | K150: =IF(K109=2,SUMIF(K116:K120,">0"),0) -> 0 | M150: =IF(M109=2,SUMIF(M116:M120,">0"),0) -> 0 | N150: =IF(N109=2,SUMIF(N116:N120,">0"),0) -> 0 | P150: =IF(P109=2,SUMIF(P116:P120,">0"),0) -> 0 | Q150: =IF(Q109=2,SUMIF(Q116:Q120,">0"),0) -> 0 | S150: =IF(S109=2,SUMIF(S116:S120,">0"),0) -> 0 | T150: =IF(T109=2,SUMIF(T116:T120,">0"),0) -> 0 | V150: =IF(V109=2,SUMIF(V116:V120,">0"),0) -> 0 | W150: =IF(W109=2,SUMIF(W116:W120,">0"),0) -> 0 | Y150: =IF(Y109=2,SUMIF(Y116:Y120,">0"),0) -> 0 | Z150: =IF(Z109=2,SUMIF(Z116:Z120,">0"),0) -> 0 | AB150: =IF(AB109=2,SUMIF(AB116:AB120,">0"),0) -> 0 | AC150: =IF(AC109=2,SUMIF(AC116:AC120,">0"),0) -> 0 | AE150: =IF(AE109=2,SUMIF(AE116:AE120,">0"),0) -> 0 | AF150: =SUM(B150:AE150) -> 0 | AG150: =AF158-AF150 -> 3
A151: Tm3 Wins | B151: =IF(B109=3,SUMIF(B116:B120,">0"),0) -> 0 | D151: =IF(D109=3,SUMIF(D116:D120,">0"),0) -> 1 | E151: =IF(E109=3,SUMIF(E116:E120,">0"),0) -> 0 | G151: =IF(G109=3,SUMIF(G116:G120,">0"),0) -> 0 | H151: =IF(H109=3,SUMIF(H116:H120,">0"),0) -> 0 | J151: =IF(J109=3,SUMIF(J116:J120,">0"),0) -> 0 | K151: =IF(K109=3,SUMIF(K116:K120,">0"),0) -> 0 | M151: =IF(M109=3,SUMIF(M116:M120,">0"),0) -> 0 | N151: =IF(N109=3,SUMIF(N116:N120,">0"),0) -> 1 | P151: =IF(P109=3,SUMIF(P116:P120,">0"),0) -> 0 | Q151: =IF(Q109=3,SUMIF(Q116:Q120,">0"),0) -> 0 | S151: =IF(S109=3,SUMIF(S116:S120,">0"),0) -> 0 | T151: =IF(T109=3,SUMIF(T116:T120,">0"),0) -> 0 | V151: =IF(V109=3,SUMIF(V116:V120,">0"),0) -> 0 | W151: =IF(W109=3,SUMIF(W116:W120,">0"),0) -> 0 | Y151: =IF(Y109=3,SUMIF(Y116:Y120,">0"),0) -> 0 | Z151: =IF(Z109=3,SUMIF(Z116:Z120,">0"),0) -> 0 | AB151: =IF(AB109=3,SUMIF(AB116:AB120,">0"),0) -> 0 | AC151: =IF(AC109=3,SUMIF(AC116:AC120,">0"),0) -> 0 | AE151: =IF(AE109=3,SUMIF(AE116:AE120,">0"),0) -> 0 | AF151: =SUM(B151:AE151) -> 2 | AG151: =AF159-AF151 -> 1
A152: Tm4 Wins | B152: =IF(B109=4,SUMIF(B116:B120,">0"),0) -> 0 | D152: =IF(D109=4,SUMIF(D116:D120,">0"),0) -> 0 | E152: =IF(E109=4,SUMIF(E116:E120,">0"),0) -> 0 | G152: =IF(G109=4,SUMIF(G116:G120,">0"),0) -> 0 | H152: =IF(H109=4,SUMIF(H116:H120,">0"),0) -> 0 | J152: =IF(J109=4,SUMIF(J116:J120,">0"),0) -> 1 | K152: =IF(K109=4,SUMIF(K116:K120,">0"),0) -> 0 | M152: =IF(M109=4,SUMIF(M116:M120,">0"),0) -> 0 | N152: =IF(N109=4,SUMIF(N116:N120,">0"),0) -> 0 | P152: =IF(P109=4,SUMIF(P116:P120,">0"),0) -> 0 | Q152: =IF(Q109=4,SUMIF(Q116:Q120,">0"),0) -> 0 | S152: =IF(S109=4,SUMIF(S116:S120,">0"),0) -> 0 | T152: =IF(T109=4,SUMIF(T116:T120,">0"),0) -> 0 | V152: =IF(V109=4,SUMIF(V116:V120,">0"),0) -> 0 | W152: =IF(W109=4,SUMIF(W116:W120,">0"),0) -> 0 | Y152: =IF(Y109=4,SUMIF(Y116:Y120,">0"),0) -> 0 | Z152: =IF(Z109=4,SUMIF(Z116:Z120,">0"),0) -> 0 | AB152: =IF(AB109=4,SUMIF(AB116:AB120,">0"),0) -> 0 | AC152: =IF(AC109=4,SUMIF(AC116:AC120,">0"),0) -> 0 | AE152: =IF(AE109=4,SUMIF(AE116:AE120,">0"),0) -> 0 | AF152: =SUM(B152:AE152) -> 1 | AG152: =AF160-AF152 -> 2
A153: Tm5 Wins | B153: =IF(B109=5,SUMIF(B116:B120,">0"),0) -> 0 | D153: =IF(D109=5,SUMIF(D116:D120,">0"),0) -> 0 | E153: =IF(E109=5,SUMIF(E116:E120,">0"),0) -> 0 | G153: =IF(G109=5,SUMIF(G116:G120,">0"),0) -> 0 | H153: =IF(H109=5,SUMIF(H116:H120,">0"),0) -> 0 | J153: =IF(J109=5,SUMIF(J116:J120,">0"),0) -> 0 | K153: =IF(K109=5,SUMIF(K116:K120,">0"),0) -> 0 | M153: =IF(M109=5,SUMIF(M116:M120,">0"),0) -> 0 | N153: =IF(N109=5,SUMIF(N116:N120,">0"),0) -> 0 | P153: =IF(P109=5,SUMIF(P116:P120,">0"),0) -> 0 | Q153: =IF(Q109=5,SUMIF(Q116:Q120,">0"),0) -> 0 | S153: =IF(S109=5,SUMIF(S116:S120,">0"),0) -> 0 | T153: =IF(T109=5,SUMIF(T116:T120,">0"),0) -> 0 | V153: =IF(V109=5,SUMIF(V116:V120,">0"),0) -> 0 | W153: =IF(W109=5,SUMIF(W116:W120,">0"),0) -> 0 | Y153: =IF(Y109=5,SUMIF(Y116:Y120,">0"),0) -> 0 | Z153: =IF(Z109=5,SUMIF(Z116:Z120,">0"),0) -> 0 | AB153: =IF(AB109=5,SUMIF(AB116:AB120,">0"),0) -> 0 | AC153: =IF(AC109=5,SUMIF(AC116:AC120,">0"),0) -> 0 | AE153: =IF(AE109=5,SUMIF(AE116:AE120,">0"),0) -> 0 | AF153: =SUM(B153:AE153) -> 0 | AG153: =AF161-AF153 -> 0
A156: Games Played this Match | C156: =SUMIF(B149:D153,">0") -> 1 | F156: =SUMIF(E149:G153,">0") -> 1 | I156: =SUMIF(H149:J153,">0") -> 1 | L156: =SUMIF(K149:M153,">0") -> 1 | O156: =SUMIF(N149:P153,">0") -> 1 | R156: =SUMIF(Q149:S153,">0") -> 1 | U156: =SUMIF(T149:V153,">0") -> 0 | X156: =SUMIF(W149:Y153,">0") -> 0 | AA156: =SUMIF(Z149:AB153,">0") -> 0 | AD156: =SUMIF(AC149:AE153,">0") -> 0 | AF156: Games played by team
A157: Tm1 Play | B157: =IF(B109=1,C156,0) -> 0 | D157: =IF(D109=1,C156,0) -> 0 | E157: =IF(E109=1,F156,0) -> 1 | G157: =IF(G109=1,F156,0) -> 0 | H157: =IF(H109=1,I156,0) -> 0 | J157: =IF(J109=1,I156,0) -> 0 | K157: =IF(K109=1,L156,0) -> 1 | M157: =IF(M109=1,L156,0) -> 0 | N157: =IF(N109=1,O156,0) -> 0 | P157: =IF(P109=1,O156,0) -> 0 | Q157: =IF(Q109=1,R156,0) -> 1 | S157: =IF(S109=1,R156,0) -> 0 | T157: =IF(T109=1,U156,0) -> 0 | V157: =IF(V109=1,U156,0) -> 0 | W157: =IF(W109=1,X156,0) -> 0 | Y157: =IF(Y109=1,X156,0) -> 0 | Z157: =IF(Z109=1,AA156,0) -> 0 | AB157: =IF(AB109=1,AA156,0) -> 0 | AC157: =IF(AC109=1,AD156,0) -> 0 | AE157: =IF(AE109=1,AD156,0) -> 0 | AF157: =SUM(B157:AE157) -> 3
A158: Tm2 Play | B158: =IF(B109=2,C156,0) -> 1 | D158: =IF(D109=2,C156,0) -> 0 | E158: =IF(E109=2,F156,0) -> 0 | G158: =IF(G109=2,F156,0) -> 0 | H158: =IF(H109=2,I156,0) -> 1 | J158: =IF(J109=2,I156,0) -> 0 | K158: =IF(K109=2,L156,0) -> 0 | M158: =IF(M109=2,L156,0) -> 0 | N158: =IF(N109=2,O156,0) -> 0 | P158: =IF(P109=2,O156,0) -> 0 | Q158: =IF(Q109=2,R156,0) -> 0 | S158: =IF(S109=2,R156,0) -> 1 | T158: =IF(T109=2,U156,0) -> 0 | V158: =IF(V109=2,U156,0) -> 0 | W158: =IF(W109=2,X156,0) -> 0 | Y158: =IF(Y109=2,X156,0) -> 0 | Z158: =IF(Z109=2,AA156,0) -> 0 | AB158: =IF(AB109=2,AA156,0) -> 0 | AC158: =IF(AC109=2,AD156,0) -> 0 | AE158: =IF(AE109=2,AD156,0) -> 0 | AF158: =SUM(B158:AE158) -> 3
A159: Tm3 Play | B159: =IF(B109=3,C156,0) -> 0 | D159: =IF(D109=3,C156,0) -> 1 | E159: =IF(E109=3,F156,0) -> 0 | G159: =IF(G109=3,F156,0) -> 0 | H159: =IF(H109=3,I156,0) -> 0 | J159: =IF(J109=3,I156,0) -> 0 | K159: =IF(K109=3,L156,0) -> 0 | M159: =IF(M109=3,L156,0) -> 1 | N159: =IF(N109=3,O156,0) -> 1 | P159: =IF(P109=3,O156,0) -> 0 | Q159: =IF(Q109=3,R156,0) -> 0 | S159: =IF(S109=3,R156,0) -> 0 | T159: =IF(T109=3,U156,0) -> 0 | V159: =IF(V109=3,U156,0) -> 0 | W159: =IF(W109=3,X156,0) -> 0 | Y159: =IF(Y109=3,X156,0) -> 0 | Z159: =IF(Z109=3,AA156,0) -> 0 | AB159: =IF(AB109=3,AA156,0) -> 0 | AC159: =IF(AC109=3,AD156,0) -> 0 | AE159: =IF(AE109=3,AD156,0) -> 0 | AF159: =SUM(B159:AE159) -> 3
A160: Tm4 Play | B160: =IF(B109=4,C156,0) -> 0 | D160: =IF(D109=4,C156,0) -> 0 | E160: =IF(E109=4,F156,0) -> 0 | G160: =IF(G109=4,F156,0) -> 1 | H160: =IF(H109=4,I156,0) -> 0 | J160: =IF(J109=4,I156,0) -> 1 | K160: =IF(K109=4,L156,0) -> 0 | M160: =IF(M109=4,L156,0) -> 0 | N160: =IF(N109=4,O156,0) -> 0 | P160: =IF(P109=4,O156,0) -> 1 | Q160: =IF(Q109=4,R156,0) -> 0 | S160: =IF(S109=4,R156,0) -> 0 | T160: =IF(T109=4,U156,0) -> 0 | V160: =IF(V109=4,U156,0) -> 0 | W160: =IF(W109=4,X156,0) -> 0 | Y160: =IF(Y109=4,X156,0) -> 0 | Z160: =IF(Z109=4,AA156,0) -> 0 | AB160: =IF(AB109=4,AA156,0) -> 0 | AC160: =IF(AC109=4,AD156,0) -> 0 | AE160: =IF(AE109=4,AD156,0) -> 0 | AF160: =SUM(B160:AE160) -> 3
A161: Tm5 Play | B161: =IF(B109=5,C156,0) -> 0 | D161: =IF(D109=5,C156,0) -> 0 | E161: =IF(E109=5,F156,0) -> 0 | G161: =IF(G109=5,F156,0) -> 0 | H161: =IF(H109=5,I156,0) -> 0 | J161: =IF(J109=5,I156,0) -> 0 | K161: =IF(K109=5,L156,0) -> 0 | M161: =IF(M109=5,L156,0) -> 0 | N161: =IF(N109=5,O156,0) -> 0 | P161: =IF(P109=5,O156,0) -> 0 | Q161: =IF(Q109=5,R156,0) -> 0 | S161: =IF(S109=5,R156,0) -> 0 | T161: =IF(T109=5,U156,0) -> 0 | V161: =IF(V109=5,U156,0) -> 0 | W161: =IF(W109=5,X156,0) -> 0 | Y161: =IF(Y109=5,X156,0) -> 0 | Z161: =IF(Z109=5,AA156,0) -> 0 | AB161: =IF(AB109=5,AA156,0) -> 0 | AC161: =IF(AC109=5,AD156,0) -> 0 | AE161: =IF(AE109=5,AD156,0) -> 0 | AF161: =SUM(B161:AE161) -> 0
C163: Init | D163: 1 | G163: 2 | J163: 3 | M163: 4 | P163: 5 | S163: 6 | V163: 7 | Y163: 8 | AB163: 9 | AE163: 10 | AT163: End of Pool
A164: 1 | B164: =E93 -> SC Midlands KP White | C164: =VLOOKUP(B164,AU$3:AY$12,3,FALSE) -> 1185.469502 | D164: =IF(B157,B172,IF(D157,D172,C164)) -> 1185.469502 | G164: =IF(E157,E172,IF(G157,G172,D164)) -> 1193.40183 | J164: =IF(H157,H172,IF(J157,J172,G164)) -> 1193.40183 | M164: =IF(K157,K172,IF(M157,M172,J164)) -> 1201.531252 | P164: =IF(N157,N172,IF(P157,P172,M164)) -> 1201.531252 | S164: =IF(Q157,Q172,IF(S157,S172,P164)) -> 1210.036409 | V164: =IF(T157,T172,IF(V157,V172,S164)) -> 1210.036409 | Y164: =IF(W157,W172,IF(Y157,Y172,V164)) -> 1210.036409 | AB164: =IF(Z157,Z172,IF(AB157,AB172,Y164)) -> 1210.036409 | AE164: =IF(AC157,AC172,IF(AE157,AE172,AB164)) -> 1210.036409 | AT164: =B164 -> SC Midlands KP White | AU164: =AE164 -> 1210.036409
A165: 2 | B165: =E95 -> Magnum 11 Black | C165: =VLOOKUP(B165,AU$3:AY$12,3,FALSE) -> 1242.020305 | D165: =IF(B158,B172,IF(D158,D172,C165)) -> 1232.827543 | G165: =IF(E158,E172,IF(G158,G172,D165)) -> 1232.827543 | J165: =IF(H158,H172,IF(J158,J172,G165)) -> 1223.499177 | M165: =IF(K158,K172,IF(M158,M172,J165)) -> 1223.499177 | P165: =IF(N158,N172,IF(P158,P172,M165)) -> 1223.499177 | S165: =IF(Q158,Q172,IF(S158,S172,P165)) -> 1214.99402 | V165: =IF(T158,T172,IF(V158,V172,S165)) -> 1214.99402 | Y165: =IF(W158,W172,IF(Y158,Y172,V165)) -> 1214.99402 | AB165: =IF(Z158,Z172,IF(AB158,AB172,Y165)) -> 1214.99402 | AE165: =IF(AC158,AC172,IF(AE158,AE172,AB165)) -> 1214.99402 | AT165: =B165 -> Magnum 11 Black | AU165: =AE165 -> 1214.99402
A166: 3 | B166: =E97 -> C1VB Juniors Royal | C166: =VLOOKUP(B166,AU$3:AY$12,3,FALSE) -> 1189.830287 | D166: =IF(B159,B172,IF(D159,D172,C166)) -> 1199.023049 | G166: =IF(E159,E172,IF(G159,G172,D166)) -> 1199.023049 | J166: =IF(H159,H172,IF(J159,J172,G166)) -> 1199.023049 | M166: =IF(K159,K172,IF(M159,M172,J166)) -> 1190.893627 | P166: =IF(N159,N172,IF(P159,P172,M166)) -> 1198.733225 | S166: =IF(Q159,Q172,IF(S159,S172,P166)) -> 1198.733225 | V166: =IF(T159,T172,IF(V159,V172,S166)) -> 1198.733225 | Y166: =IF(W159,W172,IF(Y159,Y172,V166)) -> 1198.733225 | AB166: =IF(Z159,Z172,IF(AB159,AB172,Y166)) -> 1198.733225 | AE166: =IF(AC159,AC172,IF(AE159,AE172,AB166)) -> 1198.733225 | AT166: =B166 -> C1VB Juniors Royal | AU166: =AE166 -> 1198.733225
A167: 4 | B167: =E99 -> SC Midlands KP Garnet | C167: =VLOOKUP(B167,AU$3:AY$12,3,FALSE) -> 1182.530498 | D167: =IF(B160,B172,IF(D160,D172,C167)) -> 1182.530498 | G167: =IF(E160,E172,IF(G160,G172,D167)) -> 1174.59817 | J167: =IF(H160,H172,IF(J160,J172,G167)) -> 1183.926537 | M167: =IF(K160,K172,IF(M160,M172,J167)) -> 1183.926537 | P167: =IF(N160,N172,IF(P160,P172,M167)) -> 1176.086938 | S167: =IF(Q160,Q172,IF(S160,S172,P167)) -> 1176.086938 | V167: =IF(T160,T172,IF(V160,V172,S167)) -> 1176.086938 | Y167: =IF(W160,W172,IF(Y160,Y172,V167)) -> 1176.086938 | AB167: =IF(Z160,Z172,IF(AB160,AB172,Y167)) -> 1176.086938 | AE167: =IF(AC160,AC172,IF(AE160,AE172,AB167)) -> 1176.086938 | AT167: =B167 -> SC Midlands KP Garnet | AU167: =AE167 -> 1176.086938
A168: 5 | B168: =E101 -> 0 | C168: =VLOOKUP(B168,AU$3:AY$12,3,FALSE) ->  | D168: =IF(B161,B172,IF(D161,D172,C168)) ->  | G168: =IF(E161,E172,IF(G161,G172,D168)) ->  | J168: =IF(H161,H172,IF(J161,J172,G168)) ->  | M168: =IF(K161,K172,IF(M161,M172,J168)) ->  | P168: =IF(N161,N172,IF(P161,P172,M168)) ->  | S168: =IF(Q161,Q172,IF(S161,S172,P168)) ->  | V168: =IF(T161,T172,IF(V161,V172,S168)) ->  | Y168: =IF(W161,W172,IF(Y161,Y172,V168)) ->  | AB168: =IF(Z161,Z172,IF(AB161,AB172,Y168)) ->  | AE168: =IF(AC161,AC172,IF(AE161,AE172,AB168)) ->  | AT168: =B168 -> 0 | AU168: =AE168 -> 
A170: Init Rating | B170: =VLOOKUP(B109,$A164:$AE168,3,FALSE) -> 1242.020305 | C170: 1 | D170: =VLOOKUP(D109,$A164:$AE168,3,FALSE) -> 1189.830287 | E170: =VLOOKUP(E109,$A164:$AE168,4,FALSE) -> 1185.469502 | F170: 2 | G170: =VLOOKUP(G109,$A164:$AE168,4,FALSE) -> 1182.530498 | H170: =VLOOKUP(H109,$A164:$AE168,7,FALSE) -> 1232.827543 | I170: 3 | J170: =VLOOKUP(J109,$A164:$AE168,7,FALSE) -> 1174.59817 | K170: =VLOOKUP(K109,$A164:$AE168,10,FALSE) -> 1193.40183 | L170: 4 | M170: =VLOOKUP(M109,$A164:$AE168,10,FALSE) -> 1199.023049 | N170: =VLOOKUP(N109,$A164:$AE168,13,FALSE) -> 1190.893627 | O170: 5 | P170: =VLOOKUP(P109,$A164:$AE168,13,FALSE) -> 1183.926537 | Q170: =VLOOKUP(Q109,$A164:$AE168,16,FALSE) -> 1201.531252 | R170: 6 | S170: =VLOOKUP(S109,$A164:$AE168,16,FALSE) -> 1223.499177 | T170: =VLOOKUP(T109,$A164:$AE168,19,FALSE) -> 1214.99402 | U170: 7 | V170: =VLOOKUP(V109,$A164:$AE168,19,FALSE) -> 1198.733225 | W170: =VLOOKUP(W109,$A164:$AE168,22,FALSE) -> 1210.036409 | X170: 8 | Y170: =VLOOKUP(Y109,$A164:$AE168,22,FALSE) ->  | Z170: =VLOOKUP(Z109,$A164:$AE168,25,FALSE) -> 1198.733225 | AA170: 9 | AB170: =VLOOKUP(AB109,$A164:$AE168,25,FALSE) -> 1176.086938 | AC170: =VLOOKUP(AC109,$A164:$AE168,28,FALSE) -> 1210.036409 | AD170: 10 | AE170: =VLOOKUP(AE109,$A164:$AE168,28,FALSE) -> 1214.99402
A171: Exp wins | B171: =1/(1+(10^-((B170-D170)/400)))*(B121+D121) -> 0.5745476042 | D171: =1/(1+(10^-((D170-B170)/400)))*(B121+D121) -> 0.4254523958 | E171: =1/(1+(10^-((E170-G170)/400)))*(E121+G121) -> 0.5042294645 | G171: =1/(1+(10^-((G170-E170)/400)))*(E121+G121) -> 0.4957705355 | H171: =1/(1+(10^-((H170-J170)/400)))*(H121+J121) -> 0.5830229141 | J171: =1/(1+(10^-((J170-H170)/400)))*(H121+J121) -> 0.4169770859 | K171: =1/(1+(10^-((K170-M170)/400)))*(K121+M121) -> 0.4919111215 | M171: =1/(1+(10^-((M170-K170)/400)))*(K121+M121) -> 0.5080888785 | N171: =1/(1+(10^-((N170-P170)/400)))*(N121+P121) -> 0.5100251054 | P171: =1/(1+(10^-((P170-N170)/400)))*(N121+P121) -> 0.4899748946 | Q171: =1/(1+(10^-((Q170-S170)/400)))*(Q121+S121) -> 0.4684276779 | S171: =1/(1+(10^-((S170-Q170)/400)))*(Q121+S121) -> 0.5315723221 | T171: =1/(1+(10^-((T170-V170)/400)))*(T121+V121) -> 0 | V171: =1/(1+(10^-((V170-T170)/400)))*(T121+V121) -> 0 | W171: =1/(1+(10^-((W170-Y170)/400)))*(W121+Y121) ->  | Y171: =1/(1+(10^-((Y170-W170)/400)))*(W121+Y121) ->  | Z171: =1/(1+(10^-((Z170-AB170)/400)))*(Z121+AB121) -> 0 | AB171: =1/(1+(10^-((AB170-Z170)/400)))*(Z121+AB121) -> 0 | AC171: =1/(1+(10^-((AC170-AE170)/400)))*(AC121+AE121) -> 0 | AE171: =1/(1+(10^-((AE170-AC170)/400)))*(AC121+AE121) -> 0
A172: New Rating | B172: =B170+(B121-B171)*$BA$1 -> 1232.827543 | D172: =D170+(D121-D171)*$BA$1 -> 1199.023049 | E172: =E170+(E121-E171)*$BA$1 -> 1193.40183 | G172: =G170+(G121-G171)*$BA$1 -> 1174.59817 | H172: =H170+(H121-H171)*$BA$1 -> 1223.499177 | J172: =J170+(J121-J171)*$BA$1 -> 1183.926537 | K172: =K170+(K121-K171)*$BA$1 -> 1201.531252 | M172: =M170+(M121-M171)*$BA$1 -> 1190.893627 | N172: =N170+(N121-N171)*$BA$1 -> 1198.733225 | P172: =P170+(P121-P171)*$BA$1 -> 1176.086938 | Q172: =Q170+(Q121-Q171)*$BA$1 -> 1210.036409 | S172: =S170+(S121-S171)*$BA$1 -> 1214.99402 | T172: =T170+(T121-T171)*$BA$1 -> 1214.99402 | V172: =V170+(V121-V171)*$BA$1 -> 1198.733225 | W172: =W170+(W121-W171)*$BA$1 ->  | Y172: =Y170+(Y121-Y171)*$BA$1 ->  | Z172: =Z170+(Z121-Z171)*$BA$1 -> 1198.733225 | AB172: =AB170+(AB121-AB171)*$BA$1 -> 1176.086938 | AC172: =AC170+(AC121-AC171)*$BA$1 -> 1210.036409 | AE172: =AE170+(AE121-AE171)*$BA$1 -> 1214.99402
A174: =IF($AK95=1,"Pool Tiereaker : 1) Matches Won vs Lost (if 3 way tie then #4) 2) Head to Head 3) Game Win % 4) Total Pool Net Points 5) Flip a Coin","Pool Tiebreaker : 1) Games Won vs Lost (if 3 way tie then #5) 2) Head to Head 3) Head to Head Net Points 4) Game Win % 5) Total Pool Net Points 6) Flip a Coin") -> Pool Tiereaker : 1) Matches Won vs Lost (if 3 way tie then #4) 2) Head to Head 3) Game Win % 4) Total Pool Net Points 5) Flip a Coin
A176: POOL FINISH SUMMARY
A177: Enter Pool Name | B177: First | L177: Second | V177: Third | AF177: Fourth
B178: Team Name | H178: Code | L178: Team Name | R178: Code | V178: Team Name | AB178: Code | AF178: Team Name | AL178: Code
A179: Court 1 | B179: =IF($AF$8=1,$E$8,IF($AF$10=1,$E$10,IF($AF$12=1,$E$12,IF($AF$14=1,$E$14,IF($AF$16=1,$E$16,"1st Place "&$A179))))) -> SC Midlands KP Boys | H179: =IF($AF$8=1,$E$9,IF($AF$10=1,$E$11,IF($AF$12=1,$E$13,IF($AF$14=1,$E$15,IF($AF$16=1,$E$17,"1st Place "&$A179))))) -> fj2scmid3pm | L179: =IF($AF$8=2,$E$8,IF($AF$10=2,$E$10,IF($AF$12=2,$E$12,IF($AF$14=2,$E$14,IF($AF$16=2,$E$16,"2nd Place "&$A179))))) -> Intense Kids power Gvl | R179: =IF($AF$8=2,$E$9,IF($AF$10=2,$E$11,IF($AF$12=2,$E$13,IF($AF$14=2,$E$15,IF($AF$16=2,$E$17,"2nd Place "&$A179))))) -> fj2inten2pm | V179: =IF($AF$8=3,$E$8,IF($AF$10=3,$E$10,IF($AF$12=3,$E$12,IF($AF$14=3,$E$14,IF($AF$16=3,$E$16,"3rd Place "&$A179))))) -> BVA 11 | AB179: =IF($AF$8=3,$E$9,IF($AF$10=3,$E$11,IF($AF$12=3,$E$13,IF($AF$14=3,$E$15,IF($AF$16=3,$E$17,"3rd Place "&$A179))))) -> fj1biltm1cr | AF179: =IF($AF$8=4,$E$8,IF($AF$10=4,$E$10,IF($AF$12=4,$E$12,IF($AF$14=4,$E$14,IF($AF$16=4,$E$16,"4th Place "&$A179))))) -> SC Midlands KP Black | AL179: =IF($AF$8=4,$E$9,IF($AF$10=4,$E$11,IF($AF$12=4,$E$13,IF($AF$14=4,$E$15,IF($AF$16=4,$E$17,"4th Place "&$A179))))) -> fj1scmid1pm
A180: Court 2 | B180: =IF($AF$93=1,$E$93,IF($AF$95=1,$E$95,IF($AF$97=1,$E$97,IF($AF$99=1,$E$99,IF($AF$101=1,$E$101,"1st Place "&$A180))))) -> SC Midlands KP White | H180: =IF($AF$93=1,$E$94,IF($AF$95=1,$E$96,IF($AF$97=1,$E$98,IF($AF$99=1,$E$100,IF($AF$101=1,$E$102,"1st Place "&$A180))))) -> fj2scmid2pm | L180: =IF($AF$93=2,$E$93,IF($AF$95=2,$E$95,IF($AF$97=2,$E$97,IF($AF$99=2,$E$99,IF($AF$101=2,$E$101,"2nd Place "&$A180))))) -> C1VB Juniors Royal | R180: =IF($AF$93=2,$E$94,IF($AF$95=2,$E$96,IF($AF$97=2,$E$98,IF($AF$99=2,$E$100,IF($AF$101=2,$E$102,"2nd Place "&$A180))))) -> fj2crone7pm | V180: =IF($AF$93=3,$E$93,IF($AF$95=3,$E$95,IF($AF$97=3,$E$97,IF($AF$99=3,$E$99,IF($AF$101=3,$E$101,"3rd Place "&$A180))))) -> SC Midlands KP Garnet | AB180: =IF($AF$93=3,$E$94,IF($AF$95=3,$E$96,IF($AF$97=3,$E$98,IF($AF$99=3,$E$100,IF($AF$101=3,$E$102,"3rd Place "&$A180))))) -> fj1scmid2pm | AF180: =IF($AF$93=4,$E$93,IF($AF$95=4,$E$95,IF($AF$97=4,$E$97,IF($AF$99=4,$E$99,IF($AF$101=4,$E$101,"4th Place "&$A180))))) -> Magnum 11 Black | AL180: =IF($AF$93=4,$E$94,IF($AF$95=4,$E$96,IF($AF$97=4,$E$98,IF($AF$99=4,$E$100,IF($AF$101=4,$E$102,"4th Place "&$A180))))) -> fj1magnm1pm
A182: TOURNAMENT PLAYOFF
A183: Playoff Format : All teams Before 4pm 25-25-15 start at 6. If after 4pm, semi's 1 game to 25, finals 25-25-15 start at 6- no cap. Warmups 3-3-1
A184: 5th place from each pool does not advance, will be 9th & 10th place overall based on net pts
A186: Record each teams name and 11 digit code
A188: GOLD DIVISION | R188: SILVER DIVISION
A190: =IF(B218=1,B210,IF(B218=2,B211,IF(B218=3,B212,IF(B218=4,B213,IF(OR(B218="B",B218="b"),"BYE","invalid"))))) -> SC Midlands KP Boys | U190: =IF(W218=1,X210,IF(W218=2,X211,IF(W218=3,X212,IF(W218=4,X213,IF(OR(W218="B",W218="b"),"BYE","invalid"))))) -> BVA 11
A191: 1st Place Crt 1 | U191: 3rd Place Crt 1
A193: =B212&" ref" -> Intense Kids power Gvl ref | F193: =IF(H218=1,B210,IF(H218=2,B211,IF(H218=3,B212,IF(H218=4,B213,"Winner Match 1")))) -> Winner Match 1 | T193: =X212&" ref" -> SC Midlands KP Black ref | AB193: =IF(AC218=1,X210,IF(AC218=2,X211,IF(AC218=3,X212,IF(AC218=4,X213,"Winner Match 1")))) -> Winner Match 1
A194: Loser is 3rd place | T194: Loser is 7th place
A195: =IF(D218=1,B210,IF(D218=2,B211,IF(D218=3,B212,IF(D218=4,B213,IF(OR(D218="B",D218="b"),"BYE","invalid"))))) -> C1VB Juniors Royal | U195: =IF(Y218=1,X210,IF(Y218=2,X211,IF(Y218=3,X212,IF(Y218=4,X213,IF(OR(Y218="B",Y218="b"),"BYE","invalid"))))) -> Magnum 11 Black
A196: 2nd Place Crt 2 | U196: 4th Place Crt 2
F197: Loser M2 refs | AB197: Loser M2 refs
J198: =IF(K223=1,B210,IF(K223=2,B211,IF(K223=3,B212,IF(K223=4,B213,"Division Winner")))) -> Division Winner | AF198: =IF(AF223=1,X210,IF(AF223=2,X211,IF(AF223=3,X212,IF(AF223=4,X213,"Division Winner")))) -> Division Winner
A199: =IF(E218=1,B210,IF(E218=2,B211,IF(E218=3,B212,IF(E218=4,B213,IF(OR(E218="B",E218="b"),"BYE","invalid"))))) -> SC Midlands KP White | F199: Loser is 2nd place | J199: Gold Champ 1st place | U199: =IF(Z218=1,X210,IF(Z218=2,X211,IF(Z218=3,X212,IF(Z218=4,X213,IF(OR(Z218="B",Z218="b"),"BYE","invalid"))))) -> SC Midlands KP Garnet | AB199: Loser is 6th place | AF199: Silver Champ 5th place
A200: 1st Place Crt 2 | U200: 3rd Place Crt 2
A202: Winner M1 refs | T202: Winner M1 refs
A203: Loser is 3rd place | F203: =IF(J218=1,B210,IF(J218=2,B211,IF(J218=3,B212,IF(J218=4,B213,"Winner Match 2")))) -> Winner Match 2 | T203: Loser is 7th place | AB203: =IF(AE218=1,X210,IF(AE218=2,X211,IF(AE218=3,X212,IF(AE218=4,X213,"Winner Match 2")))) -> Winner Match 2
A204: =IF(G218=1,B210,IF(G218=2,B211,IF(G218=3,B212,IF(G218=4,B213,IF(OR(G218="B",G218="b"),"BYE","invalid"))))) -> Intense Kids power Gvl | U204: =IF(AB218=1,X210,IF(AB218=2,X211,IF(AB218=3,X212,IF(AB218=4,X213,IF(OR(AB218="B",AB218="b"),"BYE","invalid"))))) -> SC Midlands KP Black
A205: 2nd Place Crt 1 | U205: 4th Place Crt 1
A208: GOLD DIVISION PLAYOFFS | U208: SILVER DIVISION PLAYOFFS
A209: TEAM | B209: Enter Playoff Team Names | K209: Enter Playoff Team Codes | U209: TEAM | X209: Enter Playoff Team Names | AG209: Enter Playoff Team Codes
A210: 1 | B210: =B179 -> SC Midlands KP Boys | K210: =H179 -> fj2scmid3pm | U210: 1 | X210: =V179 -> BVA 11 | AG210: =AB179 -> fj1biltm1cr
A211: 2 | B211: =B180 -> SC Midlands KP White | K211: =H180 -> fj2scmid2pm | U211: 2 | X211: =V180 -> SC Midlands KP Garnet | AG211: =AB180 -> fj1scmid2pm
A212: 3 | B212: =L179 -> Intense Kids power Gvl | K212: =R179 -> fj2inten2pm | U212: 3 | X212: =AF179 -> SC Midlands KP Black | AG212: =AL179 -> fj1scmid1pm
A213: 4 | B213: =L180 -> C1VB Juniors Royal | K213: =R180 -> fj2crone7pm | U213: 4 | X213: =AF180 -> Magnum 11 Black | AG213: =AL180 -> fj1magnm1pm
B215: Semi Final | E215: Semi Final | H215: Finals | W215: Semi Final | Z215: Semi Final | AC215: Finals
A216: Offic. Team | B216: 3 | E216: Win M1 | H216: Loser M2 | T216: Offic. Team | W216: 3 | Z216: Win M1 | AC216: Loser M2
B217: Match 1 | E217: Match 2 | H217: Match 3 | W217: Match 1 | Z217: Match 2 | AC217: Match 3
B218: 1 | C218: v | D218: 4 | E218: 2 | F218: v | G218: 3 | H218: =IF(OR(AND(OR(B222>0,D222>0),B222>D222),OR(D218="b",D218="B")),B218,IF(OR(AND(OR(B222>0,D222>0),D222>B222),OR(B218="b",B218="B")),D218,"W1")) -> W1 | I218: v | J218: =IF(OR(AND(OR(E222>0,G222>0),E222>G222),OR(G218="b",G218="B")),E218,IF(OR(AND(OR(E222>0,G222>0),G222>E222),OR(E218="b",E218="B")),G218,"W2")) -> W2 | K218: Winner | W218: 1 | X218: v | Y218: 4 | Z218: 2 | AA218: v | AB218: 3 | AC218: =IF(OR(AND(OR(W222>0,Y222>0),W222>Y222),OR(Y218="b",Y218="B")),W218,IF(OR(AND(OR(W222>0,Y222>0),Y222>W222),OR(W218="b",W218="B")),Y218,"W1")) -> W1 | AD218: v | AE218: =IF(OR(AND(OR(Z222>0,AB222>0),Z222>AB222),OR(AB222="b",AB222="B")),Z218,IF(OR(AND(OR(Z222>0,AB222>0),AB222>Z222),OR(Z222="b",Z222="B")),AB218,"W2")) -> W2 | AF218: Winner
B219: =IF(B223>D223,1,0) -> 0 | D219: =IF(D223>B223,1,0) -> 0 | E219: =IF(E223>G223,1,0) -> 0 | G219: =IF(G223>E223,1,0) -> 0 | H219: =IF(H223>J223,1,0) -> 0 | J219: =IF(J223>H223,1,0) -> 0 | W219: =IF(W223>Y223,1,0) -> 0 | Y219: =IF(Y223>W223,1,0) -> 0 | Z219: =IF(Z223>AB223,1,0) -> 0 | AB219: =IF(AB223>Z223,1,0) -> 0 | AC219: =IF(AC223>AE223,1,0) -> 0 | AE219: =IF(AE223>AC223,1,0) -> 0
B220: =IF(B224>D224,1,0) -> 0 | D220: =IF(D224>B224,1,0) -> 0 | E220: =IF(E224>G224,1,0) -> 0 | G220: =IF(G224>E224,1,0) -> 0 | H220: =IF(H224>J224,1,0) -> 0 | J220: =IF(J224>H224,1,0) -> 0 | W220: =IF(W224>Y224,1,0) -> 0 | Y220: =IF(Y224>W224,1,0) -> 0 | Z220: =IF(Z224>AB224,1,0) -> 0 | AB220: =IF(AB224>Z224,1,0) -> 0 | AC220: =IF(AC224>AE224,1,0) -> 0 | AE220: =IF(AE224>AC224,1,0) -> 0
B221: =IF(B225>D225,1,0) -> 0 | D221: =IF(D225>B225,1,0) -> 0 | E221: =IF(E225>G225,1,0) -> 0 | G221: =IF(G225>E225,1,0) -> 0 | H221: =IF(H225>J225,1,0) -> 0 | J221: =IF(J225>H225,1,0) -> 0 | W221: =IF(W225>Y225,1,0) -> 0 | Y221: =IF(Y225>W225,1,0) -> 0 | Z221: =IF(Z225>AB225,1,0) -> 0 | AB221: =IF(AB225>Z225,1,0) -> 0 | AC221: =IF(AC225>AE225,1,0) -> 0 | AE221: =IF(AE225>AC225,1,0) -> 0
B222: =SUM(B219:B221) -> 0 | D222: =SUM(D219:D221) -> 0 | E222: =SUM(E219:E221) -> 0 | G222: =SUM(G219:G221) -> 0 | H222: =SUM(H219:H221) -> 0 | J222: =SUM(J219:J221) -> 0 | W222: =SUM(W219:W221) -> 0 | Y222: =SUM(Y219:Y221) -> 0 | Z222: =SUM(Z219:Z221) -> 0 | AB222: =SUM(AB219:AB221) -> 0 | AC222: =SUM(AC219:AC221) -> 0 | AE222: =SUM(AE219:AE221) -> 0
A223: Game 1 | C223: / | F223: / | I223: / | K223: =IF(AND(OR(H222>0,J222>0),AND(1<=H218,H218<=4),AND(1<=J218,J218<=4)),IF(H222>J222,H218,IF(J222>H222,J218,"")),"") ->  | V223: Game 1 | X223: / | AA223: / | AD223: / | AF223: =IF(AND(OR(AC222>0,AE222>0),AND(1<=AC218,AC218<=4),AND(1<=AE218,AE218<=4)),IF(AC222>AE222,AC218,IF(AE222>AC222,AE218,"")),"") -> 
... 11 more rows

Sheet 8Tm AM Rd1
A1: copywrited program: May not be used or reproduced without the consent of Chip Moseley | AQ1: Version : 5 | AT1: Seeding | AX1: Final Ranking | AZ1: Pool Ranking Multiplier = | BA1: 32
B2: Tournament Name | U2: Date | AT2: # | AU2: Team Name | AV2: Team Code | AW2: Initial Ranking | AX2: Pool Play | AY2: Finals | AZ2: Playoff Ranking Multiplier = | BA2: 16
B3: Site: | L3: Age | U3: Division | AB3: Club | AD3: Power | AT3: 1 | AU3: SC Midlands KP Garnet | AV3: fj1scmid2pm | AW3: =VLOOKUP(AV3,Initial!G:K,5,FALSE) -> 1200 | AX3: =VLOOKUP(AU3,AT$79:AU$174,2,FALSE) -> 1182.530498 | AY3: =IF(ISNA(VLOOKUP(AU3,AT$182:AU$234,2,FALSE)),AX3,VLOOKUP(AU3,AT$182:AU$234,2,FALSE)) -> 1182.530498
H4: Gym Supervisor | U4: Supr Cell #: | AT4: 2 | AU4: SC Midlands KP Boys | AV4: fj2scmid3pm | AW4: =VLOOKUP(AV4,Initial!G:K,5,FALSE) -> 1200 | AX4: 1247.986344 | AY4: 1247.986344
AT5: 3 | AU5: Magnum 11 Black | AV5: fj1magnm1pm | AW5: =VLOOKUP(AV5,Initial!G:K,5,FALSE) -> 1266.666667 | AX5: 1242.020305 | AY5: 1242.020305
A6: POOL: | B6: A | C6: COURT: | I6: 1 | K6: ="Pool "&B6&" - Round 1 - Court "&I6 -> Pool A - Round 1 - Court 1 | AT6: 4 | AU6: Intense Kids power Gvl | AV6: fj2inten2pm | AW6: =VLOOKUP(AV6,Initial!G:K,5,FALSE) -> 1200 | AX6: 1214.530498 | AY6: 1214.530498
A7: Team # | B7: Team Name | L7: =IF($AK10=0,"Games Won","Matches Won") -> Matches Won | R7: =IF($AK10=0,"Games Lost","Matches Lost") -> Matches Lost | W7: Total Pool Net Points | Z7: % Total Net Points | AC7: Game Win % | AF7: Pool Finish | AG7: # | AH7: Playoff Finish | AK7: 1 | AL7: Games per Match (1-5) | AT7: 5 | AU7: SC Midlands KP White | AV7: fj2scmid2pm | AW7: =VLOOKUP(AV7,Initial!G:K,5,FALSE) -> 1200 | AX7: 1185.469502 | AY7: 1185.469502
A8: =IF($AK9>0,"1","") -> 1 | B8: Team Name | E8: =AU3 -> SC Midlands KP Garnet | L8: =IF($AK10=0,AF64,AF46) -> 1 | R8: =IF($AK10=0,AG64,AG46) -> 2 | W8: =AQ24 -> -3 | Z8: =IF(AF58>0,(AQ24/AF58),0) -> -0.04166666667 | AC8: =IF(AF72=0,0,(AF64/AF72)) -> 0.3333333333 | AF8: 4 | AG8: 2 | AK8: 6 | AL8: Matches (1-10) | AT8: 6 | AU8: C1VB Juniors Royal | AV8: fj2crone7pm | AW8: =VLOOKUP(AV8,Initial!G:K,5,FALSE) -> 1200 | AX8: 1189.830287 | AY8: 1189.830287
B9: Team Code | E9: =AV3 -> fj1scmid2pm | AK9: 4 | AL9: Teams in Pool (1-5) | AT9: 7 | AU9: SC Midlands KP Black | AV9: fj1scmid1pm | AW9: =VLOOKUP(AV9,Initial!G:K,5,FALSE) -> 1200 | AX9: 1186.82973 | AY9: 1186.82973
A10: =IF($AK9>1,"2","") -> 2 | B10: Team Name | E10: =AU6 -> Intense Kids power Gvl | L10: =IF($AK10=0,AF65,AF47) -> 2 | R10: =IF($AK10=0,AG65,AG47) -> 1 | W10: =AQ25 -> 6 | Z10: =IF(AF59>0,(AQ25/AF59),0) -> 0.09523809524 | AC10: =IF(AF73=0,0,(AF65/AF73)) -> 0.6666666667 | AF10: 2 | AG10: 2 | AK10: 1 | AL10: 0-Count Games 1-Count Matches | AT10: 8 | AU10: BVA 11 | AV10: fj1biltm1cr | AW10: =VLOOKUP(AV10,Initial!G:K,5,FALSE) -> 1200 | AX10: 1217.469502 | AY10: 1217.469502
B11: Team Code | E11: =AV6 -> fj2inten2pm | AK11: 1 | AL11: Game Win % 0 = No 1 = Yes
A12: =IF($AK9>2,"3","") -> 3 | B12: Team Name | E12: =AU7 -> SC Midlands KP White | L12: =IF($AK10=0,AF66,AF48) -> 1 | R12: =IF($AK10=0,AG66,AG48) -> 2 | W12: =AQ26 -> 2 | Z12: =IF(AF60>0,(AQ26/AF60),0) -> 0.0303030303 | AC12: =IF(AF74=0,0,(AF66/AF74)) -> 0.3333333333 | AF12: 3 | AG12: 2 | AK12: 3 | AL12: # of Matches/Games per Team
B13: Team Code | E13: =AV7 -> fj2scmid2pm | AT13: Warning -- Do not use CUT/PASTE to move teams in table. Only use COPY/PASTE or seeded cells will be corrupted.
A14: =IF($AK9>3,"4","") -> 4 | B14: Team Name | E14: =AU10 -> BVA 11 | L14: =IF($AK10=0,AF67,AF49) -> 2 | R14: =IF($AK10=0,AG67,AG49) -> 1 | W14: =AQ27 -> -5 | Z14: =IF(AF61>0,(AQ27/AF61),0) -> -0.07462686567 | AC14: =IF(AF75=0,0,(AF67/AF75)) -> 0.6666666667 | AF14: 1 | AG14: 2
B15: Team Code | E15: =AV10 -> fj1biltm1cr
A16: =IF($AK9>4,"5","") ->  | B16: Team Name | E16: =AU11 -> 0 | L16: =IF($AK10=0,AF68,AF50) -> 0 | R16: =IF($AK10=0,AG68,AG50) -> 0 | W16: =AQ28 -> 0 | Z16: =IF(AF62>0,(AQ28/AF62),0) -> 0 | AC16: =IF(AF76=0,0,(AF68/AF76)) -> 0
B17: Team Code | E17: =AV11 -> 0
B18: POOL PLAY FORMAT: Best of 3 (25-25-15) 2 pt cap
A19: Sch Start | B19: 08:30:00 | E19: 09:30:00 | H19: 10:30:00 | K19: 12:00:00 | N19: 01:00:00 | Q19: 02:00:00 | T19: 01:00:00 | W19: 01:45:00 | Z19: 02:30:00 | AC19: 03:15:00 | AF19: Note: The Pool Finish Summary at the bottom of the sheet will fill in AUTOMATICALLY once the POOL FINISH column (at left) is filled in.
A20: Actual Start
A21: End Time
B22: Match 1 | E22: =IF(AK8>1,"Match 2","") -> Match 2 | H22: =IF(AK8>2,"Match 3","") -> Match 3 | K22: =IF(AK8>3,"Match 4","") -> Match 4 | N22: =IF(AK8>4,"Match 5","") -> Match 5 | Q22: =IF(AK8>5,"Match 6","") -> Match 6 | T22: =IF(AK8>6,"Match 7","") ->  | W22: =IF(AK8>7,"Match 8","") ->  | Z22: =IF(AK8>8,"Match 9","") ->  | AC22: =IF(AK8>9,"Match 10","") -> 
B23: 1 refs | E23: 2 refs | H23: 3 refs | K23: 4 refs | N23: 2 refs | Q23: 3 refs | T23: 4 refs | W23: 2 refs | Z23: 5 refs | AC23: 3 refs | AF23: Net Points | AG23: 1 | AH23: 2 | AI23: 3 | AJ23: 4 | AK23: 5 | AL23: 6 | AM23: 7 | AN23: 8 | AO23: 9 | AP23: 10 | AQ23: Total
B24: 2 | C24: v | D24: 3 | E24: 1 | F24: =IF(AK8>1,"v","") -> v | G24: 4 | H24: 2 | I24: =IF(AK8>2,"v","") -> v | J24: 4 | K24: 1 | L24: =IF(AK8>3,"v","") -> v | M24: 3 | N24: 3 | O24: =IF(AK8>4,"v","") -> v | P24: 4 | Q24: 1 | R24: =IF(AK8>5,"v","") -> v | S24: 2 | T24: 2 | U24: =IF(AK8>6,"v","") ->  | V24: 3 | W24: 1 | X24: =IF(AK8>7,"v","") ->  | Y24: 5 | Z24: 3 | AA24: =IF(AK8>8,"v","") ->  | AB24: 4 | AC24: 1 | AD24: =IF(AK8>9,"v","") ->  | AE24: 2 | AF24: =IF(AK9>0,"Team 1","") -> Team 1 | AG24: =IF(AK9<1,"",IF(AK8<1,"",IF(B24=1,B30-D30,IF(D24=1,D30-B30,"")))) ->  | AH24: =IF(AK9<1,"",IF(AK8<2,"",IF(E24=1,E30-G30,IF(G24=1,G30-E30,"")))) -> 11 | AI24: =IF(AK9<1,"",IF(AK8<3,"",IF(H24=1,H30-J30,IF(J24=1,J30-H30,"")))) ->  | AJ24: =IF(AK9<1,"",IF(AK8<4,"",IF(K24=1,K30-M30,IF(M24=1,M30-K30,"")))) -> -6 | AK24: =IF(AK9<1,"",IF(AK8<5,"",IF(N24=1,N30-P30,IF(P24=1,P30-N30,"")))) ->  | AL24: =IF(AK9<1,"",IF(AK8<6,"",IF(Q24=1,Q30-S30,IF(S24=1,S30-Q30,"")))) -> -8 | AM24: =IF(AK9<1,"",IF(AK8<7,"",IF(T24=1,T30-V30,IF(V24=1,V30-T30,"")))) ->  | AN24: =IF(AK9<1,"",IF(AK8<8,"",IF(W24=1,W30-Y30,IF(Y24=1,Y30-W30,"")))) ->  | AO24: =IF(AK9<1,"",IF(AK8<9,"",IF(Z24=1,Z30-AB30,IF(AB24=1,AB30-Z30,"")))) ->  | AP24: =IF(AK9<1,"",IF(AK8<10,"",IF(AC24=1,AC30-AE30,IF(AE24=1,AE30-AC30,"")))) ->  | AQ24: =SUM(AG24:AP24) -> -3
A25: Game 1 | B25: 20 | C25: / | D25: 19 | E25: 25 | F25: =IF(AK8>1,"/","") -> / | G25: 14 | H25: 17 | I25: =IF(AK8>2,"/","") -> / | J25: 20 | K25: 18 | L25: =IF(AK8>3,"/","") -> / | M25: 24 | N25: 19 | O25: =IF(AK8>4,"/","") -> / | P25: 22 | Q25: 15 | R25: =IF(AK8>5,"/","") -> / | S25: 23 | U25: =IF(AK8>6,"/","") ->  | X25: =IF(AK8>7,"/","") ->  | AA25: =IF(AK8>8,"/","") ->  | AD25: =IF(AK8>9,"/","") ->  | AF25: =IF(AK9>1,"Team 2","") -> Team 2 | AG25: =IF(AK9<2,"",IF(AK8<1,"",IF(B24=2,B30-D30,IF(D24=2,D30-B30,"")))) -> 1 | AH25: =IF(AK9<2,"",IF(AK8<2,"",IF(E24=2,E30-G30,IF(G24=2,G30-E30,"")))) ->  | AI25: =IF(AK9<2,"",IF(AK8<3,"",IF(H24=2,H30-J30,IF(J24=2,J30-H30,"")))) -> -3 | AJ25: =IF(AK9<2,"",IF(AK8<4,"",IF(K24=2,K30-M30,IF(M24=2,M30-K30,"")))) ->  | AK25: =IF(AK9<2,"",IF(AK8<5,"",IF(N24=2,N30-P30,IF(P24=2,P30-N30,"")))) ->  | AL25: =IF(AK9<2,"",IF(AK8<6,"",IF(Q24=2,Q30-S30,IF(S24=2,S30-Q30,"")))) -> 8 | AM25: =IF(AK9<2,"",IF(AK8<7,"",IF(T24=2,T30-V30,IF(V24=2,V30-T30,"")))) ->  | AN25: =IF(AK9<2,"",IF(AK8<8,"",IF(W24=2,W30-Y30,IF(Y24=2,Y30-W30,"")))) ->  | AO25: =IF(AK9<2,"",IF(AK8<9,"",IF(Z24=2,Z30-AB30,IF(AB24=2,AB30-Z30,"")))) ->  | AP25: =IF(AK9<2,"",IF(AK8<10,"",IF(AC24=2,AC30-AE30,IF(AE24=2,AE30-AC30,"")))) ->  | AQ25: =SUM(AG25:AP25) -> 6
A26: =IF(AK7>1,"Game 2","") ->  | C26: / | F26: =IF(AK8>1,IF(AK7>1,"/",""),"") ->  | I26: =IF(AK8>2,IF(AK7>1,"/",""),"") ->  | L26: =IF(AK8>3,IF(AK7>1,"/",""),"") ->  | O26: =IF(AK8>4,IF(AK7>1,"/",""),"") ->  | R26: =IF(AK8>5,IF(AK7>1,"/",""),"") ->  | U26: =IF(AK8>6,IF(AK7>1,"/",""),"") ->  | X26: =IF(AK8>7,IF(AK7>1,"/",""),"") ->  | AA26: =IF(AK8>8,IF(AK7>1,"/",""),"") ->  | AD26: =IF(AK8>9,IF(AK7>1,"/",""),"") ->  | AF26: =IF(AK9>2,"Team 3","") -> Team 3 | AG26: =IF(AK9<3,"",IF(AK8<1,"",IF(B24=3,B30-D30,IF(D24=3,D30-B30,"")))) -> -1 | AH26: =IF(AK9<3,"",IF(AK8<2,"",IF(E24=3,E30-G30,IF(G24=3,G30-E30,"")))) ->  | AI26: =IF(AK9<3,"",IF(AK8<3,"",IF(H24=3,H30-J30,IF(J24=3,J30-H30,"")))) ->  | AJ26: =IF(AK9<3,"",IF(AK8<4,"",IF(K24=3,K30-M30,IF(M24=3,M30-K30,"")))) -> 6 | AK26: =IF(AK9<3,"",IF(AK8<5,"",IF(N24=3,N30-P30,IF(P24=3,P30-N30,"")))) -> -3 | AL26: =IF(AK9<3,"",IF(AK8<6,"",IF(Q24=3,Q30-S30,IF(S24=3,S30-Q30,"")))) ->  | AM26: =IF(AK9<3,"",IF(AK8<7,"",IF(T24=3,T30-V30,IF(V24=3,V30-T30,"")))) ->  | AN26: =IF(AK9<3,"",IF(AK8<8,"",IF(W24=3,W30-Y30,IF(Y24=3,Y30-W30,"")))) ->  | AO26: =IF(AK9<3,"",IF(AK8<9,"",IF(Z24=3,Z30-AB30,IF(AB24=3,AB30-Z30,"")))) ->  | AP26: =IF(AK9<3,"",IF(AK8<9,"",IF(AC24=3,AC30-AE30,IF(AE24=3,AE30-AC30,"")))) ->  | AQ26: =SUM(AG26:AP26) -> 2
A27: =IF(AK7>2,"Game 3","") ->  | C27: / | F27: =IF(AK8>1,IF(AK7>2,"/",""),"") ->  | I27: =IF(AK8>2,IF(AK7>2,"/",""),"") ->  | L27: =IF(AK8>3,IF(AK7>2,"/",""),"") ->  | O27: =IF(AK8>4,IF(AK7>2,"/",""),"") ->  | R27: =IF(AK8>5,IF(AK7>2,"/",""),"") ->  | U27: =IF(AK8>6,IF(AK7>2,"/",""),"") ->  | X27: =IF(AK8>7,IF(AK7>2,"/",""),"") ->  | AA27: =IF(AK8>8,IF(AK7>2,"/",""),"") ->  | AD27: =IF(AK8>9,IF(AK7>2,"/",""),"") ->  | AF27: =IF(AK9>3,"Team 4","") -> Team 4 | AG27: =IF(AK9<4,"",IF(AK8<1,"",IF(B24=4,B30-D30,IF(D24=4,D30-B30,"")))) ->  | AH27: =IF(AK9<4,"",IF(AK8<2,"",IF(E24=4,E30-G30,IF(G24=4,G30-E30,"")))) -> -11 | AI27: =IF(AK9<4,"",IF(AK8<3,"",IF(H24=4,H30-J30,IF(J24=4,J30-H30,"")))) -> 3 | AJ27: =IF(AK9<4,"",IF(AK8<4,"",IF(K24=4,K30-M30,IF(M24=4,M30-K30,"")))) ->  | AK27: =IF(AK9<4,"",IF(AK8<5,"",IF(N24=4,N30-P30,IF(P24=4,P30-N30,"")))) -> 3 | AL27: =IF(AK9<4,"",IF(AK8<6,"",IF(Q24=4,Q30-S30,IF(S24=4,S30-Q30,"")))) ->  | AM27: =IF(AK9<4,"",IF(AK8<7,"",IF(T24=4,T30-V30,IF(V24=4,V30-T30,"")))) ->  | AN27: =IF(AK9<4,"",IF(AK8<8,"",IF(W24=4,W30-Y30,IF(Y24=4,Y30-W30,"")))) ->  | AO27: =IF(AK9<4,"",IF(AK8<9,"",IF(Z24=4,Z30-AB30,IF(AB24=4,AB30-Z30,"")))) ->  | AP27: =IF(AK9<4,"",IF(AK8<10,"",IF(AC24=4,AC30-AE30,IF(AE24=4,AE30-AC30,"")))) ->  | AQ27: =SUM(AG27:AP27) -> -5
A28: =IF(AK7>3,"Game 4","") ->  | C28: / | F28: =IF(AK8>1,IF(AK7>3,"/",""),"") ->  | I28: =IF(AK8>2,IF(AK7>3,"/",""),"") ->  | L28: =IF(AK8>3,IF(AK7>3,"/",""),"") ->  | O28: =IF(AK8>4,IF(AK7>3,"/",""),"") ->  | R28: =IF(AK8>5,IF(AK7>3,"/",""),"") ->  | U28: =IF(AK8>6,IF(AK7>3,"/",""),"") ->  | X28: =IF(AK8>7,IF(AK7>3,"/",""),"") ->  | AA28: =IF(AK8>8,IF(AK7>3,"/",""),"") ->  | AD28: =IF(AK8>9,IF(AK7>3,"/",""),"") ->  | AF28: =IF(AK9>4,"Team 5","") ->  | AG28: =IF(AK9<5,"",IF(AK8<1,"",IF(B24=5,B30-D30,IF(D24=5,D30-B30,"")))) ->  | AH28: =IF(AK9<5,"",IF(AK8<2,"",IF(E24=5,E30-G30,IF(G24=5,G30-E30,"")))) ->  | AI28: =IF(AK9<5,"",IF(AK8<3,"",IF(H24=5,H30-J30,IF(J24=5,J30-H30,"")))) ->  | AJ28: =IF(AK9<5,"",IF(AK8<4,"",IF(K24=5,K30-M30,IF(M24=5,M30-K30,"")))) ->  | AK28: =IF(AK9<5,"",IF(AK8<5,"",IF(N24=5,N30-P30,IF(P24=5,P30-N30,"")))) ->  | AL28: =IF(AK9<5,"",IF(AK8<6,"",IF(Q24=5,Q30-S30,IF(S24=5,S30-Q30,"")))) ->  | AM28: =IF(AK9<5,"",IF(AK8<7,"",IF(T24=5,T30-V30,IF(V24=5,V30-T30,"")))) ->  | AN28: =IF(AK9<5,"",IF(AK8<8,"",IF(W24=5,W30-Y30,IF(Y24=5,Y30-W30,"")))) ->  | AO28: =IF(AK9<5,"",IF(AK8<9,"",IF(Z24=5,Z30-AB30,IF(AB24=5,AB30-Z30,"")))) ->  | AP28: =IF(AK9<5,"",IF(AK8<10,"",IF(AC24=5,AC30-AE30,IF(AE24=5,AE30-AC30,"")))) ->  | AQ28: =SUM(AG28:AP28) -> 0
A29: =IF(AK7>4,"Game 5","") ->  | C29: / | F29: =IF(AK8>1,IF(AK7>4,"/",""),"") ->  | I29: =IF(AK8>2,IF(AK7>4,"/",""),"") ->  | L29: =IF(AK8>3,IF(AK7>4,"/",""),"") ->  | O29: =IF(AK8>4,IF(AK7>4,"/",""),"") ->  | R29: =IF(AK8>5,IF(AK7>4,"/",""),"") ->  | U29: =IF(AK8>6,IF(AK7>4,"/",""),"") ->  | X29: =IF(AK8>7,IF(AK7>4,"/",""),"") ->  | AA29: =IF(AK8>8,IF(AK7>4,"/",""),"") ->  | AD29: =IF(AK8>9,IF(AK7>4,"/",""),"") -> 
B30: =IF($AK7=5,SUM(B25:B29),IF($AK7=4,SUM(B25:B28),IF($AK7=3,SUM(B25:B27),IF($AK7=2,SUM(B25:B26),B25)))) -> 20 | D30: =IF($AK7=5,SUM(D25:D29),IF($AK7=4,SUM(D25:D28),IF($AK7=3,SUM(D25:D27),IF($AK7=2,SUM(D25:D26),D25)))) -> 19 | E30: =IF($AK7=5,SUM(E25:E29),IF($AK7=4,SUM(E25:E28),IF($AK7=3,SUM(E25:E27),IF($AK7=2,SUM(E25:E26),E25)))) -> 25 | G30: =IF($AK7=5,SUM(G25:G29),IF($AK7=4,SUM(G25:G28),IF($AK7=3,SUM(G25:G27),IF($AK7=2,SUM(G25:G26),G25)))) -> 14 | H30: =IF($AK7=5,SUM(H25:H29),IF($AK7=4,SUM(H25:H28),IF($AK7=3,SUM(H25:H27),IF($AK7=2,SUM(H25:H26),H25)))) -> 17 | J30: =IF($AK7=5,SUM(J25:J29),IF($AK7=4,SUM(J25:J28),IF($AK7=3,SUM(J25:J27),IF($AK7=2,SUM(J25:J26),J25)))) -> 20 | K30: =IF($AK7=5,SUM(K25:K29),IF($AK7=4,SUM(K25:K28),IF($AK7=3,SUM(K25:K27),IF($AK7=2,SUM(K25:K26),K25)))) -> 18 | M30: =IF($AK7=5,SUM(M25:M29),IF($AK7=4,SUM(M25:M28),IF($AK7=3,SUM(M25:M27),IF($AK7=2,SUM(M25:M26),M25)))) -> 24 | N30: =IF($AK7=5,SUM(N25:N29),IF($AK7=4,SUM(N25:N28),IF($AK7=3,SUM(N25:N27),IF($AK7=2,SUM(N25:N26),N25)))) -> 19 | P30: =IF($AK7=5,SUM(P25:P29),IF($AK7=4,SUM(P25:P28),IF($AK7=3,SUM(P25:P27),IF($AK7=2,SUM(P25:P26),P25)))) -> 22 | Q30: =IF($AK7=5,SUM(Q25:Q29),IF($AK7=4,SUM(Q25:Q28),IF($AK7=3,SUM(Q25:Q27),IF($AK7=2,SUM(Q25:Q26),Q25)))) -> 15 | S30: =IF($AK7=5,SUM(S25:S29),IF($AK7=4,SUM(S25:S28),IF($AK7=3,SUM(S25:S27),IF($AK7=2,SUM(S25:S26),S25)))) -> 23 | T30: =IF($AK7=5,SUM(T25:T29),IF($AK7=4,SUM(T25:T28),IF($AK7=3,SUM(T25:T27),IF($AK7=2,SUM(T25:T26),T25)))) -> 0 | V30: =IF($AK7=5,SUM(V25:V29),IF($AK7=4,SUM(V25:V28),IF($AK7=3,SUM(V25:V27),IF($AK7=2,SUM(V25:V26),V25)))) -> 0 | W30: =IF($AK7=5,SUM(W25:W29),IF($AK7=4,SUM(W25:W28),IF($AK7=3,SUM(W25:W27),IF($AK7=2,SUM(W25:W26),W25)))) -> 0 | Y30: =IF($AK7=5,SUM(Y25:Y29),IF($AK7=4,SUM(Y25:Y28),IF($AK7=3,SUM(Y25:Y27),IF($AK7=2,SUM(Y25:Y26),Y25)))) -> 0 | Z30: =IF($AK7=5,SUM(Z25:Z29),IF($AK7=4,SUM(Z25:Z28),IF($AK7=3,SUM(Z25:Z27),IF($AK7=2,SUM(Z25:Z26),Z25)))) -> 0 | AB30: =IF($AK7=5,SUM(AB25:AB29),IF($AK7=4,SUM(AB25:AB28),IF($AK7=3,SUM(AB25:AB27),IF($AK7=2,SUM(AB25:AB26),AB25)))) -> 0 | AC30: =IF($AK7=5,SUM(AC25:AC29),IF($AK7=4,SUM(AC25:AC28),IF($AK7=3,SUM(AC25:AC27),IF($AK7=2,SUM(AC25:AC26),AC25)))) -> 0 | AE30: =IF($AK7=5,SUM(AE25:AE29),IF($AK7=4,SUM(AE25:AE28),IF($AK7=3,SUM(AE25:AE27),IF($AK7=2,SUM(AE25:AE26),AE25)))) -> 0
A31: Gm1 Win | B31: =IF(AND(B25>D25,$AK8>0,ISNUMBER(B25),ISNUMBER(D25)),1,0) -> 1 | D31: =IF(AND(D25>B25,$AK8>0,ISNUMBER(B25),ISNUMBER(D25)),1,0) -> 0 | E31: =IF(AND(E25>G25,$AK8>1,ISNUMBER(E25),ISNUMBER(G25)),1,0) -> 1 | G31: =IF(AND(G25>E25,$AK8>1,ISNUMBER(E25),ISNUMBER(G25)),1,0) -> 0 | H31: =IF(AND(H25>J25,$AK8>2,ISNUMBER(H25),ISNUMBER(J25)),1,0) -> 0 | J31: =IF(AND(J25>H25,$AK8>2,ISNUMBER(H25),ISNUMBER(J25)),1,0) -> 1 | K31: =IF(AND(K25>M25,$AK8>3,ISNUMBER(K25),ISNUMBER(M25)),1,0) -> 0 | M31: =IF(AND(M25>K25,$AK8>3,ISNUMBER(K25),ISNUMBER(M25)),1,0) -> 1 | N31: =IF(AND(N25>P25,$AK8>4,ISNUMBER(N25),ISNUMBER(P25)),1,0) -> 0 | P31: =IF(AND(P25>N25,$AK8>4,ISNUMBER(N25),ISNUMBER(P25)),1,0) -> 1 | Q31: =IF(AND(Q25>S25,$AK8>5,ISNUMBER(Q25),ISNUMBER(S25)),1,0) -> 0 | S31: =IF(AND(S25>Q25,$AK8>5,ISNUMBER(Q25),ISNUMBER(S25)),1,0) -> 1 | T31: =IF(AND(T25>V25,$AK8>6,ISNUMBER(T25),ISNUMBER(V25)),1,0) -> 0 | V31: =IF(AND(V25>T25,$AK8>6,ISNUMBER(T25),ISNUMBER(V25)),1,0) -> 0 | W31: =IF(AND(W25>Y25,$AK8>7,ISNUMBER(W25),ISNUMBER(Y25)),1,0) -> 0 | Y31: =IF(AND(Y25>W25,$AK8>7,ISNUMBER(W25),ISNUMBER(Y25)),1,0) -> 0 | Z31: =IF(AND(Z25>AB25,$AK8>8,ISNUMBER(Z25),ISNUMBER(AB25)),1,0) -> 0 | AB31: =IF(AND(AB25>Z25,$AK8>8,ISNUMBER(Z25),ISNUMBER(AB25)),1,0) -> 0 | AC31: =IF(AND(AC25>AE25,$AK8>9,ISNUMBER(AC25),ISNUMBER(AE25)),1,0) -> 0 | AE31: =IF(AND(AE25>AC25,$AK8>9,ISNUMBER(AC25),ISNUMBER(AE25)),1,0) -> 0
A32: Gm2 Win | B32: =IF(AND(B26>D26,$AK8>0,$AK7>1,ISNUMBER(B26),ISNUMBER(D26)),1,0) -> 0 | D32: =IF(AND(D26>B26,$AK8>0,$AK7>1,ISNUMBER(B26),ISNUMBER(D26)),1,0) -> 0 | E32: =IF(AND(E26>G26,$AK8>1,$AK7>1,ISNUMBER(E26),ISNUMBER(G26)),1,0) -> 0 | G32: =IF(AND(G26>E26,$AK8>1,$AK7>1,ISNUMBER(E26),ISNUMBER(G26)),1,0) -> 0 | H32: =IF(AND(H26>J26,$AK8>2,$AK7>1,ISNUMBER(H26),ISNUMBER(J26)),1,0) -> 0 | J32: =IF(AND(J26>H26,$AK8>2,$AK7>1,ISNUMBER(H26),ISNUMBER(J26)),1,0) -> 0 | K32: =IF(AND(K26>M26,$AK8>3,$AK7>1,ISNUMBER(K26),ISNUMBER(M26)),1,0) -> 0 | M32: =IF(AND(M26>K26,$AK8>3,$AK7>1,ISNUMBER(K26),ISNUMBER(M26)),1,0) -> 0 | N32: =IF(AND(N26>P26,$AK8>4,$AK7>1,ISNUMBER(N26),ISNUMBER(P26)),1,0) -> 0 | P32: =IF(AND(P26>N26,$AK8>4,$AK7>1,ISNUMBER(N26),ISNUMBER(P26)),1,0) -> 0 | Q32: =IF(AND(Q26>S26,$AK8>5,$AK7>1,ISNUMBER(Q26),ISNUMBER(S26)),1,0) -> 0 | S32: =IF(AND(S26>Q26,$AK8>5,$AK7>1,ISNUMBER(Q26),ISNUMBER(S26)),1,0) -> 0 | T32: =IF(AND(T26>V26,$AK8>6,$AK7>1,ISNUMBER(T26),ISNUMBER(V26)),1,0) -> 0 | V32: =IF(AND(V26>T26,$AK8>6,$AK7>1,ISNUMBER(T26),ISNUMBER(V26)),1,0) -> 0 | W32: =IF(AND(W26>Y26,$AK8>7,$AK7>1,ISNUMBER(W26),ISNUMBER(Y26)),1,0) -> 0 | Y32: =IF(AND(Y26>W26,$AK8>7,$AK7>1,ISNUMBER(W26),ISNUMBER(Y26)),1,0) -> 0 | Z32: =IF(AND(Z26>AB26,$AK8>8,$AK7>1,ISNUMBER(Z26),ISNUMBER(AB26)),1,0) -> 0 | AB32: =IF(AND(AB26>Z26,$AK8>8,$AK7>1,ISNUMBER(Z26),ISNUMBER(AB26)),1,0) -> 0 | AC32: =IF(AND(AC26>AE26,$AK8>9,$AK7>1,ISNUMBER(AC26),ISNUMBER(AE26)),1,0) -> 0 | AE32: =IF(AND(AE26>AC26,$AK8>9,$AK7>1,ISNUMBER(AC26),ISNUMBER(AE26)),1,0) -> 0
A33: Gm3 Win | B33: =IF(AND(B27>D27,$AK8>0,$AK7>2,ISNUMBER(B27),ISNUMBER(D27)),1,0) -> 0 | D33: =IF(AND(D27>B27,$AK8>0,$AK7>2,ISNUMBER(B27),ISNUMBER(D27)),1,0) -> 0 | E33: =IF(AND(E27>G27,$AK8>1,$AK7>2,ISNUMBER(E27),ISNUMBER(G27)),1,0) -> 0 | G33: =IF(AND(G27>E27,$AK8>1,$AK7>2,ISNUMBER(E27),ISNUMBER(G27)),1,0) -> 0 | H33: =IF(AND(H27>J27,$AK8>2,$AK7>2,ISNUMBER(H27),ISNUMBER(J27)),1,0) -> 0 | J33: =IF(AND(J27>H27,$AK8>2,$AK7>2,ISNUMBER(H27),ISNUMBER(J27)),1,0) -> 0 | K33: =IF(AND(K27>M27,$AK8>3,$AK7>2,ISNUMBER(K27),ISNUMBER(M27)),1,0) -> 0 | M33: =IF(AND(M27>K27,$AK8>3,$AK7>2,ISNUMBER(K27),ISNUMBER(M27)),1,0) -> 0 | N33: =IF(AND(N27>P27,$AK8>4,$AK7>2,ISNUMBER(N27),ISNUMBER(P27)),1,0) -> 0 | P33: =IF(AND(P27>N27,$AK8>4,$AK7>2,ISNUMBER(N27),ISNUMBER(P27)),1,0) -> 0 | Q33: =IF(AND(Q27>S27,$AK8>5,$AK7>2,ISNUMBER(Q27),ISNUMBER(S27)),1,0) -> 0 | S33: =IF(AND(S27>Q27,$AK8>5,$AK7>2,ISNUMBER(Q27),ISNUMBER(S27)),1,0) -> 0 | T33: =IF(AND(T27>V27,$AK8>6,$AK7>2,ISNUMBER(T27),ISNUMBER(V27)),1,0) -> 0 | V33: =IF(AND(V27>T27,$AK8>6,$AK7>2,ISNUMBER(T27),ISNUMBER(V27)),1,0) -> 0 | W33: =IF(AND(W27>Y27,$AK8>7,$AK7>2,ISNUMBER(W27),ISNUMBER(Y27)),1,0) -> 0 | Y33: =IF(AND(Y27>W27,$AK8>7,$AK7>2,ISNUMBER(W27),ISNUMBER(Y27)),1,0) -> 0 | Z33: =IF(AND(Z27>AB27,$AK8>8,$AK7>2,ISNUMBER(Z27),ISNUMBER(AB27)),1,0) -> 0 | AB33: =IF(AND(AB27>Z27,$AK8>8,$AK7>2,ISNUMBER(Z27),ISNUMBER(AB27)),1,0) -> 0 | AC33: =IF(AND(AC27>AE27,$AK8>9,$AK7>2,ISNUMBER(AC27),ISNUMBER(AE27)),1,0) -> 0 | AE33: =IF(AND(AE27>AC27,$AK8>9,$AK7>2,ISNUMBER(AC27),ISNUMBER(AE27)),1,0) -> 0
A34: Gm4 Win | B34: =IF(AND(B28>D28,$AK8>0,$AK7>3,ISNUMBER(B28),ISNUMBER(D28)),1,0) -> 0 | D34: =IF(AND(D28>B28,$AK8>0,$AK7>3,ISNUMBER(B28),ISNUMBER(D28)),1,0) -> 0 | E34: =IF(AND(E28>G28,$AK8>1,$AK7>3,ISNUMBER(E28),ISNUMBER(G28)),1,0) -> 0 | G34: =IF(AND(G28>E28,$AK8>1,$AK7>3,ISNUMBER(E28),ISNUMBER(G28)),1,0) -> 0 | H34: =IF(AND(H28>J28,$AK8>2,$AK7>3,ISNUMBER(H28),ISNUMBER(J28)),1,0) -> 0 | J34: =IF(AND(J28>H28,$AK8>2,$AK7>3,ISNUMBER(H28),ISNUMBER(J28)),1,0) -> 0 | K34: =IF(AND(K28>M28,$AK8>3,$AK7>3,ISNUMBER(K28),ISNUMBER(M28)),1,0) -> 0 | M34: =IF(AND(M28>K28,$AK8>3,$AK7>3,ISNUMBER(K28),ISNUMBER(M28)),1,0) -> 0 | N34: =IF(AND(N28>P28,$AK8>4,$AK7>3,ISNUMBER(N28),ISNUMBER(P28)),1,0) -> 0 | P34: =IF(AND(P28>N28,$AK8>4,$AK7>3,ISNUMBER(N28),ISNUMBER(P28)),1,0) -> 0 | Q34: =IF(AND(Q28>S28,$AK8>5,$AK7>3,ISNUMBER(Q28),ISNUMBER(S28)),1,0) -> 0 | S34: =IF(AND(S28>Q28,$AK8>5,$AK7>3,ISNUMBER(Q28),ISNUMBER(S28)),1,0) -> 0 | T34: =IF(AND(T28>V28,$AK8>6,$AK7>3,ISNUMBER(T28),ISNUMBER(V28)),1,0) -> 0 | V34: =IF(AND(V28>T28,$AK8>6,$AK7>3,ISNUMBER(T28),ISNUMBER(V28)),1,0) -> 0 | W34: =IF(AND(W28>Y28,$AK8>7,$AK7>3,ISNUMBER(W28),ISNUMBER(Y28)),1,0) -> 0 | Y34: =IF(AND(Y28>W28,$AK8>7,$AK7>3,ISNUMBER(W28),ISNUMBER(Y28)),1,0) -> 0 | Z34: =IF(AND(Z28>AB28,$AK8>8,$AK7>3,ISNUMBER(Z28),ISNUMBER(AB28)),1,0) -> 0 | AB34: =IF(AND(AB28>Z28,$AK8>8,$AK7>3,ISNUMBER(Z28),ISNUMBER(AB28)),1,0) -> 0 | AC34: =IF(AND(AC28>AE28,$AK8>9,$AK7>3,ISNUMBER(AC28),ISNUMBER(AE28)),1,0) -> 0 | AE34: =IF(AND(AE28>AC28,$AK8>9,$AK7>3,ISNUMBER(AC28),ISNUMBER(AE28)),1,0) -> 0
A35: Gm5 Win | B35: =IF(AND(B29>D29,$AK8>0,$AK7>4,ISNUMBER(B29),ISNUMBER(D29)),1,0) -> 0 | D35: =IF(AND(D29>B29,$AK8>0,$AK7>4,ISNUMBER(B29),ISNUMBER(D29)),1,0) -> 0 | E35: =IF(AND(E29>G29,$AK8>1,$AK7>4,ISNUMBER(E29),ISNUMBER(G29)),1,0) -> 0 | G35: =IF(AND(G29>E29,$AK8>1,$AK7>4,ISNUMBER(E29),ISNUMBER(G29)),1,0) -> 0 | H35: =IF(AND(H29>J29,$AK8>2,$AK7>4,ISNUMBER(H29),ISNUMBER(J29)),1,0) -> 0 | J35: =IF(AND(J29>H29,$AK8>2,$AK7>4,ISNUMBER(H29),ISNUMBER(J29)),1,0) -> 0 | K35: =IF(AND(K29>M29,$AK8>3,$AK7>4,ISNUMBER(K29),ISNUMBER(M29)),1,0) -> 0 | M35: =IF(AND(M29>K29,$AK8>3,$AK7>4,ISNUMBER(K29),ISNUMBER(M29)),1,0) -> 0 | N35: =IF(AND(N29>P29,$AK8>4,$AK7>4,ISNUMBER(N29),ISNUMBER(P29)),1,0) -> 0 | P35: =IF(AND(P29>N29,$AK8>4,$AK7>4,ISNUMBER(N29),ISNUMBER(P29)),1,0) -> 0 | Q35: =IF(AND(Q29>S29,$AK8>5,$AK7>4,ISNUMBER(Q29),ISNUMBER(S29)),1,0) -> 0 | S35: =IF(AND(S29>Q29,$AK8>5,$AK7>4,ISNUMBER(Q29),ISNUMBER(S29)),1,0) -> 0 | T35: =IF(AND(T29>V29,$AK8>6,$AK7>4,ISNUMBER(T29),ISNUMBER(V29)),1,0) -> 0 | V35: =IF(AND(V29>T29,$AK8>6,$AK7>4,ISNUMBER(T29),ISNUMBER(V29)),1,0) -> 0 | W35: =IF(AND(W29>Y29,$AK8>7,$AK7>4,ISNUMBER(W29),ISNUMBER(Y29)),1,0) -> 0 | Y35: =IF(AND(Y29>W29,$AK8>7,$AK7>4,ISNUMBER(W29),ISNUMBER(Y29)),1,0) -> 0 | Z35: =IF(AND(Z29>AB29,$AK8>8,$AK7>4,ISNUMBER(Z29),ISNUMBER(AB29)),1,0) -> 0 | AB35: =IF(AND(AB29>Z29,$AK8>8,$AK7>4,ISNUMBER(Z29),ISNUMBER(AB29)),1,0) -> 0 | AC35: =IF(AND(AC29>AE29,$AK8>9,$AK7>4,ISNUMBER(AC29),ISNUMBER(AE29)),1,0) -> 0 | AE35: =IF(AND(AE29>AC29,$AK8>9,$AK7>4,ISNUMBER(AC29),ISNUMBER(AE29)),1,0) -> 0
A36: Sum Game Win/Loss | B36: =SUM(B31:B35) -> 1 | D36: =SUM(D31:D35) -> 0 | E36: =SUM(E31:E35) -> 1 | G36: =SUM(G31:G35) -> 0 | H36: =SUM(H31:H35) -> 0 | J36: =SUM(J31:J35) -> 1 | K36: =SUM(K31:K35) -> 0 | M36: =SUM(M31:M35) -> 1 | N36: =SUM(N31:N35) -> 0 | P36: =SUM(P31:P35) -> 1 | Q36: =SUM(Q31:Q35) -> 0 | S36: =SUM(S31:S35) -> 1 | T36: =SUM(T31:T35) -> 0 | V36: =SUM(V31:V35) -> 0 | W36: =SUM(W31:W35) -> 0 | Y36: =SUM(Y31:Y35) -> 0 | Z36: =SUM(Z31:Z35) -> 0 | AB36: =SUM(AB31:AB35) -> 0 | AC36: =SUM(AC31:AC35) -> 0 | AE36: =SUM(AE31:AE35) -> 0
A37: Match Won/Lost | B37: =IF(B36>D36,IF(C71=AK7,1,IF(C71=AK7-1,1,0)),0) -> 1 | C37: =B37+D37 -> 1 | D37: =IF(D36>B36,IF(C71=AK7,1,IF(C71=AK7-1,1,0)),0) -> 0 | E37: =IF(E36>G36,IF(F71=AK7,1,IF(F71=AK7-1,1,0)),0) -> 1 | F37: =E37+G37 -> 1 | G37: =IF(G36>E36,IF(F71=AK7,1,IF(F71=AK7-1,1,0)),0) -> 0 | H37: =IF(H36>J36,IF(I71=AK7,1,IF(I71=AK7-1,1,0)),0) -> 0 | I37: =H37+J37 -> 1 | J37: =IF(J36>H36,IF(I71=AK7,1,IF(I71=AK7-1,1,0)),0) -> 1 | K37: =IF(K36>M36,IF(L71=AK7,1,IF(L71=AK7-1,1,0)),0) -> 0 | L37: =K37+M37 -> 1 | M37: =IF(M36>K36,IF(L71=AK7,1,IF(L71=AK7-1,1,0)),0) -> 1 | N37: =IF(N36>P36,IF(O71=AK7,1,IF(O71=AK7-1,1,0)),0) -> 0 | O37: =N37+P37 -> 1 | P37: =IF(P36>N36,IF(O71=AK7,1,IF(O71=AK7-1,1,0)),0) -> 1 | Q37: =IF(Q36>S36,IF(R71=AK7,1,IF(R71=AK7-1,1,0)),0) -> 0 | R37: =Q37+S37 -> 1 | S37: =IF(S36>Q36,IF(R71=AK7,1,IF(R71=AK7-1,1,0)),0) -> 1 | T37: =IF(T36>V36,IF(U71=AK7,1,IF(U71=AK7-1,1,0)),0) -> 0 | U37: =T37+V37 -> 0 | V37: =IF(V36>T36,IF(U71=AK7,1,IF(U71=AK7-1,1,0)),0) -> 0 | W37: =IF(W36>Y36,IF(X71=AK7,1,IF(X71=AK7-1,1,0)),0) -> 0 | X37: =W37+Y37 -> 0 | Y37: =IF(Y36>W36,IF(X71=AK7,1,IF(X71=AK7-1,1,0)),0) -> 0 | Z37: =IF(Z36>AB36,IF(AA71=AK7,1,IF(AA71=AK7-1,1,0)),0) -> 0 | AA37: =Z37+AB37 -> 0 | AB37: =IF(AB36>Z36,IF(AA71=AK7,1,IF(AA71=AK7-1,1,0)),0) -> 0 | AC37: =IF(AC36>AE36,IF(AD71=AK7,1,IF(AD71=AK7-1,1,0)),0) -> 0 | AD37: =AC37+AE37 -> 0 | AE37: =IF(AE36>AC36,IF(AD71=AK7,1,IF(AD71=AK7-1,1,0)),0) -> 0
A39: Gm1 Pts | B39: =IF(B31=1,B25,0) -> 20 | D39: =IF(D31=1,D25,0) -> 0 | E39: 25 | G39: =IF(G31=1,G25,0) -> 0 | H39: 0 | J39: =IF(J31=1,J25,0) -> 20 | K39: 0 | M39: =IF(M31=1,M25,0) -> 24 | N39: 0 | P39: =IF(P31=1,P25,0) -> 22 | Q39: 0 | S39: =IF(S31=1,S25,0) -> 23 | T39: 0 | V39: =IF(V31=1,V25,0) -> 0 | W39: 0 | Y39: =IF(Y31=1,Y25,0) -> 0 | Z39: 0 | AB39: =IF(AB31=1,AB25,0) -> 0 | AC39: 0 | AE39: =IF(AE31=1,AE25,0) -> 0
A40: Gm2 Pts | B40: =IF(B32=1,B26,0) -> 0 | D40: 0 | E40: 0 | G40: 0 | H40: 0 | J40: 0 | K40: 0 | M40: 0 | N40: 0 | P40: 0 | Q40: 0 | S40: 0 | T40: 0 | V40: 0 | W40: 0 | Y40: 0 | Z40: 0 | AB40: 0 | AC40: 0 | AE40: =IF(AE32=1,AE26,0) -> 0
A41: Gm3 Pts | B41: =IF(B33=1,B27,0) -> 0 | D41: 0 | E41: 0 | G41: 0 | H41: 0 | J41: 0 | K41: 0 | M41: 0 | N41: 0 | P41: 0 | Q41: 0 | S41: 0 | T41: 0 | V41: 0 | W41: 0 | Y41: 0 | Z41: 0 | AB41: 0 | AC41: 0 | AE41: =IF(AE33=1,AE27,0) -> 0
A42: Gm4 Pts | B42: =IF(B34=1,B28,0) -> 0 | D42: 0 | E42: 0 | G42: 0 | H42: 0 | J42: 0 | K42: 0 | M42: 0 | N42: 0 | P42: 0 | Q42: 0 | S42: 0 | T42: 0 | V42: 0 | W42: 0 | Y42: 0 | Z42: 0 | AB42: 0 | AC42: 0 | AE42: =IF(AE34=1,AE28,0) -> 0
A43: Gm5 Pts | B43: =IF(B35=1,B29,0) -> 0 | D43: 0 | E43: 0 | G43: 0 | H43: 0 | J43: 0 | K43: 0 | M43: 0 | N43: 0 | P43: 0 | Q43: 0 | S43: 0 | T43: 0 | V43: 0 | W43: 0 | Y43: 0 | Z43: 0 | AB43: 0 | AC43: 0 | AE43: =IF(AE35=1,AE29,0) -> 0
A44: Sum Match Points | B44: =SUM(B39:D43) -> 20 | E44: =SUM(E39:G43) -> 25 | H44: =SUM(H39:J43) -> 20 | K44: =SUM(K39:M43) -> 24 | N44: =SUM(N39:P43) -> 22 | Q44: =SUM(Q39:S43) -> 23 | T44: =SUM(T39:V43) -> 0 | W44: =SUM(W39:Y43) -> 0 | Z44: =SUM(Z39:AB43) -> 0 | AC44: =SUM(AC39:AE43) -> 0
A45: Matches | AF45: Match Wins by Team | AG45: Match Losses by Team
A46: Tm1 Wins | B46: =IF(B24=1,IF(B37=1,1,0),0) -> 0 | D46: =IF(D24=1,IF(D37=1,1,0),0) -> 0 | E46: =IF(E24=1,IF(E37=1,1,0),0) -> 1 | G46: =IF(G24=1,IF(G37=1,1,0),0) -> 0 | H46: =IF(H24=1,IF(H37=1,1,0),0) -> 0 | J46: =IF(J24=1,IF(J37=1,1,0),0) -> 0 | K46: =IF(K24=1,IF(K37=1,1,0),0) -> 0 | M46: =IF(M24=1,IF(M37=1,1,0),0) -> 0 | N46: =IF(N24=1,IF(N37=1,1,0),0) -> 0 | P46: =IF(P24=1,IF(P37=1,1,0),0) -> 0 | Q46: =IF(Q24=1,IF(Q37=1,1,0),0) -> 0 | S46: =IF(S24=1,IF(S37=1,1,0),0) -> 0 | T46: =IF(T24=1,IF(T37=1,1,0),0) -> 0 | V46: =IF(V24=1,IF(V37=1,1,0),0) -> 0 | W46: =IF(W24=1,IF(W37=1,1,0),0) -> 0 | Y46: =IF(Y24=1,IF(Y37=1,1,0),0) -> 0 | Z46: =IF(Z24=1,IF(Z37=1,1,0),0) -> 0 | AB46: =IF(AB24=1,IF(AB37=1,1,0),0) -> 0 | AC46: =IF(AC24=1,IF(AC37=1,1,0),0) -> 0 | AE46: =IF(AE24=1,IF(AE37=1,1,0),0) -> 0 | AF46: =SUM(B46:AE46) -> 1 | AG46: =AF52-AF46 -> 2
A47: Tm2 Wins | B47: =IF(B24=2,IF(B37=1,1,0),0) -> 1 | D47: =IF(D24=2,IF(D37=1,1,0),0) -> 0 | E47: =IF(E24=2,IF(E37=1,1,0),0) -> 0 | G47: =IF(G24=2,IF(G37=1,1,0),0) -> 0 | H47: =IF(H24=2,IF(H37=1,1,0),0) -> 0 | J47: =IF(J24=2,IF(J37=1,1,0),0) -> 0 | K47: =IF(K24=2,IF(K37=1,1,0),0) -> 0 | M47: =IF(M24=2,IF(M37=1,1,0),0) -> 0 | N47: =IF(N24=2,IF(N37=1,1,0),0) -> 0 | P47: =IF(P24=2,IF(P37=1,1,0),0) -> 0 | Q47: =IF(Q24=2,IF(Q37=1,1,0),0) -> 0 | S47: =IF(S24=2,IF(S37=1,1,0),0) -> 1 | T47: =IF(T24=2,IF(T37=1,1,0),0) -> 0 | V47: =IF(V24=2,IF(V37=1,1,0),0) -> 0 | W47: =IF(W24=2,IF(W37=1,1,0),0) -> 0 | Y47: =IF(Y24=2,IF(Y37=1,1,0),0) -> 0 | Z47: =IF(Z24=2,IF(Z37=1,1,0),0) -> 0 | AB47: =IF(AB24=2,IF(AB37=1,1,0),0) -> 0 | AC47: =IF(AC24=2,IF(AC37=1,1,0),0) -> 0 | AE47: =IF(AE24=2,IF(AE37=1,1,0),0) -> 0 | AF47: =SUM(B47:AE47) -> 2 | AG47: =AF53-AF47 -> 1
A48: Tm3 Wins | B48: =IF(B24=3,IF(B37=1,1,0),0) -> 0 | D48: =IF(D24=3,IF(D37=1,1,0),0) -> 0 | E48: =IF(E24=3,IF(E37=1,1,0),0) -> 0 | G48: =IF(G24=3,IF(G37=1,1,0),0) -> 0 | H48: =IF(H24=3,IF(H37=1,1,0),0) -> 0 | J48: =IF(J24=3,IF(J37=1,1,0),0) -> 0 | K48: =IF(K24=3,IF(K37=1,1,0),0) -> 0 | M48: =IF(M24=3,IF(M37=1,1,0),0) -> 1 | N48: =IF(N24=3,IF(N37=1,1,0),0) -> 0 | P48: =IF(P24=3,IF(P37=1,1,0),0) -> 0 | Q48: =IF(Q24=3,IF(Q37=1,1,0),0) -> 0 | S48: =IF(S24=3,IF(S37=1,1,0),0) -> 0 | T48: =IF(T24=3,IF(T37=1,1,0),0) -> 0 | V48: =IF(V24=3,IF(V37=1,1,0),0) -> 0 | W48: =IF(W24=3,IF(W37=1,1,0),0) -> 0 | Y48: =IF(Y24=3,IF(Y37=1,1,0),0) -> 0 | Z48: =IF(Z24=3,IF(Z37=1,1,0),0) -> 0 | AB48: =IF(AB24=3,IF(AB37=1,1,0),0) -> 0 | AC48: =IF(AC24=3,IF(AC37=1,1,0),0) -> 0 | AE48: =IF(AE24=3,IF(AE37=1,1,0),0) -> 0 | AF48: =SUM(B48:AE48) -> 1 | AG48: =AF54-AF48 -> 2
A49: Tm4 Wins | B49: =IF(B24=4,IF(B37=1,1,0),0) -> 0 | D49: =IF(D24=4,IF(D37=1,1,0),0) -> 0 | E49: =IF(E24=4,IF(E37=1,1,0),0) -> 0 | G49: =IF(G24=4,IF(G37=1,1,0),0) -> 0 | H49: =IF(H24=4,IF(H37=1,1,0),0) -> 0 | J49: =IF(J24=4,IF(J37=1,1,0),0) -> 1 | K49: =IF(K24=4,IF(K37=1,1,0),0) -> 0 | M49: =IF(M24=4,IF(M37=1,1,0),0) -> 0 | N49: =IF(N24=4,IF(N37=1,1,0),0) -> 0 | P49: =IF(P24=4,IF(P37=1,1,0),0) -> 1 | Q49: =IF(Q24=4,IF(Q37=1,1,0),0) -> 0 | S49: =IF(S24=4,IF(S37=1,1,0),0) -> 0 | T49: =IF(T24=4,IF(T37=1,1,0),0) -> 0 | V49: =IF(V24=4,IF(V37=1,1,0),0) -> 0 | W49: =IF(W24=4,IF(W37=1,1,0),0) -> 0 | Y49: =IF(Y24=4,IF(Y37=1,1,0),0) -> 0 | Z49: =IF(Z24=4,IF(Z37=1,1,0),0) -> 0 | AB49: =IF(AB24=4,IF(AB37=1,1,0),0) -> 0 | AC49: =IF(AC24=4,IF(AC37=1,1,0),0) -> 0 | AE49: =IF(AE24=4,IF(AE37=1,1,0),0) -> 0 | AF49: =SUM(B49:AE49) -> 2 | AG49: =AF55-AF49 -> 1
A50: Tm5 Wins | B50: =IF(B24=5,IF(B37=1,1,0),0) -> 0 | D50: =IF(D24=5,IF(D37=1,1,0),0) -> 0 | E50: =IF(E24=5,IF(E37=1,1,0),0) -> 0 | G50: =IF(G24=5,IF(G37=1,1,0),0) -> 0 | H50: =IF(H24=5,IF(H37=1,1,0),0) -> 0 | J50: =IF(J24=5,IF(J37=1,1,0),0) -> 0 | K50: =IF(K24=5,IF(K37=1,1,0),0) -> 0 | M50: =IF(M24=5,IF(M37=1,1,0),0) -> 0 | N50: =IF(N24=5,IF(N37=1,1,0),0) -> 0 | P50: =IF(P24=5,IF(P37=1,1,0),0) -> 0 | Q50: =IF(Q24=5,IF(Q37=1,1,0),0) -> 0 | S50: =IF(S24=5,IF(S37=1,1,0),0) -> 0 | T50: =IF(T24=5,IF(T37=1,1,0),0) -> 0 | V50: =IF(V24=5,IF(V37=1,1,0),0) -> 0 | W50: =IF(W24=5,IF(W37=1,1,0),0) -> 0 | Y50: =IF(Y24=5,IF(Y37=1,1,0),0) -> 0 | Z50: =IF(Z24=5,IF(Z37=1,1,0),0) -> 0 | AB50: =IF(AB24=5,IF(AB37=1,1,0),0) -> 0 | AC50: =IF(AC24=5,IF(AC37=1,1,0),0) -> 0 | AE50: =IF(AE24=5,IF(AE37=1,1,0),0) -> 0 | AF50: =SUM(B50:AE50) -> 0 | AG50: =AF56-AF50 -> 0
AF51: Matches played by team
A52: Tm1 Play | B52: =IF(B24=1,IF(C37=1,1,0),0) -> 0 | D52: =IF(D24=1,IF(C37=1,1,0),0) -> 0 | E52: =IF(E24=1,IF(F37=1,1,0),0) -> 1 | G52: =IF(G24=1,IF(F37=1,1,0),0) -> 0 | H52: =IF(H24=1,IF(I37=1,1,0),0) -> 0 | J52: =IF(J24=1,IF(I37=1,1,0),0) -> 0 | K52: =IF(K24=1,IF(L37=1,1,0),0) -> 1 | M52: =IF(M24=1,IF(L37=1,1,0),0) -> 0 | N52: =IF(N24=1,IF(O37=1,1,0),0) -> 0 | P52: =IF(P24=1,IF(O37=1,1,0),0) -> 0 | Q52: =IF(Q24=1,IF(R37=1,1,0),0) -> 1 | S52: =IF(S24=1,IF(R37=1,1,0),0) -> 0 | T52: =IF(T24=1,IF(U37=1,1,0),0) -> 0 | V52: =IF(V24=1,IF(U37=1,1,0),0) -> 0 | W52: =IF(W24=1,IF(X37=1,1,0),0) -> 0 | Y52: =IF(Y24=1,IF(X37=1,1,0),0) -> 0 | Z52: =IF(Z24=1,IF(AA37=1,1,0),0) -> 0 | AB52: =IF(AB24=1,IF(AA37=1,1,0),0) -> 0 | AC52: =IF(AC24=1,IF(AD37=1,1,0),0) -> 0 | AE52: =IF(AE24=1,IF(AD37=1,1,0),0) -> 0 | AF52: =SUM(B52:AE52) -> 3
A53: Tm2 Play | B53: =IF(B24=2,IF(C37=1,1,0),0) -> 1 | D53: =IF(D24=2,IF(C37=1,1,0),0) -> 0 | E53: =IF(E24=2,IF(F37=1,1,0),0) -> 0 | G53: =IF(G24=2,IF(F37=1,1,0),0) -> 0 | H53: =IF(H24=2,IF(I37=1,1,0),0) -> 1 | J53: =IF(J24=2,IF(I37=1,1,0),0) -> 0 | K53: =IF(K24=2,IF(L37=1,1,0),0) -> 0 | M53: =IF(M24=2,IF(L37=1,1,0),0) -> 0 | N53: =IF(N24=2,IF(O37=1,1,0),0) -> 0 | P53: =IF(P24=2,IF(O37=1,1,0),0) -> 0 | Q53: =IF(Q24=2,IF(R37=1,1,0),0) -> 0 | S53: =IF(S24=2,IF(R37=1,1,0),0) -> 1 | T53: =IF(T24=2,IF(U37=1,1,0),0) -> 0 | V53: =IF(V24=2,IF(U37=1,1,0),0) -> 0 | W53: =IF(W24=2,IF(X37=1,1,0),0) -> 0 | Y53: =IF(Y24=2,IF(X37=1,1,0),0) -> 0 | Z53: =IF(Z24=2,IF(AA37=1,1,0),0) -> 0 | AB53: =IF(AB24=2,IF(AA37=1,1,0),0) -> 0 | AC53: =IF(AC24=2,IF(AD37=1,1,0),0) -> 0 | AE53: =IF(AE24=2,IF(AD37=1,1,0),0) -> 0 | AF53: =SUM(B53:AE53) -> 3
A54: Tm3 Play | B54: =IF(B24=3,IF(C37=1,1,0),0) -> 0 | D54: =IF(D24=3,IF(C37=1,1,0),0) -> 1 | E54: =IF(E24=3,IF(F37=1,1,0),0) -> 0 | G54: =IF(G24=3,IF(F37=1,1,0),0) -> 0 | H54: =IF(H24=3,IF(I37=1,1,0),0) -> 0 | J54: =IF(J24=3,IF(I37=1,1,0),0) -> 0 | K54: =IF(K24=3,IF(L37=1,1,0),0) -> 0 | M54: =IF(M24=3,IF(L37=1,1,0),0) -> 1 | N54: =IF(N24=3,IF(O37=1,1,0),0) -> 1 | P54: =IF(P24=3,IF(O37=1,1,0),0) -> 0 | Q54: =IF(Q24=3,IF(R37=1,1,0),0) -> 0 | S54: =IF(S24=3,IF(R37=1,1,0),0) -> 0 | T54: =IF(T24=3,IF(U37=1,1,0),0) -> 0 | V54: =IF(V24=3,IF(U37=1,1,0),0) -> 0 | W54: =IF(W24=3,IF(X37=1,1,0),0) -> 0 | Y54: =IF(Y24=3,IF(X37=1,1,0),0) -> 0 | Z54: =IF(Z24=3,IF(AA37=1,1,0),0) -> 0 | AB54: =IF(AB24=3,IF(AA37=1,1,0),0) -> 0 | AC54: =IF(AC24=3,IF(AD37=1,1,0),0) -> 0 | AE54: =IF(AE24=3,IF(AD37=1,1,0),0) -> 0 | AF54: =SUM(B54:AE54) -> 3
A55: Tm4 Play | B55: =IF(B24=4,IF(C37=1,1,0),0) -> 0 | D55: =IF(D24=4,IF(C37=1,1,0),0) -> 0 | E55: =IF(E24=4,IF(F37=1,1,0),0) -> 0 | G55: =IF(G24=4,IF(F37=1,1,0),0) -> 1 | H55: =IF(H24=4,IF(I37=1,1,0),0) -> 0 | J55: =IF(J24=4,IF(I37=1,1,0),0) -> 1 | K55: =IF(K24=4,IF(L37=1,1,0),0) -> 0 | M55: =IF(M24=4,IF(L37=1,1,0),0) -> 0 | N55: =IF(N24=4,IF(O37=1,1,0),0) -> 0 | P55: =IF(P24=4,IF(O37=1,1,0),0) -> 1 | Q55: =IF(Q24=4,IF(R37=1,1,0),0) -> 0 | S55: =IF(S24=4,IF(R37=1,1,0),0) -> 0 | T55: =IF(T24=4,IF(U37=1,1,0),0) -> 0 | V55: =IF(V24=4,IF(U37=1,1,0),0) -> 0 | W55: =IF(W24=4,IF(X37=1,1,0),0) -> 0 | Y55: =IF(Y24=4,IF(X37=1,1,0),0) -> 0 | Z55: =IF(Z24=4,IF(AA37=1,1,0),0) -> 0 | AB55: =IF(AB24=4,IF(AA37=1,1,0),0) -> 0 | AC55: =IF(AC24=4,IF(AD37=1,1,0),0) -> 0 | AE55: =IF(AE24=4,IF(AD37=1,1,0),0) -> 0 | AF55: =SUM(B55:AE55) -> 3
A56: Tm5 Play | B56: =IF(B24=5,IF(C37=1,1,0),0) -> 0 | D56: =IF(D24=5,IF(C37=1,1,0),0) -> 0 | E56: =IF(E24=5,IF(F37=1,1,0),0) -> 0 | G56: =IF(G24=5,IF(F37=1,1,0),0) -> 0 | H56: =IF(H24=5,IF(I37=1,1,0),0) -> 0 | J56: =IF(J24=5,IF(I37=1,1,0),0) -> 0 | K56: =IF(K24=5,IF(L37=1,1,0),0) -> 0 | M56: =IF(M24=5,IF(L37=1,1,0),0) -> 0 | N56: =IF(N24=5,IF(O37=1,1,0),0) -> 0 | P56: =IF(P24=5,IF(O37=1,1,0),0) -> 0 | Q56: =IF(Q24=5,IF(R37=1,1,0),0) -> 0 | S56: =IF(S24=5,IF(R37=1,1,0),0) -> 0 | T56: =IF(T24=5,IF(U37=1,1,0),0) -> 0 | V56: =IF(V24=5,IF(U37=1,1,0),0) -> 0 | W56: =IF(W24=5,IF(X37=1,1,0),0) -> 0 | Y56: =IF(Y24=5,IF(X37=1,1,0),0) -> 0 | Z56: =IF(Z24=5,IF(AA37=1,1,0),0) -> 0 | AB56: =IF(AB24=5,IF(AA37=1,1,0),0) -> 0 | AC56: =IF(AC24=5,IF(AD37=1,1,0),0) -> 0 | AE56: =IF(AE24=5,IF(AD37=1,1,0),0) -> 0 | AF56: =SUM(B56:AE56) -> 0
AF57: Total Points played by team
A58: Tm1 Play | B58: =IF(B24=1,B44,0) -> 0 | D58: =IF(D24=1,B44,0) -> 0 | E58: =IF(E24=1,E44,0) -> 25 | G58: =IF(G24=1,E44,0) -> 0 | H58: =IF(H24=1,H44,0) -> 0 | J58: =IF(J24=1,H44,0) -> 0 | K58: =IF(K24=1,K44,0) -> 24 | M58: =IF(M24=1,K44,0) -> 0 | N58: =IF(N24=1,N44,0) -> 0 | P58: =IF(P24=1,N44,0) -> 0 | Q58: =IF(Q24=1,Q44,0) -> 23 | S58: =IF(S24=1,Q44,0) -> 0 | T58: =IF(T24=1,T44,0) -> 0 | V58: =IF(V24=1,T44,0) -> 0 | W58: =IF(W24=1,W44,0) -> 0 | Y58: =IF(Y24=1,W44,0) -> 0 | Z58: =IF(Z24=1,Z44,0) -> 0 | AB58: =IF(AB24=1,Z44,0) -> 0 | AC58: =IF(AC24=1,AC44,0) -> 0 | AE58: =IF(AE24=1,AC44,0) -> 0 | AF58: =SUM(B58:AE58) -> 72
A59: Tm2 Play | B59: =IF(B24=2,B44,0) -> 20 | D59: =IF(D24=2,B44,0) -> 0 | E59: =IF(E24=2,E44,0) -> 0 | G59: =IF(G24=2,E44,0) -> 0 | H59: =IF(H24=2,H44,0) -> 20 | J59: =IF(J24=2,H44,0) -> 0 | K59: =IF(K24=2,K44,0) -> 0 | M59: =IF(M24=2,K44,0) -> 0 | N59: =IF(N24=2,N44,0) -> 0 | P59: =IF(P24=2,N44,0) -> 0 | Q59: =IF(Q24=2,Q44,0) -> 0 | S59: =IF(S24=2,Q44,0) -> 23 | T59: =IF(T24=2,T44,0) -> 0 | V59: =IF(V24=2,T44,0) -> 0 | W59: =IF(W24=2,W44,0) -> 0 | Y59: =IF(Y24=2,W44,0) -> 0 | Z59: =IF(Z24=2,Z44,0) -> 0 | AB59: =IF(AB24=2,Z44,0) -> 0 | AC59: =IF(AC24=2,AC44,0) -> 0 | AE59: =IF(AE24=2,AC44,0) -> 0 | AF59: =SUM(B59:AE59) -> 63
A60: Tm3 Play | B60: =IF(B24=3,B44,0) -> 0 | D60: =IF(D24=3,B44,0) -> 20 | E60: =IF(E24=3,E44,0) -> 0 | G60: =IF(G24=3,E44,0) -> 0 | H60: =IF(H24=3,H44,0) -> 0 | J60: =IF(J24=3,H44,0) -> 0 | K60: =IF(K24=3,K44,0) -> 0 | M60: =IF(M24=3,K44,0) -> 24 | N60: =IF(N24=3,N44,0) -> 22 | P60: =IF(P24=3,N44,0) -> 0 | Q60: =IF(Q24=3,Q44,0) -> 0 | S60: =IF(S24=3,Q44,0) -> 0 | T60: =IF(T24=3,T44,0) -> 0 | V60: =IF(V24=3,T44,0) -> 0 | W60: =IF(W24=3,W44,0) -> 0 | Y60: =IF(Y24=3,W44,0) -> 0 | Z60: =IF(Z24=3,Z44,0) -> 0 | AB60: =IF(AB24=3,Z44,0) -> 0 | AC60: =IF(AC24=3,AC44,0) -> 0 | AE60: =IF(AE24=3,AC44,0) -> 0 | AF60: =SUM(B60:AE60) -> 66
A61: Tm4 Play | B61: =IF(B24=4,B44,0) -> 0 | D61: =IF(D24=4,B44,0) -> 0 | E61: =IF(E24=4,E44,0) -> 0 | G61: =IF(G24=4,E44,0) -> 25 | H61: =IF(H24=4,H44,0) -> 0 | J61: =IF(J24=4,H44,0) -> 20 | K61: =IF(K24=4,K44,0) -> 0 | M61: =IF(M24=4,K44,0) -> 0 | N61: =IF(N24=4,N44,0) -> 0 | P61: =IF(P24=4,N44,0) -> 22 | Q61: =IF(Q24=4,Q44,0) -> 0 | S61: =IF(S24=4,Q44,0) -> 0 | T61: =IF(T24=4,T44,0) -> 0 | V61: =IF(V24=4,T44,0) -> 0 | W61: =IF(W24=4,W44,0) -> 0 | Y61: =IF(Y24=4,W44,0) -> 0 | Z61: =IF(Z24=4,Z44,0) -> 0 | AB61: =IF(AB24=4,Z44,0) -> 0 | AC61: =IF(AC24=4,AC44,0) -> 0 | AE61: =IF(AE24=4,AC44,0) -> 0 | AF61: =SUM(B61:AE61) -> 67
A62: Tm5 Play | B62: =IF(B24=5,B44,0) -> 0 | D62: =IF(D24=5,B44,0) -> 0 | E62: =IF(E24=5,E44,0) -> 0 | G62: =IF(G24=5,E44,0) -> 0 | H62: =IF(H24=5,H44,0) -> 0 | J62: =IF(J24=5,H44,0) -> 0 | K62: =IF(K24=5,K44,0) -> 0 | M62: =IF(M24=5,K44,0) -> 0 | N62: =IF(N24=5,N44,0) -> 0 | P62: =IF(P24=5,N44,0) -> 0 | Q62: =IF(Q24=5,Q44,0) -> 0 | S62: =IF(S24=5,Q44,0) -> 0 | T62: =IF(T24=5,T44,0) -> 0 | V62: =IF(V24=5,T44,0) -> 0 | W62: =IF(W24=5,W44,0) -> 0 | Y62: =IF(Y24=5,W44,0) -> 0 | Z62: =IF(Z24=5,Z44,0) -> 0 | AB62: =IF(AB24=5,Z44,0) -> 0 | AC62: =IF(AC24=5,AC44,0) -> 0 | AE62: =IF(AE24=5,AC44,0) -> 0 | AF62: =SUM(B62:AE62) -> 0
A63: Games | AF63: Game Wins by Team | AG63: Game Losses by Team
A64: Tm1 Wins | B64: =IF(B24=1,SUMIF(B31:B35,">0"),0) -> 0 | D64: =IF(D24=1,SUMIF(D31:D35,">0"),0) -> 0 | E64: =IF(E24=1,SUMIF(E31:E35,">0"),0) -> 1 | G64: =IF(G24=1,SUMIF(G31:G35,">0"),0) -> 0 | H64: =IF(H24=1,SUMIF(H31:H35,">0"),0) -> 0 | J64: =IF(J24=1,SUMIF(J31:J35,">0"),0) -> 0 | K64: =IF(K24=1,SUMIF(K31:K35,">0"),0) -> 0 | M64: =IF(M24=1,SUMIF(M31:M35,">0"),0) -> 0 | N64: =IF(N24=1,SUMIF(N31:N35,">0"),0) -> 0 | P64: =IF(P24=1,SUMIF(P31:P35,">0"),0) -> 0 | Q64: =IF(Q24=1,SUMIF(Q31:Q35,">0"),0) -> 0 | S64: =IF(S24=1,SUMIF(S31:S35,">0"),0) -> 0 | T64: =IF(T24=1,SUMIF(T31:T35,">0"),0) -> 0 | V64: =IF(V24=1,SUMIF(V31:V35,">0"),0) -> 0 | W64: =IF(W24=1,SUMIF(W31:W35,">0"),0) -> 0 | Y64: =IF(Y24=1,SUMIF(Y31:Y35,">0"),0) -> 0 | Z64: =IF(Z24=1,SUMIF(Z31:Z35,">0"),0) -> 0 | AB64: =IF(AB24=1,SUMIF(AB31:AB35,">0"),0) -> 0 | AC64: =IF(AC24=1,SUMIF(AC31:AC35,">0"),0) -> 0 | AE64: =IF(AE24=1,SUMIF(AE31:AE35,">0"),0) -> 0 | AF64: =SUM(B64:AE64) -> 1 | AG64: =AF72-AF64 -> 2
A65: Tm2 Wins | B65: =IF(B24=2,SUMIF(B31:B35,">0"),0) -> 1 | D65: =IF(D24=2,SUMIF(D31:D35,">0"),0) -> 0 | E65: =IF(E24=2,SUMIF(E31:E35,">0"),0) -> 0 | G65: =IF(G24=2,SUMIF(G31:G35,">0"),0) -> 0 | H65: =IF(H24=2,SUMIF(H31:H35,">0"),0) -> 0 | J65: =IF(J24=2,SUMIF(J31:J35,">0"),0) -> 0 | K65: =IF(K24=2,SUMIF(K31:K35,">0"),0) -> 0 | M65: =IF(M24=2,SUMIF(M31:M35,">0"),0) -> 0 | N65: =IF(N24=2,SUMIF(N31:N35,">0"),0) -> 0 | P65: =IF(P24=2,SUMIF(P31:P35,">0"),0) -> 0 | Q65: =IF(Q24=2,SUMIF(Q31:Q35,">0"),0) -> 0 | S65: =IF(S24=2,SUMIF(S31:S35,">0"),0) -> 1 | T65: =IF(T24=2,SUMIF(T31:T35,">0"),0) -> 0 | V65: =IF(V24=2,SUMIF(V31:V35,">0"),0) -> 0 | W65: =IF(W24=2,SUMIF(W31:W35,">0"),0) -> 0 | Y65: =IF(Y24=2,SUMIF(Y31:Y35,">0"),0) -> 0 | Z65: =IF(Z24=2,SUMIF(Z31:Z35,">0"),0) -> 0 | AB65: =IF(AB24=2,SUMIF(AB31:AB35,">0"),0) -> 0 | AC65: =IF(AC24=2,SUMIF(AC31:AC35,">0"),0) -> 0 | AE65: =IF(AE24=2,SUMIF(AE31:AE35,">0"),0) -> 0 | AF65: =SUM(B65:AE65) -> 2 | AG65: =AF73-AF65 -> 1
A66: Tm3 Wins | B66: =IF(B24=3,SUMIF(B31:B35,">0"),0) -> 0 | D66: =IF(D24=3,SUMIF(D31:D35,">0"),0) -> 0 | E66: =IF(E24=3,SUMIF(E31:E35,">0"),0) -> 0 | G66: =IF(G24=3,SUMIF(G31:G35,">0"),0) -> 0 | H66: =IF(H24=3,SUMIF(H31:H35,">0"),0) -> 0 | J66: =IF(J24=3,SUMIF(J31:J35,">0"),0) -> 0 | K66: =IF(K24=3,SUMIF(K31:K35,">0"),0) -> 0 | M66: =IF(M24=3,SUMIF(M31:M35,">0"),0) -> 1 | N66: =IF(N24=3,SUMIF(N31:N35,">0"),0) -> 0 | P66: =IF(P24=3,SUMIF(P31:P35,">0"),0) -> 0 | Q66: =IF(Q24=3,SUMIF(Q31:Q35,">0"),0) -> 0 | S66: =IF(S24=3,SUMIF(S31:S35,">0"),0) -> 0 | T66: =IF(T24=3,SUMIF(T31:T35,">0"),0) -> 0 | V66: =IF(V24=3,SUMIF(V31:V35,">0"),0) -> 0 | W66: =IF(W24=3,SUMIF(W31:W35,">0"),0) -> 0 | Y66: =IF(Y24=3,SUMIF(Y31:Y35,">0"),0) -> 0 | Z66: =IF(Z24=3,SUMIF(Z31:Z35,">0"),0) -> 0 | AB66: =IF(AB24=3,SUMIF(AB31:AB35,">0"),0) -> 0 | AC66: =IF(AC24=3,SUMIF(AC31:AC35,">0"),0) -> 0 | AE66: =IF(AE24=3,SUMIF(AE31:AE35,">0"),0) -> 0 | AF66: =SUM(B66:AE66) -> 1 | AG66: =AF74-AF66 -> 2
A67: Tm4 Wins | B67: =IF(B24=4,SUMIF(B31:B35,">0"),0) -> 0 | D67: =IF(D24=4,SUMIF(D31:D35,">0"),0) -> 0 | E67: =IF(E24=4,SUMIF(E31:E35,">0"),0) -> 0 | G67: =IF(G24=4,SUMIF(G31:G35,">0"),0) -> 0 | H67: =IF(H24=4,SUMIF(H31:H35,">0"),0) -> 0 | J67: =IF(J24=4,SUMIF(J31:J35,">0"),0) -> 1 | K67: =IF(K24=4,SUMIF(K31:K35,">0"),0) -> 0 | M67: =IF(M24=4,SUMIF(M31:M35,">0"),0) -> 0 | N67: =IF(N24=4,SUMIF(N31:N35,">0"),0) -> 0 | P67: =IF(P24=4,SUMIF(P31:P35,">0"),0) -> 1 | Q67: =IF(Q24=4,SUMIF(Q31:Q35,">0"),0) -> 0 | S67: =IF(S24=4,SUMIF(S31:S35,">0"),0) -> 0 | T67: =IF(T24=4,SUMIF(T31:T35,">0"),0) -> 0 | V67: =IF(V24=4,SUMIF(V31:V35,">0"),0) -> 0 | W67: =IF(W24=4,SUMIF(W31:W35,">0"),0) -> 0 | Y67: =IF(Y24=4,SUMIF(Y31:Y35,">0"),0) -> 0 | Z67: =IF(Z24=4,SUMIF(Z31:Z35,">0"),0) -> 0 | AB67: =IF(AB24=4,SUMIF(AB31:AB35,">0"),0) -> 0 | AC67: =IF(AC24=4,SUMIF(AC31:AC35,">0"),0) -> 0 | AE67: =IF(AE24=4,SUMIF(AE31:AE35,">0"),0) -> 0 | AF67: =SUM(B67:AE67) -> 2 | AG67: =AF75-AF67 -> 1
A68: Tm5 Wins | B68: =IF(B24=5,SUMIF(B31:B35,">0"),0) -> 0 | D68: =IF(D24=5,SUMIF(D31:D35,">0"),0) -> 0 | E68: =IF(E24=5,SUMIF(E31:E35,">0"),0) -> 0 | G68: =IF(G24=5,SUMIF(G31:G35,">0"),0) -> 0 | H68: =IF(H24=5,SUMIF(H31:H35,">0"),0) -> 0 | J68: =IF(J24=5,SUMIF(J31:J35,">0"),0) -> 0 | K68: =IF(K24=5,SUMIF(K31:K35,">0"),0) -> 0 | M68: =IF(M24=5,SUMIF(M31:M35,">0"),0) -> 0 | N68: =IF(N24=5,SUMIF(N31:N35,">0"),0) -> 0 | P68: =IF(P24=5,SUMIF(P31:P35,">0"),0) -> 0 | Q68: =IF(Q24=5,SUMIF(Q31:Q35,">0"),0) -> 0 | S68: =IF(S24=5,SUMIF(S31:S35,">0"),0) -> 0 | T68: =IF(T24=5,SUMIF(T31:T35,">0"),0) -> 0 | V68: =IF(V24=5,SUMIF(V31:V35,">0"),0) -> 0 | W68: =IF(W24=5,SUMIF(W31:W35,">0"),0) -> 0 | Y68: =IF(Y24=5,SUMIF(Y31:Y35,">0"),0) -> 0 | Z68: =IF(Z24=5,SUMIF(Z31:Z35,">0"),0) -> 0 | AB68: =IF(AB24=5,SUMIF(AB31:AB35,">0"),0) -> 0 | AC68: =IF(AC24=5,SUMIF(AC31:AC35,">0"),0) -> 0 | AE68: =IF(AE24=5,SUMIF(AE31:AE35,">0"),0) -> 0 | AF68: =SUM(B68:AE68) -> 0 | AG68: =AF76-AF68 -> 0
A71: Games Played this Match | C71: =SUMIF(B64:D68,">0") -> 1 | F71: =SUMIF(E64:G68,">0") -> 1 | I71: =SUMIF(H64:J68,">0") -> 1 | L71: =SUMIF(K64:M68,">0") -> 1 | O71: =SUMIF(N64:P68,">0") -> 1 | R71: =SUMIF(Q64:S68,">0") -> 1 | U71: =SUMIF(T64:V68,">0") -> 0 | X71: =SUMIF(W64:Y68,">0") -> 0 | AA71: =SUMIF(Z64:AB68,">0") -> 0 | AD71: =SUMIF(AC64:AE68,">0") -> 0 | AF71: Games played by team
A72: Tm1 Play | B72: =IF(B24=1,C71,0) -> 0 | D72: =IF(D24=1,C71,0) -> 0 | E72: =IF(E24=1,F71,0) -> 1 | G72: =IF(G24=1,F71,0) -> 0 | H72: =IF(H24=1,I71,0) -> 0 | J72: =IF(J24=1,I71,0) -> 0 | K72: =IF(K24=1,L71,0) -> 1 | M72: =IF(M24=1,L71,0) -> 0 | N72: =IF(N24=1,O71,0) -> 0 | P72: =IF(P24=1,O71,0) -> 0 | Q72: =IF(Q24=1,R71,0) -> 1 | S72: =IF(S24=1,R71,0) -> 0 | T72: =IF(T24=1,U71,0) -> 0 | V72: =IF(V24=1,U71,0) -> 0 | W72: =IF(W24=1,X71,0) -> 0 | Y72: =IF(Y24=1,X71,0) -> 0 | Z72: =IF(Z24=1,AA71,0) -> 0 | AB72: =IF(AB24=1,AA71,0) -> 0 | AC72: =IF(AC24=1,AD71,0) -> 0 | AE72: =IF(AE24=1,AD71,0) -> 0 | AF72: =SUM(B72:AE72) -> 3
A73: Tm2 Play | B73: =IF(B24=2,C71,0) -> 1 | D73: =IF(D24=2,C71,0) -> 0 | E73: =IF(E24=2,F71,0) -> 0 | G73: =IF(G24=2,F71,0) -> 0 | H73: =IF(H24=2,I71,0) -> 1 | J73: =IF(J24=2,I71,0) -> 0 | K73: =IF(K24=2,L71,0) -> 0 | M73: =IF(M24=2,L71,0) -> 0 | N73: =IF(N24=2,O71,0) -> 0 | P73: =IF(P24=2,O71,0) -> 0 | Q73: =IF(Q24=2,R71,0) -> 0 | S73: =IF(S24=2,R71,0) -> 1 | T73: =IF(T24=2,U71,0) -> 0 | V73: =IF(V24=2,U71,0) -> 0 | W73: =IF(W24=2,X71,0) -> 0 | Y73: =IF(Y24=2,X71,0) -> 0 | Z73: =IF(Z24=2,AA71,0) -> 0 | AB73: =IF(AB24=2,AA71,0) -> 0 | AC73: =IF(AC24=2,AD71,0) -> 0 | AE73: =IF(AE24=2,AD71,0) -> 0 | AF73: =SUM(B73:AE73) -> 3
A74: Tm3 Play | B74: =IF(B24=3,C71,0) -> 0 | D74: =IF(D24=3,C71,0) -> 1 | E74: =IF(E24=3,F71,0) -> 0 | G74: =IF(G24=3,F71,0) -> 0 | H74: =IF(H24=3,I71,0) -> 0 | J74: =IF(J24=3,I71,0) -> 0 | K74: =IF(K24=3,L71,0) -> 0 | M74: =IF(M24=3,L71,0) -> 1 | N74: =IF(N24=3,O71,0) -> 1 | P74: =IF(P24=3,O71,0) -> 0 | Q74: =IF(Q24=3,R71,0) -> 0 | S74: =IF(S24=3,R71,0) -> 0 | T74: =IF(T24=3,U71,0) -> 0 | V74: =IF(V24=3,U71,0) -> 0 | W74: =IF(W24=3,X71,0) -> 0 | Y74: =IF(Y24=3,X71,0) -> 0 | Z74: =IF(Z24=3,AA71,0) -> 0 | AB74: =IF(AB24=3,AA71,0) -> 0 | AC74: =IF(AC24=3,AD71,0) -> 0 | AE74: =IF(AE24=3,AD71,0) -> 0 | AF74: =SUM(B74:AE74) -> 3
A75: Tm4 Play | B75: =IF(B24=4,C71,0) -> 0 | D75: =IF(D24=4,C71,0) -> 0 | E75: =IF(E24=4,F71,0) -> 0 | G75: =IF(G24=4,F71,0) -> 1 | H75: =IF(H24=4,I71,0) -> 0 | J75: =IF(J24=4,I71,0) -> 1 | K75: =IF(K24=4,L71,0) -> 0 | M75: =IF(M24=4,L71,0) -> 0 | N75: =IF(N24=4,O71,0) -> 0 | P75: =IF(P24=4,O71,0) -> 1 | Q75: =IF(Q24=4,R71,0) -> 0 | S75: =IF(S24=4,R71,0) -> 0 | T75: =IF(T24=4,U71,0) -> 0 | V75: =IF(V24=4,U71,0) -> 0 | W75: =IF(W24=4,X71,0) -> 0 | Y75: =IF(Y24=4,X71,0) -> 0 | Z75: =IF(Z24=4,AA71,0) -> 0 | AB75: =IF(AB24=4,AA71,0) -> 0 | AC75: =IF(AC24=4,AD71,0) -> 0 | AE75: =IF(AE24=4,AD71,0) -> 0 | AF75: =SUM(B75:AE75) -> 3
A76: Tm5 Play | B76: =IF(B24=5,C71,0) -> 0 | D76: =IF(D24=5,C71,0) -> 0 | E76: =IF(E24=5,F71,0) -> 0 | G76: =IF(G24=5,F71,0) -> 0 | H76: =IF(H24=5,I71,0) -> 0 | J76: =IF(J24=5,I71,0) -> 0 | K76: =IF(K24=5,L71,0) -> 0 | M76: =IF(M24=5,L71,0) -> 0 | N76: =IF(N24=5,O71,0) -> 0 | P76: =IF(P24=5,O71,0) -> 0 | Q76: =IF(Q24=5,R71,0) -> 0 | S76: =IF(S24=5,R71,0) -> 0 | T76: =IF(T24=5,U71,0) -> 0 | V76: =IF(V24=5,U71,0) -> 0 | W76: =IF(W24=5,X71,0) -> 0 | Y76: =IF(Y24=5,X71,0) -> 0 | Z76: =IF(Z24=5,AA71,0) -> 0 | AB76: =IF(AB24=5,AA71,0) -> 0 | AC76: =IF(AC24=5,AD71,0) -> 0 | AE76: =IF(AE24=5,AD71,0) -> 0 | AF76: =SUM(B76:AE76) -> 0
C78: Init | D78: 1 | G78: 2 | J78: 3 | M78: 4 | P78: 5 | S78: 6 | V78: 7 | Y78: 8 | AB78: 9 | AE78: 10 | AT78: End of Pool
A79: 1 | B79: =E8 -> SC Midlands KP Garnet | C79: =VLOOKUP(B79,AU$3:AY$12,3,FALSE) -> 1200 | D79: =IF(B72,B87,IF(D72,D87,C79)) -> 1200 | G79: =IF(E72,E87,IF(G72,G87,D79)) -> 1216 | J79: =IF(H72,H87,IF(J72,J87,G79)) -> 1216 | M79: =IF(K72,K87,IF(M72,M87,J79)) -> 1198.530498 | P79: =IF(N72,N87,IF(P72,P87,M79)) -> 1198.530498 | S79: =IF(Q72,Q87,IF(S72,S87,P79)) -> 1182.530498 | V79: =IF(T72,T87,IF(V72,V87,S79)) -> 1182.530498 | Y79: =IF(W72,W87,IF(Y72,Y87,V79)) -> 1182.530498 | AB79: =IF(Z72,Z87,IF(AB72,AB87,Y79)) -> 1182.530498 | AE79: =IF(AC72,AC87,IF(AE72,AE87,AB79)) -> 1182.530498 | AT79: =B79 -> SC Midlands KP Garnet | AU79: =AE79 -> 1182.530498
A80: 2 | B80: =E10 -> Intense Kids power Gvl | C80: =VLOOKUP(B80,AU$3:AY$12,3,FALSE) -> 1200 | D80: =IF(B73,B87,IF(D73,D87,C80)) -> 1216 | G80: =IF(E73,E87,IF(G73,G87,D80)) -> 1216 | J80: =IF(H73,H87,IF(J73,J87,G80)) -> 1198.530498 | M80: =IF(K73,K87,IF(M73,M87,J80)) -> 1198.530498 | P80: =IF(N73,N87,IF(P73,P87,M80)) -> 1198.530498 | S80: =IF(Q73,Q87,IF(S73,S87,P80)) -> 1214.530498 | V80: =IF(T73,T87,IF(V73,V87,S80)) -> 1214.530498 | Y80: =IF(W73,W87,IF(Y73,Y87,V80)) -> 1214.530498 | AB80: =IF(Z73,Z87,IF(AB73,AB87,Y80)) -> 1214.530498 | AE80: =IF(AC73,AC87,IF(AE73,AE87,AB80)) -> 1214.530498 | AT80: =B80 -> Intense Kids power Gvl | AU80: =AE80 -> 1214.530498
A81: 3 | B81: =E12 -> SC Midlands KP White | C81: =VLOOKUP(B81,AU$3:AY$12,3,FALSE) -> 1200 | D81: =IF(B74,B87,IF(D74,D87,C81)) -> 1184 | G81: =IF(E74,E87,IF(G74,G87,D81)) -> 1184 | J81: =IF(H74,H87,IF(J74,J87,G81)) -> 1184 | M81: =IF(K74,K87,IF(M74,M87,J81)) -> 1201.469502 | P81: =IF(N74,N87,IF(P74,P87,M81)) -> 1185.469502 | S81: =IF(Q74,Q87,IF(S74,S87,P81)) -> 1185.469502 | V81: =IF(T74,T87,IF(V74,V87,S81)) -> 1185.469502 | Y81: =IF(W74,W87,IF(Y74,Y87,V81)) -> 1185.469502 | AB81: =IF(Z74,Z87,IF(AB74,AB87,Y81)) -> 1185.469502 | AE81: =IF(AC74,AC87,IF(AE74,AE87,AB81)) -> 1185.469502 | AT81: =B81 -> SC Midlands KP White | AU81: =AE81 -> 1185.469502
A82: 4 | B82: =E14 -> BVA 11 | C82: =VLOOKUP(B82,AU$3:AY$12,3,FALSE) -> 1200 | D82: =IF(B75,B87,IF(D75,D87,C82)) -> 1200 | G82: =IF(E75,E87,IF(G75,G87,D82)) -> 1184 | J82: =IF(H75,H87,IF(J75,J87,G82)) -> 1201.469502 | M82: =IF(K75,K87,IF(M75,M87,J82)) -> 1201.469502 | P82: =IF(N75,N87,IF(P75,P87,M82)) -> 1217.469502 | S82: =IF(Q75,Q87,IF(S75,S87,P82)) -> 1217.469502 | V82: =IF(T75,T87,IF(V75,V87,S82)) -> 1217.469502 | Y82: =IF(W75,W87,IF(Y75,Y87,V82)) -> 1217.469502 | AB82: =IF(Z75,Z87,IF(AB75,AB87,Y82)) -> 1217.469502 | AE82: =IF(AC75,AC87,IF(AE75,AE87,AB82)) -> 1217.469502 | AT82: =B82 -> BVA 11 | AU82: =AE82 -> 1217.469502
A83: 5 | B83: =E16 -> 0 | C83: =VLOOKUP(B83,AU$3:AY$12,3,FALSE) ->  | D83: =IF(B76,B87,IF(D76,D87,C83)) ->  | G83: =IF(E76,E87,IF(G76,G87,D83)) ->  | J83: =IF(H76,H87,IF(J76,J87,G83)) ->  | M83: =IF(K76,K87,IF(M76,M87,J83)) ->  | P83: =IF(N76,N87,IF(P76,P87,M83)) ->  | S83: =IF(Q76,Q87,IF(S76,S87,P83)) ->  | V83: =IF(T76,T87,IF(V76,V87,S83)) ->  | Y83: =IF(W76,W87,IF(Y76,Y87,V83)) ->  | AB83: =IF(Z76,Z87,IF(AB76,AB87,Y83)) ->  | AE83: =IF(AC76,AC87,IF(AE76,AE87,AB83)) ->  | AT83: =B83 -> 0 | AU83: =AE83 -> 
A85: Init Rating | B85: =VLOOKUP(B24,$A79:$AE83,3,FALSE) -> 1200 | C85: 1 | D85: =VLOOKUP(D24,$A79:$AE83,3,FALSE) -> 1200 | E85: =VLOOKUP(E24,$A79:$AE83,4,FALSE) -> 1200 | F85: 2 | G85: =VLOOKUP(G24,$A79:$AE83,4,FALSE) -> 1200 | H85: =VLOOKUP(H24,$A79:$AE83,7,FALSE) -> 1216 | I85: 3 | J85: =VLOOKUP(J24,$A79:$AE83,7,FALSE) -> 1184 | K85: =VLOOKUP(K24,$A79:$AE83,10,FALSE) -> 1216 | L85: 4 | M85: =VLOOKUP(M24,$A79:$AE83,10,FALSE) -> 1184 | N85: =VLOOKUP(N24,$A79:$AE83,13,FALSE) -> 1201.469502 | O85: 5 | P85: =VLOOKUP(P24,$A79:$AE83,13,FALSE) -> 1201.469502 | Q85: =VLOOKUP(Q24,$A79:$AE83,16,FALSE) -> 1198.530498 | R85: 6 | S85: =VLOOKUP(S24,$A79:$AE83,16,FALSE) -> 1198.530498 | T85: =VLOOKUP(T24,$A79:$AE83,19,FALSE) -> 1214.530498 | U85: 7 | V85: =VLOOKUP(V24,$A79:$AE83,19,FALSE) -> 1185.469502 | W85: =VLOOKUP(W24,$A79:$AE83,22,FALSE) -> 1182.530498 | X85: 8 | Y85: =VLOOKUP(Y24,$A79:$AE83,22,FALSE) ->  | Z85: =VLOOKUP(Z24,$A79:$AE83,25,FALSE) -> 1185.469502 | AA85: 9 | AB85: =VLOOKUP(AB24,$A79:$AE83,25,FALSE) -> 1217.469502 | AC85: =VLOOKUP(AC24,$A79:$AE83,28,FALSE) -> 1182.530498 | AD85: 10 | AE85: =VLOOKUP(AE24,$A79:$AE83,28,FALSE) -> 1214.530498
A86: Exp wins | B86: =1/(1+(10^-((B85-D85)/400)))*(B36+D36) -> 0.5 | D86: =1/(1+(10^-((D85-B85)/400)))*(B36+D36) -> 0.5 | E86: =1/(1+(10^-((E85-G85)/400)))*(E36+G36) -> 0.5 | G86: =1/(1+(10^-((G85-E85)/400)))*(E36+G36) -> 0.5 | H86: =1/(1+(10^-((H85-J85)/400)))*(H36+J36) -> 0.5459219228 | J86: =1/(1+(10^-((J85-H85)/400)))*(H36+J36) -> 0.4540780772 | K86: =1/(1+(10^-((K85-M85)/400)))*(K36+M36) -> 0.5459219228 | M86: =1/(1+(10^-((M85-K85)/400)))*(K36+M36) -> 0.4540780772 | N86: =1/(1+(10^-((N85-P85)/400)))*(N36+P36) -> 0.5 | P86: =1/(1+(10^-((P85-N85)/400)))*(N36+P36) -> 0.5 | Q86: =1/(1+(10^-((Q85-S85)/400)))*(Q36+S36) -> 0.5 | S86: =1/(1+(10^-((S85-Q85)/400)))*(Q36+S36) -> 0.5 | T86: =1/(1+(10^-((T85-V85)/400)))*(T36+V36) -> 0 | V86: =1/(1+(10^-((V85-T85)/400)))*(T36+V36) -> 0 | W86: =1/(1+(10^-((W85-Y85)/400)))*(W36+Y36) ->  | Y86: =1/(1+(10^-((Y85-W85)/400)))*(W36+Y36) ->  | Z86: =1/(1+(10^-((Z85-AB85)/400)))*(Z36+AB36) -> 0 | AB86: =1/(1+(10^-((AB85-Z85)/400)))*(Z36+AB36) -> 0 | AC86: =1/(1+(10^-((AC85-AE85)/400)))*(AC36+AE36) -> 0 | AE86: =1/(1+(10^-((AE85-AC85)/400)))*(AC36+AE36) -> 0
A87: New Rating | B87: =B85+(B36-B86)*$BA$1 -> 1216 | D87: =D85+(D36-D86)*$BA$1 -> 1184 | E87: =E85+(E36-E86)*$BA$1 -> 1216 | G87: =G85+(G36-G86)*$BA$1 -> 1184 | H87: =H85+(H36-H86)*$BA$1 -> 1198.530498 | J87: =J85+(J36-J86)*$BA$1 -> 1201.469502 | K87: =K85+(K36-K86)*$BA$1 -> 1198.530498 | M87: =M85+(M36-M86)*$BA$1 -> 1201.469502 | N87: =N85+(N36-N86)*$BA$1 -> 1185.469502 | P87: =P85+(P36-P86)*$BA$1 -> 1217.469502 | Q87: =Q85+(Q36-Q86)*$BA$1 -> 1182.530498 | S87: =S85+(S36-S86)*$BA$1 -> 1214.530498 | T87: =T85+(T36-T86)*$BA$1 -> 1214.530498 | V87: =V85+(V36-V86)*$BA$1 -> 1185.469502 | W87: =W85+(W36-W86)*$BA$1 ->  | Y87: =Y85+(Y36-Y86)*$BA$1 ->  | Z87: =Z85+(Z36-Z86)*$BA$1 -> 1185.469502 | AB87: =AB85+(AB36-AB86)*$BA$1 -> 1217.469502 | AC87: =AC85+(AC36-AC86)*$BA$1 -> 1182.530498 | AE87: =AE85+(AE36-AE86)*$BA$1 -> 1214.530498
A89: =IF($AK10=1,"Pool Tiereaker : 1) Matches Won vs Lost (if 3 way tie then #4) 2) Head to Head 3) Game Win % 4) Total Pool Net Points 5) Flip a Coin","Pool Tiebreaker : 1) Games Won vs Lost (if 3 way tie then #5) 2) Head to Head 3) Head to Head Net Points 4) Game Win % 5) Total Pool Net Points 6) Flip a Coin") -> Pool Tiereaker : 1) Matches Won vs Lost (if 3 way tie then #4) 2) Head to Head 3) Game Win % 4) Total Pool Net Points 5) Flip a Coin
A91: POOL: | B91: B | C91: COURT: | I91: 2 | K91: ="Pool "&B91&" - Round 1 - Court "&I91 -> Pool B - Round 1 - Court 2
A92: Team # | B92: Team Name | L92: =IF($AK95=0,"Games Won","Matches Won") -> Matches Won | R92: =IF($AK95=0,"Games Lost","Matches Lost") -> Matches Lost | W92: Total Pool Net Points | Z92: % Total Net Points | AC92: Game Win % | AF92: Pool Finish | AG92: # | AH92: Playoff Finish | AK92: 1 | AL92: Games per Match (1-5)
A93: =IF($AK94>0,"1","") -> 1 | B93: Team Name | E93: =AU4 -> SC Midlands KP Boys | L93: =IF($AK95=0,AF149,AF131) -> 3 | R93: =IF($AK95=0,AG149,AG131) -> 0 | W93: =AQ109 -> 31 | Z93: =IF(AF143>0,(AQ109/AF143),0) -> 0.4428571429 | AC93: =IF(AF157=0,0,(AF149/AF157)) -> 1 | AF93: 1 | AG93: 1 | AK93: 6 | AL93: Matches (1-10)
B94: Team Code | E94: =AV4 -> fj2scmid3pm | AK94: 4 | AL94: Teams in Pool (1-5)
A95: =IF($AK94>1,"2","") -> 2 | B95: Team Name | E95: =AU5 -> Magnum 11 Black | L95: =IF($AK95=0,AF150,AF132) -> 1 | R95: =IF($AK95=0,AG150,AG132) -> 2 | W95: =AQ110 -> -8 | Z95: =IF(AF144>0,(AQ110/AF144),0) -> -0.125 | AC95: =IF(AF158=0,0,(AF150/AF158)) -> 0.3333333333 | AF95: 3 | AG95: 4 | AK95: 1 | AL95: 0-Count Games 1-Count Matches
B96: Team Code | E96: =AV5 -> fj1magnm1pm | AK96: 1 | AL96: Game Win % 0 = No 1 = Yes
A97: =IF($AK94>2,"3","") -> 3 | B97: Team Name | E97: =AU8 -> C1VB Juniors Royal | L97: =IF($AK95=0,AF151,AF133) -> 1 | R97: =IF($AK95=0,AG151,AG133) -> 2 | W97: =AQ111 -> -17 | Z97: =IF(AF145>0,(AQ111/AF145),0) -> -0.2575757576 | AC97: =IF(AF159=0,0,(AF151/AF159)) -> 0.3333333333 | AF97: 4 | AG97: 4 | AK97: 3 | AL97: # of Matches/Games per Team
B98: Team Code | E98: =AV8 -> fj2crone7pm
A99: =IF($AK94>3,"4","") -> 4 | B99: Team Name | E99: =AU9 -> SC Midlands KP Black | L99: =IF($AK95=0,AF152,AF134) -> 1 | R99: =IF($AK95=0,AG152,AG134) -> 2 | W99: =AQ112 -> -6 | Z99: =IF(AF146>0,(AQ112/AF146),0) -> -0.1 | AC99: =IF(AF160=0,0,(AF152/AF160)) -> 0.3333333333 | AF99: 2 | AG99: 4
B100: Team Code | E100: =AV9 -> fj1scmid1pm
A101: =IF($AK94>4,"5","") ->  | B101: Team Name | E101: =AU12 -> 0 | L101: =IF($AK95=0,AF153,AF135) -> 0 | R101: =IF($AK95=0,AG153,AG135) -> 0 | W101: =AQ113 -> 0 | Z101: =IF(AF147>0,(AQ113/AF147),0) -> 0 | AC101: =IF(AF161=0,0,(AF153/AF161)) -> 0
B102: Team Code | E102: =AV12 -> 0
B103: POOL PLAY FORMAT: Best of 3 (25-25-15) 2 pt cap
A104: Sch Start | B104: 08:30:00 | E104: 09:30:00 | H104: 10:30:00 | K104: 12:00:00 | N104: 01:00:00 | Q104: 02:00:00 | T104: 01:00:00 | W104: 01:45:00 | Z104: 02:30:00 | AC104: 03:15:00 | AF104: Note: The Pool Finish Summary at the bottom of the sheet will fill in AUTOMATICALLY once the POOL FINISH column (at left) is filled in.
A105: Actual Start
A106: End Time
B107: Match 1 | E107: =IF(AK93>1,"Match 2","") -> Match 2 | H107: =IF(AK93>2,"Match 3","") -> Match 3 | K107: =IF(AK93>3,"Match 4","") -> Match 4 | N107: =IF(AK93>4,"Match 5","") -> Match 5 | Q107: =IF(AK93>5,"Match 6","") -> Match 6 | T107: =IF(AK93>6,"Match 7","") ->  | W107: =IF(AK93>7,"Match 8","") ->  | Z107: =IF(AK93>8,"Match 9","") ->  | AC107: =IF(AK93>9,"Match 10","") -> 
B108: 1 refs | E108: 2 refs | H108: 3 refs | K108: 4 refs | N108: 2 refs | Q108: 3 refs | T108: 4 refs | W108: 2 refs | Z108: 5 refs | AC108: 3 refs | AF108: Net Points | AG108: 1 | AH108: 2 | AI108: 3 | AJ108: 4 | AK108: 5 | AL108: 6 | AM108: 7 | AN108: 8 | AO108: 9 | AP108: 10 | AQ108: Total
B109: 2 | C109: v | D109: 3 | E109: 1 | F109: =IF(AK93>1,"v","") -> v | G109: 4 | H109: 2 | I109: =IF(AK93>2,"v","") -> v | J109: 4 | K109: 1 | L109: =IF(AK93>3,"v","") -> v | M109: 3 | N109: 3 | O109: =IF(AK93>4,"v","") -> v | P109: 4 | Q109: 1 | R109: =IF(AK93>5,"v","") -> v | S109: 2 | T109: 2 | U109: =IF(AK93>6,"v","") ->  | V109: 3 | W109: 1 | X109: =IF(AK93>7,"v","") ->  | Y109: 5 | Z109: 3 | AA109: =IF(AK93>8,"v","") ->  | AB109: 4 | AC109: 1 | AD109: =IF(AK93>9,"v","") ->  | AE109: 2 | AF109: =IF(AK94>0,"Team 1","") -> Team 1 | AG109: =IF(AK94<1,"",IF(AK93<1,"",IF(B109=1,B115-D115,IF(D109=1,D115-B115,"")))) ->  | AH109: =IF(AK94<1,"",IF(AK93<2,"",IF(E109=1,E115-G115,IF(G109=1,G115-E115,"")))) -> 8 | AI109: =IF(AK94<1,"",IF(AK93<3,"",IF(H109=1,H115-J115,IF(J109=1,J115-H115,"")))) ->  | AJ109: =IF(AK94<1,"",IF(AK93<4,"",IF(K109=1,K115-M115,IF(M109=1,M115-K115,"")))) -> 14 | AK109: =IF(AK94<1,"",IF(AK93<5,"",IF(N109=1,N115-P115,IF(P109=1,P115-N115,"")))) ->  | AL109: =IF(AK94<1,"",IF(AK93<6,"",IF(Q109=1,Q115-S115,IF(S109=1,S115-Q115,"")))) -> 9 | AM109: =IF(AK94<1,"",IF(AK93<7,"",IF(T109=1,T115-V115,IF(V109=1,V115-T115,"")))) ->  | AN109: =IF(AK94<1,"",IF(AK93<8,"",IF(W109=1,W115-Y115,IF(Y109=1,Y115-W115,"")))) ->  | AO109: =IF(AK94<1,"",IF(AK93<9,"",IF(Z109=1,Z115-AB115,IF(AB109=1,AB115-Z115,"")))) ->  | AP109: =IF(AK94<1,"",IF(AK93<10,"",IF(AC109=1,AC115-AE115,IF(AE109=1,AE115-AC115,"")))) ->  | AQ109: =SUM(AG109:AP109) -> 31
A110: Game 1 | B110: 22 | C110: / | D110: 18 | E110: 22 | F110: =IF(AK93>1,"/","") -> / | G110: 14 | H110: 16 | I110: =IF(AK93>2,"/","") -> / | J110: 19 | K110: 25 | L110: =IF(AK93>3,"/","") -> / | M110: 11 | N110: 19 | O110: =IF(AK93>4,"/","") -> / | P110: 18 | Q110: 23 | R110: =IF(AK93>5,"/","") -> / | S110: 14 | U110: =IF(AK93>6,"/","") ->  | X110: =IF(AK93>7,"/","") ->  | AA110: =IF(AK93>8,"/","") ->  | AD110: =IF(AK93>9,"/","") ->  | AF110: =IF(AK94>1,"Team 2","") -> Team 2 | AG110: =IF(AK94<2,"",IF(AK93<1,"",IF(B109=2,B115-D115,IF(D109=2,D115-B115,"")))) -> 4 | AH110: =IF(AK94<2,"",IF(AK93<2,"",IF(E109=2,E115-G115,IF(G109=2,G115-E115,"")))) ->  | AI110: =IF(AK94<2,"",IF(AK93<3,"",IF(H109=2,H115-J115,IF(J109=2,J115-H115,"")))) -> -3 | AJ110: =IF(AK94<2,"",IF(AK93<4,"",IF(K109=2,K115-M115,IF(M109=2,M115-K115,"")))) ->  | AK110: =IF(AK94<2,"",IF(AK93<5,"",IF(N109=2,N115-P115,IF(P109=2,P115-N115,"")))) ->  | AL110: =IF(AK94<2,"",IF(AK93<6,"",IF(Q109=2,Q115-S115,IF(S109=2,S115-Q115,"")))) -> -9 | AM110: =IF(AK94<2,"",IF(AK93<7,"",IF(T109=2,T115-V115,IF(V109=2,V115-T115,"")))) ->  | AN110: =IF(AK94<2,"",IF(AK93<8,"",IF(W109=2,W115-Y115,IF(Y109=2,Y115-W115,"")))) ->  | AO110: =IF(AK94<2,"",IF(AK93<9,"",IF(Z109=2,Z115-AB115,IF(AB109=2,AB115-Z115,"")))) ->  | AP110: =IF(AK94<2,"",IF(AK93<10,"",IF(AC109=2,AC115-AE115,IF(AE109=2,AE115-AC115,"")))) ->  | AQ110: =SUM(AG110:AP110) -> -8
A111: =IF(AK92>1,"Game 2","") ->  | C111: / | F111: =IF(AK93>1,IF(AK92>1,"/",""),"") ->  | I111: =IF(AK93>2,IF(AK92>1,"/",""),"") ->  | L111: =IF(AK93>3,IF(AK92>1,"/",""),"") ->  | O111: =IF(AK93>4,IF(AK92>1,"/",""),"") ->  | R111: =IF(AK93>5,IF(AK92>1,"/",""),"") ->  | U111: =IF(AK93>6,IF(AK92>1,"/",""),"") ->  | X111: =IF(AK93>7,IF(AK92>1,"/",""),"") ->  | AA111: =IF(AK93>8,IF(AK92>1,"/",""),"") ->  | AD111: =IF(AK93>9,IF(AK92>1,"/",""),"") ->  | AF111: =IF(AK94>2,"Team 3","") -> Team 3 | AG111: =IF(AK94<3,"",IF(AK93<1,"",IF(B109=3,B115-D115,IF(D109=3,D115-B115,"")))) -> -4 | AH111: =IF(AK94<3,"",IF(AK93<2,"",IF(E109=3,E115-G115,IF(G109=3,G115-E115,"")))) ->  | AI111: =IF(AK94<3,"",IF(AK93<3,"",IF(H109=3,H115-J115,IF(J109=3,J115-H115,"")))) ->  | AJ111: =IF(AK94<3,"",IF(AK93<4,"",IF(K109=3,K115-M115,IF(M109=3,M115-K115,"")))) -> -14 | AK111: =IF(AK94<3,"",IF(AK93<5,"",IF(N109=3,N115-P115,IF(P109=3,P115-N115,"")))) -> 1 | AL111: =IF(AK94<3,"",IF(AK93<6,"",IF(Q109=3,Q115-S115,IF(S109=3,S115-Q115,"")))) ->  | AM111: =IF(AK94<3,"",IF(AK93<7,"",IF(T109=3,T115-V115,IF(V109=3,V115-T115,"")))) ->  | AN111: =IF(AK94<3,"",IF(AK93<8,"",IF(W109=3,W115-Y115,IF(Y109=3,Y115-W115,"")))) ->  | AO111: =IF(AK94<3,"",IF(AK93<9,"",IF(Z109=3,Z115-AB115,IF(AB109=3,AB115-Z115,"")))) ->  | AP111: =IF(AK94<3,"",IF(AK93<9,"",IF(AC109=3,AC115-AE115,IF(AE109=3,AE115-AC115,"")))) ->  | AQ111: =SUM(AG111:AP111) -> -17
A112: =IF(AK92>2,"Game 3","") ->  | C112: / | F112: =IF(AK93>1,IF(AK92>2,"/",""),"") ->  | I112: =IF(AK93>2,IF(AK92>2,"/",""),"") ->  | L112: =IF(AK93>3,IF(AK92>2,"/",""),"") ->  | O112: =IF(AK93>4,IF(AK92>2,"/",""),"") ->  | R112: =IF(AK93>5,IF(AK92>2,"/",""),"") ->  | U112: =IF(AK93>6,IF(AK92>2,"/",""),"") ->  | X112: =IF(AK93>7,IF(AK92>2,"/",""),"") ->  | AA112: =IF(AK93>8,IF(AK92>2,"/",""),"") ->  | AD112: =IF(AK93>9,IF(AK92>2,"/",""),"") ->  | AF112: =IF(AK94>3,"Team 4","") -> Team 4 | AG112: =IF(AK94<4,"",IF(AK93<1,"",IF(B109=4,B115-D115,IF(D109=4,D115-B115,"")))) ->  | AH112: =IF(AK94<4,"",IF(AK93<2,"",IF(E109=4,E115-G115,IF(G109=4,G115-E115,"")))) -> -8 | AI112: =IF(AK94<4,"",IF(AK93<3,"",IF(H109=4,H115-J115,IF(J109=4,J115-H115,"")))) -> 3 | AJ112: =IF(AK94<4,"",IF(AK93<4,"",IF(K109=4,K115-M115,IF(M109=4,M115-K115,"")))) ->  | AK112: =IF(AK94<4,"",IF(AK93<5,"",IF(N109=4,N115-P115,IF(P109=4,P115-N115,"")))) -> -1 | AL112: =IF(AK94<4,"",IF(AK93<6,"",IF(Q109=4,Q115-S115,IF(S109=4,S115-Q115,"")))) ->  | AM112: =IF(AK94<4,"",IF(AK93<7,"",IF(T109=4,T115-V115,IF(V109=4,V115-T115,"")))) ->  | AN112: =IF(AK94<4,"",IF(AK93<8,"",IF(W109=4,W115-Y115,IF(Y109=4,Y115-W115,"")))) ->  | AO112: =IF(AK94<4,"",IF(AK93<9,"",IF(Z109=4,Z115-AB115,IF(AB109=4,AB115-Z115,"")))) ->  | AP112: =IF(AK94<4,"",IF(AK93<10,"",IF(AC109=4,AC115-AE115,IF(AE109=4,AE115-AC115,"")))) ->  | AQ112: =SUM(AG112:AP112) -> -6
A113: =IF(AK92>3,"Game 4","") ->  | C113: / | F113: =IF(AK93>1,IF(AK92>3,"/",""),"") ->  | I113: =IF(AK93>2,IF(AK92>3,"/",""),"") ->  | L113: =IF(AK93>3,IF(AK92>3,"/",""),"") ->  | O113: =IF(AK93>4,IF(AK92>3,"/",""),"") ->  | R113: =IF(AK93>5,IF(AK92>3,"/",""),"") ->  | U113: =IF(AK93>6,IF(AK92>3,"/",""),"") ->  | X113: =IF(AK93>7,IF(AK92>3,"/",""),"") ->  | AA113: =IF(AK93>8,IF(AK92>3,"/",""),"") ->  | AD113: =IF(AK93>9,IF(AK92>3,"/",""),"") ->  | AF113: =IF(AK94>4,"Team 5","") ->  | AG113: =IF(AK94<5,"",IF(AK93<1,"",IF(B109=5,B115-D115,IF(D109=5,D115-B115,"")))) ->  | AH113: =IF(AK94<5,"",IF(AK93<2,"",IF(E109=5,E115-G115,IF(G109=5,G115-E115,"")))) ->  | AI113: =IF(AK94<5,"",IF(AK93<3,"",IF(H109=5,H115-J115,IF(J109=5,J115-H115,"")))) ->  | AJ113: =IF(AK94<5,"",IF(AK93<4,"",IF(K109=5,K115-M115,IF(M109=5,M115-K115,"")))) ->  | AK113: =IF(AK94<5,"",IF(AK93<5,"",IF(N109=5,N115-P115,IF(P109=5,P115-N115,"")))) ->  | AL113: =IF(AK94<5,"",IF(AK93<6,"",IF(Q109=5,Q115-S115,IF(S109=5,S115-Q115,"")))) ->  | AM113: =IF(AK94<5,"",IF(AK93<7,"",IF(T109=5,T115-V115,IF(V109=5,V115-T115,"")))) ->  | AN113: =IF(AK94<5,"",IF(AK93<8,"",IF(W109=5,W115-Y115,IF(Y109=5,Y115-W115,"")))) ->  | AO113: =IF(AK94<5,"",IF(AK93<9,"",IF(Z109=5,Z115-AB115,IF(AB109=5,AB115-Z115,"")))) ->  | AP113: =IF(AK94<5,"",IF(AK93<10,"",IF(AC109=5,AC115-AE115,IF(AE109=5,AE115-AC115,"")))) ->  | AQ113: =SUM(AG113:AP113) -> 0
A114: =IF(AK92>4,"Game 5","") ->  | C114: / | F114: =IF(AK93>1,IF(AK92>4,"/",""),"") ->  | I114: =IF(AK93>2,IF(AK92>4,"/",""),"") ->  | L114: =IF(AK93>3,IF(AK92>4,"/",""),"") ->  | O114: =IF(AK93>4,IF(AK92>4,"/",""),"") ->  | R114: =IF(AK93>5,IF(AK92>4,"/",""),"") ->  | U114: =IF(AK93>6,IF(AK92>4,"/",""),"") ->  | X114: =IF(AK93>7,IF(AK92>4,"/",""),"") ->  | AA114: =IF(AK93>8,IF(AK92>4,"/",""),"") ->  | AD114: =IF(AK93>9,IF(AK92>4,"/",""),"") -> 
B115: =IF($AK92=5,SUM(B110:B114),IF($AK92=4,SUM(B110:B113),IF($AK92=3,SUM(B110:B112),IF($AK92=2,SUM(B110:B111),B110)))) -> 22 | D115: =IF($AK92=5,SUM(D110:D114),IF($AK92=4,SUM(D110:D113),IF($AK92=3,SUM(D110:D112),IF($AK92=2,SUM(D110:D111),D110)))) -> 18 | E115: =IF($AK92=5,SUM(E110:E114),IF($AK92=4,SUM(E110:E113),IF($AK92=3,SUM(E110:E112),IF($AK92=2,SUM(E110:E111),E110)))) -> 22 | G115: =IF($AK92=5,SUM(G110:G114),IF($AK92=4,SUM(G110:G113),IF($AK92=3,SUM(G110:G112),IF($AK92=2,SUM(G110:G111),G110)))) -> 14 | H115: =IF($AK92=5,SUM(H110:H114),IF($AK92=4,SUM(H110:H113),IF($AK92=3,SUM(H110:H112),IF($AK92=2,SUM(H110:H111),H110)))) -> 16 | J115: =IF($AK92=5,SUM(J110:J114),IF($AK92=4,SUM(J110:J113),IF($AK92=3,SUM(J110:J112),IF($AK92=2,SUM(J110:J111),J110)))) -> 19 | K115: =IF($AK92=5,SUM(K110:K114),IF($AK92=4,SUM(K110:K113),IF($AK92=3,SUM(K110:K112),IF($AK92=2,SUM(K110:K111),K110)))) -> 25 | M115: =IF($AK92=5,SUM(M110:M114),IF($AK92=4,SUM(M110:M113),IF($AK92=3,SUM(M110:M112),IF($AK92=2,SUM(M110:M111),M110)))) -> 11 | N115: =IF($AK92=5,SUM(N110:N114),IF($AK92=4,SUM(N110:N113),IF($AK92=3,SUM(N110:N112),IF($AK92=2,SUM(N110:N111),N110)))) -> 19 | P115: =IF($AK92=5,SUM(P110:P114),IF($AK92=4,SUM(P110:P113),IF($AK92=3,SUM(P110:P112),IF($AK92=2,SUM(P110:P111),P110)))) -> 18 | Q115: =IF($AK92=5,SUM(Q110:Q114),IF($AK92=4,SUM(Q110:Q113),IF($AK92=3,SUM(Q110:Q112),IF($AK92=2,SUM(Q110:Q111),Q110)))) -> 23 | S115: =IF($AK92=5,SUM(S110:S114),IF($AK92=4,SUM(S110:S113),IF($AK92=3,SUM(S110:S112),IF($AK92=2,SUM(S110:S111),S110)))) -> 14 | T115: =IF($AK92=5,SUM(T110:T114),IF($AK92=4,SUM(T110:T113),IF($AK92=3,SUM(T110:T112),IF($AK92=2,SUM(T110:T111),T110)))) -> 0 | V115: =IF($AK92=5,SUM(V110:V114),IF($AK92=4,SUM(V110:V113),IF($AK92=3,SUM(V110:V112),IF($AK92=2,SUM(V110:V111),V110)))) -> 0 | W115: =IF($AK92=5,SUM(W110:W114),IF($AK92=4,SUM(W110:W113),IF($AK92=3,SUM(W110:W112),IF($AK92=2,SUM(W110:W111),W110)))) -> 0 | Y115: =IF($AK92=5,SUM(Y110:Y114),IF($AK92=4,SUM(Y110:Y113),IF($AK92=3,SUM(Y110:Y112),IF($AK92=2,SUM(Y110:Y111),Y110)))) -> 0 | Z115: =IF($AK92=5,SUM(Z110:Z114),IF($AK92=4,SUM(Z110:Z113),IF($AK92=3,SUM(Z110:Z112),IF($AK92=2,SUM(Z110:Z111),Z110)))) -> 0 | AB115: =IF($AK92=5,SUM(AB110:AB114),IF($AK92=4,SUM(AB110:AB113),IF($AK92=3,SUM(AB110:AB112),IF($AK92=2,SUM(AB110:AB111),AB110)))) -> 0 | AC115: =IF($AK92=5,SUM(AC110:AC114),IF($AK92=4,SUM(AC110:AC113),IF($AK92=3,SUM(AC110:AC112),IF($AK92=2,SUM(AC110:AC111),AC110)))) -> 0 | AE115: =IF($AK92=5,SUM(AE110:AE114),IF($AK92=4,SUM(AE110:AE113),IF($AK92=3,SUM(AE110:AE112),IF($AK92=2,SUM(AE110:AE111),AE110)))) -> 0
A116: Gm1 Win | B116: =IF(AND(B110>D110,$AK93>0,ISNUMBER(B110),ISNUMBER(D110)),1,0) -> 1 | D116: =IF(AND(D110>B110,$AK93>0,ISNUMBER(B110),ISNUMBER(D110)),1,0) -> 0 | E116: =IF(AND(E110>G110,$AK93>1,ISNUMBER(E110),ISNUMBER(G110)),1,0) -> 1 | G116: =IF(AND(G110>E110,$AK93>1,ISNUMBER(E110),ISNUMBER(G110)),1,0) -> 0 | H116: =IF(AND(H110>J110,$AK93>2,ISNUMBER(H110),ISNUMBER(J110)),1,0) -> 0 | J116: =IF(AND(J110>H110,$AK93>2,ISNUMBER(H110),ISNUMBER(J110)),1,0) -> 1 | K116: =IF(AND(K110>M110,$AK93>3,ISNUMBER(K110),ISNUMBER(M110)),1,0) -> 1 | M116: =IF(AND(M110>K110,$AK93>3,ISNUMBER(K110),ISNUMBER(M110)),1,0) -> 0 | N116: =IF(AND(N110>P110,$AK93>4,ISNUMBER(N110),ISNUMBER(P110)),1,0) -> 1 | P116: =IF(AND(P110>N110,$AK93>4,ISNUMBER(N110),ISNUMBER(P110)),1,0) -> 0 | Q116: =IF(AND(Q110>S110,$AK93>5,ISNUMBER(Q110),ISNUMBER(S110)),1,0) -> 1 | S116: =IF(AND(S110>Q110,$AK93>5,ISNUMBER(Q110),ISNUMBER(S110)),1,0) -> 0 | T116: =IF(AND(T110>V110,$AK93>6,ISNUMBER(T110),ISNUMBER(V110)),1,0) -> 0 | V116: =IF(AND(V110>T110,$AK93>6,ISNUMBER(T110),ISNUMBER(V110)),1,0) -> 0 | W116: =IF(AND(W110>Y110,$AK93>7,ISNUMBER(W110),ISNUMBER(Y110)),1,0) -> 0 | Y116: =IF(AND(Y110>W110,$AK93>7,ISNUMBER(W110),ISNUMBER(Y110)),1,0) -> 0 | Z116: =IF(AND(Z110>AB110,$AK93>8,ISNUMBER(Z110),ISNUMBER(AB110)),1,0) -> 0 | AB116: =IF(AND(AB110>Z110,$AK93>8,ISNUMBER(Z110),ISNUMBER(AB110)),1,0) -> 0 | AC116: =IF(AND(AC110>AE110,$AK93>9,ISNUMBER(AC110),ISNUMBER(AE110)),1,0) -> 0 | AE116: =IF(AND(AE110>AC110,$AK93>9,ISNUMBER(AC110),ISNUMBER(AE110)),1,0) -> 0
A117: Gm2 Win | B117: =IF(AND(B111>D111,$AK93>0,$AK92>1,ISNUMBER(B111),ISNUMBER(D111)),1,0) -> 0 | D117: =IF(AND(D111>B111,$AK93>0,$AK92>1,ISNUMBER(B111),ISNUMBER(D111)),1,0) -> 0 | E117: =IF(AND(E111>G111,$AK93>1,$AK92>1,ISNUMBER(E111),ISNUMBER(G111)),1,0) -> 0 | G117: =IF(AND(G111>E111,$AK93>1,$AK92>1,ISNUMBER(E111),ISNUMBER(G111)),1,0) -> 0 | H117: =IF(AND(H111>J111,$AK93>2,$AK92>1,ISNUMBER(H111),ISNUMBER(J111)),1,0) -> 0 | J117: =IF(AND(J111>H111,$AK93>2,$AK92>1,ISNUMBER(H111),ISNUMBER(J111)),1,0) -> 0 | K117: =IF(AND(K111>M111,$AK93>3,$AK92>1,ISNUMBER(K111),ISNUMBER(M111)),1,0) -> 0 | M117: =IF(AND(M111>K111,$AK93>3,$AK92>1,ISNUMBER(K111),ISNUMBER(M111)),1,0) -> 0 | N117: =IF(AND(N111>P111,$AK93>4,$AK92>1,ISNUMBER(N111),ISNUMBER(P111)),1,0) -> 0 | P117: =IF(AND(P111>N111,$AK93>4,$AK92>1,ISNUMBER(N111),ISNUMBER(P111)),1,0) -> 0 | Q117: =IF(AND(Q111>S111,$AK93>5,$AK92>1,ISNUMBER(Q111),ISNUMBER(S111)),1,0) -> 0 | S117: =IF(AND(S111>Q111,$AK93>5,$AK92>1,ISNUMBER(Q111),ISNUMBER(S111)),1,0) -> 0 | T117: =IF(AND(T111>V111,$AK93>6,$AK92>1,ISNUMBER(T111),ISNUMBER(V111)),1,0) -> 0 | V117: =IF(AND(V111>T111,$AK93>6,$AK92>1,ISNUMBER(T111),ISNUMBER(V111)),1,0) -> 0 | W117: =IF(AND(W111>Y111,$AK93>7,$AK92>1,ISNUMBER(W111),ISNUMBER(Y111)),1,0) -> 0 | Y117: =IF(AND(Y111>W111,$AK93>7,$AK92>1,ISNUMBER(W111),ISNUMBER(Y111)),1,0) -> 0 | Z117: =IF(AND(Z111>AB111,$AK93>8,$AK92>1,ISNUMBER(Z111),ISNUMBER(AB111)),1,0) -> 0 | AB117: =IF(AND(AB111>Z111,$AK93>8,$AK92>1,ISNUMBER(Z111),ISNUMBER(AB111)),1,0) -> 0 | AC117: =IF(AND(AC111>AE111,$AK93>9,$AK92>1,ISNUMBER(AC111),ISNUMBER(AE111)),1,0) -> 0 | AE117: =IF(AND(AE111>AC111,$AK93>9,$AK92>1,ISNUMBER(AC111),ISNUMBER(AE111)),1,0) -> 0
A118: Gm3 Win | B118: =IF(AND(B112>D112,$AK93>0,$AK92>2,ISNUMBER(B112),ISNUMBER(D112)),1,0) -> 0 | D118: =IF(AND(D112>B112,$AK93>0,$AK92>2,ISNUMBER(B112),ISNUMBER(D112)),1,0) -> 0 | E118: =IF(AND(E112>G112,$AK93>1,$AK92>2,ISNUMBER(E112),ISNUMBER(G112)),1,0) -> 0 | G118: =IF(AND(G112>E112,$AK93>1,$AK92>2,ISNUMBER(E112),ISNUMBER(G112)),1,0) -> 0 | H118: =IF(AND(H112>J112,$AK93>2,$AK92>2,ISNUMBER(H112),ISNUMBER(J112)),1,0) -> 0 | J118: =IF(AND(J112>H112,$AK93>2,$AK92>2,ISNUMBER(H112),ISNUMBER(J112)),1,0) -> 0 | K118: =IF(AND(K112>M112,$AK93>3,$AK92>2,ISNUMBER(K112),ISNUMBER(M112)),1,0) -> 0 | M118: =IF(AND(M112>K112,$AK93>3,$AK92>2,ISNUMBER(K112),ISNUMBER(M112)),1,0) -> 0 | N118: =IF(AND(N112>P112,$AK93>4,$AK92>2,ISNUMBER(N112),ISNUMBER(P112)),1,0) -> 0 | P118: =IF(AND(P112>N112,$AK93>4,$AK92>2,ISNUMBER(N112),ISNUMBER(P112)),1,0) -> 0 | Q118: =IF(AND(Q112>S112,$AK93>5,$AK92>2,ISNUMBER(Q112),ISNUMBER(S112)),1,0) -> 0 | S118: =IF(AND(S112>Q112,$AK93>5,$AK92>2,ISNUMBER(Q112),ISNUMBER(S112)),1,0) -> 0 | T118: =IF(AND(T112>V112,$AK93>6,$AK92>2,ISNUMBER(T112),ISNUMBER(V112)),1,0) -> 0 | V118: =IF(AND(V112>T112,$AK93>6,$AK92>2,ISNUMBER(T112),ISNUMBER(V112)),1,0) -> 0 | W118: =IF(AND(W112>Y112,$AK93>7,$AK92>2,ISNUMBER(W112),ISNUMBER(Y112)),1,0) -> 0 | Y118: =IF(AND(Y112>W112,$AK93>7,$AK92>2,ISNUMBER(W112),ISNUMBER(Y112)),1,0) -> 0 | Z118: =IF(AND(Z112>AB112,$AK93>8,$AK92>2,ISNUMBER(Z112),ISNUMBER(AB112)),1,0) -> 0 | AB118: =IF(AND(AB112>Z112,$AK93>8,$AK92>2,ISNUMBER(Z112),ISNUMBER(AB112)),1,0) -> 0 | AC118: =IF(AND(AC112>AE112,$AK93>9,$AK92>2,ISNUMBER(AC112),ISNUMBER(AE112)),1,0) -> 0 | AE118: =IF(AND(AE112>AC112,$AK93>9,$AK92>2,ISNUMBER(AC112),ISNUMBER(AE112)),1,0) -> 0
A119: Gm4 Win | B119: =IF(AND(B113>D113,$AK93>0,$AK92>3,ISNUMBER(B113),ISNUMBER(D113)),1,0) -> 0 | D119: =IF(AND(D113>B113,$AK93>0,$AK92>3,ISNUMBER(B113),ISNUMBER(D113)),1,0) -> 0 | E119: =IF(AND(E113>G113,$AK93>1,$AK92>3,ISNUMBER(E113),ISNUMBER(G113)),1,0) -> 0 | G119: =IF(AND(G113>E113,$AK93>1,$AK92>3,ISNUMBER(E113),ISNUMBER(G113)),1,0) -> 0 | H119: =IF(AND(H113>J113,$AK93>2,$AK92>3,ISNUMBER(H113),ISNUMBER(J113)),1,0) -> 0 | J119: =IF(AND(J113>H113,$AK93>2,$AK92>3,ISNUMBER(H113),ISNUMBER(J113)),1,0) -> 0 | K119: =IF(AND(K113>M113,$AK93>3,$AK92>3,ISNUMBER(K113),ISNUMBER(M113)),1,0) -> 0 | M119: =IF(AND(M113>K113,$AK93>3,$AK92>3,ISNUMBER(K113),ISNUMBER(M113)),1,0) -> 0 | N119: =IF(AND(N113>P113,$AK93>4,$AK92>3,ISNUMBER(N113),ISNUMBER(P113)),1,0) -> 0 | P119: =IF(AND(P113>N113,$AK93>4,$AK92>3,ISNUMBER(N113),ISNUMBER(P113)),1,0) -> 0 | Q119: =IF(AND(Q113>S113,$AK93>5,$AK92>3,ISNUMBER(Q113),ISNUMBER(S113)),1,0) -> 0 | S119: =IF(AND(S113>Q113,$AK93>5,$AK92>3,ISNUMBER(Q113),ISNUMBER(S113)),1,0) -> 0 | T119: =IF(AND(T113>V113,$AK93>6,$AK92>3,ISNUMBER(T113),ISNUMBER(V113)),1,0) -> 0 | V119: =IF(AND(V113>T113,$AK93>6,$AK92>3,ISNUMBER(T113),ISNUMBER(V113)),1,0) -> 0 | W119: =IF(AND(W113>Y113,$AK93>7,$AK92>3,ISNUMBER(W113),ISNUMBER(Y113)),1,0) -> 0 | Y119: =IF(AND(Y113>W113,$AK93>7,$AK92>3,ISNUMBER(W113),ISNUMBER(Y113)),1,0) -> 0 | Z119: =IF(AND(Z113>AB113,$AK93>8,$AK92>3,ISNUMBER(Z113),ISNUMBER(AB113)),1,0) -> 0 | AB119: =IF(AND(AB113>Z113,$AK93>8,$AK92>3,ISNUMBER(Z113),ISNUMBER(AB113)),1,0) -> 0 | AC119: =IF(AND(AC113>AE113,$AK93>9,$AK92>3,ISNUMBER(AC113),ISNUMBER(AE113)),1,0) -> 0 | AE119: =IF(AND(AE113>AC113,$AK93>9,$AK92>3,ISNUMBER(AC113),ISNUMBER(AE113)),1,0) -> 0
A120: Gm5 Win | B120: =IF(AND(B114>D114,$AK93>0,$AK92>4,ISNUMBER(B114),ISNUMBER(D114)),1,0) -> 0 | D120: =IF(AND(D114>B114,$AK93>0,$AK92>4,ISNUMBER(B114),ISNUMBER(D114)),1,0) -> 0 | E120: =IF(AND(E114>G114,$AK93>1,$AK92>4,ISNUMBER(E114),ISNUMBER(G114)),1,0) -> 0 | G120: =IF(AND(G114>E114,$AK93>1,$AK92>4,ISNUMBER(E114),ISNUMBER(G114)),1,0) -> 0 | H120: =IF(AND(H114>J114,$AK93>2,$AK92>4,ISNUMBER(H114),ISNUMBER(J114)),1,0) -> 0 | J120: =IF(AND(J114>H114,$AK93>2,$AK92>4,ISNUMBER(H114),ISNUMBER(J114)),1,0) -> 0 | K120: =IF(AND(K114>M114,$AK93>3,$AK92>4,ISNUMBER(K114),ISNUMBER(M114)),1,0) -> 0 | M120: =IF(AND(M114>K114,$AK93>3,$AK92>4,ISNUMBER(K114),ISNUMBER(M114)),1,0) -> 0 | N120: =IF(AND(N114>P114,$AK93>4,$AK92>4,ISNUMBER(N114),ISNUMBER(P114)),1,0) -> 0 | P120: =IF(AND(P114>N114,$AK93>4,$AK92>4,ISNUMBER(N114),ISNUMBER(P114)),1,0) -> 0 | Q120: =IF(AND(Q114>S114,$AK93>5,$AK92>4,ISNUMBER(Q114),ISNUMBER(S114)),1,0) -> 0 | S120: =IF(AND(S114>Q114,$AK93>5,$AK92>4,ISNUMBER(Q114),ISNUMBER(S114)),1,0) -> 0 | T120: =IF(AND(T114>V114,$AK93>6,$AK92>4,ISNUMBER(T114),ISNUMBER(V114)),1,0) -> 0 | V120: =IF(AND(V114>T114,$AK93>6,$AK92>4,ISNUMBER(T114),ISNUMBER(V114)),1,0) -> 0 | W120: =IF(AND(W114>Y114,$AK93>7,$AK92>4,ISNUMBER(W114),ISNUMBER(Y114)),1,0) -> 0 | Y120: =IF(AND(Y114>W114,$AK93>7,$AK92>4,ISNUMBER(W114),ISNUMBER(Y114)),1,0) -> 0 | Z120: =IF(AND(Z114>AB114,$AK93>8,$AK92>4,ISNUMBER(Z114),ISNUMBER(AB114)),1,0) -> 0 | AB120: =IF(AND(AB114>Z114,$AK93>8,$AK92>4,ISNUMBER(Z114),ISNUMBER(AB114)),1,0) -> 0 | AC120: =IF(AND(AC114>AE114,$AK93>9,$AK92>4,ISNUMBER(AC114),ISNUMBER(AE114)),1,0) -> 0 | AE120: =IF(AND(AE114>AC114,$AK93>9,$AK92>4,ISNUMBER(AC114),ISNUMBER(AE114)),1,0) -> 0
A121: Sum Game Win/Loss | B121: =SUM(B116:B120) -> 1 | D121: =SUM(D116:D120) -> 0 | E121: =SUM(E116:E120) -> 1 | G121: =SUM(G116:G120) -> 0 | H121: =SUM(H116:H120) -> 0 | J121: =SUM(J116:J120) -> 1 | K121: =SUM(K116:K120) -> 1 | M121: =SUM(M116:M120) -> 0 | N121: =SUM(N116:N120) -> 1 | P121: =SUM(P116:P120) -> 0 | Q121: =SUM(Q116:Q120) -> 1 | S121: =SUM(S116:S120) -> 0 | T121: =SUM(T116:T120) -> 0 | V121: =SUM(V116:V120) -> 0 | W121: =SUM(W116:W120) -> 0 | Y121: =SUM(Y116:Y120) -> 0 | Z121: =SUM(Z116:Z120) -> 0 | AB121: =SUM(AB116:AB120) -> 0 | AC121: =SUM(AC116:AC120) -> 0 | AE121: =SUM(AE116:AE120) -> 0
A122: Match Won/Lost | B122: =IF(B121>D121,IF(C156=AK92,1,IF(C156=AK92-1,1,0)),0) -> 1 | C122: =B122+D122 -> 1 | D122: =IF(D121>B121,IF(C156=AK92,1,IF(C156=AK92-1,1,0)),0) -> 0 | E122: =IF(E121>G121,IF(F156=AK92,1,IF(F156=AK92-1,1,0)),0) -> 1 | F122: =E122+G122 -> 1 | G122: =IF(G121>E121,IF(F156=AK92,1,IF(F156=AK92-1,1,0)),0) -> 0 | H122: =IF(H121>J121,IF(I156=AK92,1,IF(I156=AK92-1,1,0)),0) -> 0 | I122: =H122+J122 -> 1 | J122: =IF(J121>H121,IF(I156=AK92,1,IF(I156=AK92-1,1,0)),0) -> 1 | K122: =IF(K121>M121,IF(L156=AK92,1,IF(L156=AK92-1,1,0)),0) -> 1 | L122: =K122+M122 -> 1 | M122: =IF(M121>K121,IF(L156=AK92,1,IF(L156=AK92-1,1,0)),0) -> 0 | N122: =IF(N121>P121,IF(O156=AK92,1,IF(O156=AK92-1,1,0)),0) -> 1 | O122: =N122+P122 -> 1 | P122: =IF(P121>N121,IF(O156=AK92,1,IF(O156=AK92-1,1,0)),0) -> 0 | Q122: =IF(Q121>S121,IF(R156=AK92,1,IF(R156=AK92-1,1,0)),0) -> 1 | R122: =Q122+S122 -> 1 | S122: =IF(S121>Q121,IF(R156=AK92,1,IF(R156=AK92-1,1,0)),0) -> 0 | T122: =IF(T121>V121,IF(U156=AK92,1,IF(U156=AK92-1,1,0)),0) -> 0 | U122: =T122+V122 -> 0 | V122: =IF(V121>T121,IF(U156=AK92,1,IF(U156=AK92-1,1,0)),0) -> 0 | W122: =IF(W121>Y121,IF(X156=AK92,1,IF(X156=AK92-1,1,0)),0) -> 0 | X122: =W122+Y122 -> 0 | Y122: =IF(Y121>W121,IF(X156=AK92,1,IF(X156=AK92-1,1,0)),0) -> 0 | Z122: =IF(Z121>AB121,IF(AA156=AK92,1,IF(AA156=AK92-1,1,0)),0) -> 0 | AA122: =Z122+AB122 -> 0 | AB122: =IF(AB121>Z121,IF(AA156=AK92,1,IF(AA156=AK92-1,1,0)),0) -> 0 | AC122: =IF(AC121>AE121,IF(AD156=AK92,1,IF(AD156=AK92-1,1,0)),0) -> 0 | AD122: =AC122+AE122 -> 0 | AE122: =IF(AE121>AC121,IF(AD156=AK92,1,IF(AD156=AK92-1,1,0)),0) -> 0
A124: Gm1 Pts | B124: =IF(B116=1,B110,0) -> 22 | D124: =IF(D116=1,D110,0) -> 0 | E124: 22 | G124: =IF(G116=1,G110,0) -> 0 | H124: 0 | J124: =IF(J116=1,J110,0) -> 19 | K124: 25 | M124: =IF(M116=1,M110,0) -> 0 | N124: 19 | P124: =IF(P116=1,P110,0) -> 0 | Q124: 23 | S124: =IF(S116=1,S110,0) -> 0 | T124: 0 | V124: =IF(V116=1,V110,0) -> 0 | W124: 0 | Y124: =IF(Y116=1,Y110,0) -> 0 | Z124: 0 | AB124: =IF(AB116=1,AB110,0) -> 0 | AC124: 0 | AE124: =IF(AE116=1,AE110,0) -> 0
A125: Gm2 Pts | B125: =IF(B117=1,B111,0) -> 0 | D125: 0 | E125: 0 | G125: 0 | H125: 0 | J125: 0 | K125: 0 | M125: 0 | N125: 0 | P125: 0 | Q125: 0 | S125: 0 | T125: 0 | V125: 0 | W125: 0 | Y125: 0 | Z125: 0 | AB125: 0 | AC125: 0 | AE125: =IF(AE117=1,AE111,0) -> 0
A126: Gm3 Pts | B126: =IF(B118=1,B112,0) -> 0 | D126: 0 | E126: 0 | G126: 0 | H126: 0 | J126: 0 | K126: 0 | M126: 0 | N126: 0 | P126: 0 | Q126: 0 | S126: 0 | T126: 0 | V126: 0 | W126: 0 | Y126: 0 | Z126: 0 | AB126: 0 | AC126: 0 | AE126: =IF(AE118=1,AE112,0) -> 0
A127: Gm4 Pts | B127: =IF(B119=1,B113,0) -> 0 | D127: 0 | E127: 0 | G127: 0 | H127: 0 | J127: 0 | K127: 0 | M127: 0 | N127: 0 | P127: 0 | Q127: 0 | S127: 0 | T127: 0 | V127: 0 | W127: 0 | Y127: 0 | Z127: 0 | AB127: 0 | AC127: 0 | AE127: =IF(AE119=1,AE113,0) -> 0
A128: Gm5 Pts | B128: =IF(B120=1,B114,0) -> 0 | D128: 0 | E128: 0 | G128: 0 | H128: 0 | J128: 0 | K128: 0 | M128: 0 | N128: 0 | P128: 0 | Q128: 0 | S128: 0 | T128: 0 | V128: 0 | W128: 0 | Y128: 0 | Z128: 0 | AB128: 0 | AC128: 0 | AE128: =IF(AE120=1,AE114,0) -> 0
A129: Sum Match Points | B129: =SUM(B124:D128) -> 22 | E129: =SUM(E124:G128) -> 22 | H129: =SUM(H124:J128) -> 19 | K129: =SUM(K124:M128) -> 25 | N129: =SUM(N124:P128) -> 19 | Q129: =SUM(Q124:S128) -> 23 | T129: =SUM(T124:V128) -> 0 | W129: =SUM(W124:Y128) -> 0 | Z129: =SUM(Z124:AB128) -> 0 | AC129: =SUM(AC124:AE128) -> 0
A130: Matches | AF130: Match Wins by Team | AG130: Match Losses by Team
A131: Tm1 Wins | B131: =IF(B109=1,IF(B122=1,1,0),0) -> 0 | D131: =IF(D109=1,IF(D122=1,1,0),0) -> 0 | E131: =IF(E109=1,IF(E122=1,1,0),0) -> 1 | G131: =IF(G109=1,IF(G122=1,1,0),0) -> 0 | H131: =IF(H109=1,IF(H122=1,1,0),0) -> 0 | J131: =IF(J109=1,IF(J122=1,1,0),0) -> 0 | K131: =IF(K109=1,IF(K122=1,1,0),0) -> 1 | M131: =IF(M109=1,IF(M122=1,1,0),0) -> 0 | N131: =IF(N109=1,IF(N122=1,1,0),0) -> 0 | P131: =IF(P109=1,IF(P122=1,1,0),0) -> 0 | Q131: =IF(Q109=1,IF(Q122=1,1,0),0) -> 1 | S131: =IF(S109=1,IF(S122=1,1,0),0) -> 0 | T131: =IF(T109=1,IF(T122=1,1,0),0) -> 0 | V131: =IF(V109=1,IF(V122=1,1,0),0) -> 0 | W131: =IF(W109=1,IF(W122=1,1,0),0) -> 0 | Y131: =IF(Y109=1,IF(Y122=1,1,0),0) -> 0 | Z131: =IF(Z109=1,IF(Z122=1,1,0),0) -> 0 | AB131: =IF(AB109=1,IF(AB122=1,1,0),0) -> 0 | AC131: =IF(AC109=1,IF(AC122=1,1,0),0) -> 0 | AE131: =IF(AE109=1,IF(AE122=1,1,0),0) -> 0 | AF131: =SUM(B131:AE131) -> 3 | AG131: =AF137-AF131 -> 0
A132: Tm2 Wins | B132: =IF(B109=2,IF(B122=1,1,0),0) -> 1 | D132: =IF(D109=2,IF(D122=1,1,0),0) -> 0 | E132: =IF(E109=2,IF(E122=1,1,0),0) -> 0 | G132: =IF(G109=2,IF(G122=1,1,0),0) -> 0 | H132: =IF(H109=2,IF(H122=1,1,0),0) -> 0 | J132: =IF(J109=2,IF(J122=1,1,0),0) -> 0 | K132: =IF(K109=2,IF(K122=1,1,0),0) -> 0 | M132: =IF(M109=2,IF(M122=1,1,0),0) -> 0 | N132: =IF(N109=2,IF(N122=1,1,0),0) -> 0 | P132: =IF(P109=2,IF(P122=1,1,0),0) -> 0 | Q132: =IF(Q109=2,IF(Q122=1,1,0),0) -> 0 | S132: =IF(S109=2,IF(S122=1,1,0),0) -> 0 | T132: =IF(T109=2,IF(T122=1,1,0),0) -> 0 | V132: =IF(V109=2,IF(V122=1,1,0),0) -> 0 | W132: =IF(W109=2,IF(W122=1,1,0),0) -> 0 | Y132: =IF(Y109=2,IF(Y122=1,1,0),0) -> 0 | Z132: =IF(Z109=2,IF(Z122=1,1,0),0) -> 0 | AB132: =IF(AB109=2,IF(AB122=1,1,0),0) -> 0 | AC132: =IF(AC109=2,IF(AC122=1,1,0),0) -> 0 | AE132: =IF(AE109=2,IF(AE122=1,1,0),0) -> 0 | AF132: =SUM(B132:AE132) -> 1 | AG132: =AF138-AF132 -> 2
A133: Tm3 Wins | B133: =IF(B109=3,IF(B122=1,1,0),0) -> 0 | D133: =IF(D109=3,IF(D122=1,1,0),0) -> 0 | E133: =IF(E109=3,IF(E122=1,1,0),0) -> 0 | G133: =IF(G109=3,IF(G122=1,1,0),0) -> 0 | H133: =IF(H109=3,IF(H122=1,1,0),0) -> 0 | J133: =IF(J109=3,IF(J122=1,1,0),0) -> 0 | K133: =IF(K109=3,IF(K122=1,1,0),0) -> 0 | M133: =IF(M109=3,IF(M122=1,1,0),0) -> 0 | N133: =IF(N109=3,IF(N122=1,1,0),0) -> 1 | P133: =IF(P109=3,IF(P122=1,1,0),0) -> 0 | Q133: =IF(Q109=3,IF(Q122=1,1,0),0) -> 0 | S133: =IF(S109=3,IF(S122=1,1,0),0) -> 0 | T133: =IF(T109=3,IF(T122=1,1,0),0) -> 0 | V133: =IF(V109=3,IF(V122=1,1,0),0) -> 0 | W133: =IF(W109=3,IF(W122=1,1,0),0) -> 0 | Y133: =IF(Y109=3,IF(Y122=1,1,0),0) -> 0 | Z133: =IF(Z109=3,IF(Z122=1,1,0),0) -> 0 | AB133: =IF(AB109=3,IF(AB122=1,1,0),0) -> 0 | AC133: =IF(AC109=3,IF(AC122=1,1,0),0) -> 0 | AE133: =IF(AE109=3,IF(AE122=1,1,0),0) -> 0 | AF133: =SUM(B133:AE133) -> 1 | AG133: =AF139-AF133 -> 2
A134: Tm4 Wins | B134: =IF(B109=4,IF(B122=1,1,0),0) -> 0 | D134: =IF(D109=4,IF(D122=1,1,0),0) -> 0 | E134: =IF(E109=4,IF(E122=1,1,0),0) -> 0 | G134: =IF(G109=4,IF(G122=1,1,0),0) -> 0 | H134: =IF(H109=4,IF(H122=1,1,0),0) -> 0 | J134: =IF(J109=4,IF(J122=1,1,0),0) -> 1 | K134: =IF(K109=4,IF(K122=1,1,0),0) -> 0 | M134: =IF(M109=4,IF(M122=1,1,0),0) -> 0 | N134: =IF(N109=4,IF(N122=1,1,0),0) -> 0 | P134: =IF(P109=4,IF(P122=1,1,0),0) -> 0 | Q134: =IF(Q109=4,IF(Q122=1,1,0),0) -> 0 | S134: =IF(S109=4,IF(S122=1,1,0),0) -> 0 | T134: =IF(T109=4,IF(T122=1,1,0),0) -> 0 | V134: =IF(V109=4,IF(V122=1,1,0),0) -> 0 | W134: =IF(W109=4,IF(W122=1,1,0),0) -> 0 | Y134: =IF(Y109=4,IF(Y122=1,1,0),0) -> 0 | Z134: =IF(Z109=4,IF(Z122=1,1,0),0) -> 0 | AB134: =IF(AB109=4,IF(AB122=1,1,0),0) -> 0 | AC134: =IF(AC109=4,IF(AC122=1,1,0),0) -> 0 | AE134: =IF(AE109=4,IF(AE122=1,1,0),0) -> 0 | AF134: =SUM(B134:AE134) -> 1 | AG134: =AF140-AF134 -> 2
A135: Tm5 Wins | B135: =IF(B109=5,IF(B122=1,1,0),0) -> 0 | D135: =IF(D109=5,IF(D122=1,1,0),0) -> 0 | E135: =IF(E109=5,IF(E122=1,1,0),0) -> 0 | G135: =IF(G109=5,IF(G122=1,1,0),0) -> 0 | H135: =IF(H109=5,IF(H122=1,1,0),0) -> 0 | J135: =IF(J109=5,IF(J122=1,1,0),0) -> 0 | K135: =IF(K109=5,IF(K122=1,1,0),0) -> 0 | M135: =IF(M109=5,IF(M122=1,1,0),0) -> 0 | N135: =IF(N109=5,IF(N122=1,1,0),0) -> 0 | P135: =IF(P109=5,IF(P122=1,1,0),0) -> 0 | Q135: =IF(Q109=5,IF(Q122=1,1,0),0) -> 0 | S135: =IF(S109=5,IF(S122=1,1,0),0) -> 0 | T135: =IF(T109=5,IF(T122=1,1,0),0) -> 0 | V135: =IF(V109=5,IF(V122=1,1,0),0) -> 0 | W135: =IF(W109=5,IF(W122=1,1,0),0) -> 0 | Y135: =IF(Y109=5,IF(Y122=1,1,0),0) -> 0 | Z135: =IF(Z109=5,IF(Z122=1,1,0),0) -> 0 | AB135: =IF(AB109=5,IF(AB122=1,1,0),0) -> 0 | AC135: =IF(AC109=5,IF(AC122=1,1,0),0) -> 0 | AE135: =IF(AE109=5,IF(AE122=1,1,0),0) -> 0 | AF135: =SUM(B135:AE135) -> 0 | AG135: =AF141-AF135 -> 0
AF136: Matches played by team
A137: Tm1 Play | B137: =IF(B109=1,IF(C122=1,1,0),0) -> 0 | D137: =IF(D109=1,IF(C122=1,1,0),0) -> 0 | E137: =IF(E109=1,IF(F122=1,1,0),0) -> 1 | G137: =IF(G109=1,IF(F122=1,1,0),0) -> 0 | H137: =IF(H109=1,IF(I122=1,1,0),0) -> 0 | J137: =IF(J109=1,IF(I122=1,1,0),0) -> 0 | K137: =IF(K109=1,IF(L122=1,1,0),0) -> 1 | M137: =IF(M109=1,IF(L122=1,1,0),0) -> 0 | N137: =IF(N109=1,IF(O122=1,1,0),0) -> 0 | P137: =IF(P109=1,IF(O122=1,1,0),0) -> 0 | Q137: =IF(Q109=1,IF(R122=1,1,0),0) -> 1 | S137: =IF(S109=1,IF(R122=1,1,0),0) -> 0 | T137: =IF(T109=1,IF(U122=1,1,0),0) -> 0 | V137: =IF(V109=1,IF(U122=1,1,0),0) -> 0 | W137: =IF(W109=1,IF(X122=1,1,0),0) -> 0 | Y137: =IF(Y109=1,IF(X122=1,1,0),0) -> 0 | Z137: =IF(Z109=1,IF(AA122=1,1,0),0) -> 0 | AB137: =IF(AB109=1,IF(AA122=1,1,0),0) -> 0 | AC137: =IF(AC109=1,IF(AD122=1,1,0),0) -> 0 | AE137: =IF(AE109=1,IF(AD122=1,1,0),0) -> 0 | AF137: =SUM(B137:AE137) -> 3
A138: Tm2 Play | B138: =IF(B109=2,IF(C122=1,1,0),0) -> 1 | D138: =IF(D109=2,IF(C122=1,1,0),0) -> 0 | E138: =IF(E109=2,IF(F122=1,1,0),0) -> 0 | G138: =IF(G109=2,IF(F122=1,1,0),0) -> 0 | H138: =IF(H109=2,IF(I122=1,1,0),0) -> 1 | J138: =IF(J109=2,IF(I122=1,1,0),0) -> 0 | K138: =IF(K109=2,IF(L122=1,1,0),0) -> 0 | M138: =IF(M109=2,IF(L122=1,1,0),0) -> 0 | N138: =IF(N109=2,IF(O122=1,1,0),0) -> 0 | P138: =IF(P109=2,IF(O122=1,1,0),0) -> 0 | Q138: =IF(Q109=2,IF(R122=1,1,0),0) -> 0 | S138: =IF(S109=2,IF(R122=1,1,0),0) -> 1 | T138: =IF(T109=2,IF(U122=1,1,0),0) -> 0 | V138: =IF(V109=2,IF(U122=1,1,0),0) -> 0 | W138: =IF(W109=2,IF(X122=1,1,0),0) -> 0 | Y138: =IF(Y109=2,IF(X122=1,1,0),0) -> 0 | Z138: =IF(Z109=2,IF(AA122=1,1,0),0) -> 0 | AB138: =IF(AB109=2,IF(AA122=1,1,0),0) -> 0 | AC138: =IF(AC109=2,IF(AD122=1,1,0),0) -> 0 | AE138: =IF(AE109=2,IF(AD122=1,1,0),0) -> 0 | AF138: =SUM(B138:AE138) -> 3
A139: Tm3 Play | B139: =IF(B109=3,IF(C122=1,1,0),0) -> 0 | D139: =IF(D109=3,IF(C122=1,1,0),0) -> 1 | E139: =IF(E109=3,IF(F122=1,1,0),0) -> 0 | G139: =IF(G109=3,IF(F122=1,1,0),0) -> 0 | H139: =IF(H109=3,IF(I122=1,1,0),0) -> 0 | J139: =IF(J109=3,IF(I122=1,1,0),0) -> 0 | K139: =IF(K109=3,IF(L122=1,1,0),0) -> 0 | M139: =IF(M109=3,IF(L122=1,1,0),0) -> 1 | N139: =IF(N109=3,IF(O122=1,1,0),0) -> 1 | P139: =IF(P109=3,IF(O122=1,1,0),0) -> 0 | Q139: =IF(Q109=3,IF(R122=1,1,0),0) -> 0 | S139: =IF(S109=3,IF(R122=1,1,0),0) -> 0 | T139: =IF(T109=3,IF(U122=1,1,0),0) -> 0 | V139: =IF(V109=3,IF(U122=1,1,0),0) -> 0 | W139: =IF(W109=3,IF(X122=1,1,0),0) -> 0 | Y139: =IF(Y109=3,IF(X122=1,1,0),0) -> 0 | Z139: =IF(Z109=3,IF(AA122=1,1,0),0) -> 0 | AB139: =IF(AB109=3,IF(AA122=1,1,0),0) -> 0 | AC139: =IF(AC109=3,IF(AD122=1,1,0),0) -> 0 | AE139: =IF(AE109=3,IF(AD122=1,1,0),0) -> 0 | AF139: =SUM(B139:AE139) -> 3
A140: Tm4 Play | B140: =IF(B109=4,IF(C122=1,1,0),0) -> 0 | D140: =IF(D109=4,IF(C122=1,1,0),0) -> 0 | E140: =IF(E109=4,IF(F122=1,1,0),0) -> 0 | G140: =IF(G109=4,IF(F122=1,1,0),0) -> 1 | H140: =IF(H109=4,IF(I122=1,1,0),0) -> 0 | J140: =IF(J109=4,IF(I122=1,1,0),0) -> 1 | K140: =IF(K109=4,IF(L122=1,1,0),0) -> 0 | M140: =IF(M109=4,IF(L122=1,1,0),0) -> 0 | N140: =IF(N109=4,IF(O122=1,1,0),0) -> 0 | P140: =IF(P109=4,IF(O122=1,1,0),0) -> 1 | Q140: =IF(Q109=4,IF(R122=1,1,0),0) -> 0 | S140: =IF(S109=4,IF(R122=1,1,0),0) -> 0 | T140: =IF(T109=4,IF(U122=1,1,0),0) -> 0 | V140: =IF(V109=4,IF(U122=1,1,0),0) -> 0 | W140: =IF(W109=4,IF(X122=1,1,0),0) -> 0 | Y140: =IF(Y109=4,IF(X122=1,1,0),0) -> 0 | Z140: =IF(Z109=4,IF(AA122=1,1,0),0) -> 0 | AB140: =IF(AB109=4,IF(AA122=1,1,0),0) -> 0 | AC140: =IF(AC109=4,IF(AD122=1,1,0),0) -> 0 | AE140: =IF(AE109=4,IF(AD122=1,1,0),0) -> 0 | AF140: =SUM(B140:AE140) -> 3
A141: Tm5 Play | B141: =IF(B109=5,IF(C122=1,1,0),0) -> 0 | D141: =IF(D109=5,IF(C122=1,1,0),0) -> 0 | E141: =IF(E109=5,IF(F122=1,1,0),0) -> 0 | G141: =IF(G109=5,IF(F122=1,1,0),0) -> 0 | H141: =IF(H109=5,IF(I122=1,1,0),0) -> 0 | J141: =IF(J109=5,IF(I122=1,1,0),0) -> 0 | K141: =IF(K109=5,IF(L122=1,1,0),0) -> 0 | M141: =IF(M109=5,IF(L122=1,1,0),0) -> 0 | N141: =IF(N109=5,IF(O122=1,1,0),0) -> 0 | P141: =IF(P109=5,IF(O122=1,1,0),0) -> 0 | Q141: =IF(Q109=5,IF(R122=1,1,0),0) -> 0 | S141: =IF(S109=5,IF(R122=1,1,0),0) -> 0 | T141: =IF(T109=5,IF(U122=1,1,0),0) -> 0 | V141: =IF(V109=5,IF(U122=1,1,0),0) -> 0 | W141: =IF(W109=5,IF(X122=1,1,0),0) -> 0 | Y141: =IF(Y109=5,IF(X122=1,1,0),0) -> 0 | Z141: =IF(Z109=5,IF(AA122=1,1,0),0) -> 0 | AB141: =IF(AB109=5,IF(AA122=1,1,0),0) -> 0 | AC141: =IF(AC109=5,IF(AD122=1,1,0),0) -> 0 | AE141: =IF(AE109=5,IF(AD122=1,1,0),0) -> 0 | AF141: =SUM(B141:AE141) -> 0
AF142: Total Points played by team
A143: Tm1 Play | B143: =IF(B109=1,B129,0) -> 0 | D143: =IF(D109=1,B129,0) -> 0 | E143: =IF(E109=1,E129,0) -> 22 | G143: =IF(G109=1,E129,0) -> 0 | H143: =IF(H109=1,H129,0) -> 0 | J143: =IF(J109=1,H129,0) -> 0 | K143: =IF(K109=1,K129,0) -> 25 | M143: =IF(M109=1,K129,0) -> 0 | N143: =IF(N109=1,N129,0) -> 0 | P143: =IF(P109=1,N129,0) -> 0 | Q143: =IF(Q109=1,Q129,0) -> 23 | S143: =IF(S109=1,Q129,0) -> 0 | T143: =IF(T109=1,T129,0) -> 0 | V143: =IF(V109=1,T129,0) -> 0 | W143: =IF(W109=1,W129,0) -> 0 | Y143: =IF(Y109=1,W129,0) -> 0 | Z143: =IF(Z109=1,Z129,0) -> 0 | AB143: =IF(AB109=1,Z129,0) -> 0 | AC143: =IF(AC109=1,AC129,0) -> 0 | AE143: =IF(AE109=1,AC129,0) -> 0 | AF143: =SUM(B143:AE143) -> 70
A144: Tm2 Play | B144: =IF(B109=2,B129,0) -> 22 | D144: =IF(D109=2,B129,0) -> 0 | E144: =IF(E109=2,E129,0) -> 0 | G144: =IF(G109=2,E129,0) -> 0 | H144: =IF(H109=2,H129,0) -> 19 | J144: =IF(J109=2,H129,0) -> 0 | K144: =IF(K109=2,K129,0) -> 0 | M144: =IF(M109=2,K129,0) -> 0 | N144: =IF(N109=2,N129,0) -> 0 | P144: =IF(P109=2,N129,0) -> 0 | Q144: =IF(Q109=2,Q129,0) -> 0 | S144: =IF(S109=2,Q129,0) -> 23 | T144: =IF(T109=2,T129,0) -> 0 | V144: =IF(V109=2,T129,0) -> 0 | W144: =IF(W109=2,W129,0) -> 0 | Y144: =IF(Y109=2,W129,0) -> 0 | Z144: =IF(Z109=2,Z129,0) -> 0 | AB144: =IF(AB109=2,Z129,0) -> 0 | AC144: =IF(AC109=2,AC129,0) -> 0 | AE144: =IF(AE109=2,AC129,0) -> 0 | AF144: =SUM(B144:AE144) -> 64
A145: Tm3 Play | B145: =IF(B109=3,B129,0) -> 0 | D145: =IF(D109=3,B129,0) -> 22 | E145: =IF(E109=3,E129,0) -> 0 | G145: =IF(G109=3,E129,0) -> 0 | H145: =IF(H109=3,H129,0) -> 0 | J145: =IF(J109=3,H129,0) -> 0 | K145: =IF(K109=3,K129,0) -> 0 | M145: =IF(M109=3,K129,0) -> 25 | N145: =IF(N109=3,N129,0) -> 19 | P145: =IF(P109=3,N129,0) -> 0 | Q145: =IF(Q109=3,Q129,0) -> 0 | S145: =IF(S109=3,Q129,0) -> 0 | T145: =IF(T109=3,T129,0) -> 0 | V145: =IF(V109=3,T129,0) -> 0 | W145: =IF(W109=3,W129,0) -> 0 | Y145: =IF(Y109=3,W129,0) -> 0 | Z145: =IF(Z109=3,Z129,0) -> 0 | AB145: =IF(AB109=3,Z129,0) -> 0 | AC145: =IF(AC109=3,AC129,0) -> 0 | AE145: =IF(AE109=3,AC129,0) -> 0 | AF145: =SUM(B145:AE145) -> 66
A146: Tm4 Play | B146: =IF(B109=4,B129,0) -> 0 | D146: =IF(D109=4,B129,0) -> 0 | E146: =IF(E109=4,E129,0) -> 0 | G146: =IF(G109=4,E129,0) -> 22 | H146: =IF(H109=4,H129,0) -> 0 | J146: =IF(J109=4,H129,0) -> 19 | K146: =IF(K109=4,K129,0) -> 0 | M146: =IF(M109=4,K129,0) -> 0 | N146: =IF(N109=4,N129,0) -> 0 | P146: =IF(P109=4,N129,0) -> 19 | Q146: =IF(Q109=4,Q129,0) -> 0 | S146: =IF(S109=4,Q129,0) -> 0 | T146: =IF(T109=4,T129,0) -> 0 | V146: =IF(V109=4,T129,0) -> 0 | W146: =IF(W109=4,W129,0) -> 0 | Y146: =IF(Y109=4,W129,0) -> 0 | Z146: =IF(Z109=4,Z129,0) -> 0 | AB146: =IF(AB109=4,Z129,0) -> 0 | AC146: =IF(AC109=4,AC129,0) -> 0 | AE146: =IF(AE109=4,AC129,0) -> 0 | AF146: =SUM(B146:AE146) -> 60
A147: Tm5 Play | B147: =IF(B109=5,B129,0) -> 0 | D147: =IF(D109=5,B129,0) -> 0 | E147: =IF(E109=5,E129,0) -> 0 | G147: =IF(G109=5,E129,0) -> 0 | H147: =IF(H109=5,H129,0) -> 0 | J147: =IF(J109=5,H129,0) -> 0 | K147: =IF(K109=5,K129,0) -> 0 | M147: =IF(M109=5,K129,0) -> 0 | N147: =IF(N109=5,N129,0) -> 0 | P147: =IF(P109=5,N129,0) -> 0 | Q147: =IF(Q109=5,Q129,0) -> 0 | S147: =IF(S109=5,Q129,0) -> 0 | T147: =IF(T109=5,T129,0) -> 0 | V147: =IF(V109=5,T129,0) -> 0 | W147: =IF(W109=5,W129,0) -> 0 | Y147: =IF(Y109=5,W129,0) -> 0 | Z147: =IF(Z109=5,Z129,0) -> 0 | AB147: =IF(AB109=5,Z129,0) -> 0 | AC147: =IF(AC109=5,AC129,0) -> 0 | AE147: =IF(AE109=5,AC129,0) -> 0 | AF147: =SUM(B147:AE147) -> 0
A148: Games | AF148: Game Wins by Team | AG148: Game Losses by Team
A149: Tm1 Wins | B149: =IF(B109=1,SUMIF(B116:B120,">0"),0) -> 0 | D149: =IF(D109=1,SUMIF(D116:D120,">0"),0) -> 0 | E149: =IF(E109=1,SUMIF(E116:E120,">0"),0) -> 1 | G149: =IF(G109=1,SUMIF(G116:G120,">0"),0) -> 0 | H149: =IF(H109=1,SUMIF(H116:H120,">0"),0) -> 0 | J149: =IF(J109=1,SUMIF(J116:J120,">0"),0) -> 0 | K149: =IF(K109=1,SUMIF(K116:K120,">0"),0) -> 1 | M149: =IF(M109=1,SUMIF(M116:M120,">0"),0) -> 0 | N149: =IF(N109=1,SUMIF(N116:N120,">0"),0) -> 0 | P149: =IF(P109=1,SUMIF(P116:P120,">0"),0) -> 0 | Q149: =IF(Q109=1,SUMIF(Q116:Q120,">0"),0) -> 1 | S149: =IF(S109=1,SUMIF(S116:S120,">0"),0) -> 0 | T149: =IF(T109=1,SUMIF(T116:T120,">0"),0) -> 0 | V149: =IF(V109=1,SUMIF(V116:V120,">0"),0) -> 0 | W149: =IF(W109=1,SUMIF(W116:W120,">0"),0) -> 0 | Y149: =IF(Y109=1,SUMIF(Y116:Y120,">0"),0) -> 0 | Z149: =IF(Z109=1,SUMIF(Z116:Z120,">0"),0) -> 0 | AB149: =IF(AB109=1,SUMIF(AB116:AB120,">0"),0) -> 0 | AC149: =IF(AC109=1,SUMIF(AC116:AC120,">0"),0) -> 0 | AE149: =IF(AE109=1,SUMIF(AE116:AE120,">0"),0) -> 0 | AF149: =SUM(B149:AE149) -> 3 | AG149: =AF157-AF149 -> 0
A150: Tm2 Wins | B150: =IF(B109=2,SUMIF(B116:B120,">0"),0) -> 1 | D150: =IF(D109=2,SUMIF(D116:D120,">0"),0) -> 0 | E150: =IF(E109=2,SUMIF(E116:E120,">0"),0) -> 0 | G150: =IF(G109=2,SUMIF(G116:G120,">0"),0) -> 0 | H150: =IF(H109=2,SUMIF(H116:H120,">0"),0) -> 0 | J150: =IF(J109=2,SUMIF(J116:J120,">0"),0) -> 0 | K150: =IF(K109=2,SUMIF(K116:K120,">0"),0) -> 0 | M150: =IF(M109=2,SUMIF(M116:M120,">0"),0) -> 0 | N150: =IF(N109=2,SUMIF(N116:N120,">0"),0) -> 0 | P150: =IF(P109=2,SUMIF(P116:P120,">0"),0) -> 0 | Q150: =IF(Q109=2,SUMIF(Q116:Q120,">0"),0) -> 0 | S150: =IF(S109=2,SUMIF(S116:S120,">0"),0) -> 0 | T150: =IF(T109=2,SUMIF(T116:T120,">0"),0) -> 0 | V150: =IF(V109=2,SUMIF(V116:V120,">0"),0) -> 0 | W150: =IF(W109=2,SUMIF(W116:W120,">0"),0) -> 0 | Y150: =IF(Y109=2,SUMIF(Y116:Y120,">0"),0) -> 0 | Z150: =IF(Z109=2,SUMIF(Z116:Z120,">0"),0) -> 0 | AB150: =IF(AB109=2,SUMIF(AB116:AB120,">0"),0) -> 0 | AC150: =IF(AC109=2,SUMIF(AC116:AC120,">0"),0) -> 0 | AE150: =IF(AE109=2,SUMIF(AE116:AE120,">0"),0) -> 0 | AF150: =SUM(B150:AE150) -> 1 | AG150: =AF158-AF150 -> 2
A151: Tm3 Wins | B151: =IF(B109=3,SUMIF(B116:B120,">0"),0) -> 0 | D151: =IF(D109=3,SUMIF(D116:D120,">0"),0) -> 0 | E151: =IF(E109=3,SUMIF(E116:E120,">0"),0) -> 0 | G151: =IF(G109=3,SUMIF(G116:G120,">0"),0) -> 0 | H151: =IF(H109=3,SUMIF(H116:H120,">0"),0) -> 0 | J151: =IF(J109=3,SUMIF(J116:J120,">0"),0) -> 0 | K151: =IF(K109=3,SUMIF(K116:K120,">0"),0) -> 0 | M151: =IF(M109=3,SUMIF(M116:M120,">0"),0) -> 0 | N151: =IF(N109=3,SUMIF(N116:N120,">0"),0) -> 1 | P151: =IF(P109=3,SUMIF(P116:P120,">0"),0) -> 0 | Q151: =IF(Q109=3,SUMIF(Q116:Q120,">0"),0) -> 0 | S151: =IF(S109=3,SUMIF(S116:S120,">0"),0) -> 0 | T151: =IF(T109=3,SUMIF(T116:T120,">0"),0) -> 0 | V151: =IF(V109=3,SUMIF(V116:V120,">0"),0) -> 0 | W151: =IF(W109=3,SUMIF(W116:W120,">0"),0) -> 0 | Y151: =IF(Y109=3,SUMIF(Y116:Y120,">0"),0) -> 0 | Z151: =IF(Z109=3,SUMIF(Z116:Z120,">0"),0) -> 0 | AB151: =IF(AB109=3,SUMIF(AB116:AB120,">0"),0) -> 0 | AC151: =IF(AC109=3,SUMIF(AC116:AC120,">0"),0) -> 0 | AE151: =IF(AE109=3,SUMIF(AE116:AE120,">0"),0) -> 0 | AF151: =SUM(B151:AE151) -> 1 | AG151: =AF159-AF151 -> 2
A152: Tm4 Wins | B152: =IF(B109=4,SUMIF(B116:B120,">0"),0) -> 0 | D152: =IF(D109=4,SUMIF(D116:D120,">0"),0) -> 0 | E152: =IF(E109=4,SUMIF(E116:E120,">0"),0) -> 0 | G152: =IF(G109=4,SUMIF(G116:G120,">0"),0) -> 0 | H152: =IF(H109=4,SUMIF(H116:H120,">0"),0) -> 0 | J152: =IF(J109=4,SUMIF(J116:J120,">0"),0) -> 1 | K152: =IF(K109=4,SUMIF(K116:K120,">0"),0) -> 0 | M152: =IF(M109=4,SUMIF(M116:M120,">0"),0) -> 0 | N152: =IF(N109=4,SUMIF(N116:N120,">0"),0) -> 0 | P152: =IF(P109=4,SUMIF(P116:P120,">0"),0) -> 0 | Q152: =IF(Q109=4,SUMIF(Q116:Q120,">0"),0) -> 0 | S152: =IF(S109=4,SUMIF(S116:S120,">0"),0) -> 0 | T152: =IF(T109=4,SUMIF(T116:T120,">0"),0) -> 0 | V152: =IF(V109=4,SUMIF(V116:V120,">0"),0) -> 0 | W152: =IF(W109=4,SUMIF(W116:W120,">0"),0) -> 0 | Y152: =IF(Y109=4,SUMIF(Y116:Y120,">0"),0) -> 0 | Z152: =IF(Z109=4,SUMIF(Z116:Z120,">0"),0) -> 0 | AB152: =IF(AB109=4,SUMIF(AB116:AB120,">0"),0) -> 0 | AC152: =IF(AC109=4,SUMIF(AC116:AC120,">0"),0) -> 0 | AE152: =IF(AE109=4,SUMIF(AE116:AE120,">0"),0) -> 0 | AF152: =SUM(B152:AE152) -> 1 | AG152: =AF160-AF152 -> 2
A153: Tm5 Wins | B153: =IF(B109=5,SUMIF(B116:B120,">0"),0) -> 0 | D153: =IF(D109=5,SUMIF(D116:D120,">0"),0) -> 0 | E153: =IF(E109=5,SUMIF(E116:E120,">0"),0) -> 0 | G153: =IF(G109=5,SUMIF(G116:G120,">0"),0) -> 0 | H153: =IF(H109=5,SUMIF(H116:H120,">0"),0) -> 0 | J153: =IF(J109=5,SUMIF(J116:J120,">0"),0) -> 0 | K153: =IF(K109=5,SUMIF(K116:K120,">0"),0) -> 0 | M153: =IF(M109=5,SUMIF(M116:M120,">0"),0) -> 0 | N153: =IF(N109=5,SUMIF(N116:N120,">0"),0) -> 0 | P153: =IF(P109=5,SUMIF(P116:P120,">0"),0) -> 0 | Q153: =IF(Q109=5,SUMIF(Q116:Q120,">0"),0) -> 0 | S153: =IF(S109=5,SUMIF(S116:S120,">0"),0) -> 0 | T153: =IF(T109=5,SUMIF(T116:T120,">0"),0) -> 0 | V153: =IF(V109=5,SUMIF(V116:V120,">0"),0) -> 0 | W153: =IF(W109=5,SUMIF(W116:W120,">0"),0) -> 0 | Y153: =IF(Y109=5,SUMIF(Y116:Y120,">0"),0) -> 0 | Z153: =IF(Z109=5,SUMIF(Z116:Z120,">0"),0) -> 0 | AB153: =IF(AB109=5,SUMIF(AB116:AB120,">0"),0) -> 0 | AC153: =IF(AC109=5,SUMIF(AC116:AC120,">0"),0) -> 0 | AE153: =IF(AE109=5,SUMIF(AE116:AE120,">0"),0) -> 0 | AF153: =SUM(B153:AE153) -> 0 | AG153: =AF161-AF153 -> 0
A156: Games Played this Match | C156: =SUMIF(B149:D153,">0") -> 1 | F156: =SUMIF(E149:G153,">0") -> 1 | I156: =SUMIF(H149:J153,">0") -> 1 | L156: =SUMIF(K149:M153,">0") -> 1 | O156: =SUMIF(N149:P153,">0") -> 1 | R156: =SUMIF(Q149:S153,">0") -> 1 | U156: =SUMIF(T149:V153,">0") -> 0 | X156: =SUMIF(W149:Y153,">0") -> 0 | AA156: =SUMIF(Z149:AB153,">0") -> 0 | AD156: =SUMIF(AC149:AE153,">0") -> 0 | AF156: Games played by team
A157: Tm1 Play | B157: =IF(B109=1,C156,0) -> 0 | D157: =IF(D109=1,C156,0) -> 0 | E157: =IF(E109=1,F156,0) -> 1 | G157: =IF(G109=1,F156,0) -> 0 | H157: =IF(H109=1,I156,0) -> 0 | J157: =IF(J109=1,I156,0) -> 0 | K157: =IF(K109=1,L156,0) -> 1 | M157: =IF(M109=1,L156,0) -> 0 | N157: =IF(N109=1,O156,0) -> 0 | P157: =IF(P109=1,O156,0) -> 0 | Q157: =IF(Q109=1,R156,0) -> 1 | S157: =IF(S109=1,R156,0) -> 0 | T157: =IF(T109=1,U156,0) -> 0 | V157: =IF(V109=1,U156,0) -> 0 | W157: =IF(W109=1,X156,0) -> 0 | Y157: =IF(Y109=1,X156,0) -> 0 | Z157: =IF(Z109=1,AA156,0) -> 0 | AB157: =IF(AB109=1,AA156,0) -> 0 | AC157: =IF(AC109=1,AD156,0) -> 0 | AE157: =IF(AE109=1,AD156,0) -> 0 | AF157: =SUM(B157:AE157) -> 3
A158: Tm2 Play | B158: =IF(B109=2,C156,0) -> 1 | D158: =IF(D109=2,C156,0) -> 0 | E158: =IF(E109=2,F156,0) -> 0 | G158: =IF(G109=2,F156,0) -> 0 | H158: =IF(H109=2,I156,0) -> 1 | J158: =IF(J109=2,I156,0) -> 0 | K158: =IF(K109=2,L156,0) -> 0 | M158: =IF(M109=2,L156,0) -> 0 | N158: =IF(N109=2,O156,0) -> 0 | P158: =IF(P109=2,O156,0) -> 0 | Q158: =IF(Q109=2,R156,0) -> 0 | S158: =IF(S109=2,R156,0) -> 1 | T158: =IF(T109=2,U156,0) -> 0 | V158: =IF(V109=2,U156,0) -> 0 | W158: =IF(W109=2,X156,0) -> 0 | Y158: =IF(Y109=2,X156,0) -> 0 | Z158: =IF(Z109=2,AA156,0) -> 0 | AB158: =IF(AB109=2,AA156,0) -> 0 | AC158: =IF(AC109=2,AD156,0) -> 0 | AE158: =IF(AE109=2,AD156,0) -> 0 | AF158: =SUM(B158:AE158) -> 3
A159: Tm3 Play | B159: =IF(B109=3,C156,0) -> 0 | D159: =IF(D109=3,C156,0) -> 1 | E159: =IF(E109=3,F156,0) -> 0 | G159: =IF(G109=3,F156,0) -> 0 | H159: =IF(H109=3,I156,0) -> 0 | J159: =IF(J109=3,I156,0) -> 0 | K159: =IF(K109=3,L156,0) -> 0 | M159: =IF(M109=3,L156,0) -> 1 | N159: =IF(N109=3,O156,0) -> 1 | P159: =IF(P109=3,O156,0) -> 0 | Q159: =IF(Q109=3,R156,0) -> 0 | S159: =IF(S109=3,R156,0) -> 0 | T159: =IF(T109=3,U156,0) -> 0 | V159: =IF(V109=3,U156,0) -> 0 | W159: =IF(W109=3,X156,0) -> 0 | Y159: =IF(Y109=3,X156,0) -> 0 | Z159: =IF(Z109=3,AA156,0) -> 0 | AB159: =IF(AB109=3,AA156,0) -> 0 | AC159: =IF(AC109=3,AD156,0) -> 0 | AE159: =IF(AE109=3,AD156,0) -> 0 | AF159: =SUM(B159:AE159) -> 3
A160: Tm4 Play | B160: =IF(B109=4,C156,0) -> 0 | D160: =IF(D109=4,C156,0) -> 0 | E160: =IF(E109=4,F156,0) -> 0 | G160: =IF(G109=4,F156,0) -> 1 | H160: =IF(H109=4,I156,0) -> 0 | J160: =IF(J109=4,I156,0) -> 1 | K160: =IF(K109=4,L156,0) -> 0 | M160: =IF(M109=4,L156,0) -> 0 | N160: =IF(N109=4,O156,0) -> 0 | P160: =IF(P109=4,O156,0) -> 1 | Q160: =IF(Q109=4,R156,0) -> 0 | S160: =IF(S109=4,R156,0) -> 0 | T160: =IF(T109=4,U156,0) -> 0 | V160: =IF(V109=4,U156,0) -> 0 | W160: =IF(W109=4,X156,0) -> 0 | Y160: =IF(Y109=4,X156,0) -> 0 | Z160: =IF(Z109=4,AA156,0) -> 0 | AB160: =IF(AB109=4,AA156,0) -> 0 | AC160: =IF(AC109=4,AD156,0) -> 0 | AE160: =IF(AE109=4,AD156,0) -> 0 | AF160: =SUM(B160:AE160) -> 3
A161: Tm5 Play | B161: =IF(B109=5,C156,0) -> 0 | D161: =IF(D109=5,C156,0) -> 0 | E161: =IF(E109=5,F156,0) -> 0 | G161: =IF(G109=5,F156,0) -> 0 | H161: =IF(H109=5,I156,0) -> 0 | J161: =IF(J109=5,I156,0) -> 0 | K161: =IF(K109=5,L156,0) -> 0 | M161: =IF(M109=5,L156,0) -> 0 | N161: =IF(N109=5,O156,0) -> 0 | P161: =IF(P109=5,O156,0) -> 0 | Q161: =IF(Q109=5,R156,0) -> 0 | S161: =IF(S109=5,R156,0) -> 0 | T161: =IF(T109=5,U156,0) -> 0 | V161: =IF(V109=5,U156,0) -> 0 | W161: =IF(W109=5,X156,0) -> 0 | Y161: =IF(Y109=5,X156,0) -> 0 | Z161: =IF(Z109=5,AA156,0) -> 0 | AB161: =IF(AB109=5,AA156,0) -> 0 | AC161: =IF(AC109=5,AD156,0) -> 0 | AE161: =IF(AE109=5,AD156,0) -> 0 | AF161: =SUM(B161:AE161) -> 0
C163: Init | D163: 1 | G163: 2 | J163: 3 | M163: 4 | P163: 5 | S163: 6 | V163: 7 | Y163: 8 | AB163: 9 | AE163: 10 | AT163: End of Pool
A164: 1 | B164: =E93 -> SC Midlands KP Boys | C164: =VLOOKUP(B164,AU$3:AY$12,3,FALSE) -> 1200 | D164: =IF(B157,B172,IF(D157,D172,C164)) -> 1200 | G164: =IF(E157,E172,IF(G157,G172,D164)) -> 1216 | J164: =IF(H157,H172,IF(J157,J172,G164)) -> 1216 | M164: =IF(K157,K172,IF(M157,M172,J164)) -> 1230.669102 | P164: =IF(N157,N172,IF(P157,P172,M164)) -> 1230.669102 | S164: =IF(Q157,Q172,IF(S157,S172,P164)) -> 1247.986344 | V164: =IF(T157,T172,IF(V157,V172,S164)) -> 1247.986344 | Y164: =IF(W157,W172,IF(Y157,Y172,V164)) -> 1247.986344 | AB164: =IF(Z157,Z172,IF(AB157,AB172,Y164)) -> 1247.986344 | AE164: =IF(AC157,AC172,IF(AE157,AE172,AB164)) -> 1247.986344 | AT164: =B164 -> SC Midlands KP Boys | AU164: =AE164 -> 1247.986344
A165: 2 | B165: =E95 -> Magnum 11 Black | C165: =VLOOKUP(B165,AU$3:AY$12,3,FALSE) -> 1266.666667 | D165: =IF(B158,B172,IF(D158,D172,C165)) -> 1279.633686 | G165: =IF(E158,E172,IF(G158,G172,D165)) -> 1279.633686 | J165: =IF(H158,H172,IF(J158,J172,G165)) -> 1259.337548 | M165: =IF(K158,K172,IF(M158,M172,J165)) -> 1259.337548 | P165: =IF(N158,N172,IF(P158,P172,M165)) -> 1259.337548 | S165: =IF(Q158,Q172,IF(S158,S172,P165)) -> 1242.020305 | V165: =IF(T158,T172,IF(V158,V172,S165)) -> 1242.020305 | Y165: =IF(W158,W172,IF(Y158,Y172,V165)) -> 1242.020305 | AB165: =IF(Z158,Z172,IF(AB158,AB172,Y165)) -> 1242.020305 | AE165: =IF(AC158,AC172,IF(AE158,AE172,AB165)) -> 1242.020305 | AT165: =B165 -> Magnum 11 Black | AU165: =AE165 -> 1242.020305
A166: 3 | B166: =E97 -> C1VB Juniors Royal | C166: =VLOOKUP(B166,AU$3:AY$12,3,FALSE) -> 1200 | D166: =IF(B159,B172,IF(D159,D172,C166)) -> 1187.032981 | G166: =IF(E159,E172,IF(G159,G172,D166)) -> 1187.032981 | J166: =IF(H159,H172,IF(J159,J172,G166)) -> 1187.032981 | M166: =IF(K159,K172,IF(M159,M172,J166)) -> 1172.363879 | P166: =IF(N159,N172,IF(P159,P172,M166)) -> 1189.830287 | S166: =IF(Q159,Q172,IF(S159,S172,P166)) -> 1189.830287 | V166: =IF(T159,T172,IF(V159,V172,S166)) -> 1189.830287 | Y166: =IF(W159,W172,IF(Y159,Y172,V166)) -> 1189.830287 | AB166: =IF(Z159,Z172,IF(AB159,AB172,Y166)) -> 1189.830287 | AE166: =IF(AC159,AC172,IF(AE159,AE172,AB166)) -> 1189.830287 | AT166: =B166 -> C1VB Juniors Royal | AU166: =AE166 -> 1189.830287
A167: 4 | B167: =E99 -> SC Midlands KP Black | C167: =VLOOKUP(B167,AU$3:AY$12,3,FALSE) -> 1200 | D167: =IF(B160,B172,IF(D160,D172,C167)) -> 1200 | G167: =IF(E160,E172,IF(G160,G172,D167)) -> 1184 | J167: =IF(H160,H172,IF(J160,J172,G167)) -> 1204.296138 | M167: =IF(K160,K172,IF(M160,M172,J167)) -> 1204.296138 | P167: =IF(N160,N172,IF(P160,P172,M167)) -> 1186.82973 | S167: =IF(Q160,Q172,IF(S160,S172,P167)) -> 1186.82973 | V167: =IF(T160,T172,IF(V160,V172,S167)) -> 1186.82973 | Y167: =IF(W160,W172,IF(Y160,Y172,V167)) -> 1186.82973 | AB167: =IF(Z160,Z172,IF(AB160,AB172,Y167)) -> 1186.82973 | AE167: =IF(AC160,AC172,IF(AE160,AE172,AB167)) -> 1186.82973 | AT167: =B167 -> SC Midlands KP Black | AU167: =AE167 -> 1186.82973
A168: 5 | B168: =E101 -> 0 | C168: =VLOOKUP(B168,AU$3:AY$12,3,FALSE) ->  | D168: =IF(B161,B172,IF(D161,D172,C168)) ->  | G168: =IF(E161,E172,IF(G161,G172,D168)) ->  | J168: =IF(H161,H172,IF(J161,J172,G168)) ->  | M168: =IF(K161,K172,IF(M161,M172,J168)) ->  | P168: =IF(N161,N172,IF(P161,P172,M168)) ->  | S168: =IF(Q161,Q172,IF(S161,S172,P168)) ->  | V168: =IF(T161,T172,IF(V161,V172,S168)) ->  | Y168: =IF(W161,W172,IF(Y161,Y172,V168)) ->  | AB168: =IF(Z161,Z172,IF(AB161,AB172,Y168)) ->  | AE168: =IF(AC161,AC172,IF(AE161,AE172,AB168)) ->  | AT168: =B168 -> 0 | AU168: =AE168 -> 
A170: Init Rating | B170: =VLOOKUP(B109,$A164:$AE168,3,FALSE) -> 1266.666667 | C170: 1 | D170: =VLOOKUP(D109,$A164:$AE168,3,FALSE) -> 1200 | E170: =VLOOKUP(E109,$A164:$AE168,4,FALSE) -> 1200 | F170: 2 | G170: =VLOOKUP(G109,$A164:$AE168,4,FALSE) -> 1200 | H170: =VLOOKUP(H109,$A164:$AE168,7,FALSE) -> 1279.633686 | I170: 3 | J170: =VLOOKUP(J109,$A164:$AE168,7,FALSE) -> 1184 | K170: =VLOOKUP(K109,$A164:$AE168,10,FALSE) -> 1216 | L170: 4 | M170: =VLOOKUP(M109,$A164:$AE168,10,FALSE) -> 1187.032981 | N170: =VLOOKUP(N109,$A164:$AE168,13,FALSE) -> 1172.363879 | O170: 5 | P170: =VLOOKUP(P109,$A164:$AE168,13,FALSE) -> 1204.296138 | Q170: =VLOOKUP(Q109,$A164:$AE168,16,FALSE) -> 1230.669102 | R170: 6 | S170: =VLOOKUP(S109,$A164:$AE168,16,FALSE) -> 1259.337548 | T170: =VLOOKUP(T109,$A164:$AE168,19,FALSE) -> 1242.020305 | U170: 7 | V170: =VLOOKUP(V109,$A164:$AE168,19,FALSE) -> 1189.830287 | W170: =VLOOKUP(W109,$A164:$AE168,22,FALSE) -> 1247.986344 | X170: 8 | Y170: =VLOOKUP(Y109,$A164:$AE168,22,FALSE) ->  | Z170: =VLOOKUP(Z109,$A164:$AE168,25,FALSE) -> 1189.830287 | AA170: 9 | AB170: =VLOOKUP(AB109,$A164:$AE168,25,FALSE) -> 1186.82973 | AC170: =VLOOKUP(AC109,$A164:$AE168,28,FALSE) -> 1247.986344 | AD170: 10 | AE170: =VLOOKUP(AE109,$A164:$AE168,28,FALSE) -> 1242.020305
A171: Exp wins | B171: =1/(1+(10^-((B170-D170)/400)))*(B121+D121) -> 0.5947806561 | D171: =1/(1+(10^-((D170-B170)/400)))*(B121+D121) -> 0.4052193439 | E171: =1/(1+(10^-((E170-G170)/400)))*(E121+G121) -> 0.5 | G171: =1/(1+(10^-((G170-E170)/400)))*(E121+G121) -> 0.5 | H171: =1/(1+(10^-((H170-J170)/400)))*(H121+J121) -> 0.6342543122 | J171: =1/(1+(10^-((J170-H170)/400)))*(H121+J121) -> 0.3657456878 | K171: =1/(1+(10^-((K170-M170)/400)))*(K121+M121) -> 0.541590568 | M171: =1/(1+(10^-((M170-K170)/400)))*(K121+M121) -> 0.458409432 | N171: =1/(1+(10^-((N170-P170)/400)))*(N121+P121) -> 0.454174744 | P171: =1/(1+(10^-((P170-N170)/400)))*(N121+P121) -> 0.545825256 | Q171: =1/(1+(10^-((Q170-S170)/400)))*(Q121+S121) -> 0.4588361707 | S171: =1/(1+(10^-((S170-Q170)/400)))*(Q121+S121) -> 0.5411638293 | T171: =1/(1+(10^-((T170-V170)/400)))*(T121+V121) -> 0 | V171: =1/(1+(10^-((V170-T170)/400)))*(T121+V121) -> 0 | W171: =1/(1+(10^-((W170-Y170)/400)))*(W121+Y121) ->  | Y171: =1/(1+(10^-((Y170-W170)/400)))*(W121+Y121) ->  | Z171: =1/(1+(10^-((Z170-AB170)/400)))*(Z121+AB121) -> 0 | AB171: =1/(1+(10^-((AB170-Z170)/400)))*(Z121+AB121) -> 0 | AC171: =1/(1+(10^-((AC170-AE170)/400)))*(AC121+AE121) -> 0 | AE171: =1/(1+(10^-((AE170-AC170)/400)))*(AC121+AE121) -> 0
A172: New Rating | B172: =B170+(B121-B171)*$BA$1 -> 1279.633686 | D172: =D170+(D121-D171)*$BA$1 -> 1187.032981 | E172: =E170+(E121-E171)*$BA$1 -> 1216 | G172: =G170+(G121-G171)*$BA$1 -> 1184 | H172: =H170+(H121-H171)*$BA$1 -> 1259.337548 | J172: =J170+(J121-J171)*$BA$1 -> 1204.296138 | K172: =K170+(K121-K171)*$BA$1 -> 1230.669102 | M172: =M170+(M121-M171)*$BA$1 -> 1172.363879 | N172: =N170+(N121-N171)*$BA$1 -> 1189.830287 | P172: =P170+(P121-P171)*$BA$1 -> 1186.82973 | Q172: =Q170+(Q121-Q171)*$BA$1 -> 1247.986344 | S172: =S170+(S121-S171)*$BA$1 -> 1242.020305 | T172: =T170+(T121-T171)*$BA$1 -> 1242.020305 | V172: =V170+(V121-V171)*$BA$1 -> 1189.830287 | W172: =W170+(W121-W171)*$BA$1 ->  | Y172: =Y170+(Y121-Y171)*$BA$1 ->  | Z172: =Z170+(Z121-Z171)*$BA$1 -> 1189.830287 | AB172: =AB170+(AB121-AB171)*$BA$1 -> 1186.82973 | AC172: =AC170+(AC121-AC171)*$BA$1 -> 1247.986344 | AE172: =AE170+(AE121-AE171)*$BA$1 -> 1242.020305
A174: =IF($AK95=1,"Pool Tiereaker : 1) Matches Won vs Lost (if 3 way tie then #4) 2) Head to Head 3) Game Win % 4) Total Pool Net Points 5) Flip a Coin","Pool Tiebreaker : 1) Games Won vs Lost (if 3 way tie then #5) 2) Head to Head 3) Head to Head Net Points 4) Game Win % 5) Total Pool Net Points 6) Flip a Coin") -> Pool Tiereaker : 1) Matches Won vs Lost (if 3 way tie then #4) 2) Head to Head 3) Game Win % 4) Total Pool Net Points 5) Flip a Coin
A176: POOL FINISH SUMMARY
A177: Enter Pool Name | B177: First | L177: Second | V177: Third | AF177: Fourth
B178: Team Name | H178: Code | L178: Team Name | R178: Code | V178: Team Name | AB178: Code | AF178: Team Name | AL178: Code
A179: Court 1 | B179: =IF($AF$8=1,$E$8,IF($AF$10=1,$E$10,IF($AF$12=1,$E$12,IF($AF$14=1,$E$14,IF($AF$16=1,$E$16,"1st Place "&$A179))))) -> BVA 11 | H179: =IF($AF$8=1,$E$9,IF($AF$10=1,$E$11,IF($AF$12=1,$E$13,IF($AF$14=1,$E$15,IF($AF$16=1,$E$17,"1st Place "&$A179))))) -> fj1biltm1cr | L179: =IF($AF$8=2,$E$8,IF($AF$10=2,$E$10,IF($AF$12=2,$E$12,IF($AF$14=2,$E$14,IF($AF$16=2,$E$16,"2nd Place "&$A179))))) -> Intense Kids power Gvl | R179: =IF($AF$8=2,$E$9,IF($AF$10=2,$E$11,IF($AF$12=2,$E$13,IF($AF$14=2,$E$15,IF($AF$16=2,$E$17,"2nd Place "&$A179))))) -> fj2inten2pm | V179: =IF($AF$8=3,$E$8,IF($AF$10=3,$E$10,IF($AF$12=3,$E$12,IF($AF$14=3,$E$14,IF($AF$16=3,$E$16,"3rd Place "&$A179))))) -> SC Midlands KP White | AB179: =IF($AF$8=3,$E$9,IF($AF$10=3,$E$11,IF($AF$12=3,$E$13,IF($AF$14=3,$E$15,IF($AF$16=3,$E$17,"3rd Place "&$A179))))) -> fj2scmid2pm | AF179: =IF($AF$8=4,$E$8,IF($AF$10=4,$E$10,IF($AF$12=4,$E$12,IF($AF$14=4,$E$14,IF($AF$16=4,$E$16,"4th Place "&$A179))))) -> SC Midlands KP Garnet | AL179: =IF($AF$8=4,$E$9,IF($AF$10=4,$E$11,IF($AF$12=4,$E$13,IF($AF$14=4,$E$15,IF($AF$16=4,$E$17,"4th Place "&$A179))))) -> fj1scmid2pm
A180: Court 2 | B180: =IF($AF$93=1,$E$93,IF($AF$95=1,$E$95,IF($AF$97=1,$E$97,IF($AF$99=1,$E$99,IF($AF$101=1,$E$101,"1st Place "&$A180))))) -> SC Midlands KP Boys | H180: =IF($AF$93=1,$E$94,IF($AF$95=1,$E$96,IF($AF$97=1,$E$98,IF($AF$99=1,$E$100,IF($AF$101=1,$E$102,"1st Place "&$A180))))) -> fj2scmid3pm | L180: =IF($AF$93=2,$E$93,IF($AF$95=2,$E$95,IF($AF$97=2,$E$97,IF($AF$99=2,$E$99,IF($AF$101=2,$E$101,"2nd Place "&$A180))))) -> SC Midlands KP Black | R180: =IF($AF$93=2,$E$94,IF($AF$95=2,$E$96,IF($AF$97=2,$E$98,IF($AF$99=2,$E$100,IF($AF$101=2,$E$102,"2nd Place "&$A180))))) -> fj1scmid1pm | V180: =IF($AF$93=3,$E$93,IF($AF$95=3,$E$95,IF($AF$97=3,$E$97,IF($AF$99=3,$E$99,IF($AF$101=3,$E$101,"3rd Place "&$A180))))) -> Magnum 11 Black | AB180: =IF($AF$93=3,$E$94,IF($AF$95=3,$E$96,IF($AF$97=3,$E$98,IF($AF$99=3,$E$100,IF($AF$101=3,$E$102,"3rd Place "&$A180))))) -> fj1magnm1pm | AF180: =IF($AF$93=4,$E$93,IF($AF$95=4,$E$95,IF($AF$97=4,$E$97,IF($AF$99=4,$E$99,IF($AF$101=4,$E$101,"4th Place "&$A180))))) -> C1VB Juniors Royal | AL180: =IF($AF$93=4,$E$94,IF($AF$95=4,$E$96,IF($AF$97=4,$E$98,IF($AF$99=4,$E$100,IF($AF$101=4,$E$102,"4th Place "&$A180))))) -> fj2crone7pm
A182: TOURNAMENT PLAYOFF
A183: Playoff Format : All teams Before 4pm 25-25-15 start at 6. If after 4pm, semi's 1 game to 25, finals 25-25-15 start at 6- no cap. Warmups 3-3-1
A184: 5th place from each pool does not advance, will be 9th & 10th place overall based on net pts
A186: Record each teams name and 11 digit code
A188: GOLD DIVISION | R188: SILVER DIVISION
A190: =IF(B218=1,B210,IF(B218=2,B211,IF(B218=3,B212,IF(B218=4,B213,IF(OR(B218="B",B218="b"),"BYE","invalid"))))) -> BVA 11 | U190: =IF(W218=1,X210,IF(W218=2,X211,IF(W218=3,X212,IF(W218=4,X213,IF(OR(W218="B",W218="b"),"BYE","invalid"))))) -> SC Midlands KP White
A191: 1st Place Crt 1 | U191: 3rd Place Crt 1
A193: =B212&" ref" -> Intense Kids power Gvl ref | F193: =IF(H218=1,B210,IF(H218=2,B211,IF(H218=3,B212,IF(H218=4,B213,"Winner Match 1")))) -> Winner Match 1 | T193: =X212&" ref" -> SC Midlands KP Garnet ref | AB193: =IF(AC218=1,X210,IF(AC218=2,X211,IF(AC218=3,X212,IF(AC218=4,X213,"Winner Match 1")))) -> Winner Match 1
A194: Loser is 3rd place | T194: Loser is 7th place
A195: =IF(D218=1,B210,IF(D218=2,B211,IF(D218=3,B212,IF(D218=4,B213,IF(OR(D218="B",D218="b"),"BYE","invalid"))))) -> SC Midlands KP Black | U195: =IF(Y218=1,X210,IF(Y218=2,X211,IF(Y218=3,X212,IF(Y218=4,X213,IF(OR(Y218="B",Y218="b"),"BYE","invalid"))))) -> C1VB Juniors Royal
A196: 2nd Place Crt 2 | U196: 4th Place Crt 2
F197: Loser M2 refs | AB197: Loser M2 refs
J198: =IF(K223=1,B210,IF(K223=2,B211,IF(K223=3,B212,IF(K223=4,B213,"Division Winner")))) -> Division Winner | AF198: =IF(AF223=1,X210,IF(AF223=2,X211,IF(AF223=3,X212,IF(AF223=4,X213,"Division Winner")))) -> Division Winner
A199: =IF(E218=1,B210,IF(E218=2,B211,IF(E218=3,B212,IF(E218=4,B213,IF(OR(E218="B",E218="b"),"BYE","invalid"))))) -> SC Midlands KP Boys | F199: Loser is 2nd place | J199: Gold Champ 1st place | U199: =IF(Z218=1,X210,IF(Z218=2,X211,IF(Z218=3,X212,IF(Z218=4,X213,IF(OR(Z218="B",Z218="b"),"BYE","invalid"))))) -> Magnum 11 Black | AB199: Loser is 6th place | AF199: Silver Champ 5th place
A200: 1st Place Crt 2 | U200: 3rd Place Crt 2
A202: Winner M1 refs | T202: Winner M1 refs
A203: Loser is 3rd place | F203: =IF(J218=1,B210,IF(J218=2,B211,IF(J218=3,B212,IF(J218=4,B213,"Winner Match 2")))) -> Winner Match 2 | T203: Loser is 7th place | AB203: =IF(AE218=1,X210,IF(AE218=2,X211,IF(AE218=3,X212,IF(AE218=4,X213,"Winner Match 2")))) -> Winner Match 2
A204: =IF(G218=1,B210,IF(G218=2,B211,IF(G218=3,B212,IF(G218=4,B213,IF(OR(G218="B",G218="b"),"BYE","invalid"))))) -> Intense Kids power Gvl | U204: =IF(AB218=1,X210,IF(AB218=2,X211,IF(AB218=3,X212,IF(AB218=4,X213,IF(OR(AB218="B",AB218="b"),"BYE","invalid"))))) -> SC Midlands KP Garnet
A205: 2nd Place Crt 1 | U205: 4th Place Crt 1
A208: GOLD DIVISION PLAYOFFS | U208: SILVER DIVISION PLAYOFFS
A209: TEAM | B209: Enter Playoff Team Names | K209: Enter Playoff Team Codes | U209: TEAM | X209: Enter Playoff Team Names | AG209: Enter Playoff Team Codes
A210: 1 | B210: =B179 -> BVA 11 | K210: =H179 -> fj1biltm1cr | U210: 1 | X210: =V179 -> SC Midlands KP White | AG210: =AB179 -> fj2scmid2pm
A211: 2 | B211: =B180 -> SC Midlands KP Boys | K211: =H180 -> fj2scmid3pm | U211: 2 | X211: =V180 -> Magnum 11 Black | AG211: =AB180 -> fj1magnm1pm
A212: 3 | B212: =L179 -> Intense Kids power Gvl | K212: =R179 -> fj2inten2pm | U212: 3 | X212: =AF179 -> SC Midlands KP Garnet | AG212: =AL179 -> fj1scmid2pm
A213: 4 | B213: =L180 -> SC Midlands KP Black | K213: =R180 -> fj1scmid1pm | U213: 4 | X213: =AF180 -> C1VB Juniors Royal | AG213: =AL180 -> fj2crone7pm
B215: Semi Final | E215: Semi Final | H215: Finals | W215: Semi Final | Z215: Semi Final | AC215: Finals
A216: Offic. Team | B216: 3 | E216: Win M1 | H216: Loser M2 | T216: Offic. Team | W216: 3 | Z216: Win M1 | AC216: Loser M2
B217: Match 1 | E217: Match 2 | H217: Match 3 | W217: Match 1 | Z217: Match 2 | AC217: Match 3
B218: 1 | C218: v | D218: 4 | E218: 2 | F218: v | G218: 3 | H218: =IF(OR(AND(OR(B222>0,D222>0),B222>D222),OR(D218="b",D218="B")),B218,IF(OR(AND(OR(B222>0,D222>0),D222>B222),OR(B218="b",B218="B")),D218,"W1")) -> W1 | I218: v | J218: =IF(OR(AND(OR(E222>0,G222>0),E222>G222),OR(G218="b",G218="B")),E218,IF(OR(AND(OR(E222>0,G222>0),G222>E222),OR(E218="b",E218="B")),G218,"W2")) -> W2 | K218: Winner | W218: 1 | X218: v | Y218: 4 | Z218: 2 | AA218: v | AB218: 3 | AC218: =IF(OR(AND(OR(W222>0,Y222>0),W222>Y222),OR(Y218="b",Y218="B")),W218,IF(OR(AND(OR(W222>0,Y222>0),Y222>W222),OR(W218="b",W218="B")),Y218,"W1")) -> W1 | AD218: v | AE218: =IF(OR(AND(OR(Z222>0,AB222>0),Z222>AB222),OR(AB222="b",AB222="B")),Z218,IF(OR(AND(OR(Z222>0,AB222>0),AB222>Z222),OR(Z222="b",Z222="B")),AB218,"W2")) -> W2 | AF218: Winner
B219: =IF(B223>D223,1,0) -> 0 | D219: =IF(D223>B223,1,0) -> 0 | E219: =IF(E223>G223,1,0) -> 0 | G219: =IF(G223>E223,1,0) -> 0 | H219: =IF(H223>J223,1,0) -> 0 | J219: =IF(J223>H223,1,0) -> 0 | W219: =IF(W223>Y223,1,0) -> 0 | Y219: =IF(Y223>W223,1,0) -> 0 | Z219: =IF(Z223>AB223,1,0) -> 0 | AB219: =IF(AB223>Z223,1,0) -> 0 | AC219: =IF(AC223>AE223,1,0) -> 0 | AE219: =IF(AE223>AC223,1,0) -> 0
B220: =IF(B224>D224,1,0) -> 0 | D220: =IF(D224>B224,1,0) -> 0 | E220: =IF(E224>G224,1,0) -> 0 | G220: =IF(G224>E224,1,0) -> 0 | H220: =IF(H224>J224,1,0) -> 0 | J220: =IF(J224>H224,1,0) -> 0 | W220: =IF(W224>Y224,1,0) -> 0 | Y220: =IF(Y224>W224,1,0) -> 0 | Z220: =IF(Z224>AB224,1,0) -> 0 | AB220: =IF(AB224>Z224,1,0) -> 0 | AC220: =IF(AC224>AE224,1,0) -> 0 | AE220: =IF(AE224>AC224,1,0) -> 0
B221: =IF(B225>D225,1,0) -> 0 | D221: =IF(D225>B225,1,0) -> 0 | E221: =IF(E225>G225,1,0) -> 0 | G221: =IF(G225>E225,1,0) -> 0 | H221: =IF(H225>J225,1,0) -> 0 | J221: =IF(J225>H225,1,0) -> 0 | W221: =IF(W225>Y225,1,0) -> 0 | Y221: =IF(Y225>W225,1,0) -> 0 | Z221: =IF(Z225>AB225,1,0) -> 0 | AB221: =IF(AB225>Z225,1,0) -> 0 | AC221: =IF(AC225>AE225,1,0) -> 0 | AE221: =IF(AE225>AC225,1,0) -> 0
B222: =SUM(B219:B221) -> 0 | D222: =SUM(D219:D221) -> 0 | E222: =SUM(E219:E221) -> 0 | G222: =SUM(G219:G221) -> 0 | H222: =SUM(H219:H221) -> 0 | J222: =SUM(J219:J221) -> 0 | W222: =SUM(W219:W221) -> 0 | Y222: =SUM(Y219:Y221) -> 0 | Z222: =SUM(Z219:Z221) -> 0 | AB222: =SUM(AB219:AB221) -> 0 | AC222: =SUM(AC219:AC221) -> 0 | AE222: =SUM(AE219:AE221) -> 0
A223: Game 1 | C223: / | F223: / | I223: / | K223: =IF(AND(OR(H222>0,J222>0),AND(1<=H218,H218<=4),AND(1<=J218,J218<=4)),IF(H222>J222,H218,IF(J222>H222,J218,"")),"") ->  | V223: Game 1 | X223: / | AA223: / | AD223: / | AF223: =IF(AND(OR(AC222>0,AE222>0),AND(1<=AC218,AC218<=4),AND(1<=AE218,AE218<=4)),IF(AC222>AE222,AC218,IF(AE222>AC222,AE218,"")),"") -> 
... 11 more rows

Sheet 8Tm PM Rd2
A1: copywrited program: May not be used or reproduced without the consent of Chip Moseley | AQ1: Version : 5 | AT1: Seeding | AX1: Final Ranking | AZ1: Pool Ranking Multiplier = | BA1: 16
B2: Tournament Name | U2: Date | AT2: # | AU2: Team Name | AV2: Team Code | AW2: Initial Ranking | AX2: Pool Play | AY2: Finals | AZ2: Playoff Ranking Multiplier = | BA2: 16
B3: Site: | L3: Age | U3: Division | AB3: Club | AD3: Power | AT3: 1 | AU3: MOTO 12'1 | AV3: fj1motoj1pm | AW3: =VLOOKUP(AV3,'8Tm PM Rd1'!AV$3:AX$10,3,FALSE) -> 1232.245993 | AX3: =VLOOKUP(AU3,AT$79:AU$174,2,FALSE) -> 1240.225538 | AY3: =IF(ISNA(VLOOKUP(AU3,AT$182:AU$234,2,FALSE)),AX3,VLOOKUP(AU3,AT$182:AU$234,2,FALSE)) -> 1240.225538
H4: Gym Supervisor | U4: Supr Cell #: | AT4: 2 | AU4: Excell U12 Devel | AV4: fj2excel2pm | AW4: =VLOOKUP(AV4,'8Tm PM Rd1'!AV$3:AX$10,3,FALSE) -> 1183.425632 | AX4: 1159.599011 | AY4: 1159.599011
AT5: 3 | AU5: Foothills Skylar | AV5: fj2footh3pm | AW5: =VLOOKUP(AV5,'8Tm PM Rd1'!AV$3:AX$10,3,FALSE) -> 1184 | AX5: 1206.652583 | AY5: 1206.652583
A6: POOL: | B6: A | C6: COURT: | I6: 1 | K6: ="Pool "&B6&" - Round 1 - Court "&I6 -> Pool A - Round 1 - Court 1 | AT6: 4 | AU6: Columbia Starling 12 dev | AV6: fj2starl1pm | AW6: =VLOOKUP(AV6,'8Tm PM Rd1'!AV$3:AX$10,3,FALSE) -> 1245.085581 | AX6: 1235.911402 | AY6: 1235.911402
A7: Team # | B7: Team Name | L7: =IF($AK10=0,"Games Won","Matches Won") -> Matches Won | R7: =IF($AK10=0,"Games Lost","Matches Lost") -> Matches Lost | W7: Total Pool Net Points | Z7: % Total Net Points | AC7: Game Win % | AF7: Pool Finish | AG7: # | AH7: Playoff Finish | AK7: 1 | AL7: Games per Match (1-5) | AT7: 5 | AU7: Foothills Vanessa | AV7: fj2footh2pm | AW7: =VLOOKUP(AV7,'8Tm PM Rd1'!AV$3:AX$10,3,FALSE) -> 1216 | AX7: 1208.703038 | AY7: 1208.703038
A8: =IF($AK9>0,"1","") -> 1 | B8: Team Name | E8: =AU3 -> MOTO 12'1 | L8: =IF($AK10=0,AF64,AF46) -> 2 | R8: =IF($AK10=0,AG64,AG46) -> 1 | W8: =AQ24 -> 5 | Z8: =IF(AF58>0,(AQ24/AF58),0) -> 0.09615384615 | AC8: =IF(AF72=0,0,(AF64/AF72)) -> 0.6666666667 | AF8: 2 | AG8: 2 | AK8: 6 | AL8: Matches (1-10) | AT8: 6 | AU8: C1VB Juniors Grey | AV8: fj2crone8pm | AW8: =VLOOKUP(AV8,'8Tm PM Rd1'!AV$3:AX$10,3,FALSE) -> 1154.914419 | AX8: 1164.912778 | AY8: 1164.912778
B9: Team Code | E9: =AV3 -> fj1motoj1pm | AK9: 4 | AL9: Teams in Pool (1-5) | AT9: 7 | AU9: Intense kids power col | AV9: fj2inten3pm | AW9: =VLOOKUP(AV9,'8Tm PM Rd1'!AV$3:AX$10,3,FALSE) -> 1186.35278 | AX9: 1177.52846 | AY9: 1177.52846
A10: =IF($AK9>1,"2","") -> 2 | B10: Team Name | E10: =AU6 -> Columbia Starling 12 dev | L10: =IF($AK10=0,AF65,AF47) -> 1 | R10: =IF($AK10=0,AG65,AG47) -> 2 | W10: =AQ25 -> -11 | Z10: =IF(AF59>0,(AQ25/AF59),0) -> -0.186440678 | AC10: =IF(AF73=0,0,(AF65/AF73)) -> 0.3333333333 | AF10: 4 | AG10: 2 | AK10: 1 | AL10: 0-Count Games 1-Count Matches | AT10: 8 | AU10: SC Midlands KP Silver | AV10: fj1scmid4pm | AW10: =VLOOKUP(AV10,'8Tm PM Rd1'!AV$3:AX$10,3,FALSE) -> 1218.363942 | AX10: 1226.855538 | AY10: 1226.855538
B11: Team Code | E11: =AV6 -> fj2starl1pm | AK11: 1 | AL11: Game Win % 0 = No 1 = Yes
A12: =IF($AK9>2,"3","") -> 3 | B12: Team Name | E12: =AU7 -> Foothills Vanessa | L12: =IF($AK10=0,AF66,AF48) -> 1 | R12: =IF($AK10=0,AG66,AG48) -> 2 | W12: =AQ26 -> -1 | Z12: =IF(AF60>0,(AQ26/AF60),0) -> -0.01694915254 | AC12: =IF(AF74=0,0,(AF66/AF74)) -> 0.3333333333 | AF12: 3 | AG12: 2 | AK12: 3 | AL12: # of Matches/Games per Team
B13: Team Code | E13: =AV7 -> fj2footh2pm | AT13: Warning -- Do not use CUT/PASTE to move teams in table. Only use COPY/PASTE or seeded cells will be corrupted.
A14: =IF($AK9>3,"4","") -> 4 | B14: Team Name | E14: =AU10 -> SC Midlands KP Silver | L14: =IF($AK10=0,AF67,AF49) -> 2 | R14: =IF($AK10=0,AG67,AG49) -> 1 | W14: =AQ27 -> 7 | Z14: =IF(AF61>0,(AQ27/AF61),0) -> 0.1296296296 | AC14: =IF(AF75=0,0,(AF67/AF75)) -> 0.6666666667 | AF14: 1 | AG14: 2
B15: Team Code | E15: =AV10 -> fj1scmid4pm
A16: =IF($AK9>4,"5","") ->  | B16: Team Name | E16: =AU11 -> 0 | L16: =IF($AK10=0,AF68,AF50) -> 0 | R16: =IF($AK10=0,AG68,AG50) -> 0 | W16: =AQ28 -> 0 | Z16: =IF(AF62>0,(AQ28/AF62),0) -> 0 | AC16: =IF(AF76=0,0,(AF68/AF76)) -> 0
B17: Team Code | E17: =AV11 -> 0 | AU17: Intense kids power col | AV17: fj2inten3pm
B18: POOL PLAY FORMAT: Best of 3 (25-25-15) 2 pt cap
A19: Sch Start | B19: 08:30:00 | E19: 09:30:00 | H19: 10:30:00 | K19: 12:00:00 | N19: 01:00:00 | Q19: 02:00:00 | T19: 01:00:00 | W19: 01:45:00 | Z19: 02:30:00 | AC19: 03:15:00 | AF19: Note: The Pool Finish Summary at the bottom of the sheet will fill in AUTOMATICALLY once the POOL FINISH column (at left) is filled in.
A20: Actual Start
A21: End Time
B22: Match 1 | E22: =IF(AK8>1,"Match 2","") -> Match 2 | H22: =IF(AK8>2,"Match 3","") -> Match 3 | K22: =IF(AK8>3,"Match 4","") -> Match 4 | N22: =IF(AK8>4,"Match 5","") -> Match 5 | Q22: =IF(AK8>5,"Match 6","") -> Match 6 | T22: =IF(AK8>6,"Match 7","") ->  | W22: =IF(AK8>7,"Match 8","") ->  | Z22: =IF(AK8>8,"Match 9","") ->  | AC22: =IF(AK8>9,"Match 10","") -> 
B23: 1 refs | E23: 2 refs | H23: 3 refs | K23: 4 refs | N23: 2 refs | Q23: 3 refs | T23: 4 refs | W23: 2 refs | Z23: 5 refs | AC23: 3 refs | AF23: Net Points | AG23: 1 | AH23: 2 | AI23: 3 | AJ23: 4 | AK23: 5 | AL23: 6 | AM23: 7 | AN23: 8 | AO23: 9 | AP23: 10 | AQ23: Total
B24: 2 | C24: v | D24: 3 | E24: 1 | F24: =IF(AK8>1,"v","") -> v | G24: 4 | H24: 2 | I24: =IF(AK8>2,"v","") -> v | J24: 4 | K24: 1 | L24: =IF(AK8>3,"v","") -> v | M24: 3 | N24: 3 | O24: =IF(AK8>4,"v","") -> v | P24: 4 | Q24: 1 | R24: =IF(AK8>5,"v","") -> v | S24: 2 | T24: 2 | U24: =IF(AK8>6,"v","") ->  | V24: 3 | W24: 1 | X24: =IF(AK8>7,"v","") ->  | Y24: 5 | Z24: 3 | AA24: =IF(AK8>8,"v","") ->  | AB24: 4 | AC24: 1 | AD24: =IF(AK8>9,"v","") ->  | AE24: 2 | AF24: =IF(AK9>0,"Team 1","") -> Team 1 | AG24: =IF(AK9<1,"",IF(AK8<1,"",IF(B24=1,B30-D30,IF(D24=1,D30-B30,"")))) ->  | AH24: =IF(AK9<1,"",IF(AK8<2,"",IF(E24=1,E30-G30,IF(G24=1,G30-E30,"")))) -> -3 | AI24: =IF(AK9<1,"",IF(AK8<3,"",IF(H24=1,H30-J30,IF(J24=1,J30-H30,"")))) ->  | AJ24: =IF(AK9<1,"",IF(AK8<4,"",IF(K24=1,K30-M30,IF(M24=1,M30-K30,"")))) -> 6 | AK24: =IF(AK9<1,"",IF(AK8<5,"",IF(N24=1,N30-P30,IF(P24=1,P30-N30,"")))) ->  | AL24: =IF(AK9<1,"",IF(AK8<6,"",IF(Q24=1,Q30-S30,IF(S24=1,S30-Q30,"")))) -> 2 | AM24: =IF(AK9<1,"",IF(AK8<7,"",IF(T24=1,T30-V30,IF(V24=1,V30-T30,"")))) ->  | AN24: =IF(AK9<1,"",IF(AK8<8,"",IF(W24=1,W30-Y30,IF(Y24=1,Y30-W30,"")))) ->  | AO24: =IF(AK9<1,"",IF(AK8<9,"",IF(Z24=1,Z30-AB30,IF(AB24=1,AB30-Z30,"")))) ->  | AP24: =IF(AK9<1,"",IF(AK8<10,"",IF(AC24=1,AC30-AE30,IF(AE24=1,AE30-AC30,"")))) ->  | AQ24: =SUM(AG24:AP24) -> 5
A25: Game 1 | B25: 12 | C25: / | D25: 24 | E25: 15 | F25: / | G25: 18 | H25: 18 | I25: / | J25: 15 | K25: 17 | L25: / | M25: 11 | N25: 11 | O25: =IF(AK8>4,"/","") -> / | P25: 18 | Q25: 17 | R25: =IF(AK8>5,"/","") -> / | S25: 15 | U25: =IF(AK8>6,"/","") ->  | X25: =IF(AK8>7,"/","") ->  | AA25: =IF(AK8>8,"/","") ->  | AD25: =IF(AK8>9,"/","") ->  | AF25: =IF(AK9>1,"Team 2","") -> Team 2 | AG25: =IF(AK9<2,"",IF(AK8<1,"",IF(B24=2,B30-D30,IF(D24=2,D30-B30,"")))) -> -12 | AH25: =IF(AK9<2,"",IF(AK8<2,"",IF(E24=2,E30-G30,IF(G24=2,G30-E30,"")))) ->  | AI25: =IF(AK9<2,"",IF(AK8<3,"",IF(H24=2,H30-J30,IF(J24=2,J30-H30,"")))) -> 3 | AJ25: =IF(AK9<2,"",IF(AK8<4,"",IF(K24=2,K30-M30,IF(M24=2,M30-K30,"")))) ->  | AK25: =IF(AK9<2,"",IF(AK8<5,"",IF(N24=2,N30-P30,IF(P24=2,P30-N30,"")))) ->  | AL25: =IF(AK9<2,"",IF(AK8<6,"",IF(Q24=2,Q30-S30,IF(S24=2,S30-Q30,"")))) -> -2 | AM25: =IF(AK9<2,"",IF(AK8<7,"",IF(T24=2,T30-V30,IF(V24=2,V30-T30,"")))) ->  | AN25: =IF(AK9<2,"",IF(AK8<8,"",IF(W24=2,W30-Y30,IF(Y24=2,Y30-W30,"")))) ->  | AO25: =IF(AK9<2,"",IF(AK8<9,"",IF(Z24=2,Z30-AB30,IF(AB24=2,AB30-Z30,"")))) ->  | AP25: =IF(AK9<2,"",IF(AK8<10,"",IF(AC24=2,AC30-AE30,IF(AE24=2,AE30-AC30,"")))) ->  | AQ25: =SUM(AG25:AP25) -> -11
A26: =IF(AK7>1,"Game 2","") ->  | C26: / | F26: =IF(AK8>1,IF(AK7>1,"/",""),"") ->  | I26: =IF(AK8>2,IF(AK7>1,"/",""),"") ->  | L26: =IF(AK8>3,IF(AK7>1,"/",""),"") ->  | O26: =IF(AK8>4,IF(AK7>1,"/",""),"") ->  | R26: =IF(AK8>5,IF(AK7>1,"/",""),"") ->  | U26: =IF(AK8>6,IF(AK7>1,"/",""),"") ->  | X26: =IF(AK8>7,IF(AK7>1,"/",""),"") ->  | AA26: =IF(AK8>8,IF(AK7>1,"/",""),"") ->  | AD26: =IF(AK8>9,IF(AK7>1,"/",""),"") ->  | AF26: =IF(AK9>2,"Team 3","") -> Team 3 | AG26: =IF(AK9<3,"",IF(AK8<1,"",IF(B24=3,B30-D30,IF(D24=3,D30-B30,"")))) -> 12 | AH26: =IF(AK9<3,"",IF(AK8<2,"",IF(E24=3,E30-G30,IF(G24=3,G30-E30,"")))) ->  | AI26: =IF(AK9<3,"",IF(AK8<3,"",IF(H24=3,H30-J30,IF(J24=3,J30-H30,"")))) ->  | AJ26: =IF(AK9<3,"",IF(AK8<4,"",IF(K24=3,K30-M30,IF(M24=3,M30-K30,"")))) -> -6 | AK26: =IF(AK9<3,"",IF(AK8<5,"",IF(N24=3,N30-P30,IF(P24=3,P30-N30,"")))) -> -7 | AL26: =IF(AK9<3,"",IF(AK8<6,"",IF(Q24=3,Q30-S30,IF(S24=3,S30-Q30,"")))) ->  | AM26: =IF(AK9<3,"",IF(AK8<7,"",IF(T24=3,T30-V30,IF(V24=3,V30-T30,"")))) ->  | AN26: =IF(AK9<3,"",IF(AK8<8,"",IF(W24=3,W30-Y30,IF(Y24=3,Y30-W30,"")))) ->  | AO26: =IF(AK9<3,"",IF(AK8<9,"",IF(Z24=3,Z30-AB30,IF(AB24=3,AB30-Z30,"")))) ->  | AP26: =IF(AK9<3,"",IF(AK8<9,"",IF(AC24=3,AC30-AE30,IF(AE24=3,AE30-AC30,"")))) ->  | AQ26: =SUM(AG26:AP26) -> -1
A27: =IF(AK7>2,"Game 3","") ->  | C27: / | F27: =IF(AK8>1,IF(AK7>2,"/",""),"") ->  | I27: =IF(AK8>2,IF(AK7>2,"/",""),"") ->  | L27: =IF(AK8>3,IF(AK7>2,"/",""),"") ->  | O27: =IF(AK8>4,IF(AK7>2,"/",""),"") ->  | R27: =IF(AK8>5,IF(AK7>2,"/",""),"") ->  | U27: =IF(AK8>6,IF(AK7>2,"/",""),"") ->  | X27: =IF(AK8>7,IF(AK7>2,"/",""),"") ->  | AA27: =IF(AK8>8,IF(AK7>2,"/",""),"") ->  | AD27: =IF(AK8>9,IF(AK7>2,"/",""),"") ->  | AF27: =IF(AK9>3,"Team 4","") -> Team 4 | AG27: =IF(AK9<4,"",IF(AK8<1,"",IF(B24=4,B30-D30,IF(D24=4,D30-B30,"")))) ->  | AH27: =IF(AK9<4,"",IF(AK8<2,"",IF(E24=4,E30-G30,IF(G24=4,G30-E30,"")))) -> 3 | AI27: =IF(AK9<4,"",IF(AK8<3,"",IF(H24=4,H30-J30,IF(J24=4,J30-H30,"")))) -> -3 | AJ27: =IF(AK9<4,"",IF(AK8<4,"",IF(K24=4,K30-M30,IF(M24=4,M30-K30,"")))) ->  | AK27: =IF(AK9<4,"",IF(AK8<5,"",IF(N24=4,N30-P30,IF(P24=4,P30-N30,"")))) -> 7 | AL27: =IF(AK9<4,"",IF(AK8<6,"",IF(Q24=4,Q30-S30,IF(S24=4,S30-Q30,"")))) ->  | AM27: =IF(AK9<4,"",IF(AK8<7,"",IF(T24=4,T30-V30,IF(V24=4,V30-T30,"")))) ->  | AN27: =IF(AK9<4,"",IF(AK8<8,"",IF(W24=4,W30-Y30,IF(Y24=4,Y30-W30,"")))) ->  | AO27: =IF(AK9<4,"",IF(AK8<9,"",IF(Z24=4,Z30-AB30,IF(AB24=4,AB30-Z30,"")))) ->  | AP27: =IF(AK9<4,"",IF(AK8<10,"",IF(AC24=4,AC30-AE30,IF(AE24=4,AE30-AC30,"")))) ->  | AQ27: =SUM(AG27:AP27) -> 7
A28: =IF(AK7>3,"Game 4","") ->  | C28: / | F28: =IF(AK8>1,IF(AK7>3,"/",""),"") ->  | I28: =IF(AK8>2,IF(AK7>3,"/",""),"") ->  | L28: =IF(AK8>3,IF(AK7>3,"/",""),"") ->  | O28: =IF(AK8>4,IF(AK7>3,"/",""),"") ->  | R28: =IF(AK8>5,IF(AK7>3,"/",""),"") ->  | U28: =IF(AK8>6,IF(AK7>3,"/",""),"") ->  | X28: =IF(AK8>7,IF(AK7>3,"/",""),"") ->  | AA28: =IF(AK8>8,IF(AK7>3,"/",""),"") ->  | AD28: =IF(AK8>9,IF(AK7>3,"/",""),"") ->  | AF28: =IF(AK9>4,"Team 5","") ->  | AG28: =IF(AK9<5,"",IF(AK8<1,"",IF(B24=5,B30-D30,IF(D24=5,D30-B30,"")))) ->  | AH28: =IF(AK9<5,"",IF(AK8<2,"",IF(E24=5,E30-G30,IF(G24=5,G30-E30,"")))) ->  | AI28: =IF(AK9<5,"",IF(AK8<3,"",IF(H24=5,H30-J30,IF(J24=5,J30-H30,"")))) ->  | AJ28: =IF(AK9<5,"",IF(AK8<4,"",IF(K24=5,K30-M30,IF(M24=5,M30-K30,"")))) ->  | AK28: =IF(AK9<5,"",IF(AK8<5,"",IF(N24=5,N30-P30,IF(P24=5,P30-N30,"")))) ->  | AL28: =IF(AK9<5,"",IF(AK8<6,"",IF(Q24=5,Q30-S30,IF(S24=5,S30-Q30,"")))) ->  | AM28: =IF(AK9<5,"",IF(AK8<7,"",IF(T24=5,T30-V30,IF(V24=5,V30-T30,"")))) ->  | AN28: =IF(AK9<5,"",IF(AK8<8,"",IF(W24=5,W30-Y30,IF(Y24=5,Y30-W30,"")))) ->  | AO28: =IF(AK9<5,"",IF(AK8<9,"",IF(Z24=5,Z30-AB30,IF(AB24=5,AB30-Z30,"")))) ->  | AP28: =IF(AK9<5,"",IF(AK8<10,"",IF(AC24=5,AC30-AE30,IF(AE24=5,AE30-AC30,"")))) ->  | AQ28: =SUM(AG28:AP28) -> 0
A29: =IF(AK7>4,"Game 5","") ->  | C29: / | F29: =IF(AK8>1,IF(AK7>4,"/",""),"") ->  | I29: =IF(AK8>2,IF(AK7>4,"/",""),"") ->  | L29: =IF(AK8>3,IF(AK7>4,"/",""),"") ->  | O29: =IF(AK8>4,IF(AK7>4,"/",""),"") ->  | R29: =IF(AK8>5,IF(AK7>4,"/",""),"") ->  | U29: =IF(AK8>6,IF(AK7>4,"/",""),"") ->  | X29: =IF(AK8>7,IF(AK7>4,"/",""),"") ->  | AA29: =IF(AK8>8,IF(AK7>4,"/",""),"") ->  | AD29: =IF(AK8>9,IF(AK7>4,"/",""),"") -> 
B30: =IF($AK7=5,SUM(B25:B29),IF($AK7=4,SUM(B25:B28),IF($AK7=3,SUM(B25:B27),IF($AK7=2,SUM(B25:B26),B25)))) -> 12 | D30: =IF($AK7=5,SUM(D25:D29),IF($AK7=4,SUM(D25:D28),IF($AK7=3,SUM(D25:D27),IF($AK7=2,SUM(D25:D26),D25)))) -> 24 | E30: =IF($AK7=5,SUM(E25:E29),IF($AK7=4,SUM(E25:E28),IF($AK7=3,SUM(E25:E27),IF($AK7=2,SUM(E25:E26),E25)))) -> 15 | G30: =IF($AK7=5,SUM(G25:G29),IF($AK7=4,SUM(G25:G28),IF($AK7=3,SUM(G25:G27),IF($AK7=2,SUM(G25:G26),G25)))) -> 18 | H30: =IF($AK7=5,SUM(H25:H29),IF($AK7=4,SUM(H25:H28),IF($AK7=3,SUM(H25:H27),IF($AK7=2,SUM(H25:H26),H25)))) -> 18 | J30: =IF($AK7=5,SUM(J25:J29),IF($AK7=4,SUM(J25:J28),IF($AK7=3,SUM(J25:J27),IF($AK7=2,SUM(J25:J26),J25)))) -> 15 | K30: =IF($AK7=5,SUM(K25:K29),IF($AK7=4,SUM(K25:K28),IF($AK7=3,SUM(K25:K27),IF($AK7=2,SUM(K25:K26),K25)))) -> 17 | M30: =IF($AK7=5,SUM(M25:M29),IF($AK7=4,SUM(M25:M28),IF($AK7=3,SUM(M25:M27),IF($AK7=2,SUM(M25:M26),M25)))) -> 11 | N30: =IF($AK7=5,SUM(N25:N29),IF($AK7=4,SUM(N25:N28),IF($AK7=3,SUM(N25:N27),IF($AK7=2,SUM(N25:N26),N25)))) -> 11 | P30: =IF($AK7=5,SUM(P25:P29),IF($AK7=4,SUM(P25:P28),IF($AK7=3,SUM(P25:P27),IF($AK7=2,SUM(P25:P26),P25)))) -> 18 | Q30: =IF($AK7=5,SUM(Q25:Q29),IF($AK7=4,SUM(Q25:Q28),IF($AK7=3,SUM(Q25:Q27),IF($AK7=2,SUM(Q25:Q26),Q25)))) -> 17 | S30: =IF($AK7=5,SUM(S25:S29),IF($AK7=4,SUM(S25:S28),IF($AK7=3,SUM(S25:S27),IF($AK7=2,SUM(S25:S26),S25)))) -> 15 | T30: =IF($AK7=5,SUM(T25:T29),IF($AK7=4,SUM(T25:T28),IF($AK7=3,SUM(T25:T27),IF($AK7=2,SUM(T25:T26),T25)))) -> 0 | V30: =IF($AK7=5,SUM(V25:V29),IF($AK7=4,SUM(V25:V28),IF($AK7=3,SUM(V25:V27),IF($AK7=2,SUM(V25:V26),V25)))) -> 0 | W30: =IF($AK7=5,SUM(W25:W29),IF($AK7=4,SUM(W25:W28),IF($AK7=3,SUM(W25:W27),IF($AK7=2,SUM(W25:W26),W25)))) -> 0 | Y30: =IF($AK7=5,SUM(Y25:Y29),IF($AK7=4,SUM(Y25:Y28),IF($AK7=3,SUM(Y25:Y27),IF($AK7=2,SUM(Y25:Y26),Y25)))) -> 0 | Z30: =IF($AK7=5,SUM(Z25:Z29),IF($AK7=4,SUM(Z25:Z28),IF($AK7=3,SUM(Z25:Z27),IF($AK7=2,SUM(Z25:Z26),Z25)))) -> 0 | AB30: =IF($AK7=5,SUM(AB25:AB29),IF($AK7=4,SUM(AB25:AB28),IF($AK7=3,SUM(AB25:AB27),IF($AK7=2,SUM(AB25:AB26),AB25)))) -> 0 | AC30: =IF($AK7=5,SUM(AC25:AC29),IF($AK7=4,SUM(AC25:AC28),IF($AK7=3,SUM(AC25:AC27),IF($AK7=2,SUM(AC25:AC26),AC25)))) -> 0 | AE30: =IF($AK7=5,SUM(AE25:AE29),IF($AK7=4,SUM(AE25:AE28),IF($AK7=3,SUM(AE25:AE27),IF($AK7=2,SUM(AE25:AE26),AE25)))) -> 0
A31: Gm1 Win | B31: =IF(AND(B25>D25,$AK8>0,ISNUMBER(B25),ISNUMBER(D25)),1,0) -> 0 | D31: =IF(AND(D25>B25,$AK8>0,ISNUMBER(B25),ISNUMBER(D25)),1,0) -> 1 | E31: =IF(AND(E25>G25,$AK8>1,ISNUMBER(E25),ISNUMBER(G25)),1,0) -> 0 | G31: =IF(AND(G25>E25,$AK8>1,ISNUMBER(E25),ISNUMBER(G25)),1,0) -> 1 | H31: =IF(AND(H25>J25,$AK8>2,ISNUMBER(H25),ISNUMBER(J25)),1,0) -> 1 | J31: =IF(AND(J25>H25,$AK8>2,ISNUMBER(H25),ISNUMBER(J25)),1,0) -> 0 | K31: =IF(AND(K25>M25,$AK8>3,ISNUMBER(K25),ISNUMBER(M25)),1,0) -> 1 | M31: =IF(AND(M25>K25,$AK8>3,ISNUMBER(K25),ISNUMBER(M25)),1,0) -> 0 | N31: =IF(AND(N25>P25,$AK8>4,ISNUMBER(N25),ISNUMBER(P25)),1,0) -> 0 | P31: =IF(AND(P25>N25,$AK8>4,ISNUMBER(N25),ISNUMBER(P25)),1,0) -> 1 | Q31: =IF(AND(Q25>S25,$AK8>5,ISNUMBER(Q25),ISNUMBER(S25)),1,0) -> 1 | S31: =IF(AND(S25>Q25,$AK8>5,ISNUMBER(Q25),ISNUMBER(S25)),1,0) -> 0 | T31: =IF(AND(T25>V25,$AK8>6,ISNUMBER(T25),ISNUMBER(V25)),1,0) -> 0 | V31: =IF(AND(V25>T25,$AK8>6,ISNUMBER(T25),ISNUMBER(V25)),1,0) -> 0 | W31: =IF(AND(W25>Y25,$AK8>7,ISNUMBER(W25),ISNUMBER(Y25)),1,0) -> 0 | Y31: =IF(AND(Y25>W25,$AK8>7,ISNUMBER(W25),ISNUMBER(Y25)),1,0) -> 0 | Z31: =IF(AND(Z25>AB25,$AK8>8,ISNUMBER(Z25),ISNUMBER(AB25)),1,0) -> 0 | AB31: =IF(AND(AB25>Z25,$AK8>8,ISNUMBER(Z25),ISNUMBER(AB25)),1,0) -> 0 | AC31: =IF(AND(AC25>AE25,$AK8>9,ISNUMBER(AC25),ISNUMBER(AE25)),1,0) -> 0 | AE31: =IF(AND(AE25>AC25,$AK8>9,ISNUMBER(AC25),ISNUMBER(AE25)),1,0) -> 0
A32: Gm2 Win | B32: =IF(AND(B26>D26,$AK8>0,$AK7>1,ISNUMBER(B26),ISNUMBER(D26)),1,0) -> 0 | D32: =IF(AND(D26>B26,$AK8>0,$AK7>1,ISNUMBER(B26),ISNUMBER(D26)),1,0) -> 0 | E32: =IF(AND(E26>G26,$AK8>1,$AK7>1,ISNUMBER(E26),ISNUMBER(G26)),1,0) -> 0 | G32: =IF(AND(G26>E26,$AK8>1,$AK7>1,ISNUMBER(E26),ISNUMBER(G26)),1,0) -> 0 | H32: =IF(AND(H26>J26,$AK8>2,$AK7>1,ISNUMBER(H26),ISNUMBER(J26)),1,0) -> 0 | J32: =IF(AND(J26>H26,$AK8>2,$AK7>1,ISNUMBER(H26),ISNUMBER(J26)),1,0) -> 0 | K32: =IF(AND(K26>M26,$AK8>3,$AK7>1,ISNUMBER(K26),ISNUMBER(M26)),1,0) -> 0 | M32: =IF(AND(M26>K26,$AK8>3,$AK7>1,ISNUMBER(K26),ISNUMBER(M26)),1,0) -> 0 | N32: =IF(AND(N26>P26,$AK8>4,$AK7>1,ISNUMBER(N26),ISNUMBER(P26)),1,0) -> 0 | P32: =IF(AND(P26>N26,$AK8>4,$AK7>1,ISNUMBER(N26),ISNUMBER(P26)),1,0) -> 0 | Q32: =IF(AND(Q26>S26,$AK8>5,$AK7>1,ISNUMBER(Q26),ISNUMBER(S26)),1,0) -> 0 | S32: =IF(AND(S26>Q26,$AK8>5,$AK7>1,ISNUMBER(Q26),ISNUMBER(S26)),1,0) -> 0 | T32: =IF(AND(T26>V26,$AK8>6,$AK7>1,ISNUMBER(T26),ISNUMBER(V26)),1,0) -> 0 | V32: =IF(AND(V26>T26,$AK8>6,$AK7>1,ISNUMBER(T26),ISNUMBER(V26)),1,0) -> 0 | W32: =IF(AND(W26>Y26,$AK8>7,$AK7>1,ISNUMBER(W26),ISNUMBER(Y26)),1,0) -> 0 | Y32: =IF(AND(Y26>W26,$AK8>7,$AK7>1,ISNUMBER(W26),ISNUMBER(Y26)),1,0) -> 0 | Z32: =IF(AND(Z26>AB26,$AK8>8,$AK7>1,ISNUMBER(Z26),ISNUMBER(AB26)),1,0) -> 0 | AB32: =IF(AND(AB26>Z26,$AK8>8,$AK7>1,ISNUMBER(Z26),ISNUMBER(AB26)),1,0) -> 0 | AC32: =IF(AND(AC26>AE26,$AK8>9,$AK7>1,ISNUMBER(AC26),ISNUMBER(AE26)),1,0) -> 0 | AE32: =IF(AND(AE26>AC26,$AK8>9,$AK7>1,ISNUMBER(AC26),ISNUMBER(AE26)),1,0) -> 0
A33: Gm3 Win | B33: =IF(AND(B27>D27,$AK8>0,$AK7>2,ISNUMBER(B27),ISNUMBER(D27)),1,0) -> 0 | D33: =IF(AND(D27>B27,$AK8>0,$AK7>2,ISNUMBER(B27),ISNUMBER(D27)),1,0) -> 0 | E33: =IF(AND(E27>G27,$AK8>1,$AK7>2,ISNUMBER(E27),ISNUMBER(G27)),1,0) -> 0 | G33: =IF(AND(G27>E27,$AK8>1,$AK7>2,ISNUMBER(E27),ISNUMBER(G27)),1,0) -> 0 | H33: =IF(AND(H27>J27,$AK8>2,$AK7>2,ISNUMBER(H27),ISNUMBER(J27)),1,0) -> 0 | J33: =IF(AND(J27>H27,$AK8>2,$AK7>2,ISNUMBER(H27),ISNUMBER(J27)),1,0) -> 0 | K33: =IF(AND(K27>M27,$AK8>3,$AK7>2,ISNUMBER(K27),ISNUMBER(M27)),1,0) -> 0 | M33: =IF(AND(M27>K27,$AK8>3,$AK7>2,ISNUMBER(K27),ISNUMBER(M27)),1,0) -> 0 | N33: =IF(AND(N27>P27,$AK8>4,$AK7>2,ISNUMBER(N27),ISNUMBER(P27)),1,0) -> 0 | P33: =IF(AND(P27>N27,$AK8>4,$AK7>2,ISNUMBER(N27),ISNUMBER(P27)),1,0) -> 0 | Q33: =IF(AND(Q27>S27,$AK8>5,$AK7>2,ISNUMBER(Q27),ISNUMBER(S27)),1,0) -> 0 | S33: =IF(AND(S27>Q27,$AK8>5,$AK7>2,ISNUMBER(Q27),ISNUMBER(S27)),1,0) -> 0 | T33: =IF(AND(T27>V27,$AK8>6,$AK7>2,ISNUMBER(T27),ISNUMBER(V27)),1,0) -> 0 | V33: =IF(AND(V27>T27,$AK8>6,$AK7>2,ISNUMBER(T27),ISNUMBER(V27)),1,0) -> 0 | W33: =IF(AND(W27>Y27,$AK8>7,$AK7>2,ISNUMBER(W27),ISNUMBER(Y27)),1,0) -> 0 | Y33: =IF(AND(Y27>W27,$AK8>7,$AK7>2,ISNUMBER(W27),ISNUMBER(Y27)),1,0) -> 0 | Z33: =IF(AND(Z27>AB27,$AK8>8,$AK7>2,ISNUMBER(Z27),ISNUMBER(AB27)),1,0) -> 0 | AB33: =IF(AND(AB27>Z27,$AK8>8,$AK7>2,ISNUMBER(Z27),ISNUMBER(AB27)),1,0) -> 0 | AC33: =IF(AND(AC27>AE27,$AK8>9,$AK7>2,ISNUMBER(AC27),ISNUMBER(AE27)),1,0) -> 0 | AE33: =IF(AND(AE27>AC27,$AK8>9,$AK7>2,ISNUMBER(AC27),ISNUMBER(AE27)),1,0) -> 0
A34: Gm4 Win | B34: =IF(AND(B28>D28,$AK8>0,$AK7>3,ISNUMBER(B28),ISNUMBER(D28)),1,0) -> 0 | D34: =IF(AND(D28>B28,$AK8>0,$AK7>3,ISNUMBER(B28),ISNUMBER(D28)),1,0) -> 0 | E34: =IF(AND(E28>G28,$AK8>1,$AK7>3,ISNUMBER(E28),ISNUMBER(G28)),1,0) -> 0 | G34: =IF(AND(G28>E28,$AK8>1,$AK7>3,ISNUMBER(E28),ISNUMBER(G28)),1,0) -> 0 | H34: =IF(AND(H28>J28,$AK8>2,$AK7>3,ISNUMBER(H28),ISNUMBER(J28)),1,0) -> 0 | J34: =IF(AND(J28>H28,$AK8>2,$AK7>3,ISNUMBER(H28),ISNUMBER(J28)),1,0) -> 0 | K34: =IF(AND(K28>M28,$AK8>3,$AK7>3,ISNUMBER(K28),ISNUMBER(M28)),1,0) -> 0 | M34: =IF(AND(M28>K28,$AK8>3,$AK7>3,ISNUMBER(K28),ISNUMBER(M28)),1,0) -> 0 | N34: =IF(AND(N28>P28,$AK8>4,$AK7>3,ISNUMBER(N28),ISNUMBER(P28)),1,0) -> 0 | P34: =IF(AND(P28>N28,$AK8>4,$AK7>3,ISNUMBER(N28),ISNUMBER(P28)),1,0) -> 0 | Q34: =IF(AND(Q28>S28,$AK8>5,$AK7>3,ISNUMBER(Q28),ISNUMBER(S28)),1,0) -> 0 | S34: =IF(AND(S28>Q28,$AK8>5,$AK7>3,ISNUMBER(Q28),ISNUMBER(S28)),1,0) -> 0 | T34: =IF(AND(T28>V28,$AK8>6,$AK7>3,ISNUMBER(T28),ISNUMBER(V28)),1,0) -> 0 | V34: =IF(AND(V28>T28,$AK8>6,$AK7>3,ISNUMBER(T28),ISNUMBER(V28)),1,0) -> 0 | W34: =IF(AND(W28>Y28,$AK8>7,$AK7>3,ISNUMBER(W28),ISNUMBER(Y28)),1,0) -> 0 | Y34: =IF(AND(Y28>W28,$AK8>7,$AK7>3,ISNUMBER(W28),ISNUMBER(Y28)),1,0) -> 0 | Z34: =IF(AND(Z28>AB28,$AK8>8,$AK7>3,ISNUMBER(Z28),ISNUMBER(AB28)),1,0) -> 0 | AB34: =IF(AND(AB28>Z28,$AK8>8,$AK7>3,ISNUMBER(Z28),ISNUMBER(AB28)),1,0) -> 0 | AC34: =IF(AND(AC28>AE28,$AK8>9,$AK7>3,ISNUMBER(AC28),ISNUMBER(AE28)),1,0) -> 0 | AE34: =IF(AND(AE28>AC28,$AK8>9,$AK7>3,ISNUMBER(AC28),ISNUMBER(AE28)),1,0) -> 0
A35: Gm5 Win | B35: =IF(AND(B29>D29,$AK8>0,$AK7>4,ISNUMBER(B29),ISNUMBER(D29)),1,0) -> 0 | D35: =IF(AND(D29>B29,$AK8>0,$AK7>4,ISNUMBER(B29),ISNUMBER(D29)),1,0) -> 0 | E35: =IF(AND(E29>G29,$AK8>1,$AK7>4,ISNUMBER(E29),ISNUMBER(G29)),1,0) -> 0 | G35: =IF(AND(G29>E29,$AK8>1,$AK7>4,ISNUMBER(E29),ISNUMBER(G29)),1,0) -> 0 | H35: =IF(AND(H29>J29,$AK8>2,$AK7>4,ISNUMBER(H29),ISNUMBER(J29)),1,0) -> 0 | J35: =IF(AND(J29>H29,$AK8>2,$AK7>4,ISNUMBER(H29),ISNUMBER(J29)),1,0) -> 0 | K35: =IF(AND(K29>M29,$AK8>3,$AK7>4,ISNUMBER(K29),ISNUMBER(M29)),1,0) -> 0 | M35: =IF(AND(M29>K29,$AK8>3,$AK7>4,ISNUMBER(K29),ISNUMBER(M29)),1,0) -> 0 | N35: =IF(AND(N29>P29,$AK8>4,$AK7>4,ISNUMBER(N29),ISNUMBER(P29)),1,0) -> 0 | P35: =IF(AND(P29>N29,$AK8>4,$AK7>4,ISNUMBER(N29),ISNUMBER(P29)),1,0) -> 0 | Q35: =IF(AND(Q29>S29,$AK8>5,$AK7>4,ISNUMBER(Q29),ISNUMBER(S29)),1,0) -> 0 | S35: =IF(AND(S29>Q29,$AK8>5,$AK7>4,ISNUMBER(Q29),ISNUMBER(S29)),1,0) -> 0 | T35: =IF(AND(T29>V29,$AK8>6,$AK7>4,ISNUMBER(T29),ISNUMBER(V29)),1,0) -> 0 | V35: =IF(AND(V29>T29,$AK8>6,$AK7>4,ISNUMBER(T29),ISNUMBER(V29)),1,0) -> 0 | W35: =IF(AND(W29>Y29,$AK8>7,$AK7>4,ISNUMBER(W29),ISNUMBER(Y29)),1,0) -> 0 | Y35: =IF(AND(Y29>W29,$AK8>7,$AK7>4,ISNUMBER(W29),ISNUMBER(Y29)),1,0) -> 0 | Z35: =IF(AND(Z29>AB29,$AK8>8,$AK7>4,ISNUMBER(Z29),ISNUMBER(AB29)),1,0) -> 0 | AB35: =IF(AND(AB29>Z29,$AK8>8,$AK7>4,ISNUMBER(Z29),ISNUMBER(AB29)),1,0) -> 0 | AC35: =IF(AND(AC29>AE29,$AK8>9,$AK7>4,ISNUMBER(AC29),ISNUMBER(AE29)),1,0) -> 0 | AE35: =IF(AND(AE29>AC29,$AK8>9,$AK7>4,ISNUMBER(AC29),ISNUMBER(AE29)),1,0) -> 0
A36: Sum Game Win/Loss | B36: =SUM(B31:B35) -> 0 | D36: =SUM(D31:D35) -> 1 | E36: =SUM(E31:E35) -> 0 | G36: =SUM(G31:G35) -> 1 | H36: =SUM(H31:H35) -> 1 | J36: =SUM(J31:J35) -> 0 | K36: =SUM(K31:K35) -> 1 | M36: =SUM(M31:M35) -> 0 | N36: =SUM(N31:N35) -> 0 | P36: =SUM(P31:P35) -> 1 | Q36: =SUM(Q31:Q35) -> 1 | S36: =SUM(S31:S35) -> 0 | T36: =SUM(T31:T35) -> 0 | V36: =SUM(V31:V35) -> 0 | W36: =SUM(W31:W35) -> 0 | Y36: =SUM(Y31:Y35) -> 0 | Z36: =SUM(Z31:Z35) -> 0 | AB36: =SUM(AB31:AB35) -> 0 | AC36: =SUM(AC31:AC35) -> 0 | AE36: =SUM(AE31:AE35) -> 0
A37: Match Won/Lost | B37: =IF(B36>D36,IF(C71=AK7,1,IF(C71=AK7-1,1,0)),0) -> 0 | C37: =B37+D37 -> 1 | D37: =IF(D36>B36,IF(C71=AK7,1,IF(C71=AK7-1,1,0)),0) -> 1 | E37: =IF(E36>G36,IF(F71=AK7,1,IF(F71=AK7-1,1,0)),0) -> 0 | F37: =E37+G37 -> 1 | G37: =IF(G36>E36,IF(F71=AK7,1,IF(F71=AK7-1,1,0)),0) -> 1 | H37: =IF(H36>J36,IF(I71=AK7,1,IF(I71=AK7-1,1,0)),0) -> 1 | I37: =H37+J37 -> 1 | J37: =IF(J36>H36,IF(I71=AK7,1,IF(I71=AK7-1,1,0)),0) -> 0 | K37: =IF(K36>M36,IF(L71=AK7,1,IF(L71=AK7-1,1,0)),0) -> 1 | L37: =K37+M37 -> 1 | M37: =IF(M36>K36,IF(L71=AK7,1,IF(L71=AK7-1,1,0)),0) -> 0 | N37: =IF(N36>P36,IF(O71=AK7,1,IF(O71=AK7-1,1,0)),0) -> 0 | O37: =N37+P37 -> 1 | P37: =IF(P36>N36,IF(O71=AK7,1,IF(O71=AK7-1,1,0)),0) -> 1 | Q37: =IF(Q36>S36,IF(R71=AK7,1,IF(R71=AK7-1,1,0)),0) -> 1 | R37: =Q37+S37 -> 1 | S37: =IF(S36>Q36,IF(R71=AK7,1,IF(R71=AK7-1,1,0)),0) -> 0 | T37: =IF(T36>V36,IF(U71=AK7,1,IF(U71=AK7-1,1,0)),0) -> 0 | U37: =T37+V37 -> 0 | V37: =IF(V36>T36,IF(U71=AK7,1,IF(U71=AK7-1,1,0)),0) -> 0 | W37: =IF(W36>Y36,IF(X71=AK7,1,IF(X71=AK7-1,1,0)),0) -> 0 | X37: =W37+Y37 -> 0 | Y37: =IF(Y36>W36,IF(X71=AK7,1,IF(X71=AK7-1,1,0)),0) -> 0 | Z37: =IF(Z36>AB36,IF(AA71=AK7,1,IF(AA71=AK7-1,1,0)),0) -> 0 | AA37: =Z37+AB37 -> 0 | AB37: =IF(AB36>Z36,IF(AA71=AK7,1,IF(AA71=AK7-1,1,0)),0) -> 0 | AC37: =IF(AC36>AE36,IF(AD71=AK7,1,IF(AD71=AK7-1,1,0)),0) -> 0 | AD37: =AC37+AE37 -> 0 | AE37: =IF(AE36>AC36,IF(AD71=AK7,1,IF(AD71=AK7-1,1,0)),0) -> 0
A39: Gm1 Pts | B39: =IF(B31=1,B25,0) -> 0 | D39: =IF(D31=1,D25,0) -> 24 | E39: 0 | G39: =IF(G31=1,G25,0) -> 18 | H39: 18 | J39: =IF(J31=1,J25,0) -> 0 | K39: 17 | M39: =IF(M31=1,M25,0) -> 0 | N39: 0 | P39: =IF(P31=1,P25,0) -> 18 | Q39: 17 | S39: =IF(S31=1,S25,0) -> 0 | T39: 0 | V39: =IF(V31=1,V25,0) -> 0 | W39: 0 | Y39: =IF(Y31=1,Y25,0) -> 0 | Z39: 0 | AB39: =IF(AB31=1,AB25,0) -> 0 | AC39: 0 | AE39: =IF(AE31=1,AE25,0) -> 0
A40: Gm2 Pts | B40: =IF(B32=1,B26,0) -> 0 | D40: 0 | E40: 0 | G40: 0 | H40: 0 | J40: 0 | K40: 0 | M40: 0 | N40: 0 | P40: 0 | Q40: 0 | S40: 0 | T40: 0 | V40: 0 | W40: 0 | Y40: 0 | Z40: 0 | AB40: 0 | AC40: 0 | AE40: =IF(AE32=1,AE26,0) -> 0
A41: Gm3 Pts | B41: =IF(B33=1,B27,0) -> 0 | D41: 0 | E41: 0 | G41: 0 | H41: 0 | J41: 0 | K41: 0 | M41: 0 | N41: 0 | P41: 0 | Q41: 0 | S41: 0 | T41: 0 | V41: 0 | W41: 0 | Y41: 0 | Z41: 0 | AB41: 0 | AC41: 0 | AE41: =IF(AE33=1,AE27,0) -> 0
A42: Gm4 Pts | B42: =IF(B34=1,B28,0) -> 0 | D42: 0 | E42: 0 | G42: 0 | H42: 0 | J42: 0 | K42: 0 | M42: 0 | N42: 0 | P42: 0 | Q42: 0 | S42: 0 | T42: 0 | V42: 0 | W42: 0 | Y42: 0 | Z42: 0 | AB42: 0 | AC42: 0 | AE42: =IF(AE34=1,AE28,0) -> 0
A43: Gm5 Pts | B43: =IF(B35=1,B29,0) -> 0 | D43: 0 | E43: 0 | G43: 0 | H43: 0 | J43: 0 | K43: 0 | M43: 0 | N43: 0 | P43: 0 | Q43: 0 | S43: 0 | T43: 0 | V43: 0 | W43: 0 | Y43: 0 | Z43: 0 | AB43: 0 | AC43: 0 | AE43: =IF(AE35=1,AE29,0) -> 0
A44: Sum Match Points | B44: =SUM(B39:D43) -> 24 | E44: =SUM(E39:G43) -> 18 | H44: =SUM(H39:J43) -> 18 | K44: =SUM(K39:M43) -> 17 | N44: =SUM(N39:P43) -> 18 | Q44: =SUM(Q39:S43) -> 17 | T44: =SUM(T39:V43) -> 0 | W44: =SUM(W39:Y43) -> 0 | Z44: =SUM(Z39:AB43) -> 0 | AC44: =SUM(AC39:AE43) -> 0
A45: Matches | AF45: Match Wins by Team | AG45: Match Losses by Team
A46: Tm1 Wins | B46: =IF(B24=1,IF(B37=1,1,0),0) -> 0 | D46: =IF(D24=1,IF(D37=1,1,0),0) -> 0 | E46: =IF(E24=1,IF(E37=1,1,0),0) -> 0 | G46: =IF(G24=1,IF(G37=1,1,0),0) -> 0 | H46: =IF(H24=1,IF(H37=1,1,0),0) -> 0 | J46: =IF(J24=1,IF(J37=1,1,0),0) -> 0 | K46: =IF(K24=1,IF(K37=1,1,0),0) -> 1 | M46: =IF(M24=1,IF(M37=1,1,0),0) -> 0 | N46: =IF(N24=1,IF(N37=1,1,0),0) -> 0 | P46: =IF(P24=1,IF(P37=1,1,0),0) -> 0 | Q46: =IF(Q24=1,IF(Q37=1,1,0),0) -> 1 | S46: =IF(S24=1,IF(S37=1,1,0),0) -> 0 | T46: =IF(T24=1,IF(T37=1,1,0),0) -> 0 | V46: =IF(V24=1,IF(V37=1,1,0),0) -> 0 | W46: =IF(W24=1,IF(W37=1,1,0),0) -> 0 | Y46: =IF(Y24=1,IF(Y37=1,1,0),0) -> 0 | Z46: =IF(Z24=1,IF(Z37=1,1,0),0) -> 0 | AB46: =IF(AB24=1,IF(AB37=1,1,0),0) -> 0 | AC46: =IF(AC24=1,IF(AC37=1,1,0),0) -> 0 | AE46: =IF(AE24=1,IF(AE37=1,1,0),0) -> 0 | AF46: =SUM(B46:AE46) -> 2 | AG46: =AF52-AF46 -> 1
A47: Tm2 Wins | B47: =IF(B24=2,IF(B37=1,1,0),0) -> 0 | D47: =IF(D24=2,IF(D37=1,1,0),0) -> 0 | E47: =IF(E24=2,IF(E37=1,1,0),0) -> 0 | G47: =IF(G24=2,IF(G37=1,1,0),0) -> 0 | H47: =IF(H24=2,IF(H37=1,1,0),0) -> 1 | J47: =IF(J24=2,IF(J37=1,1,0),0) -> 0 | K47: =IF(K24=2,IF(K37=1,1,0),0) -> 0 | M47: =IF(M24=2,IF(M37=1,1,0),0) -> 0 | N47: =IF(N24=2,IF(N37=1,1,0),0) -> 0 | P47: =IF(P24=2,IF(P37=1,1,0),0) -> 0 | Q47: =IF(Q24=2,IF(Q37=1,1,0),0) -> 0 | S47: =IF(S24=2,IF(S37=1,1,0),0) -> 0 | T47: =IF(T24=2,IF(T37=1,1,0),0) -> 0 | V47: =IF(V24=2,IF(V37=1,1,0),0) -> 0 | W47: =IF(W24=2,IF(W37=1,1,0),0) -> 0 | Y47: =IF(Y24=2,IF(Y37=1,1,0),0) -> 0 | Z47: =IF(Z24=2,IF(Z37=1,1,0),0) -> 0 | AB47: =IF(AB24=2,IF(AB37=1,1,0),0) -> 0 | AC47: =IF(AC24=2,IF(AC37=1,1,0),0) -> 0 | AE47: =IF(AE24=2,IF(AE37=1,1,0),0) -> 0 | AF47: =SUM(B47:AE47) -> 1 | AG47: =AF53-AF47 -> 2
A48: Tm3 Wins | B48: =IF(B24=3,IF(B37=1,1,0),0) -> 0 | D48: =IF(D24=3,IF(D37=1,1,0),0) -> 1 | E48: =IF(E24=3,IF(E37=1,1,0),0) -> 0 | G48: =IF(G24=3,IF(G37=1,1,0),0) -> 0 | H48: =IF(H24=3,IF(H37=1,1,0),0) -> 0 | J48: =IF(J24=3,IF(J37=1,1,0),0) -> 0 | K48: =IF(K24=3,IF(K37=1,1,0),0) -> 0 | M48: =IF(M24=3,IF(M37=1,1,0),0) -> 0 | N48: =IF(N24=3,IF(N37=1,1,0),0) -> 0 | P48: =IF(P24=3,IF(P37=1,1,0),0) -> 0 | Q48: =IF(Q24=3,IF(Q37=1,1,0),0) -> 0 | S48: =IF(S24=3,IF(S37=1,1,0),0) -> 0 | T48: =IF(T24=3,IF(T37=1,1,0),0) -> 0 | V48: =IF(V24=3,IF(V37=1,1,0),0) -> 0 | W48: =IF(W24=3,IF(W37=1,1,0),0) -> 0 | Y48: =IF(Y24=3,IF(Y37=1,1,0),0) -> 0 | Z48: =IF(Z24=3,IF(Z37=1,1,0),0) -> 0 | AB48: =IF(AB24=3,IF(AB37=1,1,0),0) -> 0 | AC48: =IF(AC24=3,IF(AC37=1,1,0),0) -> 0 | AE48: =IF(AE24=3,IF(AE37=1,1,0),0) -> 0 | AF48: =SUM(B48:AE48) -> 1 | AG48: =AF54-AF48 -> 2
A49: Tm4 Wins | B49: =IF(B24=4,IF(B37=1,1,0),0) -> 0 | D49: =IF(D24=4,IF(D37=1,1,0),0) -> 0 | E49: =IF(E24=4,IF(E37=1,1,0),0) -> 0 | G49: =IF(G24=4,IF(G37=1,1,0),0) -> 1 | H49: =IF(H24=4,IF(H37=1,1,0),0) -> 0 | J49: =IF(J24=4,IF(J37=1,1,0),0) -> 0 | K49: =IF(K24=4,IF(K37=1,1,0),0) -> 0 | M49: =IF(M24=4,IF(M37=1,1,0),0) -> 0 | N49: =IF(N24=4,IF(N37=1,1,0),0) -> 0 | P49: =IF(P24=4,IF(P37=1,1,0),0) -> 1 | Q49: =IF(Q24=4,IF(Q37=1,1,0),0) -> 0 | S49: =IF(S24=4,IF(S37=1,1,0),0) -> 0 | T49: =IF(T24=4,IF(T37=1,1,0),0) -> 0 | V49: =IF(V24=4,IF(V37=1,1,0),0) -> 0 | W49: =IF(W24=4,IF(W37=1,1,0),0) -> 0 | Y49: =IF(Y24=4,IF(Y37=1,1,0),0) -> 0 | Z49: =IF(Z24=4,IF(Z37=1,1,0),0) -> 0 | AB49: =IF(AB24=4,IF(AB37=1,1,0),0) -> 0 | AC49: =IF(AC24=4,IF(AC37=1,1,0),0) -> 0 | AE49: =IF(AE24=4,IF(AE37=1,1,0),0) -> 0 | AF49: =SUM(B49:AE49) -> 2 | AG49: =AF55-AF49 -> 1
A50: Tm5 Wins | B50: =IF(B24=5,IF(B37=1,1,0),0) -> 0 | D50: =IF(D24=5,IF(D37=1,1,0),0) -> 0 | E50: =IF(E24=5,IF(E37=1,1,0),0) -> 0 | G50: =IF(G24=5,IF(G37=1,1,0),0) -> 0 | H50: =IF(H24=5,IF(H37=1,1,0),0) -> 0 | J50: =IF(J24=5,IF(J37=1,1,0),0) -> 0 | K50: =IF(K24=5,IF(K37=1,1,0),0) -> 0 | M50: =IF(M24=5,IF(M37=1,1,0),0) -> 0 | N50: =IF(N24=5,IF(N37=1,1,0),0) -> 0 | P50: =IF(P24=5,IF(P37=1,1,0),0) -> 0 | Q50: =IF(Q24=5,IF(Q37=1,1,0),0) -> 0 | S50: =IF(S24=5,IF(S37=1,1,0),0) -> 0 | T50: =IF(T24=5,IF(T37=1,1,0),0) -> 0 | V50: =IF(V24=5,IF(V37=1,1,0),0) -> 0 | W50: =IF(W24=5,IF(W37=1,1,0),0) -> 0 | Y50: =IF(Y24=5,IF(Y37=1,1,0),0) -> 0 | Z50: =IF(Z24=5,IF(Z37=1,1,0),0) -> 0 | AB50: =IF(AB24=5,IF(AB37=1,1,0),0) -> 0 | AC50: =IF(AC24=5,IF(AC37=1,1,0),0) -> 0 | AE50: =IF(AE24=5,IF(AE37=1,1,0),0) -> 0 | AF50: =SUM(B50:AE50) -> 0 | AG50: =AF56-AF50 -> 0
AF51: Matches played by team
A52: Tm1 Play | B52: =IF(B24=1,IF(C37=1,1,0),0) -> 0 | D52: =IF(D24=1,IF(C37=1,1,0),0) -> 0 | E52: =IF(E24=1,IF(F37=1,1,0),0) -> 1 | G52: =IF(G24=1,IF(F37=1,1,0),0) -> 0 | H52: =IF(H24=1,IF(I37=1,1,0),0) -> 0 | J52: =IF(J24=1,IF(I37=1,1,0),0) -> 0 | K52: =IF(K24=1,IF(L37=1,1,0),0) -> 1 | M52: =IF(M24=1,IF(L37=1,1,0),0) -> 0 | N52: =IF(N24=1,IF(O37=1,1,0),0) -> 0 | P52: =IF(P24=1,IF(O37=1,1,0),0) -> 0 | Q52: =IF(Q24=1,IF(R37=1,1,0),0) -> 1 | S52: =IF(S24=1,IF(R37=1,1,0),0) -> 0 | T52: =IF(T24=1,IF(U37=1,1,0),0) -> 0 | V52: =IF(V24=1,IF(U37=1,1,0),0) -> 0 | W52: =IF(W24=1,IF(X37=1,1,0),0) -> 0 | Y52: =IF(Y24=1,IF(X37=1,1,0),0) -> 0 | Z52: =IF(Z24=1,IF(AA37=1,1,0),0) -> 0 | AB52: =IF(AB24=1,IF(AA37=1,1,0),0) -> 0 | AC52: =IF(AC24=1,IF(AD37=1,1,0),0) -> 0 | AE52: =IF(AE24=1,IF(AD37=1,1,0),0) -> 0 | AF52: =SUM(B52:AE52) -> 3
A53: Tm2 Play | B53: =IF(B24=2,IF(C37=1,1,0),0) -> 1 | D53: =IF(D24=2,IF(C37=1,1,0),0) -> 0 | E53: =IF(E24=2,IF(F37=1,1,0),0) -> 0 | G53: =IF(G24=2,IF(F37=1,1,0),0) -> 0 | H53: =IF(H24=2,IF(I37=1,1,0),0) -> 1 | J53: =IF(J24=2,IF(I37=1,1,0),0) -> 0 | K53: =IF(K24=2,IF(L37=1,1,0),0) -> 0 | M53: =IF(M24=2,IF(L37=1,1,0),0) -> 0 | N53: =IF(N24=2,IF(O37=1,1,0),0) -> 0 | P53: =IF(P24=2,IF(O37=1,1,0),0) -> 0 | Q53: =IF(Q24=2,IF(R37=1,1,0),0) -> 0 | S53: =IF(S24=2,IF(R37=1,1,0),0) -> 1 | T53: =IF(T24=2,IF(U37=1,1,0),0) -> 0 | V53: =IF(V24=2,IF(U37=1,1,0),0) -> 0 | W53: =IF(W24=2,IF(X37=1,1,0),0) -> 0 | Y53: =IF(Y24=2,IF(X37=1,1,0),0) -> 0 | Z53: =IF(Z24=2,IF(AA37=1,1,0),0) -> 0 | AB53: =IF(AB24=2,IF(AA37=1,1,0),0) -> 0 | AC53: =IF(AC24=2,IF(AD37=1,1,0),0) -> 0 | AE53: =IF(AE24=2,IF(AD37=1,1,0),0) -> 0 | AF53: =SUM(B53:AE53) -> 3
A54: Tm3 Play | B54: =IF(B24=3,IF(C37=1,1,0),0) -> 0 | D54: =IF(D24=3,IF(C37=1,1,0),0) -> 1 | E54: =IF(E24=3,IF(F37=1,1,0),0) -> 0 | G54: =IF(G24=3,IF(F37=1,1,0),0) -> 0 | H54: =IF(H24=3,IF(I37=1,1,0),0) -> 0 | J54: =IF(J24=3,IF(I37=1,1,0),0) -> 0 | K54: =IF(K24=3,IF(L37=1,1,0),0) -> 0 | M54: =IF(M24=3,IF(L37=1,1,0),0) -> 1 | N54: =IF(N24=3,IF(O37=1,1,0),0) -> 1 | P54: =IF(P24=3,IF(O37=1,1,0),0) -> 0 | Q54: =IF(Q24=3,IF(R37=1,1,0),0) -> 0 | S54: =IF(S24=3,IF(R37=1,1,0),0) -> 0 | T54: =IF(T24=3,IF(U37=1,1,0),0) -> 0 | V54: =IF(V24=3,IF(U37=1,1,0),0) -> 0 | W54: =IF(W24=3,IF(X37=1,1,0),0) -> 0 | Y54: =IF(Y24=3,IF(X37=1,1,0),0) -> 0 | Z54: =IF(Z24=3,IF(AA37=1,1,0),0) -> 0 | AB54: =IF(AB24=3,IF(AA37=1,1,0),0) -> 0 | AC54: =IF(AC24=3,IF(AD37=1,1,0),0) -> 0 | AE54: =IF(AE24=3,IF(AD37=1,1,0),0) -> 0 | AF54: =SUM(B54:AE54) -> 3
A55: Tm4 Play | B55: =IF(B24=4,IF(C37=1,1,0),0) -> 0 | D55: =IF(D24=4,IF(C37=1,1,0),0) -> 0 | E55: =IF(E24=4,IF(F37=1,1,0),0) -> 0 | G55: =IF(G24=4,IF(F37=1,1,0),0) -> 1 | H55: =IF(H24=4,IF(I37=1,1,0),0) -> 0 | J55: =IF(J24=4,IF(I37=1,1,0),0) -> 1 | K55: =IF(K24=4,IF(L37=1,1,0),0) -> 0 | M55: =IF(M24=4,IF(L37=1,1,0),0) -> 0 | N55: =IF(N24=4,IF(O37=1,1,0),0) -> 0 | P55: =IF(P24=4,IF(O37=1,1,0),0) -> 1 | Q55: =IF(Q24=4,IF(R37=1,1,0),0) -> 0 | S55: =IF(S24=4,IF(R37=1,1,0),0) -> 0 | T55: =IF(T24=4,IF(U37=1,1,0),0) -> 0 | V55: =IF(V24=4,IF(U37=1,1,0),0) -> 0 | W55: =IF(W24=4,IF(X37=1,1,0),0) -> 0 | Y55: =IF(Y24=4,IF(X37=1,1,0),0) -> 0 | Z55: =IF(Z24=4,IF(AA37=1,1,0),0) -> 0 | AB55: =IF(AB24=4,IF(AA37=1,1,0),0) -> 0 | AC55: =IF(AC24=4,IF(AD37=1,1,0),0) -> 0 | AE55: =IF(AE24=4,IF(AD37=1,1,0),0) -> 0 | AF55: =SUM(B55:AE55) -> 3
A56: Tm5 Play | B56: =IF(B24=5,IF(C37=1,1,0),0) -> 0 | D56: =IF(D24=5,IF(C37=1,1,0),0) -> 0 | E56: =IF(E24=5,IF(F37=1,1,0),0) -> 0 | G56: =IF(G24=5,IF(F37=1,1,0),0) -> 0 | H56: =IF(H24=5,IF(I37=1,1,0),0) -> 0 | J56: =IF(J24=5,IF(I37=1,1,0),0) -> 0 | K56: =IF(K24=5,IF(L37=1,1,0),0) -> 0 | M56: =IF(M24=5,IF(L37=1,1,0),0) -> 0 | N56: =IF(N24=5,IF(O37=1,1,0),0) -> 0 | P56: =IF(P24=5,IF(O37=1,1,0),0) -> 0 | Q56: =IF(Q24=5,IF(R37=1,1,0),0) -> 0 | S56: =IF(S24=5,IF(R37=1,1,0),0) -> 0 | T56: =IF(T24=5,IF(U37=1,1,0),0) -> 0 | V56: =IF(V24=5,IF(U37=1,1,0),0) -> 0 | W56: =IF(W24=5,IF(X37=1,1,0),0) -> 0 | Y56: =IF(Y24=5,IF(X37=1,1,0),0) -> 0 | Z56: =IF(Z24=5,IF(AA37=1,1,0),0) -> 0 | AB56: =IF(AB24=5,IF(AA37=1,1,0),0) -> 0 | AC56: =IF(AC24=5,IF(AD37=1,1,0),0) -> 0 | AE56: =IF(AE24=5,IF(AD37=1,1,0),0) -> 0 | AF56: =SUM(B56:AE56) -> 0
AF57: Total Points played by team
A58: Tm1 Play | B58: =IF(B24=1,B44,0) -> 0 | D58: =IF(D24=1,B44,0) -> 0 | E58: =IF(E24=1,E44,0) -> 18 | G58: =IF(G24=1,E44,0) -> 0 | H58: =IF(H24=1,H44,0) -> 0 | J58: =IF(J24=1,H44,0) -> 0 | K58: =IF(K24=1,K44,0) -> 17 | M58: =IF(M24=1,K44,0) -> 0 | N58: =IF(N24=1,N44,0) -> 0 | P58: =IF(P24=1,N44,0) -> 0 | Q58: =IF(Q24=1,Q44,0) -> 17 | S58: =IF(S24=1,Q44,0) -> 0 | T58: =IF(T24=1,T44,0) -> 0 | V58: =IF(V24=1,T44,0) -> 0 | W58: =IF(W24=1,W44,0) -> 0 | Y58: =IF(Y24=1,W44,0) -> 0 | Z58: =IF(Z24=1,Z44,0) -> 0 | AB58: =IF(AB24=1,Z44,0) -> 0 | AC58: =IF(AC24=1,AC44,0) -> 0 | AE58: =IF(AE24=1,AC44,0) -> 0 | AF58: =SUM(B58:AE58) -> 52
A59: Tm2 Play | B59: =IF(B24=2,B44,0) -> 24 | D59: =IF(D24=2,B44,0) -> 0 | E59: =IF(E24=2,E44,0) -> 0 | G59: =IF(G24=2,E44,0) -> 0 | H59: =IF(H24=2,H44,0) -> 18 | J59: =IF(J24=2,H44,0) -> 0 | K59: =IF(K24=2,K44,0) -> 0 | M59: =IF(M24=2,K44,0) -> 0 | N59: =IF(N24=2,N44,0) -> 0 | P59: =IF(P24=2,N44,0) -> 0 | Q59: =IF(Q24=2,Q44,0) -> 0 | S59: =IF(S24=2,Q44,0) -> 17 | T59: =IF(T24=2,T44,0) -> 0 | V59: =IF(V24=2,T44,0) -> 0 | W59: =IF(W24=2,W44,0) -> 0 | Y59: =IF(Y24=2,W44,0) -> 0 | Z59: =IF(Z24=2,Z44,0) -> 0 | AB59: =IF(AB24=2,Z44,0) -> 0 | AC59: =IF(AC24=2,AC44,0) -> 0 | AE59: =IF(AE24=2,AC44,0) -> 0 | AF59: =SUM(B59:AE59) -> 59
A60: Tm3 Play | B60: =IF(B24=3,B44,0) -> 0 | D60: =IF(D24=3,B44,0) -> 24 | E60: =IF(E24=3,E44,0) -> 0 | G60: =IF(G24=3,E44,0) -> 0 | H60: =IF(H24=3,H44,0) -> 0 | J60: =IF(J24=3,H44,0) -> 0 | K60: =IF(K24=3,K44,0) -> 0 | M60: =IF(M24=3,K44,0) -> 17 | N60: =IF(N24=3,N44,0) -> 18 | P60: =IF(P24=3,N44,0) -> 0 | Q60: =IF(Q24=3,Q44,0) -> 0 | S60: =IF(S24=3,Q44,0) -> 0 | T60: =IF(T24=3,T44,0) -> 0 | V60: =IF(V24=3,T44,0) -> 0 | W60: =IF(W24=3,W44,0) -> 0 | Y60: =IF(Y24=3,W44,0) -> 0 | Z60: =IF(Z24=3,Z44,0) -> 0 | AB60: =IF(AB24=3,Z44,0) -> 0 | AC60: =IF(AC24=3,AC44,0) -> 0 | AE60: =IF(AE24=3,AC44,0) -> 0 | AF60: =SUM(B60:AE60) -> 59
A61: Tm4 Play | B61: =IF(B24=4,B44,0) -> 0 | D61: =IF(D24=4,B44,0) -> 0 | E61: =IF(E24=4,E44,0) -> 0 | G61: =IF(G24=4,E44,0) -> 18 | H61: =IF(H24=4,H44,0) -> 0 | J61: =IF(J24=4,H44,0) -> 18 | K61: =IF(K24=4,K44,0) -> 0 | M61: =IF(M24=4,K44,0) -> 0 | N61: =IF(N24=4,N44,0) -> 0 | P61: =IF(P24=4,N44,0) -> 18 | Q61: =IF(Q24=4,Q44,0) -> 0 | S61: =IF(S24=4,Q44,0) -> 0 | T61: =IF(T24=4,T44,0) -> 0 | V61: =IF(V24=4,T44,0) -> 0 | W61: =IF(W24=4,W44,0) -> 0 | Y61: =IF(Y24=4,W44,0) -> 0 | Z61: =IF(Z24=4,Z44,0) -> 0 | AB61: =IF(AB24=4,Z44,0) -> 0 | AC61: =IF(AC24=4,AC44,0) -> 0 | AE61: =IF(AE24=4,AC44,0) -> 0 | AF61: =SUM(B61:AE61) -> 54
A62: Tm5 Play | B62: =IF(B24=5,B44,0) -> 0 | D62: =IF(D24=5,B44,0) -> 0 | E62: =IF(E24=5,E44,0) -> 0 | G62: =IF(G24=5,E44,0) -> 0 | H62: =IF(H24=5,H44,0) -> 0 | J62: =IF(J24=5,H44,0) -> 0 | K62: =IF(K24=5,K44,0) -> 0 | M62: =IF(M24=5,K44,0) -> 0 | N62: =IF(N24=5,N44,0) -> 0 | P62: =IF(P24=5,N44,0) -> 0 | Q62: =IF(Q24=5,Q44,0) -> 0 | S62: =IF(S24=5,Q44,0) -> 0 | T62: =IF(T24=5,T44,0) -> 0 | V62: =IF(V24=5,T44,0) -> 0 | W62: =IF(W24=5,W44,0) -> 0 | Y62: =IF(Y24=5,W44,0) -> 0 | Z62: =IF(Z24=5,Z44,0) -> 0 | AB62: =IF(AB24=5,Z44,0) -> 0 | AC62: =IF(AC24=5,AC44,0) -> 0 | AE62: =IF(AE24=5,AC44,0) -> 0 | AF62: =SUM(B62:AE62) -> 0
A63: Games | AF63: Game Wins by Team | AG63: Game Losses by Team
A64: Tm1 Wins | B64: =IF(B24=1,SUMIF(B31:B35,">0"),0) -> 0 | D64: =IF(D24=1,SUMIF(D31:D35,">0"),0) -> 0 | E64: =IF(E24=1,SUMIF(E31:E35,">0"),0) -> 0 | G64: =IF(G24=1,SUMIF(G31:G35,">0"),0) -> 0 | H64: =IF(H24=1,SUMIF(H31:H35,">0"),0) -> 0 | J64: =IF(J24=1,SUMIF(J31:J35,">0"),0) -> 0 | K64: =IF(K24=1,SUMIF(K31:K35,">0"),0) -> 1 | M64: =IF(M24=1,SUMIF(M31:M35,">0"),0) -> 0 | N64: =IF(N24=1,SUMIF(N31:N35,">0"),0) -> 0 | P64: =IF(P24=1,SUMIF(P31:P35,">0"),0) -> 0 | Q64: =IF(Q24=1,SUMIF(Q31:Q35,">0"),0) -> 1 | S64: =IF(S24=1,SUMIF(S31:S35,">0"),0) -> 0 | T64: =IF(T24=1,SUMIF(T31:T35,">0"),0) -> 0 | V64: =IF(V24=1,SUMIF(V31:V35,">0"),0) -> 0 | W64: =IF(W24=1,SUMIF(W31:W35,">0"),0) -> 0 | Y64: =IF(Y24=1,SUMIF(Y31:Y35,">0"),0) -> 0 | Z64: =IF(Z24=1,SUMIF(Z31:Z35,">0"),0) -> 0 | AB64: =IF(AB24=1,SUMIF(AB31:AB35,">0"),0) -> 0 | AC64: =IF(AC24=1,SUMIF(AC31:AC35,">0"),0) -> 0 | AE64: =IF(AE24=1,SUMIF(AE31:AE35,">0"),0) -> 0 | AF64: =SUM(B64:AE64) -> 2 | AG64: =AF72-AF64 -> 1
A65: Tm2 Wins | B65: =IF(B24=2,SUMIF(B31:B35,">0"),0) -> 0 | D65: =IF(D24=2,SUMIF(D31:D35,">0"),0) -> 0 | E65: =IF(E24=2,SUMIF(E31:E35,">0"),0) -> 0 | G65: =IF(G24=2,SUMIF(G31:G35,">0"),0) -> 0 | H65: =IF(H24=2,SUMIF(H31:H35,">0"),0) -> 1 | J65: =IF(J24=2,SUMIF(J31:J35,">0"),0) -> 0 | K65: =IF(K24=2,SUMIF(K31:K35,">0"),0) -> 0 | M65: =IF(M24=2,SUMIF(M31:M35,">0"),0) -> 0 | N65: =IF(N24=2,SUMIF(N31:N35,">0"),0) -> 0 | P65: =IF(P24=2,SUMIF(P31:P35,">0"),0) -> 0 | Q65: =IF(Q24=2,SUMIF(Q31:Q35,">0"),0) -> 0 | S65: =IF(S24=2,SUMIF(S31:S35,">0"),0) -> 0 | T65: =IF(T24=2,SUMIF(T31:T35,">0"),0) -> 0 | V65: =IF(V24=2,SUMIF(V31:V35,">0"),0) -> 0 | W65: =IF(W24=2,SUMIF(W31:W35,">0"),0) -> 0 | Y65: =IF(Y24=2,SUMIF(Y31:Y35,">0"),0) -> 0 | Z65: =IF(Z24=2,SUMIF(Z31:Z35,">0"),0) -> 0 | AB65: =IF(AB24=2,SUMIF(AB31:AB35,">0"),0) -> 0 | AC65: =IF(AC24=2,SUMIF(AC31:AC35,">0"),0) -> 0 | AE65: =IF(AE24=2,SUMIF(AE31:AE35,">0"),0) -> 0 | AF65: =SUM(B65:AE65) -> 1 | AG65: =AF73-AF65 -> 2
A66: Tm3 Wins | B66: =IF(B24=3,SUMIF(B31:B35,">0"),0) -> 0 | D66: =IF(D24=3,SUMIF(D31:D35,">0"),0) -> 1 | E66: =IF(E24=3,SUMIF(E31:E35,">0"),0) -> 0 | G66: =IF(G24=3,SUMIF(G31:G35,">0"),0) -> 0 | H66: =IF(H24=3,SUMIF(H31:H35,">0"),0) -> 0 | J66: =IF(J24=3,SUMIF(J31:J35,">0"),0) -> 0 | K66: =IF(K24=3,SUMIF(K31:K35,">0"),0) -> 0 | M66: =IF(M24=3,SUMIF(M31:M35,">0"),0) -> 0 | N66: =IF(N24=3,SUMIF(N31:N35,">0"),0) -> 0 | P66: =IF(P24=3,SUMIF(P31:P35,">0"),0) -> 0 | Q66: =IF(Q24=3,SUMIF(Q31:Q35,">0"),0) -> 0 | S66: =IF(S24=3,SUMIF(S31:S35,">0"),0) -> 0 | T66: =IF(T24=3,SUMIF(T31:T35,">0"),0) -> 0 | V66: =IF(V24=3,SUMIF(V31:V35,">0"),0) -> 0 | W66: =IF(W24=3,SUMIF(W31:W35,">0"),0) -> 0 | Y66: =IF(Y24=3,SUMIF(Y31:Y35,">0"),0) -> 0 | Z66: =IF(Z24=3,SUMIF(Z31:Z35,">0"),0) -> 0 | AB66: =IF(AB24=3,SUMIF(AB31:AB35,">0"),0) -> 0 | AC66: =IF(AC24=3,SUMIF(AC31:AC35,">0"),0) -> 0 | AE66: =IF(AE24=3,SUMIF(AE31:AE35,">0"),0) -> 0 | AF66: =SUM(B66:AE66) -> 1 | AG66: =AF74-AF66 -> 2
A67: Tm4 Wins | B67: =IF(B24=4,SUMIF(B31:B35,">0"),0) -> 0 | D67: =IF(D24=4,SUMIF(D31:D35,">0"),0) -> 0 | E67: =IF(E24=4,SUMIF(E31:E35,">0"),0) -> 0 | G67: =IF(G24=4,SUMIF(G31:G35,">0"),0) -> 1 | H67: =IF(H24=4,SUMIF(H31:H35,">0"),0) -> 0 | J67: =IF(J24=4,SUMIF(J31:J35,">0"),0) -> 0 | K67: =IF(K24=4,SUMIF(K31:K35,">0"),0) -> 0 | M67: =IF(M24=4,SUMIF(M31:M35,">0"),0) -> 0 | N67: =IF(N24=4,SUMIF(N31:N35,">0"),0) -> 0 | P67: =IF(P24=4,SUMIF(P31:P35,">0"),0) -> 1 | Q67: =IF(Q24=4,SUMIF(Q31:Q35,">0"),0) -> 0 | S67: =IF(S24=4,SUMIF(S31:S35,">0"),0) -> 0 | T67: =IF(T24=4,SUMIF(T31:T35,">0"),0) -> 0 | V67: =IF(V24=4,SUMIF(V31:V35,">0"),0) -> 0 | W67: =IF(W24=4,SUMIF(W31:W35,">0"),0) -> 0 | Y67: =IF(Y24=4,SUMIF(Y31:Y35,">0"),0) -> 0 | Z67: =IF(Z24=4,SUMIF(Z31:Z35,">0"),0) -> 0 | AB67: =IF(AB24=4,SUMIF(AB31:AB35,">0"),0) -> 0 | AC67: =IF(AC24=4,SUMIF(AC31:AC35,">0"),0) -> 0 | AE67: =IF(AE24=4,SUMIF(AE31:AE35,">0"),0) -> 0 | AF67: =SUM(B67:AE67) -> 2 | AG67: =AF75-AF67 -> 1
A68: Tm5 Wins | B68: =IF(B24=5,SUMIF(B31:B35,">0"),0) -> 0 | D68: =IF(D24=5,SUMIF(D31:D35,">0"),0) -> 0 | E68: =IF(E24=5,SUMIF(E31:E35,">0"),0) -> 0 | G68: =IF(G24=5,SUMIF(G31:G35,">0"),0) -> 0 | H68: =IF(H24=5,SUMIF(H31:H35,">0"),0) -> 0 | J68: =IF(J24=5,SUMIF(J31:J35,">0"),0) -> 0 | K68: =IF(K24=5,SUMIF(K31:K35,">0"),0) -> 0 | M68: =IF(M24=5,SUMIF(M31:M35,">0"),0) -> 0 | N68: =IF(N24=5,SUMIF(N31:N35,">0"),0) -> 0 | P68: =IF(P24=5,SUMIF(P31:P35,">0"),0) -> 0 | Q68: =IF(Q24=5,SUMIF(Q31:Q35,">0"),0) -> 0 | S68: =IF(S24=5,SUMIF(S31:S35,">0"),0) -> 0 | T68: =IF(T24=5,SUMIF(T31:T35,">0"),0) -> 0 | V68: =IF(V24=5,SUMIF(V31:V35,">0"),0) -> 0 | W68: =IF(W24=5,SUMIF(W31:W35,">0"),0) -> 0 | Y68: =IF(Y24=5,SUMIF(Y31:Y35,">0"),0) -> 0 | Z68: =IF(Z24=5,SUMIF(Z31:Z35,">0"),0) -> 0 | AB68: =IF(AB24=5,SUMIF(AB31:AB35,">0"),0) -> 0 | AC68: =IF(AC24=5,SUMIF(AC31:AC35,">0"),0) -> 0 | AE68: =IF(AE24=5,SUMIF(AE31:AE35,">0"),0) -> 0 | AF68: =SUM(B68:AE68) -> 0 | AG68: =AF76-AF68 -> 0
A71: Games Played this Match | C71: =SUMIF(B64:D68,">0") -> 1 | F71: =SUMIF(E64:G68,">0") -> 1 | I71: =SUMIF(H64:J68,">0") -> 1 | L71: =SUMIF(K64:M68,">0") -> 1 | O71: =SUMIF(N64:P68,">0") -> 1 | R71: =SUMIF(Q64:S68,">0") -> 1 | U71: =SUMIF(T64:V68,">0") -> 0 | X71: =SUMIF(W64:Y68,">0") -> 0 | AA71: =SUMIF(Z64:AB68,">0") -> 0 | AD71: =SUMIF(AC64:AE68,">0") -> 0 | AF71: Games played by team
A72: Tm1 Play | B72: =IF(B24=1,C71,0) -> 0 | D72: =IF(D24=1,C71,0) -> 0 | E72: =IF(E24=1,F71,0) -> 1 | G72: =IF(G24=1,F71,0) -> 0 | H72: =IF(H24=1,I71,0) -> 0 | J72: =IF(J24=1,I71,0) -> 0 | K72: =IF(K24=1,L71,0) -> 1 | M72: =IF(M24=1,L71,0) -> 0 | N72: =IF(N24=1,O71,0) -> 0 | P72: =IF(P24=1,O71,0) -> 0 | Q72: =IF(Q24=1,R71,0) -> 1 | S72: =IF(S24=1,R71,0) -> 0 | T72: =IF(T24=1,U71,0) -> 0 | V72: =IF(V24=1,U71,0) -> 0 | W72: =IF(W24=1,X71,0) -> 0 | Y72: =IF(Y24=1,X71,0) -> 0 | Z72: =IF(Z24=1,AA71,0) -> 0 | AB72: =IF(AB24=1,AA71,0) -> 0 | AC72: =IF(AC24=1,AD71,0) -> 0 | AE72: =IF(AE24=1,AD71,0) -> 0 | AF72: =SUM(B72:AE72) -> 3
A73: Tm2 Play | B73: =IF(B24=2,C71,0) -> 1 | D73: =IF(D24=2,C71,0) -> 0 | E73: =IF(E24=2,F71,0) -> 0 | G73: =IF(G24=2,F71,0) -> 0 | H73: =IF(H24=2,I71,0) -> 1 | J73: =IF(J24=2,I71,0) -> 0 | K73: =IF(K24=2,L71,0) -> 0 | M73: =IF(M24=2,L71,0) -> 0 | N73: =IF(N24=2,O71,0) -> 0 | P73: =IF(P24=2,O71,0) -> 0 | Q73: =IF(Q24=2,R71,0) -> 0 | S73: =IF(S24=2,R71,0) -> 1 | T73: =IF(T24=2,U71,0) -> 0 | V73: =IF(V24=2,U71,0) -> 0 | W73: =IF(W24=2,X71,0) -> 0 | Y73: =IF(Y24=2,X71,0) -> 0 | Z73: =IF(Z24=2,AA71,0) -> 0 | AB73: =IF(AB24=2,AA71,0) -> 0 | AC73: =IF(AC24=2,AD71,0) -> 0 | AE73: =IF(AE24=2,AD71,0) -> 0 | AF73: =SUM(B73:AE73) -> 3
A74: Tm3 Play | B74: =IF(B24=3,C71,0) -> 0 | D74: =IF(D24=3,C71,0) -> 1 | E74: =IF(E24=3,F71,0) -> 0 | G74: =IF(G24=3,F71,0) -> 0 | H74: =IF(H24=3,I71,0) -> 0 | J74: =IF(J24=3,I71,0) -> 0 | K74: =IF(K24=3,L71,0) -> 0 | M74: =IF(M24=3,L71,0) -> 1 | N74: =IF(N24=3,O71,0) -> 1 | P74: =IF(P24=3,O71,0) -> 0 | Q74: =IF(Q24=3,R71,0) -> 0 | S74: =IF(S24=3,R71,0) -> 0 | T74: =IF(T24=3,U71,0) -> 0 | V74: =IF(V24=3,U71,0) -> 0 | W74: =IF(W24=3,X71,0) -> 0 | Y74: =IF(Y24=3,X71,0) -> 0 | Z74: =IF(Z24=3,AA71,0) -> 0 | AB74: =IF(AB24=3,AA71,0) -> 0 | AC74: =IF(AC24=3,AD71,0) -> 0 | AE74: =IF(AE24=3,AD71,0) -> 0 | AF74: =SUM(B74:AE74) -> 3
A75: Tm4 Play | B75: =IF(B24=4,C71,0) -> 0 | D75: =IF(D24=4,C71,0) -> 0 | E75: =IF(E24=4,F71,0) -> 0 | G75: =IF(G24=4,F71,0) -> 1 | H75: =IF(H24=4,I71,0) -> 0 | J75: =IF(J24=4,I71,0) -> 1 | K75: =IF(K24=4,L71,0) -> 0 | M75: =IF(M24=4,L71,0) -> 0 | N75: =IF(N24=4,O71,0) -> 0 | P75: =IF(P24=4,O71,0) -> 1 | Q75: =IF(Q24=4,R71,0) -> 0 | S75: =IF(S24=4,R71,0) -> 0 | T75: =IF(T24=4,U71,0) -> 0 | V75: =IF(V24=4,U71,0) -> 0 | W75: =IF(W24=4,X71,0) -> 0 | Y75: =IF(Y24=4,X71,0) -> 0 | Z75: =IF(Z24=4,AA71,0) -> 0 | AB75: =IF(AB24=4,AA71,0) -> 0 | AC75: =IF(AC24=4,AD71,0) -> 0 | AE75: =IF(AE24=4,AD71,0) -> 0 | AF75: =SUM(B75:AE75) -> 3
A76: Tm5 Play | B76: =IF(B24=5,C71,0) -> 0 | D76: =IF(D24=5,C71,0) -> 0 | E76: =IF(E24=5,F71,0) -> 0 | G76: =IF(G24=5,F71,0) -> 0 | H76: =IF(H24=5,I71,0) -> 0 | J76: =IF(J24=5,I71,0) -> 0 | K76: =IF(K24=5,L71,0) -> 0 | M76: =IF(M24=5,L71,0) -> 0 | N76: =IF(N24=5,O71,0) -> 0 | P76: =IF(P24=5,O71,0) -> 0 | Q76: =IF(Q24=5,R71,0) -> 0 | S76: =IF(S24=5,R71,0) -> 0 | T76: =IF(T24=5,U71,0) -> 0 | V76: =IF(V24=5,U71,0) -> 0 | W76: =IF(W24=5,X71,0) -> 0 | Y76: =IF(Y24=5,X71,0) -> 0 | Z76: =IF(Z24=5,AA71,0) -> 0 | AB76: =IF(AB24=5,AA71,0) -> 0 | AC76: =IF(AC24=5,AD71,0) -> 0 | AE76: =IF(AE24=5,AD71,0) -> 0 | AF76: =SUM(B76:AE76) -> 0
C78: Init | D78: 1 | G78: 2 | J78: 3 | M78: 4 | P78: 5 | S78: 6 | V78: 7 | Y78: 8 | AB78: 9 | AE78: 10 | AT78: End of Pool
A79: 1 | B79: =E8 -> MOTO 12'1 | C79: =VLOOKUP(B79,AU$3:AY$12,3,FALSE) -> 1232.245993 | D79: =IF(B72,B87,IF(D72,D87,C79)) -> 1232.245993 | G79: =IF(E72,E87,IF(G72,G87,D79)) -> 1223.926517 | J79: =IF(H72,H87,IF(J72,J87,G79)) -> 1223.926517 | M79: =IF(K72,K87,IF(M72,M87,J79)) -> 1231.943594 | P79: =IF(N72,N87,IF(P72,P87,M79)) -> 1231.943594 | S79: =IF(Q72,Q87,IF(S72,S87,P79)) -> 1240.225538 | V79: =IF(T72,T87,IF(V72,V87,S79)) -> 1240.225538 | Y79: =IF(W72,W87,IF(Y72,Y87,V79)) -> 1240.225538 | AB79: =IF(Z72,Z87,IF(AB72,AB87,Y79)) -> 1240.225538 | AE79: =IF(AC72,AC87,IF(AE72,AE87,AB79)) -> 1240.225538 | AT79: =B79 -> MOTO 12'1 | AU79: =AE79 -> 1240.225538
A80: 2 | B80: =E10 -> Columbia Starling 12 dev | C80: =VLOOKUP(B80,AU$3:AY$12,3,FALSE) -> 1245.085581 | D80: =IF(B73,B87,IF(D73,D87,C80)) -> 1236.417421 | G80: =IF(E73,E87,IF(G73,G87,D80)) -> 1236.417421 | J80: =IF(H73,H87,IF(J73,J87,G80)) -> 1244.193346 | M80: =IF(K73,K87,IF(M73,M87,J80)) -> 1244.193346 | P80: =IF(N73,N87,IF(P73,P87,M80)) -> 1244.193346 | S80: =IF(Q73,Q87,IF(S73,S87,P80)) -> 1235.911402 | V80: =IF(T73,T87,IF(V73,V87,S80)) -> 1235.911402 | Y80: =IF(W73,W87,IF(Y73,Y87,V80)) -> 1235.911402 | AB80: =IF(Z73,Z87,IF(AB73,AB87,Y80)) -> 1235.911402 | AE80: =IF(AC73,AC87,IF(AE73,AE87,AB80)) -> 1235.911402 | AT80: =B80 -> Columbia Starling 12 dev | AU80: =AE80 -> 1235.911402
A81: 3 | B81: =E12 -> Foothills Vanessa | C81: =VLOOKUP(B81,AU$3:AY$12,3,FALSE) -> 1216 | D81: =IF(B74,B87,IF(D74,D87,C81)) -> 1224.66816 | G81: =IF(E74,E87,IF(G74,G87,D81)) -> 1224.66816 | J81: =IF(H74,H87,IF(J74,J87,G81)) -> 1224.66816 | M81: =IF(K74,K87,IF(M74,M87,J81)) -> 1216.651083 | P81: =IF(N74,N87,IF(P74,P87,M81)) -> 1208.703038 | S81: =IF(Q74,Q87,IF(S74,S87,P81)) -> 1208.703038 | V81: =IF(T74,T87,IF(V74,V87,S81)) -> 1208.703038 | Y81: =IF(W74,W87,IF(Y74,Y87,V81)) -> 1208.703038 | AB81: =IF(Z74,Z87,IF(AB74,AB87,Y81)) -> 1208.703038 | AE81: =IF(AC74,AC87,IF(AE74,AE87,AB81)) -> 1208.703038 | AT81: =B81 -> Foothills Vanessa | AU81: =AE81 -> 1208.703038
A82: 4 | B82: =E14 -> SC Midlands KP Silver | C82: =VLOOKUP(B82,AU$3:AY$12,3,FALSE) -> 1218.363942 | D82: =IF(B75,B87,IF(D75,D87,C82)) -> 1218.363942 | G82: =IF(E75,E87,IF(G75,G87,D82)) -> 1226.683418 | J82: =IF(H75,H87,IF(J75,J87,G82)) -> 1218.907493 | M82: =IF(K75,K87,IF(M75,M87,J82)) -> 1218.907493 | P82: =IF(N75,N87,IF(P75,P87,M82)) -> 1226.855538 | S82: =IF(Q75,Q87,IF(S75,S87,P82)) -> 1226.855538 | V82: =IF(T75,T87,IF(V75,V87,S82)) -> 1226.855538 | Y82: =IF(W75,W87,IF(Y75,Y87,V82)) -> 1226.855538 | AB82: =IF(Z75,Z87,IF(AB75,AB87,Y82)) -> 1226.855538 | AE82: =IF(AC75,AC87,IF(AE75,AE87,AB82)) -> 1226.855538 | AT82: =B82 -> SC Midlands KP Silver | AU82: =AE82 -> 1226.855538
A83: 5 | B83: =E16 -> 0 | C83: =VLOOKUP(B83,AU$3:AY$12,3,FALSE) ->  | D83: =IF(B76,B87,IF(D76,D87,C83)) ->  | G83: =IF(E76,E87,IF(G76,G87,D83)) ->  | J83: =IF(H76,H87,IF(J76,J87,G83)) ->  | M83: =IF(K76,K87,IF(M76,M87,J83)) ->  | P83: =IF(N76,N87,IF(P76,P87,M83)) ->  | S83: =IF(Q76,Q87,IF(S76,S87,P83)) ->  | V83: =IF(T76,T87,IF(V76,V87,S83)) ->  | Y83: =IF(W76,W87,IF(Y76,Y87,V83)) ->  | AB83: =IF(Z76,Z87,IF(AB76,AB87,Y83)) ->  | AE83: =IF(AC76,AC87,IF(AE76,AE87,AB83)) ->  | AT83: =B83 -> 0 | AU83: =AE83 -> 
A85: Init Rating | B85: =VLOOKUP(B24,$A79:$AE83,3,FALSE) -> 1245.085581 | C85: 1 | D85: =VLOOKUP(D24,$A79:$AE83,3,FALSE) -> 1216 | E85: =VLOOKUP(E24,$A79:$AE83,4,FALSE) -> 1232.245993 | F85: 2 | G85: =VLOOKUP(G24,$A79:$AE83,4,FALSE) -> 1218.363942 | H85: =VLOOKUP(H24,$A79:$AE83,7,FALSE) -> 1236.417421 | I85: 3 | J85: =VLOOKUP(J24,$A79:$AE83,7,FALSE) -> 1226.683418 | K85: =VLOOKUP(K24,$A79:$AE83,10,FALSE) -> 1223.926517 | L85: 4 | M85: =VLOOKUP(M24,$A79:$AE83,10,FALSE) -> 1224.66816 | N85: =VLOOKUP(N24,$A79:$AE83,13,FALSE) -> 1216.651083 | O85: 5 | P85: =VLOOKUP(P24,$A79:$AE83,13,FALSE) -> 1218.907493 | Q85: =VLOOKUP(Q24,$A79:$AE83,16,FALSE) -> 1231.943594 | R85: 6 | S85: =VLOOKUP(S24,$A79:$AE83,16,FALSE) -> 1244.193346 | T85: =VLOOKUP(T24,$A79:$AE83,19,FALSE) -> 1235.911402 | U85: 7 | V85: =VLOOKUP(V24,$A79:$AE83,19,FALSE) -> 1208.703038 | W85: =VLOOKUP(W24,$A79:$AE83,22,FALSE) -> 1240.225538 | X85: 8 | Y85: =VLOOKUP(Y24,$A79:$AE83,22,FALSE) ->  | Z85: =VLOOKUP(Z24,$A79:$AE83,25,FALSE) -> 1208.703038 | AA85: 9 | AB85: =VLOOKUP(AB24,$A79:$AE83,25,FALSE) -> 1226.855538 | AC85: =VLOOKUP(AC24,$A79:$AE83,28,FALSE) -> 1240.225538 | AD85: 10 | AE85: =VLOOKUP(AE24,$A79:$AE83,28,FALSE) -> 1235.911402
A86: Exp wins | B86: =1/(1+(10^-((B85-D85)/400)))*(B36+D36) -> 0.5417600069 | D86: =1/(1+(10^-((D85-B85)/400)))*(B36+D36) -> 0.4582399931 | E86: =1/(1+(10^-((E85-G85)/400)))*(E36+G36) -> 0.5199672532 | G86: =1/(1+(10^-((G85-E85)/400)))*(E36+G36) -> 0.4800327468 | H86: =1/(1+(10^-((H85-J85)/400)))*(H36+J36) -> 0.5140046923 | J86: =1/(1+(10^-((J85-H85)/400)))*(H36+J36) -> 0.4859953077 | K86: =1/(1+(10^-((K85-M85)/400)))*(K36+M36) -> 0.4989326914 | M86: =1/(1+(10^-((M85-K85)/400)))*(K36+M36) -> 0.5010673086 | N86: =1/(1+(10^-((N85-P85)/400)))*(N36+P36) -> 0.496752811 | P86: =1/(1+(10^-((P85-N85)/400)))*(N36+P36) -> 0.503247189 | Q86: =1/(1+(10^-((Q85-S85)/400)))*(Q36+S36) -> 0.4823784912 | S86: =1/(1+(10^-((S85-Q85)/400)))*(Q36+S36) -> 0.5176215088 | T86: =1/(1+(10^-((T85-V85)/400)))*(T36+V36) -> 0 | V86: =1/(1+(10^-((V85-T85)/400)))*(T36+V36) -> 0 | W86: =1/(1+(10^-((W85-Y85)/400)))*(W36+Y36) ->  | Y86: =1/(1+(10^-((Y85-W85)/400)))*(W36+Y36) ->  | Z86: =1/(1+(10^-((Z85-AB85)/400)))*(Z36+AB36) -> 0 | AB86: =1/(1+(10^-((AB85-Z85)/400)))*(Z36+AB36) -> 0 | AC86: =1/(1+(10^-((AC85-AE85)/400)))*(AC36+AE36) -> 0 | AE86: =1/(1+(10^-((AE85-AC85)/400)))*(AC36+AE36) -> 0
A87: New Rating | B87: =B85+(B36-B86)*$BA$1 -> 1236.417421 | D87: =D85+(D36-D86)*$BA$1 -> 1224.66816 | E87: =E85+(E36-E86)*$BA$1 -> 1223.926517 | G87: =G85+(G36-G86)*$BA$1 -> 1226.683418 | H87: =H85+(H36-H86)*$BA$1 -> 1244.193346 | J87: =J85+(J36-J86)*$BA$1 -> 1218.907493 | K87: =K85+(K36-K86)*$BA$1 -> 1231.943594 | M87: =M85+(M36-M86)*$BA$1 -> 1216.651083 | N87: =N85+(N36-N86)*$BA$1 -> 1208.703038 | P87: =P85+(P36-P86)*$BA$1 -> 1226.855538 | Q87: =Q85+(Q36-Q86)*$BA$1 -> 1240.225538 | S87: =S85+(S36-S86)*$BA$1 -> 1235.911402 | T87: =T85+(T36-T86)*$BA$1 -> 1235.911402 | V87: =V85+(V36-V86)*$BA$1 -> 1208.703038 | W87: =W85+(W36-W86)*$BA$1 ->  | Y87: =Y85+(Y36-Y86)*$BA$1 ->  | Z87: =Z85+(Z36-Z86)*$BA$1 -> 1208.703038 | AB87: =AB85+(AB36-AB86)*$BA$1 -> 1226.855538 | AC87: =AC85+(AC36-AC86)*$BA$1 -> 1240.225538 | AE87: =AE85+(AE36-AE86)*$BA$1 -> 1235.911402
A89: =IF($AK10=1,"Pool Tiereaker : 1) Matches Won vs Lost (if 3 way tie then #4) 2) Head to Head 3) Game Win % 4) Total Pool Net Points 5) Flip a Coin","Pool Tiebreaker : 1) Games Won vs Lost (if 3 way tie then #5) 2) Head to Head 3) Head to Head Net Points 4) Game Win % 5) Total Pool Net Points 6) Flip a Coin") -> Pool Tiereaker : 1) Matches Won vs Lost (if 3 way tie then #4) 2) Head to Head 3) Game Win % 4) Total Pool Net Points 5) Flip a Coin
A91: POOL: | B91: B | C91: COURT: | I91: 2 | K91: ="Pool "&B91&" - Round 1 - Court "&I91 -> Pool B - Round 1 - Court 2
A92: Team # | B92: Team Name | L92: =IF($AK95=0,"Games Won","Matches Won") -> Matches Won | R92: =IF($AK95=0,"Games Lost","Matches Lost") -> Matches Lost | W92: Total Pool Net Points | Z92: % Total Net Points | AC92: Game Win % | AF92: Pool Finish | AG92: # | AH92: Playoff Finish | AK92: 1 | AL92: Games per Match (1-5)
A93: =IF($AK94>0,"1","") -> 1 | B93: Team Name | E93: =AU4 -> Excell U12 Devel | L93: =IF($AK95=0,AF149,AF131) -> 0 | R93: =IF($AK95=0,AG149,AG131) -> 3 | W93: =AQ109 -> -32 | Z93: =IF(AF143>0,(AQ109/AF143),0) -> -0.4155844156 | AC93: =IF(AF157=0,0,(AF149/AF157)) -> 0 | AF93: 4 | AG93: 1 | AK93: 6 | AL93: Matches (1-10)
B94: Team Code | E94: =AV4 -> fj2excel2pm | AK94: 4 | AL94: Teams in Pool (1-5)
A95: =IF($AK94>1,"2","") -> 2 | B95: Team Name | E95: =AU5 -> Foothills Skylar | L95: =IF($AK95=0,AF150,AF132) -> 3 | R95: =IF($AK95=0,AG150,AG132) -> 0 | W95: =AQ110 -> 17 | Z95: =IF(AF144>0,(AQ110/AF144),0) -> 0.2741935484 | AC95: =IF(AF158=0,0,(AF150/AF158)) -> 1 | AF95: 1 | AG95: 1 | AK95: 1 | AL95: 0-Count Games 1-Count Matches
B96: Team Code | E96: =AV5 -> fj2footh3pm | AK96: 1 | AL96: Game Win % 0 = No 1 = Yes
A97: =IF($AK94>2,"3","") -> 3 | B97: Team Name | E97: =AU8 -> C1VB Juniors Grey | L97: =IF($AK95=0,AF151,AF133) -> 2 | R97: =IF($AK95=0,AG151,AG133) -> 1 | W97: =AQ111 -> 18 | Z97: =IF(AF145>0,(AQ111/AF145),0) -> 0.24 | AC97: =IF(AF159=0,0,(AF151/AF159)) -> 0.6666666667 | AF97: 2 | AG97: 1 | AK97: 3 | AL97: # of Matches/Games per Team
B98: Team Code | E98: =AV8 -> fj2crone8pm
A99: =IF($AK94>3,"4","") -> 4 | B99: Team Name | E99: =AU9 -> Intense kids power col | L99: =IF($AK95=0,AF152,AF134) -> 1 | R99: =IF($AK95=0,AG152,AG134) -> 2 | W99: =AQ112 -> -3 | Z99: =IF(AF146>0,(AQ112/AF146),0) -> -0.0375 | AC99: =IF(AF160=0,0,(AF152/AF160)) -> 0.3333333333 | AF99: 3 | AG99: 1
B100: Team Code | E100: =AV9 -> fj2inten3pm
A101: =IF($AK94>4,"5","") ->  | B101: Team Name | E101: =AU12 -> 0 | L101: =IF($AK95=0,AF153,AF135) -> 0 | R101: =IF($AK95=0,AG153,AG135) -> 0 | W101: =AQ113 -> 0 | Z101: =IF(AF147>0,(AQ113/AF147),0) -> 0 | AC101: =IF(AF161=0,0,(AF153/AF161)) -> 0
B102: Team Code | E102: =AV12 -> 0
B103: POOL PLAY FORMAT: Best of 3 (25-25-15) 2 pt cap
A104: Sch Start | B104: 08:30:00 | E104: 09:30:00 | H104: 10:30:00 | K104: 12:00:00 | N104: 01:00:00 | Q104: 02:00:00 | T104: 01:00:00 | W104: 01:45:00 | Z104: 02:30:00 | AC104: 03:15:00 | AF104: Note: The Pool Finish Summary at the bottom of the sheet will fill in AUTOMATICALLY once the POOL FINISH column (at left) is filled in.
A105: Actual Start
A106: End Time
B107: Match 1 | E107: =IF(AK93>1,"Match 2","") -> Match 2 | H107: =IF(AK93>2,"Match 3","") -> Match 3 | K107: =IF(AK93>3,"Match 4","") -> Match 4 | N107: =IF(AK93>4,"Match 5","") -> Match 5 | Q107: =IF(AK93>5,"Match 6","") -> Match 6 | T107: =IF(AK93>6,"Match 7","") ->  | W107: =IF(AK93>7,"Match 8","") ->  | Z107: =IF(AK93>8,"Match 9","") ->  | AC107: =IF(AK93>9,"Match 10","") -> 
B108: 1 refs | E108: 2 refs | H108: 3 refs | K108: 4 refs | N108: 2 refs | Q108: 3 refs | T108: 4 refs | W108: 2 refs | Z108: 5 refs | AC108: 3 refs | AF108: Net Points | AG108: 1 | AH108: 2 | AI108: 3 | AJ108: 4 | AK108: 5 | AL108: 6 | AM108: 7 | AN108: 8 | AO108: 9 | AP108: 10 | AQ108: Total
B109: 2 | C109: v | D109: 3 | E109: 1 | F109: =IF(AK93>1,"v","") -> v | G109: 4 | H109: 2 | I109: =IF(AK93>2,"v","") -> v | J109: 4 | K109: 1 | L109: =IF(AK93>3,"v","") -> v | M109: 3 | N109: 3 | O109: =IF(AK93>4,"v","") -> v | P109: 4 | Q109: 1 | R109: =IF(AK93>5,"v","") -> v | S109: 2 | T109: 2 | U109: =IF(AK93>6,"v","") ->  | V109: 3 | W109: 1 | X109: =IF(AK93>7,"v","") ->  | Y109: 5 | Z109: 3 | AA109: =IF(AK93>8,"v","") ->  | AB109: 4 | AC109: 1 | AD109: =IF(AK93>9,"v","") ->  | AE109: 2 | AF109: =IF(AK94>0,"Team 1","") -> Team 1 | AG109: =IF(AK94<1,"",IF(AK93<1,"",IF(B109=1,B115-D115,IF(D109=1,D115-B115,"")))) ->  | AH109: =IF(AK94<1,"",IF(AK93<2,"",IF(E109=1,E115-G115,IF(G109=1,G115-E115,"")))) -> -15 | AI109: =IF(AK94<1,"",IF(AK93<3,"",IF(H109=1,H115-J115,IF(J109=1,J115-H115,"")))) ->  | AJ109: =IF(AK94<1,"",IF(AK93<4,"",IF(K109=1,K115-M115,IF(M109=1,M115-K115,"")))) -> -8 | AK109: =IF(AK94<1,"",IF(AK93<5,"",IF(N109=1,N115-P115,IF(P109=1,P115-N115,"")))) ->  | AL109: =IF(AK94<1,"",IF(AK93<6,"",IF(Q109=1,Q115-S115,IF(S109=1,S115-Q115,"")))) -> -9 | AM109: =IF(AK94<1,"",IF(AK93<7,"",IF(T109=1,T115-V115,IF(V109=1,V115-T115,"")))) ->  | AN109: =IF(AK94<1,"",IF(AK93<8,"",IF(W109=1,W115-Y115,IF(Y109=1,Y115-W115,"")))) ->  | AO109: =IF(AK94<1,"",IF(AK93<9,"",IF(Z109=1,Z115-AB115,IF(AB109=1,AB115-Z115,"")))) ->  | AP109: =IF(AK94<1,"",IF(AK93<10,"",IF(AC109=1,AC115-AE115,IF(AE109=1,AE115-AC115,"")))) ->  | AQ109: =SUM(AG109:AP109) -> -32
A110: Game 1 | B110: 19 | C110: / | D110: 16 | E110: 14 | F110: =IF(AK93>1,"/","") -> / | G110: 29 | H110: 22 | I110: =IF(AK93>2,"/","") -> / | J110: 17 | K110: 19 | L110: =IF(AK93>3,"/","") -> / | M110: 27 | N110: 29 | O110: =IF(AK93>4,"/","") -> / | P110: 16 | Q110: 12 | R110: =IF(AK93>5,"/","") -> / | S110: 21 | U110: =IF(AK93>6,"/","") ->  | X110: =IF(AK93>7,"/","") ->  | AA110: =IF(AK93>8,"/","") ->  | AD110: =IF(AK93>9,"/","") ->  | AF110: =IF(AK94>1,"Team 2","") -> Team 2 | AG110: =IF(AK94<2,"",IF(AK93<1,"",IF(B109=2,B115-D115,IF(D109=2,D115-B115,"")))) -> 3 | AH110: =IF(AK94<2,"",IF(AK93<2,"",IF(E109=2,E115-G115,IF(G109=2,G115-E115,"")))) ->  | AI110: =IF(AK94<2,"",IF(AK93<3,"",IF(H109=2,H115-J115,IF(J109=2,J115-H115,"")))) -> 5 | AJ110: =IF(AK94<2,"",IF(AK93<4,"",IF(K109=2,K115-M115,IF(M109=2,M115-K115,"")))) ->  | AK110: =IF(AK94<2,"",IF(AK93<5,"",IF(N109=2,N115-P115,IF(P109=2,P115-N115,"")))) ->  | AL110: =IF(AK94<2,"",IF(AK93<6,"",IF(Q109=2,Q115-S115,IF(S109=2,S115-Q115,"")))) -> 9 | AM110: =IF(AK94<2,"",IF(AK93<7,"",IF(T109=2,T115-V115,IF(V109=2,V115-T115,"")))) ->  | AN110: =IF(AK94<2,"",IF(AK93<8,"",IF(W109=2,W115-Y115,IF(Y109=2,Y115-W115,"")))) ->  | AO110: =IF(AK94<2,"",IF(AK93<9,"",IF(Z109=2,Z115-AB115,IF(AB109=2,AB115-Z115,"")))) ->  | AP110: =IF(AK94<2,"",IF(AK93<10,"",IF(AC109=2,AC115-AE115,IF(AE109=2,AE115-AC115,"")))) ->  | AQ110: =SUM(AG110:AP110) -> 17
A111: =IF(AK92>1,"Game 2","") ->  | C111: / | F111: =IF(AK93>1,IF(AK92>1,"/",""),"") ->  | I111: =IF(AK93>2,IF(AK92>1,"/",""),"") ->  | L111: =IF(AK93>3,IF(AK92>1,"/",""),"") ->  | O111: =IF(AK93>4,IF(AK92>1,"/",""),"") ->  | R111: =IF(AK93>5,IF(AK92>1,"/",""),"") ->  | U111: =IF(AK93>6,IF(AK92>1,"/",""),"") ->  | X111: =IF(AK93>7,IF(AK92>1,"/",""),"") ->  | AA111: =IF(AK93>8,IF(AK92>1,"/",""),"") ->  | AD111: =IF(AK93>9,IF(AK92>1,"/",""),"") ->  | AF111: =IF(AK94>2,"Team 3","") -> Team 3 | AG111: =IF(AK94<3,"",IF(AK93<1,"",IF(B109=3,B115-D115,IF(D109=3,D115-B115,"")))) -> -3 | AH111: =IF(AK94<3,"",IF(AK93<2,"",IF(E109=3,E115-G115,IF(G109=3,G115-E115,"")))) ->  | AI111: =IF(AK94<3,"",IF(AK93<3,"",IF(H109=3,H115-J115,IF(J109=3,J115-H115,"")))) ->  | AJ111: =IF(AK94<3,"",IF(AK93<4,"",IF(K109=3,K115-M115,IF(M109=3,M115-K115,"")))) -> 8 | AK111: =IF(AK94<3,"",IF(AK93<5,"",IF(N109=3,N115-P115,IF(P109=3,P115-N115,"")))) -> 13 | AL111: =IF(AK94<3,"",IF(AK93<6,"",IF(Q109=3,Q115-S115,IF(S109=3,S115-Q115,"")))) ->  | AM111: =IF(AK94<3,"",IF(AK93<7,"",IF(T109=3,T115-V115,IF(V109=3,V115-T115,"")))) ->  | AN111: =IF(AK94<3,"",IF(AK93<8,"",IF(W109=3,W115-Y115,IF(Y109=3,Y115-W115,"")))) ->  | AO111: =IF(AK94<3,"",IF(AK93<9,"",IF(Z109=3,Z115-AB115,IF(AB109=3,AB115-Z115,"")))) ->  | AP111: =IF(AK94<3,"",IF(AK93<9,"",IF(AC109=3,AC115-AE115,IF(AE109=3,AE115-AC115,"")))) ->  | AQ111: =SUM(AG111:AP111) -> 18
A112: =IF(AK92>2,"Game 3","") ->  | C112: / | F112: =IF(AK93>1,IF(AK92>2,"/",""),"") ->  | I112: =IF(AK93>2,IF(AK92>2,"/",""),"") ->  | L112: =IF(AK93>3,IF(AK92>2,"/",""),"") ->  | O112: =IF(AK93>4,IF(AK92>2,"/",""),"") ->  | R112: =IF(AK93>5,IF(AK92>2,"/",""),"") ->  | U112: =IF(AK93>6,IF(AK92>2,"/",""),"") ->  | X112: =IF(AK93>7,IF(AK92>2,"/",""),"") ->  | AA112: =IF(AK93>8,IF(AK92>2,"/",""),"") ->  | AD112: =IF(AK93>9,IF(AK92>2,"/",""),"") ->  | AF112: =IF(AK94>3,"Team 4","") -> Team 4 | AG112: =IF(AK94<4,"",IF(AK93<1,"",IF(B109=4,B115-D115,IF(D109=4,D115-B115,"")))) ->  | AH112: =IF(AK94<4,"",IF(AK93<2,"",IF(E109=4,E115-G115,IF(G109=4,G115-E115,"")))) -> 15 | AI112: =IF(AK94<4,"",IF(AK93<3,"",IF(H109=4,H115-J115,IF(J109=4,J115-H115,"")))) -> -5 | AJ112: =IF(AK94<4,"",IF(AK93<4,"",IF(K109=4,K115-M115,IF(M109=4,M115-K115,"")))) ->  | AK112: =IF(AK94<4,"",IF(AK93<5,"",IF(N109=4,N115-P115,IF(P109=4,P115-N115,"")))) -> -13 | AL112: =IF(AK94<4,"",IF(AK93<6,"",IF(Q109=4,Q115-S115,IF(S109=4,S115-Q115,"")))) ->  | AM112: =IF(AK94<4,"",IF(AK93<7,"",IF(T109=4,T115-V115,IF(V109=4,V115-T115,"")))) ->  | AN112: =IF(AK94<4,"",IF(AK93<8,"",IF(W109=4,W115-Y115,IF(Y109=4,Y115-W115,"")))) ->  | AO112: =IF(AK94<4,"",IF(AK93<9,"",IF(Z109=4,Z115-AB115,IF(AB109=4,AB115-Z115,"")))) ->  | AP112: =IF(AK94<4,"",IF(AK93<10,"",IF(AC109=4,AC115-AE115,IF(AE109=4,AE115-AC115,"")))) ->  | AQ112: =SUM(AG112:AP112) -> -3
A113: =IF(AK92>3,"Game 4","") ->  | C113: / | F113: =IF(AK93>1,IF(AK92>3,"/",""),"") ->  | I113: =IF(AK93>2,IF(AK92>3,"/",""),"") ->  | L113: =IF(AK93>3,IF(AK92>3,"/",""),"") ->  | O113: =IF(AK93>4,IF(AK92>3,"/",""),"") ->  | R113: =IF(AK93>5,IF(AK92>3,"/",""),"") ->  | U113: =IF(AK93>6,IF(AK92>3,"/",""),"") ->  | X113: =IF(AK93>7,IF(AK92>3,"/",""),"") ->  | AA113: =IF(AK93>8,IF(AK92>3,"/",""),"") ->  | AD113: =IF(AK93>9,IF(AK92>3,"/",""),"") ->  | AF113: =IF(AK94>4,"Team 5","") ->  | AG113: =IF(AK94<5,"",IF(AK93<1,"",IF(B109=5,B115-D115,IF(D109=5,D115-B115,"")))) ->  | AH113: =IF(AK94<5,"",IF(AK93<2,"",IF(E109=5,E115-G115,IF(G109=5,G115-E115,"")))) ->  | AI113: =IF(AK94<5,"",IF(AK93<3,"",IF(H109=5,H115-J115,IF(J109=5,J115-H115,"")))) ->  | AJ113: =IF(AK94<5,"",IF(AK93<4,"",IF(K109=5,K115-M115,IF(M109=5,M115-K115,"")))) ->  | AK113: =IF(AK94<5,"",IF(AK93<5,"",IF(N109=5,N115-P115,IF(P109=5,P115-N115,"")))) ->  | AL113: =IF(AK94<5,"",IF(AK93<6,"",IF(Q109=5,Q115-S115,IF(S109=5,S115-Q115,"")))) ->  | AM113: =IF(AK94<5,"",IF(AK93<7,"",IF(T109=5,T115-V115,IF(V109=5,V115-T115,"")))) ->  | AN113: =IF(AK94<5,"",IF(AK93<8,"",IF(W109=5,W115-Y115,IF(Y109=5,Y115-W115,"")))) ->  | AO113: =IF(AK94<5,"",IF(AK93<9,"",IF(Z109=5,Z115-AB115,IF(AB109=5,AB115-Z115,"")))) ->  | AP113: =IF(AK94<5,"",IF(AK93<10,"",IF(AC109=5,AC115-AE115,IF(AE109=5,AE115-AC115,"")))) ->  | AQ113: =SUM(AG113:AP113) -> 0
A114: =IF(AK92>4,"Game 5","") ->  | C114: / | F114: =IF(AK93>1,IF(AK92>4,"/",""),"") ->  | I114: =IF(AK93>2,IF(AK92>4,"/",""),"") ->  | L114: =IF(AK93>3,IF(AK92>4,"/",""),"") ->  | O114: =IF(AK93>4,IF(AK92>4,"/",""),"") ->  | R114: =IF(AK93>5,IF(AK92>4,"/",""),"") ->  | U114: =IF(AK93>6,IF(AK92>4,"/",""),"") ->  | X114: =IF(AK93>7,IF(AK92>4,"/",""),"") ->  | AA114: =IF(AK93>8,IF(AK92>4,"/",""),"") ->  | AD114: =IF(AK93>9,IF(AK92>4,"/",""),"") -> 
